Workbook

Sheet User's instructions
C2: 1. Unblock the Excel file after downloading the Excel file from the Internet
C36: More detailed instructions are available on the following link: : https://www.buyexceltemplates.com/pages/excel-unblock-file-properties-windows-10-after-downloading-internet
C39: 2. Click on the "Refresh" button in the top left-hand corner of some graph sheets to refresh the graphs after updating the data (see example below).

Sheet Input. 2016 fmk
D2: Team leader | L2: PEFA 2016 FRAMEWORK
D4: Country | I4: PEFALIA
D7: Current assessment | I7: 2021
D9: Previous assessment | I9: 2016
I12: Global score | J12: =IFERROR(AVERAGEIFS(M27:M153,$E27:$E153,"Indic",M27:M153,">0"),0) -> 0 | K12: =AVERAGEIFS(N27:N153,$E27:$E153,"Indic",N27:N153,">0") -> 1.419642857
I13: Global score | J13: =IF(J12>3.65,"A", IF(J12>=3.25,"B+", IF(J12>2.65,"B", IF(J12>=2.25,"C+", IF(J12>1.75,"C", IF(J12>1.25,"D+", IF(AND(J12<=1.25,J12>0),"D", "" ))))))) ->  | K13: =IF(K12>3.65,"A", IF(K12>=3.25,"B+", IF(K12>2.65,"B", IF(K12>=2.25,"C+", IF(K12>1.75,"C", IF(K12>1.25,"D+", IF(AND(K12<=1.25,K12>0),"D", "" ))))))) -> D+
A15: Pays | B15: ID | C15: IDC | D15: Method | E15: Type | F15: ID_Pilar | G15: Pilar | H15: ID-Indic | I15: Label | J15: =I9 -> 2016 | K15: =I7 -> 2021 | L15: Comp | M15: ="Num-"&$J15 -> Num-2016 | N15: ="Num-Temp "&$K15 -> Num-Temp 2021 | O15: ="Num-"&$K15 -> Num-2021 | P15: ="Perf-"&$K15 -> Perf-2021 | Q15: ="SW-"&$K15 -> SW-2021 | R15: Evol | S15: Previous justification | T15: Current justification | U15: PI | V15: Outcome1 | W15: Outcome2 | X15: Outcome3 | Y15: Section | Z15: ="Perf-"&$K15 -> Perf-2021
A16: =$I$4 -> PEFALIA | B16: HLG | C16: HLG | E16: Pilar | F16: I | G16: =VLOOKUP(F16,Profile!B:C,2,FALSE) -> I. Budget reliability | I16: =IFERROR(VLOOKUP(B16,#REF!,2,FALSE),"") ->  | J16: =IF(M16>3.65,"A", IF(M16>=3.25,"B+", IF(M16>2.65,"B", IF(M16>=2.25,"C+", IF(M16>1.75,"C", IF(M16>1.25,"D+", IF(AND(M16<=1.25,M16>0),"D", IF(M16=0,"NA", "" )))))))) -> NA | K16: D+ | L16: =IF(COUNTIFS(L17:L25,"Oui")=9,"Oui","Non") -> Oui | M16: =AVERAGEIFS(M$16:M$153,$E$16:$E$153,"Indic",$F$16:$F$153,$F16) -> 0 | N16: =AVERAGEIFS(N$16:N$153,$E$16:$E$153,"Indic",$F$16:$F$153,$F16) -> 1.75 | O16: =IF($K16="D",1, IF($K16="D+",1.5, IF($K16="C",2, IF($K16="C+",2.5, IF($K16="B",3, IF($K16="B+",3.5, IF($K16="A",4, ))))))) -> 1.5 | P16: =IF(K16="D","1. BELOW BASIC", IF(K16="D*","1. BELOW BASIC", IF(K16="D+","1. BELOW BASIC", IF(K16="C","2. BASIC", IF(K16="C+","2. BASIC", IF(K16="B+","3. SOUND", IF(K16="B","3. SOUND", IF(K16="A","4. HIGH","")))))))) -> 1. BELOW BASIC
A17: =$I$4 -> PEFALIA | B17: HLG-1 | C17: HLG-1 | D17: M2 | E17: Indic | F17: III | G17: =VLOOKUP(F17,Profile!B:C,2,FALSE) -> III. Management of assets and liabilities | H17: PI-11 | I17: =IFERROR(VLOOKUP(B17,Profile!B:C,2,FALSE),"") -> HLG-1 Transfer from higher levels of government | J17: NA | K17: D+ | L17: =IF(OR(L18="Oui",L19="Oui",L20="Oui",L21="Oui"),"Oui","Non") -> Oui | M17: =IFERROR(IF($D17="M1",IF(ROUND(AVERAGEIF(M18:M21,">0"),1)=ROUND(MAX(IF(M18:M21>0,M18:M21)),1),MAX(M18:M21),MAX(IF(M18:M21>0,M18:M21))+0.5),AVERAGEIF(M18:M21,">0")),0) -> 0 | N17: =IFERROR(IF($D17="M1",IF(ROUND(AVERAGEIF(N18:N21,">0"),1)=ROUND(MIN(IF(N18:N21>0,N18:N21)),1),AVERAGE(N18:N21),MIN(IF(N18:N21>0,N18:N21))+0.5),AVERAGEIF(N18:N21,">0")),0) -> 1.75 | O17: =IF($K17="D",1, IF($K17="D+",1.5, IF($K17="C",2, IF($K17="C+",2.5, IF($K17="B",3, IF($K17="B+",3.5, IF($K17="A",4, ))))))) -> 1.5 | P17: 1. BELOW BASIC | Q17: =IF(K17="A","Force", IF(K17="B+","Force", IF(K17="B","Force", IF(K17="D+","Faiblesse", IF(K17="D","Faiblesse", "Basique"))))) -> Faiblesse | R17: =IFERROR(IF(L17="Oui",IF(N17-M17<0,"-",IF(N17-M17>0,"+"," =")),"N.C"),"") -> + | U17: ="("&H17&")" -> (PI-11) | V17: 1 | W17: 1 | X17: 0 | Y17: =Y18 -> 4 | Z17: =IF($N17>=3.25,"4. ADVANCED", IF($N17>=2.5,"3. GOOD", IF($N17>=1.75,"2. Basique", IF($N17>=1,"1. Elémentaire", "" )))) -> 2. Basique
A18: PEFALIA | B18: HLG-1.1 | C18: HLG-1.1 | E18: Comp | F18: III | G18: =VLOOKUP(F18,Profile!B:C,2,FALSE) -> III. Management of assets and liabilities | H18: PI-11 | I18: =IFERROR(VLOOKUP(B18,Profile!B:C,2,FALSE),"") -> HLG-1.1 Outturn of transfers from higher levels of government | K18: A | L18: Oui | M18: =IFERROR(IF(TRIM(CLEAN(J18))="A",4)+IF(TRIM(CLEAN(J18))="B+",3.5)+IF(TRIM(CLEAN(J18))="B",3)+IF(TRIM(CLEAN(J18))="C+",2.5)+IF(TRIM(CLEAN(J18))="C",2)+IF(TRIM(CLEAN(J18))="D+",1.5)+IF(TRIM(CLEAN(J18))="D",1)+IF(TRIM(CLEAN(J18))="D*",1)+IF(TRIM(CLEAN(J18))="NU",0)+IF(TRIM(CLEAN(J18))="",0),"") -> 0 | N18: 4 | O18: 4 | P18: 4. HIGH | Q18: =IF(K18="A","Strenght", IF(K18="B+","Strenght", IF(K18="B","Strenght", IF(K18="D+","Weakness", IF(K18="D","Weakness", "Basic"))))) -> Strenght | R18: + | T18: State transfers to the Commune were therefore 98.1% in 2018, 169.34% in 2019 and 97.6% in 2020, i.e. between 97% and 106% for fiscal 2018 and 2020. | U18: (PI-11) | V18: 1 | W18: 1 | X18: 0 | Y18: 4 | Z18: =IF($N18>=3.25,"4. Avancé", IF($N18>=2.5,"3. SOUND", IF($N18>=1.75,"2. Basique", IF($N18>=1,"1. Elémentaire", "" )))) -> 4. Avancé
A19: PEFALIA | B19: HLG-1.2 | C19: HLG-1.2 | E19: Comp | F19: III | G19: =VLOOKUP(F19,Profile!B:C,2,FALSE) -> III. Management of assets and liabilities | H19: PI-11 | I19: =IFERROR(VLOOKUP(B19,Profile!B:C,2,FALSE),"") -> HLG-1.2 Transfers composition outturn | K19: D | L19: Oui | M19: 0 | N19: 1 | O19: 1 | P19: 1. BELOW BASIC | Q19: Weakness | R19: + | T19: The composition of transfers carried out deviated from the initial composition by 15.3% in 2018, 66.3% in 2019, and 39.9% in 2020, i.e. by more than 15% over the three years covered by the assessment. | U19: (PI-11) | V19: 1 | W19: 1 | X19: 0 | Y19: 4 | Z19: =IF($N19>=3.25,"4. Avancé", IF($N19>=2.5,"3. SOUND", IF($N19>=1.75,"2. Basique", IF($N19>=1,"1. Elémentaire", "" )))) -> 1. Elémentaire
A20: PEFALIA | B20: HLG-1.3 | C20: HLG-1.3 | E20: Comp | F20: III | G20: =VLOOKUP(F20,Profile!B:C,2,FALSE) -> III. Management of assets and liabilities | H20: PI-11 | I20: =IFERROR(VLOOKUP(B20,Profile!B:C,2,FALSE),"") -> HLG-1.3 Timeliness of transfers from higher levels of government | K20: D | L20: Oui | M20: 0 | N20: 1 | O20: 1 | P20: 1. BELOW BASIC | Q20: Weakness | R20: + | T20: No schedule for the disbursement of State transfers to the Commune has been agreed with the central administration over the period covered by the evaluation. Moreover, disbursements are not made at regular intervals. | U20: (PI-11) | V20: 1 | W20: 1 | X20: 0 | Y20: 4 | Z20: =IF($N20>=3.25,"4. Avancé", IF($N20>=2.5,"3. SOUND", IF($N20>=1.75,"2. Basique", IF($N20>=1,"1. Elémentaire", "" )))) -> 1. Elémentaire
A21: PEFALIA | B21: HLG-1.4 | C21: HLG-1.4 | E21: Comp | F21: III | G21: =VLOOKUP(F21,Profile!B:C,2,FALSE) -> III. Management of assets and liabilities | H21: PI-11 | I21: =IFERROR(VLOOKUP(B21,Profile!B:C,2,FALSE),"") -> HLG-1.4 Predictability of transfers | K21: D | L21: Oui | M21: 0 | N21: 1 | O21: 1 | P21: 1. BELOW BASIC | Q21: Weakness | R21: + | T21: The central government departments do not provide the commune with information on the transfers that will be allocated to it for a given year as part of the budgetary process. Moreover, these transfers are not subject to annual or multi-year programming. | U21: (PI-11) | V21: 1 | W21: 1 | X21: 0 | Y21: 4 | Z21: =IF($N21>=3.25,"4. Avancé", IF($N21>=2.5,"3. SOUND", IF($N21>=1.75,"2. Basique", IF($N21>=1,"1. Elémentaire", "" )))) -> 1. Elémentaire
A22: PEFALIA | B22: HLG-2 | C22: HLG-2 | D22: M1 | E22: Indic | F22: I | G22: =VLOOKUP(F22,Profile!B:C,2,FALSE) -> I. Budget reliability | H22: PI-2 | I22: =IFERROR(VLOOKUP(B22,Profile!B:C,2,FALSE),"") -> HLG-2 Fiscal rules and monitoring of fiscal position | J22: =IF(M22>3.65,"A", IF(M22>=3.25,"B+", IF(M22>2.65,"B", IF(M22>=2.25,"C+", IF(M22>1.75,"C", IF(M22>1.25,"D+", IF(AND(M22<=1.25,M22>0),"D", IF(M22=0,"NA", "" )))))))) -> NA | K22: D | L22: =IF(OR(L23="Oui",L24="Oui",L25="Oui"),"Oui","Non") -> Oui | M22: =IFERROR((IF($D22="M1",IF(ROUND(AVERAGEIF(M23:M25,">0"),1)=ROUND(MIN(IF(M23:M25>0,M23:M25)),1),AVERAGE(M23:M25),MIN(IF(M23:M25>0,M23:M25))+0.5),AVERAGEIF(M23:M25,">0"))),0) -> 0 | N22: =IFERROR((IF($D22="M1",IF(ROUND(AVERAGEIF(N23:N25,">0"),1)=ROUND(MIN(IF(N23:N25>0,N23:N25)),1),AVERAGE(N23:N25),MIN(IF(N23:N25>0,N23:N25))+0.5),AVERAGEIF(N23:N25,">0"))),0) -> 1 | O22: 1 | P22: 1. BELOW BASIC | Q22: =IF(K22="A","Force", IF(K22="B+","Force", IF(K22="B","Force", IF(K22="D+","Faiblesse", IF(K22="D","Faiblesse", "Basique"))))) -> Faiblesse | R22: + | U22: (PI-2) | V22: 0 | W22: 1 | X22: 1 | Y22: =Y23 -> 3 | Z22: =IF($N22>=3.25,"4. ADVANCED", IF($N22>=2.5,"3. GOOD", IF($N22>=1.75,"2. Basique", IF($N22>=1,"1. Elémentaire", "" )))) -> 1. Elémentaire
A23: PEFALIA | B23: HLG-2.1 | C23: HLG-2.1 | E23: Comp | F23: I | G23: =VLOOKUP(F23,Profile!B:C,2,FALSE) -> I. Budget reliability | H23: PI-2 | I23: =IFERROR(VLOOKUP(B23,Profile!B:C,2,FALSE),"") -> HLG-2.1 Fiscal rules for sub-national governments | K23: D | L23: Oui | M23: =IFERROR(IF(TRIM(CLEAN(J23))="A",4)+IF(TRIM(CLEAN(J23))="B+",3.5)+IF(TRIM(CLEAN(J23))="B",3)+IF(TRIM(CLEAN(J23))="C+",2.5)+IF(TRIM(CLEAN(J23))="C",2)+IF(TRIM(CLEAN(J23))="D+",1.5)+IF(TRIM(CLEAN(J23))="D",1)+IF(TRIM(CLEAN(J23))="D*",1)+IF(TRIM(CLEAN(J23))="NU",0)+IF(TRIM(CLEAN(J23))="",0),"") -> 0 | N23: 1 | O23: 1 | P23: 1. BELOW BASIC | Q23: Weakness | R23: + | T23: The budgetary rules applicable to communes for drawing up and approving their budgets are expressly laid down by the State in Book Five of the General Code of Decentralized Local Authorities, which also gives the supervisory authority (State representative) the power to amend the budget to bring it into line with the law, in the event of non-compliance with the said rules. The law does not provide for derogations from these rules. No Commune Executive can disregard these rules, and in the case of the Commune in particular, they have been respected. | U23: (PI-2) | V23: 0 | W23: 1 | X23: 1 | Y23: 3 | Z23: =IF($N23>=3.25,"4. Avancé", IF($N23>=2.5,"3. SOUND", IF($N23>=1.75,"2. Basique", IF($N23>=1,"1. Elémentaire", "" )))) -> 1. Elémentaire
A24: PEFALIA | B24: HLG-2.2 | C24: HLG-2.2 | E24: Comp | F24: I | G24: =VLOOKUP(F24,Profile!B:C,2,FALSE) -> I. Budget reliability | H24: PI-2 | I24: =IFERROR(VLOOKUP(B24,Profile!B:C,2,FALSE),"") -> HLG-2.2 Debt rules for sub-national governments | K24: D | L24: Oui | M24: 0 | N24: 1 | O24: 1 | P24: 1. BELOW BASIC | Q24: Weakness | R24: + | T24: CTDs' recourse to borrowing is well regulated by law. However, the CTD General Code has not set out criteria for determining the debt ceilings to be observed by CTDs, and a mechanism for monitoring CTD indebtedness is not in place at State level. The rules governing the borrowing of CTDs were respected by the Tiko commune executive in 2020. | U24: (PI-2) | V24: 0 | W24: 1 | X24: 1 | Y24: 3 | Z24: =IF($N24>=3.25,"4. Avancé", IF($N24>=2.5,"3. SOUND", IF($N24>=1.75,"2. Basique", IF($N24>=1,"1. Elémentaire", "" )))) -> 1. Elémentaire
A25: PEFALIA | B25: HLG-2.3 | C25: HLG-2.3 | E25: Comp | F25: I | G25: =VLOOKUP(F25,Profile!B:C,2,FALSE) -> I. Budget reliability | H25: PI-2 | I25: =IFERROR(VLOOKUP(B25,Profile!B:C,2,FALSE),"") -> HLG-2.3 Monitoring of sub-national governments | K25: D* | L25: Oui | M25: 0 | N25: 1 | O25: 0 | P25: 1. BELOW BASIC | Q25: Basic | R25: =IFERROR(IF(L25="Oui",IF(N25-M25<0,"~-",IF(N25-M25>0,"+"," =")),"N.C"),"") -> + | T25: Available data are insufficient to assess this component. | U25: (PI-2) | V25: 0 | W25: 1 | X25: 1 | Y25: 3 | Z25: =IF($N25>=3.25,"4. Avancé", IF($N25>=2.5,"3. SOUND", IF($N25>=1.75,"2. Basique", IF($N25>=1,"1. Elémentaire", "" )))) -> 1. Elémentaire
A26: =$I$4 -> PEFALIA | B26: I | C26: I | E26: Pilar | F26: I | G26: =VLOOKUP(F26,Profile!B:C,2,FALSE) -> I. Budget reliability | I26: =IFERROR(VLOOKUP(B26,Profile!B:C,2,FALSE),"") -> I. Budget reliability | J26: =IF(M26>3.65,"A", IF(M26>=3.25,"B+", IF(M26>2.65,"B", IF(M26>=2.25,"C+", IF(M26>1.75,"C", IF(M26>1.25,"D+", IF(AND(M26<=1.25,M26>0),"D", IF(M26=0,"NA", "" )))))))) -> NA | K26: D+ | L26: =IF(COUNTIFS(L27:L35,"Oui")=9,"Oui","Non") -> Oui | M26: =AVERAGEIFS(M$16:M$153,$E$16:$E$153,"Indic",$F$16:$F$153,$F26) -> 0 | N26: =AVERAGEIFS(N$16:N$153,$E$16:$E$153,"Indic",$F$16:$F$153,$F26) -> 1.75 | O26: =IF($K26="D",1, IF($K26="D+",1.5, IF($K26="C",2, IF($K26="C+",2.5, IF($K26="B",3, IF($K26="B+",3.5, IF($K26="A",4, ))))))) -> 1.5 | P26: 1. BELOW BASIC
A27: PEFALIA | B27: PI-1 | C27: PI_1 | D27: M1 | E27: Indic | F27: I | G27: =VLOOKUP(F27,Profile!B:C,2,FALSE) -> I. Budget reliability | H27: PI-1 | I27: =IFERROR(VLOOKUP(B27,Profile!B:C,2,FALSE),"") -> PI-1 Aggregate expenditure outturn | J27: NA | K27: A | L27: =L28 -> Oui | M27: =IF($D27="M1",IF(AVERAGE(M28)=MIN(M28),M28,MIN(M28)+0.5),AVERAGE(M28)) -> 0 | N27: =IF($D27="M1",IF(AVERAGE(N28)=MIN(N28),N28,MIN(N28)+0.5),AVERAGE(N28)) -> 4 | O27: 4 | P27: 4. HIGH | Q27: =IF(K27="A","Force", IF(K27="B+","Force", IF(K27="B","Force", IF(K27="D+","Faiblesse", IF(K27="D","Faiblesse", "Basique"))))) -> Force | R27: =IFERROR(IF(L27="Oui",IF(N27-M27<0,"-",IF(N27-M27>0,"+"," =")),"N.C"),"") -> + | U27: ="("&H27&")" -> (PI-1) | V27: 1 | W27: 0 | X27: 0 | Y27: =Y28 -> 1 | Z27: =IF($N27>=3.25,"4. ADVANCED", IF($N27>=2.5,"3. GOOD", IF($N27>=1.75,"2. Basique", IF($N27>=1,"1. Elémentaire", "" )))) -> 4. ADVANCED
A28: PEFALIA | B28: 1.1 | C28: 1.1 | E28: Comp | F28: I | G28: =VLOOKUP(F28,Profile!B:C,2,FALSE) -> I. Budget reliability | H28: PI-1 | I28: =IFERROR(VLOOKUP(B28,Profile!B:C,2,FALSE),"") -> 1.1 Aggregate expenditure outturn | K28: A | L28: Oui | M28: =IFERROR(IF(TRIM(CLEAN(J28))="A",4)+IF(TRIM(CLEAN(J28))="B+",3.5)+IF(TRIM(CLEAN(J28))="B",3)+IF(TRIM(CLEAN(J28))="C+",2.5)+IF(TRIM(CLEAN(J28))="C",2)+IF(TRIM(CLEAN(J28))="D+",1.5)+IF(TRIM(CLEAN(J28))="D",1)+IF(TRIM(CLEAN(J28))="D*",1)+IF(TRIM(CLEAN(J28))="NU",0)+IF(TRIM(CLEAN(J28))="",0),"") -> 0 | N28: =IFERROR(IF(TRIM(CLEAN(K28))="A",4)+IF(TRIM(CLEAN(K28))="B+",3.5)+IF(TRIM(CLEAN(K28))="B",3)+IF(TRIM(CLEAN(K28))="C+",2.5)+IF(TRIM(CLEAN(K28))="C",2)+IF(TRIM(CLEAN(K28))="D+",1.5)+IF(TRIM(CLEAN(K28))="D",1)+IF(TRIM(CLEAN(K28))="D*",1)+IF(TRIM(CLEAN(K28))="NU",0)+IF(TRIM(CLEAN(K28))="",0),"") -> 4 | O28: 4 | P28: 4. HIGH | Q28: =IF(K28="A","Strenght", IF(K28="B+","Strenght", IF(K28="B","Strenght", IF(K28="D+","Weakness", IF(K28="D","Weakness", "Basic"))))) -> Strenght | R28: =IFERROR(IF(L28="Oui",IF(N28-M28<0,"-",IF(N28-M28>0,"+"," =")),"N.C"),"") -> + | T28: Only the budget expenditure execution rate for fiscal 2020 is between 85% and 115%, while those for fiscal 2018 and 2019 are below 85%. | U28: (PI-1) | V28: 1 | W28: 0 | X28: 0 | Y28: 1 | Z28: =IF($N28>=3.25,"4. Avancé", IF($N28>=2.5,"3. SOUND", IF($N28>=1.75,"2. Basique", IF($N28>=1,"1. Elémentaire", "" )))) -> 4. Avancé
A29: PEFALIA | B29: PI-2 | C29: PI_2 | D29: M1 | E29: Indic | F29: I | G29: =VLOOKUP(F29,Profile!B:C,2,FALSE) -> I. Budget reliability | H29: PI-2 | I29: =IFERROR(VLOOKUP(B29,Profile!B:C,2,FALSE),"") -> PI-2 Expenditure composition outturn | J29: =IF(M29>3.65,"A", IF(M29>=3.25,"B+", IF(M29>2.65,"B", IF(M29>=2.25,"C+", IF(M29>1.75,"C", IF(M29>1.25,"D+", IF(AND(M29<=1.25,M29>0),"D", IF(M29=0,"NA", "" )))))))) -> NA | K29: D | L29: =IF(OR(L30="Oui",L31="Oui",L32="Oui"),"Oui","Non") -> Oui | M29: =IFERROR((IF($D29="M1",IF(ROUND(AVERAGEIF(M30:M32,">0"),1)=ROUND(MIN(IF(M30:M32>0,M30:M32)),1),AVERAGE(M30:M32),MIN(IF(M30:M32>0,M30:M32))+0.5),AVERAGEIF(M30:M32,">0"))),0) -> 0 | N29: =IFERROR((IF($D29="M1",IF(ROUND(AVERAGEIF(N30:N32,">0"),1)=ROUND(MIN(IF(N30:N32>0,N30:N32)),1),AVERAGE(N30:N32),MIN(IF(N30:N32>0,N30:N32))+0.5),AVERAGEIF(N30:N32,">0"))),0) -> 1 | O29: 1 | P29: 1. BELOW BASIC | Q29: =IF(K29="A","Force", IF(K29="B+","Force", IF(K29="B","Force", IF(K29="D+","Faiblesse", IF(K29="D","Faiblesse", "Basique"))))) -> Faiblesse | R29: =IFERROR(IF(L29="Oui",IF(N29-M29<0,"-",IF(N29-M29>0,"+"," =")),"N.C"),"") -> + | U29: (PI-2) | V29: 0 | W29: 1 | X29: 1 | Y29: =Y30 -> 3 | Z29: =IF($N29>=3.25,"4. ADVANCED", IF($N29>=2.5,"3. GOOD", IF($N29>=1.75,"2. Basique", IF($N29>=1,"1. Elémentaire", "" )))) -> 1. Elémentaire
A30: PEFALIA | B30: 2.1 | C30: 2.1 | E30: Comp | F30: I | G30: =VLOOKUP(F30,Profile!B:C,2,FALSE) -> I. Budget reliability | H30: PI-2 | I30: =IFERROR(VLOOKUP(B30,Profile!B:C,2,FALSE),"") -> 2.1 Expenditure composition by function | K30: D | L30: Oui | M30: =IFERROR(IF(TRIM(CLEAN(J30))="A",4)+IF(TRIM(CLEAN(J30))="B+",3.5)+IF(TRIM(CLEAN(J30))="B",3)+IF(TRIM(CLEAN(J30))="C+",2.5)+IF(TRIM(CLEAN(J30))="C",2)+IF(TRIM(CLEAN(J30))="D+",1.5)+IF(TRIM(CLEAN(J30))="D",1)+IF(TRIM(CLEAN(J30))="D*",1)+IF(TRIM(CLEAN(J30))="NU",0)+IF(TRIM(CLEAN(J30))="",0),"") -> 0 | N30: 1 | O30: 1 | P30: 1. BELOW BASIC | Q30: =IF(K30="A","Strenght", IF(K30="B+","Strenght", IF(K30="B","Strenght", IF(K30="D+","Weakness", IF(K30="D","Weakness", "Basic"))))) -> Weakness | R30: =IFERROR(IF(L30="Oui",IF(N30-M30<0,"-",IF(N30-M30>0,"+"," =")),"N.C"),"") -> + | T30: The commune's budgets are not drawn up according to an administrative, programmatic or functional classification. | U30: (PI-2) | V30: 0 | W30: 1 | X30: 1 | Y30: 3 | Z30: =IF($N30>=3.25,"4. Avancé", IF($N30>=2.5,"3. SOUND", IF($N30>=1.75,"2. Basique", IF($N30>=1,"1. Elémentaire", "" )))) -> 1. Elémentaire
A31: PEFALIA | B31: 2.2 | C31: 2.2 | E31: Comp | F31: I | G31: =VLOOKUP(F31,Profile!B:C,2,FALSE) -> I. Budget reliability | H31: PI-2 | I31: =IFERROR(VLOOKUP(B31,Profile!B:C,2,FALSE),"") -> 2.2 Expenditure composition by economic type | K31: D | L31: Oui | M31: 0 | N31: 1 | O31: 1 | P31: 1. BELOW BASIC | Q31: Weakness | R31: =IFERROR(IF(L31="Oui",IF(N31-M31<0,"-",IF(N31-M31>0,"+"," =")),"N.C"),"") -> + | T31: The composition of expenditure, classified by economic category, deviated from that of the initial budget by 12.0% in 2018, 12.5% in 2019 and 26.3% in 2020 respectively, so was below 15% in two of the three years under review. | U31: (PI-2) | V31: 0 | W31: 1 | X31: 1 | Y31: 3 | Z31: =IF($N31>=3.25,"4. Avancé", IF($N31>=2.5,"3. SOUND", IF($N31>=1.75,"2. Basique", IF($N31>=1,"1. Elémentaire", "" )))) -> 1. Elémentaire
A32: PEFALIA | B32: 2.3 | C32: 2.3 | E32: Comp | F32: I | G32: =VLOOKUP(F32,Profile!B:C,2,FALSE) -> I. Budget reliability | H32: PI-2 | I32: =IFERROR(VLOOKUP(B32,Profile!B:C,2,FALSE),"") -> 2.3 Expenditure from contingency | K32: D | L32: Oui | M32: 0 | N32: 1 | O32: 1 | P32: 1. BELOW BASIC | Q32: Weakness | R32: =IFERROR(IF(L32="Oui",IF(N32-M32<0,"~-",IF(N32-M32>0,"+"," =")),"N.C"),"") -> + | T32: No contingency reserves have been set aside in the Commune budget in fiscal 2018, 2019 and 2020. | U32: (PI-2) | V32: 0 | W32: 1 | X32: 1 | Y32: 3 | Z32: =IF($N32>=3.25,"4. Avancé", IF($N32>=2.5,"3. SOUND", IF($N32>=1.75,"2. Basique", IF($N32>=1,"1. Elémentaire", "" )))) -> 1. Elémentaire
A33: PEFALIA | B33: PI-3 | C33: PI_3 | D33: M2 | E33: Indic | F33: I | G33: =VLOOKUP(F33,Profile!B:C,2,FALSE) -> I. Budget reliability | H33: PI-3 | I33: =IFERROR(VLOOKUP(B33,Profile!B:C,2,FALSE),"") -> PI-3 Revenue outturn | J33: =IF(M33>3.65,"A", IF(M33>=3.25,"B+", IF(M33>2.65,"B", IF(M33>=2.25,"C+", IF(M33>1.75,"C", IF(M33>1.25,"D+", IF(AND(M33<=1.25,M33>0),"D", IF(M33=0,"NA", "" )))))))) -> NA | K33: D | L33: =IF(OR(L34="Oui",L35="Oui"),"Oui","Non") -> Oui | M33: =IFERROR(IF($D33="M1",IF(ROUND(AVERAGEIF(M34:M35,">0"),1)=ROUND(MIN(IF(M34:M35>0,M34:M35)),1),M34,MIN(IF(M34:M35>0,M34:M35))+0.5),AVERAGEIF(M34:M35,">0")),0) -> 0 | N33: =IFERROR(IF($D33="M1",IF(ROUND(AVERAGEIF(N34:N35,">0"),1)=ROUND(MIN(IF(N34:N35>0,N34:N35)),1),N34,MIN(IF(N34:N35>0,N34:N35))+0.5),AVERAGEIF(N34:N35,">0")),0) -> 1 | O33: 1 | P33: 1. BELOW BASIC | Q33: =IF(K33="A","Force", IF(K33="B+","Force", IF(K33="B","Force", IF(K33="D+","Faiblesse", IF(K33="D","Faiblesse", "Basique"))))) -> Faiblesse | R33: =IFERROR(IF(L33="Oui",IF(N33-M33<0,"-",IF(N33-M33>0,"+"," =")),"N.C"),"") -> + | U33: (PI-3) | V33: 1 | W33: 0 | X33: 0 | Y33: =Y34 -> 2 | Z33: =IF($N33>=3.25,"4. ADVANCED", IF($N33>=2.5,"3. GOOD", IF($N33>=1.75,"2. Basique", IF($N33>=1,"1. Elémentaire", "" )))) -> 1. Elémentaire
A34: PEFALIA | B34: 3.1 | C34: 3.1 | E34: Comp | F34: I | G34: =VLOOKUP(F34,Profile!B:C,2,FALSE) -> I. Budget reliability | H34: PI-3 | I34: =IFERROR(VLOOKUP(B34,Profile!B:C,2,FALSE),"") -> 3.1 Aggregate revenue outturn | K34: D | L34: Oui | M34: =IFERROR(IF(TRIM(CLEAN(J34))="A",4)+IF(TRIM(CLEAN(J34))="B+",3.5)+IF(TRIM(CLEAN(J34))="B",3)+IF(TRIM(CLEAN(J34))="C+",2.5)+IF(TRIM(CLEAN(J34))="C",2)+IF(TRIM(CLEAN(J34))="D+",1.5)+IF(TRIM(CLEAN(J34))="D",1)+IF(TRIM(CLEAN(J34))="D*",1)+IF(TRIM(CLEAN(J34))="NU",0)+IF(TRIM(CLEAN(J34))="",0),"") -> 0 | N34: =IFERROR(IF(TRIM(CLEAN(K34))="A",4)+IF(TRIM(CLEAN(K34))="B+",3.5)+IF(TRIM(CLEAN(K34))="B",3)+IF(TRIM(CLEAN(K34))="C+",2.5)+IF(TRIM(CLEAN(K34))="C",2)+IF(TRIM(CLEAN(K34))="D+",1.5)+IF(TRIM(CLEAN(K34))="D",1)+IF(TRIM(CLEAN(K34))="D*",1)+IF(TRIM(CLEAN(K34))="NU",0)+IF(TRIM(CLEAN(K34))="",0),"") -> 1 | O34: 1 | P34: 1. BELOW BASIC | Q34: =IF(K34="A","Strenght", IF(K34="B+","Strenght", IF(K34="B","Strenght", IF(K34="D+","Weakness", IF(K34="D","Weakness", "Basic"))))) -> Weakness | R34: + | T34: Total actual revenues were achieved at rates of 56.6%, 28.2% and 71.9% respectively over the evaluation period, i.e. less than 92%. | U34: (PI-3) | V34: 1 | W34: 0 | X34: 0 | Y34: 2 | Z34: =IF($N34>=3.25,"4. Avancé", IF($N34>=2.5,"3. SOUND", IF($N34>=1.75,"2. Basique", IF($N34>=1,"1. Elémentaire", "" )))) -> 1. Elémentaire
A35: PEFALIA | B35: 3.2 | C35: 3.2 | E35: Comp | F35: I | G35: =VLOOKUP(F35,Profile!B:C,2,FALSE) -> I. Budget reliability | H35: PI-3 | I35: =IFERROR(VLOOKUP(B35,Profile!B:C,2,FALSE),"") -> 3.2 Revenue composition variance | K35: NA | L35: Oui | M35: =IFERROR(IF(TRIM(CLEAN(J35))="A",4)+IF(TRIM(CLEAN(J35))="B+",3.5)+IF(TRIM(CLEAN(J35))="B",3)+IF(TRIM(CLEAN(J35))="C+",2.5)+IF(TRIM(CLEAN(J35))="C",2)+IF(TRIM(CLEAN(J35))="D+",1.5)+IF(TRIM(CLEAN(J35))="D",1)+IF(TRIM(CLEAN(J35))="D*",1)+IF(TRIM(CLEAN(J35))="NU",0)+IF(TRIM(CLEAN(J35))="",0),"") -> 0 | N35: =IFERROR(IF(TRIM(CLEAN(K35))="A",4)+IF(TRIM(CLEAN(K35))="B+",3.5)+IF(TRIM(CLEAN(K35))="B",3)+IF(TRIM(CLEAN(K35))="C+",2.5)+IF(TRIM(CLEAN(K35))="C",2)+IF(TRIM(CLEAN(K35))="D+",1.5)+IF(TRIM(CLEAN(K35))="D",1)+IF(TRIM(CLEAN(K35))="D*",1)+IF(TRIM(CLEAN(K35))="NU",0)+IF(TRIM(CLEAN(K35))="",0),"") -> 0 | O35: 0 | Q35: Basic | R35: = | T35: The actual revenue mix deviated from the initial revenue forecast by 9.8% in 2018, 120.8% in 2019 and 45.7% in 2020. So the variation in revenue mix was less than 15% in fiscal 2018 alone. | U35: (PI-3) | V35: 1 | W35: 0 | X35: 0 | Y35: 2 | Z35: =IF($N35>=3.25,"4. Avancé", IF($N35>=2.5,"3. SOUND", IF($N35>=1.75,"2. Basique", IF($N35>=1,"1. Elémentaire", "" )))) -> 
A36: PEFALIA | B36: II | C36: II | E36: Pilar | F36: II | G36: =VLOOKUP(F36,Profile!B:C,2,FALSE) -> II. Transparency of public finances | I36: =IFERROR(VLOOKUP(B36,Profile!B:C,2,FALSE),"") -> II. Transparency of public finances | J36: =IF(M36>3.65,"A", IF(M36>=3.25,"B+", IF(M36>2.65,"B", IF(M36>=2.25,"C+", IF(M36>1.75,"C", IF(M36>1.25,"D+", IF(AND(M36<=1.25,M36>0),"D", IF(M36=0,"NA", "" )))))))) -> NA | K36: D | L36: =IF(COUNTIFS(L37:L54,"Oui")=18,"Oui","Non") -> Non | M36: =AVERAGEIFS(M$16:M$153,$E$16:$E$153,"Indic",$F$16:$F$153,$F36) -> 0 | N36: =AVERAGEIFS(N$16:N$153,$E$16:$E$153,"Indic",$F$16:$F$153,$F36) -> 0.9761904762 | O36: 1 | P36: 1. BELOW BASIC | R36: N.C | U36: ()
A37: PEFALIA | B37: PI-4 | C37: PI_4 | D37: M1 | E37: Indic | F37: II | G37: =VLOOKUP(F37,Profile!B:C,2,FALSE) -> II. Transparency of public finances | H37: PI-4 | I37: =IFERROR(VLOOKUP(B37,Profile!B:C,2,FALSE),"") -> PI-4 Budget classification | J37: NA | K37: D | L37: =L38 -> Oui | M37: =IF($D37="M1",IF(MAX(M38)=MAX(M38),M38,MAX(M38)+0.5),MAX(M38)) -> 0 | N37: =IF($D37="M1",IF(AVERAGE(N38)=MIN(N38),N38,MIN(N38)+0.5),AVERAGE(N38)) -> 1 | O37: 1 | P37: 1. BELOW BASIC | Q37: =IF(K37="A","Force", IF(K37="B+","Force", IF(K37="B","Force", IF(K37="D+","Faiblesse", IF(K37="D","Faiblesse", "Basique"))))) -> Faiblesse | R37: + | U37: (PI-4) | V37: 0 | W37: 1 | X37: 0 | Y37: =Y38 -> 1 | Z37: =IF($N37>=3.25,"4. ADVANCED", IF($N37>=2.5,"3. GOOD", IF($N37>=1.75,"2. Basique", IF($N37>=1,"1. Elémentaire", "" )))) -> 1. Elémentaire
A38: PEFALIA | B38: 4.1 | C38: 4.1 | E38: Comp | F38: II | G38: =VLOOKUP(F38,Profile!B:C,2,FALSE) -> II. Transparency of public finances | H38: PI-4 | I38: =IFERROR(VLOOKUP(B38,Profile!B:C,2,FALSE),"") -> 4.1 Budget classification | K38: D | L38: Oui | M38: =IFERROR(IF(TRIM(CLEAN(J38))="A",4)+IF(TRIM(CLEAN(J38))="B+",3.5)+IF(TRIM(CLEAN(J38))="B",3)+IF(TRIM(CLEAN(J38))="C+",2.5)+IF(TRIM(CLEAN(J38))="C",2)+IF(TRIM(CLEAN(J38))="D+",1.5)+IF(TRIM(CLEAN(J38))="D",1)+IF(TRIM(CLEAN(J38))="D*",1)+IF(TRIM(CLEAN(J38))="NU",0)+IF(TRIM(CLEAN(J38))="",0),"") -> 0 | N38: =IFERROR(IF(TRIM(CLEAN(K38))="A",4)+IF(TRIM(CLEAN(K38))="B+",3.5)+IF(TRIM(CLEAN(K38))="B",3)+IF(TRIM(CLEAN(K38))="C+",2.5)+IF(TRIM(CLEAN(K38))="C",2)+IF(TRIM(CLEAN(K38))="D+",1.5)+IF(TRIM(CLEAN(K38))="D",1)+IF(TRIM(CLEAN(K38))="D*",1)+IF(TRIM(CLEAN(K38))="NU",0)+IF(TRIM(CLEAN(K38))="",0),"") -> 1 | O38: 1 | P38: 1. BELOW BASIC | Q38: =IF(K38="A","Strenght", IF(K38="B+","Strenght", IF(K38="B","Strenght", IF(K38="D+","Weakness", IF(K38="D","Weakness", "Basic"))))) -> Weakness | R38: + | T38: The Commune de Tiko's budget is drawn up, presented and implemented solely on the basis of economic classifications; functional, programmatic and administrative classifications are not used. | U38: (PI-4) | V38: 0 | W38: 1 | X38: 0 | Y38: 1 | Z38: =IF($N38>=3.25,"4. Avancé", IF($N38>=2.5,"3. SOUND", IF($N38>=1.75,"2. Basique", IF($N38>=1,"1. Elémentaire", "" )))) -> 1. Elémentaire
A39: PEFALIA | B39: PI-5 | C39: PI_5 | D39: M1 | E39: Indic | F39: II | G39: =VLOOKUP(F39,Profile!B:C,2,FALSE) -> II. Transparency of public finances | H39: PI-5 | I39: =IFERROR(VLOOKUP(B39,Profile!B:C,2,FALSE),"") -> PI-5 Budget documentation | J39: =IF(M39>3.65,"A", IF(M39>=3.25,"B+", IF(M39>2.65,"B", IF(M39>=2.25,"C+", IF(M39>1.75,"C", IF(M39>1.25,"D+", IF(AND(M39<=1.25,M39>0),"D", IF(M39=0,"NA", "" )))))))) -> NA | K39: D | L39: =L40 -> Oui | M39: =IF($D39="M1",IF(MAX(M40)=MAX(M40),M40,MAX(M40)+0.5),MAX(M40)) -> 0 | N39: =IF($D39="M1",IF(AVERAGE(N40)=MIN(N40),N40,MIN(N40)+0.5),AVERAGE(N40)) -> 1 | O39: 1 | P39: 1. BELOW BASIC | Q39: =IF(K39="A","Force", IF(K39="B+","Force", IF(K39="B","Force", IF(K39="D+","Faiblesse", IF(K39="D","Faiblesse", "Basique"))))) -> Faiblesse | R39: + | U39: (PI-5) | V39: 0 | W39: 1 | X39: 0 | Y39: =Y40 -> 1 | Z39: =IF($N39>=3.25,"4. ADVANCED", IF($N39>=2.5,"3. GOOD", IF($N39>=1.75,"2. Basique", IF($N39>=1,"1. Elémentaire", "" )))) -> 1. Elémentaire
A40: PEFALIA | B40: 5.1 | C40: 5.1 | E40: Comp | F40: II | G40: =VLOOKUP(F40,Profile!B:C,2,FALSE) -> II. Transparency of public finances | H40: PI-5 | I40: =IFERROR(VLOOKUP(B40,Profile!B:C,2,FALSE),"") -> 5.1 Budget documentation | K40: D | L40: Oui | M40: =IFERROR(IF(TRIM(CLEAN(J40))="A",4)+IF(TRIM(CLEAN(J40))="B+",3.5)+IF(TRIM(CLEAN(J40))="B",3)+IF(TRIM(CLEAN(J40))="C+",2.5)+IF(TRIM(CLEAN(J40))="C",2)+IF(TRIM(CLEAN(J40))="D+",1.5)+IF(TRIM(CLEAN(J40))="D",1)+IF(TRIM(CLEAN(J40))="D*",1)+IF(TRIM(CLEAN(J40))="NU",0)+IF(TRIM(CLEAN(J40))="",0),"") -> 0 | N40: =IFERROR(IF(TRIM(CLEAN(K40))="A",4)+IF(TRIM(CLEAN(K40))="B+",3.5)+IF(TRIM(CLEAN(K40))="B",3)+IF(TRIM(CLEAN(K40))="C+",2.5)+IF(TRIM(CLEAN(K40))="C",2)+IF(TRIM(CLEAN(K40))="D+",1.5)+IF(TRIM(CLEAN(K40))="D",1)+IF(TRIM(CLEAN(K40))="D*",1)+IF(TRIM(CLEAN(K40))="NU",0)+IF(TRIM(CLEAN(K40))="",0),"") -> 1 | O40: 1 | P40: 1. BELOW BASIC | Q40: =IF(K40="A","Strenght", IF(K40="B+","Strenght", IF(K40="B","Strenght", IF(K40="D+","Weakness", IF(K40="D","Weakness", "Basic"))))) -> Weakness | R40: + | T40: The documentation sent to the Commune Council for the 2020 budget vote contains 1 basic item of information out of 4, and zero supplementary items out of 8. | U40: (PI-5) | V40: 0 | W40: 1 | X40: 0 | Y40: 1 | Z40: =IF($N40>=3.25,"4. Avancé", IF($N40>=2.5,"3. SOUND", IF($N40>=1.75,"2. Basique", IF($N40>=1,"1. Elémentaire", "" )))) -> 1. Elémentaire
A41: PEFALIA | B41: PI-6 | C41: PI_6 | D41: M2 | E41: Indic | F41: II | G41: =VLOOKUP(F41,Profile!B:C,2,FALSE) -> II. Transparency of public finances | H41: PI-6 | I41: =IFERROR(VLOOKUP(B41,Profile!B:C,2,FALSE),"") -> PI-6 Central government operations outside the budget | J41: =IF(M41>3.65,"A", IF(M41>=3.25,"B+", IF(M41>2.65,"B", IF(M41>=2.25,"C+", IF(M41>1.75,"C", IF(M41>1.25,"D+", IF(AND(M41<=1.25,M41>0),"D", IF(M41=0,"NA", "" )))))))) -> NA | K41: D | L41: =IF(OR(M168="Oui",M169="Oui",M170="Oui"),"Oui","Non") -> Non | M41: =IFERROR((IF($D41="M1",IF(ROUND(AVERAGEIF(M42:M44,">0"),1)=ROUND(MAX(IF(M42:M44>0,M42:M44)),1),MAX(M42:M44),MAX(IF(M42:M44>0,M42:M44))+0.5),AVERAGEIF(M42:M44,">0"))),0) -> 0 | N41: =IFERROR((IF($D41="M1",IF(ROUND(AVERAGEIF(N42:N44,">0"),1)=ROUND(MIN(IF(N42:N44>0,N42:N44)),1),AVERAGE(N42:N44),MIN(IF(N42:N44>0,N42:N44))+0.5),AVERAGEIF(N42:N44,">0"))),0) -> 1 | O41: 1 | P41: 1. BELOW BASIC | Q41: =IF(K41="A","Force", IF(K41="B+","Force", IF(K41="B","Force", IF(K41="D+","Faiblesse", IF(K41="D","Faiblesse", "Basique"))))) -> Faiblesse | R41: N.C | U41: (PI-6) | V41: 1 | W41: 1 | X41: 0 | Y41: =Y42 -> 3 | Z41: =IF($N41>=3.25,"4. ADVANCED", IF($N41>=2.5,"3. GOOD", IF($N41>=1.75,"2. Basique", IF($N41>=1,"1. Elémentaire", "" )))) -> 1. Elémentaire
A42: PEFALIA | B42: 6.1 | C42: 6.1 | E42: Comp | F42: II | G42: =VLOOKUP(F42,Profile!B:C,2,FALSE) -> II. Transparency of public finances | H42: PI-6 | I42: =IFERROR(VLOOKUP(B42,Profile!B:C,2,FALSE),"") -> 6.1 Expenditure outside financial reports | K42: D* | L42: Oui | M42: =IFERROR(IF(TRIM(CLEAN(J42))="A",4)+IF(TRIM(CLEAN(J42))="B+",3.5)+IF(TRIM(CLEAN(J42))="B",3)+IF(TRIM(CLEAN(J42))="C+",2.5)+IF(TRIM(CLEAN(J42))="C",2)+IF(TRIM(CLEAN(J42))="D+",1.5)+IF(TRIM(CLEAN(J42))="D",1)+IF(TRIM(CLEAN(J42))="D*",1)+IF(TRIM(CLEAN(J42))="NU",0)+IF(TRIM(CLEAN(J42))="",0),"") -> 0 | N42: 1 | O42: 0 | P42: 1. BELOW BASIC | Q42: =IF(K42="A","Strenght", IF(K42="B+","Strenght", IF(K42="B","Strenght", IF(K42="D+","Weakness", IF(K42="D","Weakness", "Basic"))))) -> Basic | R42: + | T42: Insufficient information is available to rate this component. | U42: (PI-6) | V42: 1 | W42: 1 | X42: 0 | Y42: 3 | Z42: =IF($N42>=3.25,"4. Avancé", IF($N42>=2.5,"3. SOUND", IF($N42>=1.75,"2. Basique", IF($N42>=1,"1. Elémentaire", "" )))) -> 1. Elémentaire
A43: PEFALIA | B43: 6.2 | C43: 6.2 | E43: Comp | F43: II | G43: =VLOOKUP(F43,Profile!B:C,2,FALSE) -> II. Transparency of public finances | H43: PI-6 | I43: =IFERROR(VLOOKUP(B43,Profile!B:C,2,FALSE),"") -> 6.2 Revenue outside financial reports | K43: D* | L43: Oui | M43: 0 | N43: 1 | O43: 0 | P43: 1. BELOW BASIC | Q43: Basic | R43: + | T43: Insufficient information is available to rate this component. | U43: (PI-6) | V43: 1 | W43: 1 | X43: 0 | Y43: 3 | Z43: =IF($N43>=3.25,"4. Avancé", IF($N43>=2.5,"3. SOUND", IF($N43>=1.75,"2. Basique", IF($N43>=1,"1. Elémentaire", "" )))) -> 1. Elémentaire
A44: PEFALIA | B44: 6.3 | C44: 6.3 | E44: Comp | F44: II | G44: =VLOOKUP(F44,Profile!B:C,2,FALSE) -> II. Transparency of public finances | H44: PI-6 | I44: =IFERROR(VLOOKUP(B44,Profile!B:C,2,FALSE),"") -> 6.3 Financial reports of extra- budgetary units | K44: D | L44: Oui | M44: 0 | N44: 1 | O44: 1 | P44: 1. BELOW BASIC | Q44: Weakness | R44: + | T44: Tiko commune has no extra-budgetary units | U44: (PI-6) | V44: 1 | W44: 1 | X44: 0 | Y44: 3 | Z44: =IF($N44>=3.25,"4. Avancé", IF($N44>=2.5,"3. SOUND", IF($N44>=1.75,"2. Basique", IF($N44>=1,"1. Elémentaire", "" )))) -> 1. Elémentaire
A45: PEFALIA | B45: PI-7 | C45: PI_7 | D45: M2 | E45: Indic | F45: II | G45: =VLOOKUP(F45,Profile!B:C,2,FALSE) -> II. Transparency of public finances | H45: PI-7 | I45: =IFERROR(VLOOKUP(B45,Profile!B:C,2,FALSE),"") -> PI-7 Transfers to sub-national government | J45: =IF(M45>3.65,"A", IF(M45>=3.25,"B+", IF(M45>2.65,"B", IF(M45>=2.25,"C+", IF(M45>1.75,"C", IF(M45>1.25,"D+", IF(AND(M45<=1.25,M45>0),"D", IF(M45=0,"NA", "" )))))))) -> NA | K45: NA | L45: =IF(OR(M172="Oui",M173="Oui"),"Oui","Non") -> Non | M45: =IFERROR(IF($D45="M1",IF(ROUND(AVERAGEIF(M46:M47,">0"),1)=ROUND(MAX(IF(M46:M47>0,M46:M47)),1),M46,MAX(IF(M46:M47>0,M46:M47))+0.5),AVERAGEIF(M46:M47,">0")),0) -> 0 | N45: =IFERROR(IF($D45="M1",IF(ROUND(AVERAGEIF(N46:N47,">0"),1)=ROUND(MIN(IF(N46:N47>0,N46:N47)),1),N46,MIN(IF(N46:N47>0,N46:N47))+0.5),AVERAGEIF(N46:N47,">0")),0) -> 0 | O45: 0 | Q45: =IF(K45="A","Force", IF(K45="B+","Force", IF(K45="B","Force", IF(K45="D+","Faiblesse", IF(K45="D","Faiblesse", "Basique"))))) -> Basique | R45: N.C | U45: (PI-7) | V45: 0 | W45: 1 | X45: 1 | Y45: =Y46 -> 2 | Z45: =IF($N45>=3.25,"4. ADVANCED", IF($N45>=2.5,"3. GOOD", IF($N45>=1.75,"2. Basique", IF($N45>=1,"1. Elémentaire", "" )))) -> 
A46: PEFALIA | B46: 7.1 | C46: 7.1 | E46: Comp | F46: II | G46: =VLOOKUP(F46,Profile!B:C,2,FALSE) -> II. Transparency of public finances | H46: PI-7 | I46: =IFERROR(VLOOKUP(B46,Profile!B:C,2,FALSE),"") -> 7.1 System for allocating transfers | K46: NA | L46: Oui | M46: =IFERROR(IF(TRIM(CLEAN(J46))="A",4)+IF(TRIM(CLEAN(J46))="B+",3.5)+IF(TRIM(CLEAN(J46))="B",3)+IF(TRIM(CLEAN(J46))="C+",2.5)+IF(TRIM(CLEAN(J46))="C",2)+IF(TRIM(CLEAN(J46))="D+",1.5)+IF(TRIM(CLEAN(J46))="D",1)+IF(TRIM(CLEAN(J46))="D*",1)+IF(TRIM(CLEAN(J46))="NU",0)+IF(TRIM(CLEAN(J46))="",0),"") -> 0 | N46: =IFERROR(IF(TRIM(CLEAN(K46))="A",4)+IF(TRIM(CLEAN(K46))="B+",3.5)+IF(TRIM(CLEAN(K46))="B",3)+IF(TRIM(CLEAN(K46))="C+",2.5)+IF(TRIM(CLEAN(K46))="C",2)+IF(TRIM(CLEAN(K46))="D+",1.5)+IF(TRIM(CLEAN(K46))="D",1)+IF(TRIM(CLEAN(K46))="D*",1)+IF(TRIM(CLEAN(K46))="NU",0)+IF(TRIM(CLEAN(K46))="",0),"") -> 0 | O46: 0 | Q46: =IF(K46="A","Strenght", IF(K46="B+","Strenght", IF(K46="B","Strenght", IF(K46="D+","Weakness", IF(K46="D","Weakness", "Basic"))))) -> Basic | R46: = | T46: The commune has no lower-level communes. | U46: (PI-7) | V46: 0 | W46: 1 | X46: 1 | Y46: 2 | Z46: =IF($N46>=3.25,"4. Avancé", IF($N46>=2.5,"3. SOUND", IF($N46>=1.75,"2. Basique", IF($N46>=1,"1. Elémentaire", "" )))) -> 
A47: PEFALIA | B47: 7.2 | C47: 7.2 | E47: Comp | F47: II | G47: =VLOOKUP(F47,Profile!B:C,2,FALSE) -> II. Transparency of public finances | H47: PI-7 | I47: =IFERROR(VLOOKUP(B47,Profile!B:C,2,FALSE),"") -> 7.2 Timeliness of information on transfers | K47: NA | L47: Oui | M47: =IFERROR(IF(TRIM(CLEAN(J47))="A",4)+IF(TRIM(CLEAN(J47))="B+",3.5)+IF(TRIM(CLEAN(J47))="B",3)+IF(TRIM(CLEAN(J47))="C+",2.5)+IF(TRIM(CLEAN(J47))="C",2)+IF(TRIM(CLEAN(J47))="D+",1.5)+IF(TRIM(CLEAN(J47))="D",1)+IF(TRIM(CLEAN(J47))="D*",1)+IF(TRIM(CLEAN(J47))="NU",0)+IF(TRIM(CLEAN(J47))="",0),"") -> 0 | N47: =IFERROR(IF(TRIM(CLEAN(K47))="A",4)+IF(TRIM(CLEAN(K47))="B+",3.5)+IF(TRIM(CLEAN(K47))="B",3)+IF(TRIM(CLEAN(K47))="C+",2.5)+IF(TRIM(CLEAN(K47))="C",2)+IF(TRIM(CLEAN(K47))="D+",1.5)+IF(TRIM(CLEAN(K47))="D",1)+IF(TRIM(CLEAN(K47))="D*",1)+IF(TRIM(CLEAN(K47))="NU",0)+IF(TRIM(CLEAN(K47))="",0),"") -> 0 | O47: 0 | Q47: Basic | R47: = | T47: The commune has no lower-level communes. | U47: (PI-7) | V47: 0 | W47: 1 | X47: 1 | Y47: 2 | Z47: =IF($N47>=3.25,"4. Avancé", IF($N47>=2.5,"3. SOUND", IF($N47>=1.75,"2. Basique", IF($N47>=1,"1. Elémentaire", "" )))) -> 
A48: PEFALIA | B48: PI-8 | C48: PI_8 | D48: M2 | E48: Indic | F48: II | G48: =VLOOKUP(F48,Profile!B:C,2,FALSE) -> II. Transparency of public finances | H48: PI-8 | I48: =IFERROR(VLOOKUP(B48,Profile!B:C,2,FALSE),"") -> PI-8 Performance information for service delivery | J48: =IF(M48>3.65,"A", IF(M48>=3.25,"B+", IF(M48>2.65,"B", IF(M48>=2.25,"C+", IF(M48>1.75,"C", IF(M48>1.25,"D+", IF(AND(M48<=1.25,M48>0),"D", IF(M48=0,"NA", "" )))))))) -> NA | K48: D+ | L48: =IF(OR(M175="Oui",L50="Oui",L51="Oui",L52="Oui"),"Oui","Non") -> Oui | M48: =IFERROR(IF($D48="M1",IF(ROUND(AVERAGEIF(M49:M52,">0"),1)=ROUND(MAX(IF(M49:M52>0,M49:M52)),1),MAX(M49:M52),MAX(IF(M49:M52>0,M49:M52))+0.5),AVERAGEIF(M49:M52,">0")),0) -> 0 | N48: =IFERROR(IF($D48="M1",IF(ROUND(AVERAGEIF(N49:N52,">0"),1)=ROUND(MIN(IF(N49:N52>0,N49:N52)),1),AVERAGE(N49:N52),MIN(IF(N49:N52>0,N49:N52))+0.5),AVERAGEIF(N49:N52,">0")),0) -> 1.5 | O48: 1.5 | P48: 1. BELOW BASIC | Q48: =IF(K48="A","Force", IF(K48="B+","Force", IF(K48="B","Force", IF(K48="D+","Faiblesse", IF(K48="D","Faiblesse", "Basique"))))) -> Faiblesse | R48: + | U48: (PI-8) | V48: 0 | W48: 0 | X48: 1 | Y48: =Y49 -> 4 | Z48: =IF($N48>=3.25,"4. ADVANCED", IF($N48>=2.5,"3. GOOD", IF($N48>=1.75,"2. Basique", IF($N48>=1,"1. Elémentaire", "" )))) -> 1. Elémentaire
A49: PEFALIA | B49: 8.1 | C49: 8.1 | E49: Comp | F49: II | G49: =VLOOKUP(F49,Profile!B:C,2,FALSE) -> II. Transparency of public finances | H49: PI-8 | I49: =IFERROR(VLOOKUP(B49,Profile!B:C,2,FALSE),"") -> 8.1 Performance plans for service delivery | K49: D | L49: Oui | M49: =IFERROR(IF(TRIM(CLEAN(J49))="A",4)+IF(TRIM(CLEAN(J49))="B+",3.5)+IF(TRIM(CLEAN(J49))="B",3)+IF(TRIM(CLEAN(J49))="C+",2.5)+IF(TRIM(CLEAN(J49))="C",2)+IF(TRIM(CLEAN(J49))="D+",1.5)+IF(TRIM(CLEAN(J49))="D",1)+IF(TRIM(CLEAN(J49))="D*",1)+IF(TRIM(CLEAN(J49))="NU",0)+IF(TRIM(CLEAN(J49))="",0),"") -> 0 | N49: 1 | O49: 1 | P49: 1. BELOW BASIC | Q49: =IF(K49="A","Strenght", IF(K49="B+","Strenght", IF(K49="B","Strenght", IF(K49="D+","Weakness", IF(K49="D","Weakness", "Basic"))))) -> Weakness | R49: + | T49: As part of the budgetary process, no document has been drawn up specifying the public policy objectives pursued, as well as the service indicators to be delivered, information on the activities to be implemented and the expected results. | U49: (PI-8) | V49: 0 | W49: 0 | X49: 1 | Y49: 4 | Z49: =IF($N49>=3.25,"4. Avancé", IF($N49>=2.5,"3. SOUND", IF($N49>=1.75,"2. Basique", IF($N49>=1,"1. Elémentaire", "" )))) -> 1. Elémentaire
A50: PEFALIA | B50: 8.2 | C50: 8.2 | E50: Comp | F50: II | G50: =VLOOKUP(F50,Profile!B:C,2,FALSE) -> II. Transparency of public finances | H50: PI-8 | I50: =IFERROR(VLOOKUP(B50,Profile!B:C,2,FALSE),"") -> 8.2 Performance achieved for service delivery | K50: C | L50: Oui | M50: 0 | N50: 2 | O50: 2 | P50: 2. BASIC | Q50: Basic | R50: + | T50: The commune does not produce and publish annual information on the quantities of services delivered, the results obtained and the activities carried out by the commune. | U50: (PI-8) | V50: 0 | W50: 0 | X50: 1 | Y50: 4 | Z50: =IF($N50>=3.25,"4. Avancé", IF($N50>=2.5,"3. SOUND", IF($N50>=1.75,"2. Basique", IF($N50>=1,"1. Elémentaire", "" )))) -> 2. Basique
A51: PEFALIA | B51: 8.3 | C51: 8.3 | E51: Comp | F51: II | G51: =VLOOKUP(F51,Profile!B:C,2,FALSE) -> II. Transparency of public finances | H51: PI-8 | I51: =IFERROR(VLOOKUP(B51,Profile!B:C,2,FALSE),"") -> 8.3 Resources received by service delivery units | K51: D | L51: Oui | M51: 0 | N51: 1 | O51: 1 | P51: 1. BELOW BASIC | Q51: Weakness | R51: + | T51: The Commune does not periodically produce a consolidated report on the resources received by the operational service delivery units. Nor did it carry out any traceability surveys of these resources during the period under review. | U51: (PI-8) | V51: 0 | W51: 0 | X51: 1 | Y51: 4 | Z51: =IF($N51>=3.25,"4. Avancé", IF($N51>=2.5,"3. SOUND", IF($N51>=1.75,"2. Basique", IF($N51>=1,"1. Elémentaire", "" )))) -> 1. Elémentaire
A52: PEFALIA | B52: 8.4 | C52: 8.4 | E52: Comp | F52: II | G52: =VLOOKUP(F52,Profile!B:C,2,FALSE) -> II. Transparency of public finances | H52: PI-8 | I52: =IFERROR(VLOOKUP(B52,Profile!B:C,2,FALSE),"") -> 8.4 Performance evaluation for service delivery | K52: C | L52: Oui | M52: 0 | N52: 2 | O52: 2 | P52: 2. BASIC | Q52: Basic | R52: + | T52: The commune does not have a department responsible for performance evaluation. Furthermore, for the 2020 financial year, it has not commissioned an independent evaluation of the effectiveness and efficiency of the services provided by the operational units from an outside firm. | U52: (PI-8) | V52: 0 | W52: 0 | X52: 1 | Y52: 4 | Z52: =IF($N52>=3.25,"4. Avancé", IF($N52>=2.5,"3. SOUND", IF($N52>=1.75,"2. Basique", IF($N52>=1,"1. Elémentaire", "" )))) -> 2. Basique
A53: PEFALIA | B53: PI-9 | C53: PI_9 | D53: M1 | E53: Indic | F53: II | G53: =VLOOKUP(F53,Profile!B:C,2,FALSE) -> II. Transparency of public finances | H53: PI-9 | I53: =IFERROR(VLOOKUP(B53,Profile!B:C,2,FALSE),"") -> PI-9 Public access to fiscal information | J53: =IF(M53>3.65,"A", IF(M53>=3.25,"B+", IF(M53>2.65,"B", IF(M53>=2.25,"C+", IF(M53>1.75,"C", IF(M53>1.25,"D+", IF(AND(M53<=1.25,M53>0),"D", IF(M53=0,"NA", "" )))))))) -> NA | K53: D | L53: =L54 -> Oui | M53: =IF($D53="M1",IF(MAX(M54)=MAX(M54),M54,MAX(M54)+0.5),MAX(M54)) -> 0 | N53: =IF($D53="M1",IF(AVERAGE(N54)=MIN(N54),N54,MIN(N54)+0.5),AVERAGE(N54)) -> 1 | O53: 1 | P53: 1. BELOW BASIC | Q53: =IF(K53="A","Force", IF(K53="B+","Force", IF(K53="B","Force", IF(K53="D+","Faiblesse", IF(K53="D","Faiblesse", "Basique"))))) -> Faiblesse | R53: + | U53: (PI-9) | V53: 0 | W53: 0 | X53: 1 | Y53: =Y54 -> 1 | Z53: =IF($N53>=3.25,"4. ADVANCED", IF($N53>=2.5,"3. GOOD", IF($N53>=1.75,"2. Basique", IF($N53>=1,"1. Elémentaire", "" )))) -> 1. Elémentaire
A54: PEFALIA | B54: 9.1 | C54: 9.1 | E54: Comp | F54: II | G54: =VLOOKUP(F54,Profile!B:C,2,FALSE) -> II. Transparency of public finances | H54: PI-9 | I54: =IFERROR(VLOOKUP(B54,Profile!B:C,2,FALSE),"") -> 9.1 Public access to fiscal information | K54: D | L54: Oui | M54: =IFERROR(IF(TRIM(CLEAN(J54))="A",4)+IF(TRIM(CLEAN(J54))="B+",3.5)+IF(TRIM(CLEAN(J54))="B",3)+IF(TRIM(CLEAN(J54))="C+",2.5)+IF(TRIM(CLEAN(J54))="C",2)+IF(TRIM(CLEAN(J54))="D+",1.5)+IF(TRIM(CLEAN(J54))="D",1)+IF(TRIM(CLEAN(J54))="D*",1)+IF(TRIM(CLEAN(J54))="NU",0)+IF(TRIM(CLEAN(J54))="",0),"") -> 0 | N54: =IFERROR(IF(TRIM(CLEAN(K54))="A",4)+IF(TRIM(CLEAN(K54))="B+",3.5)+IF(TRIM(CLEAN(K54))="B",3)+IF(TRIM(CLEAN(K54))="C+",2.5)+IF(TRIM(CLEAN(K54))="C",2)+IF(TRIM(CLEAN(K54))="D+",1.5)+IF(TRIM(CLEAN(K54))="D",1)+IF(TRIM(CLEAN(K54))="D*",1)+IF(TRIM(CLEAN(K54))="NU",0)+IF(TRIM(CLEAN(K54))="",0),"") -> 1 | O54: 1 | P54: 1. BELOW BASIC | Q54: =IF(K54="A","Strenght", IF(K54="B+","Strenght", IF(K54="B","Strenght", IF(K54="D+","Weakness", IF(K54="D","Weakness", "Basic"))))) -> Weakness | R54: + | T54: The administration of the Commune does not provide the public with any information on the 4 basic elements applicable. | U54: (PI-9) | V54: 0 | W54: 0 | X54: 1 | Y54: 1 | Z54: =IF($N54>=3.25,"4. Avancé", IF($N54>=2.5,"3. SOUND", IF($N54>=1.75,"2. Basique", IF($N54>=1,"1. Elémentaire", "" )))) -> 1. Elémentaire
A55: PI-9bis | B55: PI-9bis | C55: PI-9bis | D55: M2 | E55: Indic | F55: II | G55: =VLOOKUP(F55,Profile!B:C,2,FALSE) -> II. Transparency of public finances | I55: =IFERROR(VLOOKUP(B55,Profile!B:C,2,FALSE),"") -> PI-9bis Public consultation | J55: =IF(M55>3.65,"A", IF(M55>=3.25,"B+", IF(M55>2.65,"B", IF(M55>=2.25,"C+", IF(M55>1.75,"C", IF(M55>1.25,"D+", IF(AND(M55<=1.25,M55>0),"D", IF(M55=0,"NA", "" )))))))) -> NA | K55: D+ | L55: Oui | M55: =IFERROR((IF($D55="M1",IF(ROUND(AVERAGEIF(M56:M58,">0"),1)=ROUND(MAX(IF(M56:M58>0,M56:M58)),1),MAX(M56:M58),MAX(IF(M56:M58>0,M56:M58))+0.5),AVERAGEIF(M56:M58,">0"))),0) -> 0 | N55: =IFERROR((IF($D55="M1",IF(ROUND(AVERAGEIF(N56:N58,">0"),1)=ROUND(MIN(IF(N56:N58>0,N56:N58)),1),AVERAGE(N56:N58),MIN(IF(N56:N58>0,N56:N58))+0.5),AVERAGEIF(N56:N58,">0"))),0) -> 1.333333333 | O55: 1.5 | P55: 1. BELOW BASIC | Q55: =IF(K55="A","Force", IF(K55="B+","Force", IF(K55="B","Force", IF(K55="D+","Faiblesse", IF(K55="D","Faiblesse", "Basique"))))) -> Faiblesse | R55: +
A56: 9bis.1 | B56: 9bis.1 | C56: 9bis.1 | E56: Comp | F56: II | G56: =VLOOKUP(F56,Profile!B:C,2,FALSE) -> II. Transparency of public finances | I56: =IFERROR(VLOOKUP(B56,Profile!B:C,2,FALSE),"") -> 9bis.1 Public consultation in budget preparation | K56: D | L56: Oui | M56: =IFERROR(IF(TRIM(CLEAN(J56))="A",4)+IF(TRIM(CLEAN(J56))="B+",3.5)+IF(TRIM(CLEAN(J56))="B",3)+IF(TRIM(CLEAN(J56))="C+",2.5)+IF(TRIM(CLEAN(J56))="C",2)+IF(TRIM(CLEAN(J56))="D+",1.5)+IF(TRIM(CLEAN(J56))="D",1)+IF(TRIM(CLEAN(J56))="D*",1)+IF(TRIM(CLEAN(J56))="NU",0)+IF(TRIM(CLEAN(J56))="",0),"") -> 0 | N56: 1 | O56: 1 | P56: 1. BELOW BASIC | Q56: =IF(K56="A","Strenght", IF(K56="B+","Strenght", IF(K56="B","Strenght", IF(K56="D+","Weakness", IF(K56="D","Weakness", "Basic"))))) -> Weakness | R56: + | T56: #N/A
A57: 9bis.2 | B57: 9bis.2 | C57: 9bis.2 | E57: Comp | F57: II | G57: =VLOOKUP(F57,Profile!B:C,2,FALSE) -> II. Transparency of public finances | I57: =IFERROR(VLOOKUP(B57,Profile!B:C,2,FALSE),"") -> 9bis.2 Public consultation in the design of service delivery programs | K57: C | L57: Oui | M57: 0 | N57: 2 | O57: 2 | P57: 2. BASIC | Q57: Basic | R57: + | T57: Public consultations for the design of service delivery programs have not been carried out in the last three years.
A58: 9bis.3 | B58: 9bis.3 | C58: 9bis.3 | E58: Comp | F58: II | G58: =VLOOKUP(F58,Profile!B:C,2,FALSE) -> II. Transparency of public finances | I58: =IFERROR(VLOOKUP(B58,Profile!B:C,2,FALSE),"") -> 9bis.3 Public consultation in investment planning | K58: D | L58: Oui | M58: 0 | N58: 1 | O58: 1 | P58: 1. BELOW BASIC | Q58: Weakness | R58: + | T58: The Annual Investment Plan (AIP), produced each year following public consultation, is based on the Communal Development Plan (CDP), which is subject to public consultation.
A59: PEFALIA | B59: III | C59: III | E59: Pilar | F59: III | G59: =VLOOKUP(F59,Profile!B:C,2,FALSE) -> III. Management of assets and liabilities | I59: =IFERROR(VLOOKUP(B59,Profile!B:C,2,FALSE),"") -> III. Management of assets and liabilities | J59: =IF(M59>3.65,"A", IF(M59>=3.25,"B+", IF(M59>2.65,"B", IF(M59>=2.25,"C+", IF(M59>1.75,"C", IF(M59>1.25,"D+", IF(AND(M59<=1.25,M59>0),"D", IF(M59=0,"NA", "" )))))))) -> NA | K59: D+ | L59: =IF(COUNTIFS(L60:L76,"Oui")=17,"Oui","Non") -> Oui | M59: =AVERAGEIFS(M$16:M$153,$E$16:$E$153,"Indic",$F$16:$F$153,$F59) -> 0 | N59: =AVERAGEIFS(N$16:N$153,$E$16:$E$153,"Indic",$F$16:$F$153,$F59) -> 1.55 | O59: 1.5 | P59: 1. BELOW BASIC | R59: + | U59: ="("&H59&")" -> ()
A60: PEFALIA | B60: PI-10 | C60: PI_10 | D60: M2 | E60: Indic | F60: III | G60: =VLOOKUP(F60,Profile!B:C,2,FALSE) -> III. Management of assets and liabilities | H60: PI-10 | I60: =IFERROR(VLOOKUP(B60,Profile!B:C,2,FALSE),"") -> PI-10 Fiscal risk reporting | J60: NA | K60: D | L60: =IF(OR(L61="Oui",L62="Oui",L63="Oui"),"Oui","Non") -> Oui | M60: =IFERROR((IF($D60="M1",IF(ROUND(AVERAGEIF(M61:M63,">0"),1)=ROUND(MAX(IF(M61:M63>0,M61:M63)),1),MAX(M61:M63),MAX(IF(M61:M63>0,M61:M63))+0.5),AVERAGEIF(M61:M63,">0"))),0) -> 0 | N60: =IFERROR((IF($D60="M1",IF(ROUND(AVERAGEIF(N61:N63,">0"),1)=ROUND(MIN(IF(N61:N63>0,N61:N63)),1),AVERAGE(N61:N63),MIN(IF(N61:N63>0,N61:N63))+0.5),AVERAGEIF(N61:N63,">0"))),0) -> 1 | O60: 1 | P60: 1. BELOW BASIC | Q60: =IF(K60="A","Force", IF(K60="B+","Force", IF(K60="B","Force", IF(K60="D+","Faiblesse", IF(K60="D","Faiblesse", "Basique"))))) -> Faiblesse | R60: + | U60: (PI-10) | V60: 1 | W60: 0 | X60: 0 | Y60: =Y61 -> 3 | Z60: =IF($N60>=3.25,"4. ADVANCED", IF($N60>=2.5,"3. GOOD", IF($N60>=1.75,"2. Basique", IF($N60>=1,"1. Elémentaire", "" )))) -> 1. Elémentaire
A61: PEFALIA | B61: 10.1 | C61: 10.1 | E61: Comp | F61: III | G61: =VLOOKUP(F61,Profile!B:C,2,FALSE) -> III. Management of assets and liabilities | H61: PI-10 | I61: =IFERROR(VLOOKUP(B61,Profile!B:C,2,FALSE),"") -> 10.1 Monitoring of public corporations | K61: D | L61: Oui | M61: =IFERROR(IF(TRIM(CLEAN(J61))="A",4)+IF(TRIM(CLEAN(J61))="B+",3.5)+IF(TRIM(CLEAN(J61))="B",3)+IF(TRIM(CLEAN(J61))="C+",2.5)+IF(TRIM(CLEAN(J61))="C",2)+IF(TRIM(CLEAN(J61))="D+",1.5)+IF(TRIM(CLEAN(J61))="D",1)+IF(TRIM(CLEAN(J61))="D*",1)+IF(TRIM(CLEAN(J61))="NU",0)+IF(TRIM(CLEAN(J61))="",0),"") -> 0 | N61: 1 | O61: 1 | P61: 1. BELOW BASIC | Q61: =IF(K61="A","Strenght", IF(K61="B+","Strenght", IF(K61="B","Strenght", IF(K61="D+","Weakness", IF(K61="D","Weakness", "Basic"))))) -> Weakness | R61: + | T61: The municipality has no local public companies and is not a majority shareholder in any of them. | U61: (PI-10) | V61: 1 | W61: 0 | X61: 0 | Y61: 3 | Z61: =IF($N61>=3.25,"4. Avancé", IF($N61>=2.5,"3. SOUND", IF($N61>=1.75,"2. Basique", IF($N61>=1,"1. Elémentaire", "" )))) -> 1. Elémentaire
A62: PEFALIA | B62: 10.2 | C62: 10.2 | E62: Comp | F62: III | G62: =VLOOKUP(F62,Profile!B:C,2,FALSE) -> III. Management of assets and liabilities | H62: PI-10 | I62: =IFERROR(VLOOKUP(B62,Profile!B:C,2,FALSE),"") -> 10.2 Monitoring of sub-national governments | K62: D | L62: Oui | M62: 0 | N62: 1 | O62: 1 | P62: 1. BELOW BASIC | Q62: Weakness | R62: + | T62: Sub-national administrations below the level of the Commune do not exist. | U62: (PI-10) | V62: 1 | W62: 0 | X62: 0 | Y62: 3 | Z62: =IF($N62>=3.25,"4. Avancé", IF($N62>=2.5,"3. SOUND", IF($N62>=1.75,"2. Basique", IF($N62>=1,"1. Elémentaire", "" )))) -> 1. Elémentaire
A63: PEFALIA | B63: 10.3 | C63: 10.3 | E63: Comp | F63: III | G63: =VLOOKUP(F63,Profile!B:C,2,FALSE) -> III. Management of assets and liabilities | H63: PI-10 | I63: =IFERROR(VLOOKUP(B63,Profile!B:C,2,FALSE),"") -> 10.3 Contingent liabilities and other fiscal risks | K63: D | L63: Oui | M63: 0 | N63: 1 | O63: 1 | P63: 1. BELOW BASIC | Q63: Weakness | R63: + | T63: Contingent liabilities and other budgetary risks incurred by the commune relate to risks associated with cases pending before the courts. These risks are not quantified and provided for in the budget, and do not give rise to the production of a report. | U63: (PI-10) | V63: 1 | W63: 0 | X63: 0 | Y63: 3 | Z63: =IF($N63>=3.25,"4. Avancé", IF($N63>=2.5,"3. SOUND", IF($N63>=1.75,"2. Basique", IF($N63>=1,"1. Elémentaire", "" )))) -> 1. Elémentaire
A64: PEFALIA | B64: PI-11 | C64: PI_11 | D64: M2 | E64: Indic | F64: III | G64: =VLOOKUP(F64,Profile!B:C,2,FALSE) -> III. Management of assets and liabilities | H64: PI-11 | I64: =IFERROR(VLOOKUP(B64,Profile!B:C,2,FALSE),"") -> PI-11 Public investment management | J64: =IF(M64>3.65,"A", IF(M64>=3.25,"B+", IF(M64>2.65,"B", IF(M64>=2.25,"C+", IF(M64>1.75,"C", IF(M64>1.25,"D+", IF(AND(M64<=1.25,M64>0),"D", IF(M64=0,"NA", "" )))))))) -> NA | K64: C | L64: =IF(OR(L65="Oui",L66="Oui",L67="Oui",L68="Oui"),"Oui","Non") -> Oui | M64: =IFERROR(IF($D64="M1",IF(ROUND(AVERAGEIF(M65:M68,">0"),1)=ROUND(MAX(IF(M65:M68>0,M65:M68)),1),MAX(M65:M68),MAX(IF(M65:M68>0,M65:M68))+0.5),AVERAGEIF(M65:M68,">0")),0) -> 0 | N64: =IFERROR(IF($D64="M1",IF(ROUND(AVERAGEIF(N65:N68,">0"),1)=ROUND(MIN(IF(N65:N68>0,N65:N68)),1),AVERAGE(N65:N68),MIN(IF(N65:N68>0,N65:N68))+0.5),AVERAGEIF(N65:N68,">0")),0) -> 2 | O64: 2 | P64: 2. BASIC | Q64: =IF(K64="A","Force", IF(K64="B+","Force", IF(K64="B","Force", IF(K64="D+","Faiblesse", IF(K64="D","Faiblesse", "Basique"))))) -> Basique | R64: + | U64: (PI-11) | V64: 1 | W64: 1 | X64: 0 | Y64: =Y65 -> 4 | Z64: =IF($N64>=3.25,"4. ADVANCED", IF($N64>=2.5,"3. GOOD", IF($N64>=1.75,"2. Basique", IF($N64>=1,"1. Elémentaire", "" )))) -> 2. Basique
A65: PEFALIA | B65: 11.1 | C65: 11.1 | E65: Comp | F65: III | G65: =VLOOKUP(F65,Profile!B:C,2,FALSE) -> III. Management of assets and liabilities | H65: PI-11 | I65: =IFERROR(VLOOKUP(B65,Profile!B:C,2,FALSE),"") -> 11.1 Economic analysis of investment proposals | K65: D | L65: Oui | M65: =IFERROR(IF(TRIM(CLEAN(J65))="A",4)+IF(TRIM(CLEAN(J65))="B+",3.5)+IF(TRIM(CLEAN(J65))="B",3)+IF(TRIM(CLEAN(J65))="C+",2.5)+IF(TRIM(CLEAN(J65))="C",2)+IF(TRIM(CLEAN(J65))="D+",1.5)+IF(TRIM(CLEAN(J65))="D",1)+IF(TRIM(CLEAN(J65))="D*",1)+IF(TRIM(CLEAN(J65))="NU",0)+IF(TRIM(CLEAN(J65))="",0),"") -> 0 | N65: 1 | O65: 1 | P65: 1. BELOW BASIC | Q65: =IF(K65="A","Strenght", IF(K65="B+","Strenght", IF(K65="B","Strenght", IF(K65="D+","Weakness", IF(K65="D","Weakness", "Basic"))))) -> Weakness | R65: =IFERROR(IF(L65="Oui",IF(N65-M65<0,"-",IF(N65-M65>0,"+"," =")),"N.C"),"") -> + | T65: No economic studies have been carried out for the major projects included in this assessment. | U65: (PI-11) | V65: 1 | W65: 1 | X65: 0 | Y65: 4 | Z65: =IF($N65>=3.25,"4. Avancé", IF($N65>=2.5,"3. SOUND", IF($N65>=1.75,"2. Basique", IF($N65>=1,"1. Elémentaire", "" )))) -> 1. Elémentaire
A66: PEFALIA | B66: 11.2 | C66: 11.2 | E66: Comp | F66: III | G66: =VLOOKUP(F66,Profile!B:C,2,FALSE) -> III. Management of assets and liabilities | H66: PI-11 | I66: =IFERROR(VLOOKUP(B66,Profile!B:C,2,FALSE),"") -> 11.2 Investment project selection | K66: C | L66: Oui | M66: 0 | N66: 2 | O66: 2 | P66: 2. BASIC | Q66: Basic | R66: + | T66: The prioritization of investment projects to be included in the fiscal year's budget is done through each year's PIA, but the criteria and guidelines followed by the commune are not made explicit. | U66: (PI-11) | V66: 1 | W66: 1 | X66: 0 | Y66: 4 | Z66: =IF($N66>=3.25,"4. Avancé", IF($N66>=2.5,"3. SOUND", IF($N66>=1.75,"2. Basique", IF($N66>=1,"1. Elémentaire", "" )))) -> 2. Basique
A67: PEFALIA | B67: 11.3 | C67: 11.3 | E67: Comp | F67: III | G67: =VLOOKUP(F67,Profile!B:C,2,FALSE) -> III. Management of assets and liabilities | H67: PI-11 | I67: =IFERROR(VLOOKUP(B67,Profile!B:C,2,FALSE),"") -> 11.3 Investment project costing | K67: D | L67: Oui | M67: 0 | N67: 1 | O67: 1 | P67: 1. BELOW BASIC | Q67: Weakness | R67: + | T67: Tiko's investment projects in the fiscal 2020 budget do not include forecasts for recurrent and operating expenses. | U67: (PI-11) | V67: 1 | W67: 1 | X67: 0 | Y67: 4 | Z67: =IF($N67>=3.25,"4. Avancé", IF($N67>=2.5,"3. SOUND", IF($N67>=1.75,"2. Basique", IF($N67>=1,"1. Elémentaire", "" )))) -> 1. Elémentaire
A68: PEFALIA | B68: 11.4 | C68: 11.4 | E68: Comp | F68: III | G68: =VLOOKUP(F68,Profile!B:C,2,FALSE) -> III. Management of assets and liabilities | H68: PI-11 | I68: =IFERROR(VLOOKUP(B68,Profile!B:C,2,FALSE),"") -> 11.4 Investment project monitoring | K68: A | L68: Oui | M68: 0 | N68: 4 | O68: 4 | P68: 4. HIGH | Q68: Strenght | R68: + | T68: A project execution report is drawn up each year, specifying the physical and financial execution rates. | U68: (PI-11) | V68: 1 | W68: 1 | X68: 0 | Y68: 4 | Z68: =IF($N68>=3.25,"4. Avancé", IF($N68>=2.5,"3. SOUND", IF($N68>=1.75,"2. Basique", IF($N68>=1,"1. Elémentaire", "" )))) -> 4. Avancé
A69: PEFALIA | B69: PI-12 | C69: PI_12 | D69: M2 | E69: Indic | F69: III | G69: =VLOOKUP(F69,Profile!B:C,2,FALSE) -> III. Management of assets and liabilities | H69: PI-12 | I69: =IFERROR(VLOOKUP(B69,Profile!B:C,2,FALSE),"") -> PI-12 Public asset management | J69: =IF(M69>3.65,"A", IF(M69>=3.25,"B+", IF(M69>2.65,"B", IF(M69>=2.25,"C+", IF(M69>1.75,"C", IF(M69>1.25,"D+", IF(AND(M69<=1.25,M69>0),"D", IF(M69=0,"NA", "" )))))))) -> NA | K69: NA | L69: =IF(OR(L70="Oui",L71="Oui",L72="Oui"),"Oui","Non") -> Oui | M69: =IFERROR((IF($D69="M1",IF(ROUND(AVERAGEIF(M70:M72,">0"),1)=ROUND(MAX(IF(M70:M72>0,M70:M72)),1),MAX(M70:M72),MAX(IF(M70:M72>0,M70:M72))+0.5),AVERAGEIF(M70:M72,">0"))),0) -> 0 | N69: =IFERROR((IF($D69="M1",IF(ROUND(AVERAGEIF(N70:N72,">0"),1)=ROUND(MIN(IF(N70:N72>0,N70:N72)),1),AVERAGE(N70:N72),MIN(IF(N70:N72>0,N70:N72))+0.5),AVERAGEIF(N70:N72,">0"))),0) -> 0 | O69: 0 | Q69: =IF(K69="A","Force", IF(K69="B+","Force", IF(K69="B","Force", IF(K69="D+","Faiblesse", IF(K69="D","Faiblesse", "Basique"))))) -> Basique | R69: = | U69: (PI-12) | V69: 1 | W69: 0 | X69: 0 | Y69: =Y70 -> 3 | Z69: =IF($N69>=3.25,"4. ADVANCED", IF($N69>=2.5,"3. GOOD", IF($N69>=1.75,"2. Basique", IF($N69>=1,"1. Elémentaire", "" )))) -> 
A70: PEFALIA | B70: 12.1 | C70: 12.1 | E70: Comp | F70: III | G70: =VLOOKUP(F70,Profile!B:C,2,FALSE) -> III. Management of assets and liabilities | H70: PI-12 | I70: =IFERROR(VLOOKUP(B70,Profile!B:C,2,FALSE),"") -> 12.1 Financial asset monitoring | K70: NA | L70: Oui | M70: =IFERROR(IF(TRIM(CLEAN(J70))="A",4)+IF(TRIM(CLEAN(J70))="B+",3.5)+IF(TRIM(CLEAN(J70))="B",3)+IF(TRIM(CLEAN(J70))="C+",2.5)+IF(TRIM(CLEAN(J70))="C",2)+IF(TRIM(CLEAN(J70))="D+",1.5)+IF(TRIM(CLEAN(J70))="D",1)+IF(TRIM(CLEAN(J70))="D*",1)+IF(TRIM(CLEAN(J70))="NU",0)+IF(TRIM(CLEAN(J70))="",0),"") -> 0 | N70: 0 | O70: 0 | Q70: =IF(K70="A","Strenght", IF(K70="B+","Strenght", IF(K70="B","Strenght", IF(K70="D+","Weakness", IF(K70="D","Weakness", "Basic"))))) -> Basic | R70: = | T70: The Commune de Tiko's financial assets, consisting of cash and bank deposits, are duly recorded in the appropriate accounts kept by the Municipal Receiver. However, consolidated statements of these financial assets are not periodically produced and published. | U70: (PI-12) | V70: 1 | W70: 0 | X70: 0 | Y70: 3 | Z70: =IF($N70>=3.25,"4. Avancé", IF($N70>=2.5,"3. SOUND", IF($N70>=1.75,"2. Basique", IF($N70>=1,"1. Elémentaire", "" )))) -> 
A71: PEFALIA | B71: 12.2 | C71: 12.2 | E71: Comp | F71: III | G71: =VLOOKUP(F71,Profile!B:C,2,FALSE) -> III. Management of assets and liabilities | H71: PI-12 | I71: =IFERROR(VLOOKUP(B71,Profile!B:C,2,FALSE),"") -> 12.2 Non-financial asset monitoring | K71: NA | L71: Oui | M71: 0 | N71: 0 | O71: 0 | Q71: Basic | R71: = | T71: The management of movable and immovable property belonging to the Commune gives rise to a number of registers. These contain information on the age and users of movable assets, but are far from exhaustive. | U71: (PI-12) | V71: 1 | W71: 0 | X71: 0 | Y71: 3 | Z71: =IF($N71>=3.25,"4. Avancé", IF($N71>=2.5,"3. SOUND", IF($N71>=1.75,"2. Basique", IF($N71>=1,"1. Elémentaire", "" )))) -> 
A72: PEFALIA | B72: 12.3 | C72: 12.3 | E72: Comp | F72: III | G72: =VLOOKUP(F72,Profile!B:C,2,FALSE) -> III. Management of assets and liabilities | H72: PI-12 | I72: =IFERROR(VLOOKUP(B72,Profile!B:C,2,FALSE),"") -> 12.3 Transparency of asset disposal | K72: NA | L72: Oui | M72: 0 | N72: 0 | O72: 0 | Q72: Basic | R72: = | T72: There are no regulations governing the sale and transfer of financial assets. Texts exist for non- financial assets, but they only cover movable assets and are not always respected. Reports are not produced, and information relating to these operations is not included in the budget documentation or in the annual financial statements of the Commune de Tiko. | U72: (PI-12) | V72: 1 | W72: 0 | X72: 0 | Y72: 3 | Z72: =IF($N72>=3.25,"4. Avancé", IF($N72>=2.5,"3. SOUND", IF($N72>=1.75,"2. Basique", IF($N72>=1,"1. Elémentaire", "" )))) -> 
A73: PEFALIA | B73: PI-13 | C73: PI_13 | D73: M2 | E73: Indic | F73: III | G73: =VLOOKUP(F73,Profile!B:C,2,FALSE) -> III. Management of assets and liabilities | H73: PI-13 | I73: =IFERROR(VLOOKUP(B73,Profile!B:C,2,FALSE),"") -> PI-13 Debt management | J73: =IF(M73>3.65,"A", IF(M73>=3.25,"B+", IF(M73>2.65,"B", IF(M73>=2.25,"C+", IF(M73>1.75,"C", IF(M73>1.25,"D+", IF(AND(M73<=1.25,M73>0),"D", IF(M73=0,"NA", "" )))))))) -> NA | K73: B | L73: =IF(OR(L74="Oui",L75="Oui",L76="Oui"),"Oui","Non") -> Oui | M73: =IFERROR((IF($D73="M1",IF(ROUND(AVERAGEIF(M74:M76,">0"),1)=ROUND(MAX(IF(M74:M76>0,M74:M76)),1),MAX(M74:M76),MAX(IF(M74:M76>0,M74:M76))+0.5),AVERAGEIF(M74:M76,">0"))),0) -> 0 | N73: =IFERROR((IF($D73="M1",IF(ROUND(AVERAGEIF(N74:N76,">0"),1)=ROUND(MIN(IF(N74:N76>0,N74:N76)),1),AVERAGE(N74:N76),MIN(IF(N74:N76>0,N74:N76))+0.5),AVERAGEIF(N74:N76,">0"))),0) -> 3 | O73: 3 | P73: 3. SOUND | Q73: =IF(K73="A","Force", IF(K73="B+","Force", IF(K73="B","Force", IF(K73="D+","Faiblesse", IF(K73="D","Faiblesse", "Basique"))))) -> Force | R73: + | U73: (PI-13) | V73: 1 | W73: 0 | X73: 0 | Y73: =Y74 -> 3 | Z73: =IF($N73>=3.25,"4. ADVANCED", IF($N73>=2.5,"3. GOOD", IF($N73>=1.75,"2. Basique", IF($N73>=1,"1. Elémentaire", "" )))) -> 3. GOOD
A74: PEFALIA | B74: 13.1 | C74: 13.1 | E74: Comp | F74: III | G74: =VLOOKUP(F74,Profile!B:C,2,FALSE) -> III. Management of assets and liabilities | H74: PI-13 | I74: =IFERROR(VLOOKUP(B74,Profile!B:C,2,FALSE),"") -> 13.1 Recording and reporting of debts and guarantees | K74: C | L74: Oui | M74: =IFERROR(IF(TRIM(CLEAN(J74))="A",4)+IF(TRIM(CLEAN(J74))="B+",3.5)+IF(TRIM(CLEAN(J74))="B",3)+IF(TRIM(CLEAN(J74))="C+",2.5)+IF(TRIM(CLEAN(J74))="C",2)+IF(TRIM(CLEAN(J74))="D+",1.5)+IF(TRIM(CLEAN(J74))="D",1)+IF(TRIM(CLEAN(J74))="D*",1)+IF(TRIM(CLEAN(J74))="NU",0)+IF(TRIM(CLEAN(J74))="",0),"") -> 0 | N74: 2 | O74: 2 | P74: 2. BASIC | Q74: =IF(K74="A","Strenght", IF(K74="B+","Strenght", IF(K74="B","Strenght", IF(K74="D+","Weakness", IF(K74="D","Weakness", "Basic"))))) -> Basic | R74: + | T74: Debt to CNPS, which accounts for 66.24% of Tiko's total debt, is not reconciled periodically. Reports on the Commune de Tiko's debt are not produced periodically. | U74: (PI-13) | V74: 1 | W74: 0 | X74: 0 | Y74: 3 | Z74: =IF($N74>=3.25,"4. Avancé", IF($N74>=2.5,"3. SOUND", IF($N74>=1.75,"2. Basique", IF($N74>=1,"1. Elémentaire", "" )))) -> 2. Basique
A75: PEFALIA | B75: 13.2 | C75: 13.2 | E75: Comp | F75: III | G75: =VLOOKUP(F75,Profile!B:C,2,FALSE) -> III. Management of assets and liabilities | H75: PI-13 | I75: =IFERROR(VLOOKUP(B75,Profile!B:C,2,FALSE),"") -> 13.2 Approval of debts and guarantees | K75: A | L75: Oui | M75: 0 | N75: 4 | O75: 4 | P75: 4. HIGH | Q75: Strenght | R75: + | T75: The responsibilities and procedures for contracting loans and granting guarantees are expressly defined by the law governing decentralized local authorities. However, annual debt ceilings and guarantees to be granted are not fixed in advance and approved by the local council at the beginning of each financial year. | U75: (PI-13) | V75: 1 | W75: 0 | X75: 0 | Y75: 3 | Z75: =IF($N75>=3.25,"4. Avancé", IF($N75>=2.5,"3. SOUND", IF($N75>=1.75,"2. Basique", IF($N75>=1,"1. Elémentaire", "" )))) -> 4. Avancé
A76: PEFALIA | B76: 13.3 | C76: 13.3 | E76: Comp | F76: III | G76: =VLOOKUP(F76,Profile!B:C,2,FALSE) -> III. Management of assets and liabilities | H76: PI-13 | I76: =IFERROR(VLOOKUP(B76,Profile!B:C,2,FALSE),"") -> 13.3 Debt management strategy | K76: NA | L76: Oui | M76: 0 | N76: 0 | O76: 0 | Q76: Basic | R76: = | T76: At the time of the evaluation, the Commune had not yet drawn up a medium-term debt management strategy document. | U76: (PI-13) | V76: 1 | W76: 0 | X76: 0 | Y76: 3 | Z76: =IF($N76>=3.25,"4. Avancé", IF($N76>=2.5,"3. SOUND", IF($N76>=1.75,"2. Basique", IF($N76>=1,"1. Elémentaire", "" )))) -> 
A77: PEFALIA | B77: IV | C77: IV | E77: Pilar | F77: IV | G77: =VLOOKUP(F77,Profile!B:C,2,FALSE) -> IV. Policy-based fiscal strategy and budgeting | I77: =IFERROR(VLOOKUP(B77,Profile!B:C,2,FALSE),"") -> IV. Policy-based fiscal strategy and budgeting | J77: =IF(M77>3.65,"A", IF(M77>=3.25,"B+", IF(M77>2.65,"B", IF(M77>=2.25,"C+", IF(M77>1.75,"C", IF(M77>1.25,"D+", IF(AND(M77<=1.25,M77>0),"D", IF(M77=0,"NA", "" )))))))) -> NA | K77: D+ | L77: =IF(COUNTIFS(L78:L91,"Oui")=22,"Oui","Non") -> Non | M77: =AVERAGEIFS(M$16:M$153,$E$16:$E$153,"Indic",$F$16:$F$153,$F77) -> 0 | N77: =AVERAGEIFS(N$16:N$153,$E$16:$E$153,"Indic",$F$16:$F$153,$F77) -> 1.722222222 | O77: 1.5 | P77: 1. BELOW BASIC | R77: N.C | U77: ()
A78: PEFALIA | B78: PI-14 | C78: PI_14 | D78: M2 | E78: Indic | F78: IV | G78: =VLOOKUP(F78,Profile!B:C,2,FALSE) -> IV. Policy-based fiscal strategy and budgeting | H78: PI-14 | I78: =IFERROR(VLOOKUP(B78,Profile!B:C,2,FALSE),"") -> PI-14 Medium-term budget strategy | J78: NA | K78: C | L78: =IF(OR(L79="Oui",L80="Oui",L81="Oui"),"Oui","Non") -> Oui | M78: =IFERROR((IF($D78="M1",IF(ROUND(AVERAGEIF(M79:M81,">0"),1)=ROUND(MAX(IF(M79:M81>0,M79:M81)),1),MAX(M79:M81),MAX(IF(M79:M81>0,M79:M81))+0.5),AVERAGEIF(M79:M81,">0"))),0) -> 0 | N78: =IFERROR((IF($D78="M1",IF(ROUND(AVERAGEIF(N79:N81,">0"),1)=ROUND(MIN(IF(N79:N81>0,N79:N81)),1),AVERAGE(N79:N81),MIN(IF(N79:N81>0,N79:N81))+0.5),AVERAGEIF(N79:N81,">0"))),0) -> 2 | O78: 2 | P78: 2. BASIC | Q78: =IF(K78="A","Force", IF(K78="B+","Force", IF(K78="B","Force", IF(K78="D+","Faiblesse", IF(K78="D","Faiblesse", "Basique"))))) -> Basique | R78: + | U78: (PI-14) | V78: 1 | W78: 0 | X78: 0 | Y78: =Y79 -> 3 | Z78: =IF($N78>=3.25,"4. ADVANCED", IF($N78>=2.5,"3. GOOD", IF($N78>=1.75,"2. Basique", IF($N78>=1,"1. Elémentaire", "" )))) -> 2. Basique
A79: PEFALIA | B79: 14.1 | C79: 14.1 | E79: Comp | F79: IV | G79: =VLOOKUP(F79,Profile!B:C,2,FALSE) -> IV. Policy-based fiscal strategy and budgeting | H79: PI-14 | I79: =IFERROR(VLOOKUP(B79,Profile!B:C,2,FALSE),"") -> 14.1 Underlying forecasts for medium- term budget | K79: D | L79: Oui | M79: =IFERROR(IF(TRIM(CLEAN(J79))="A",4)+IF(TRIM(CLEAN(J79))="B+",3.5)+IF(TRIM(CLEAN(J79))="B",3)+IF(TRIM(CLEAN(J79))="C+",2.5)+IF(TRIM(CLEAN(J79))="C",2)+IF(TRIM(CLEAN(J79))="D+",1.5)+IF(TRIM(CLEAN(J79))="D",1)+IF(TRIM(CLEAN(J79))="D*",1)+IF(TRIM(CLEAN(J79))="NU",0)+IF(TRIM(CLEAN(J79))="",0),"") -> 0 | N79: 1 | O79: 1 | P79: 1. BELOW BASIC | Q79: =IF(K79="A","Strenght", IF(K79="B+","Strenght", IF(K79="B","Strenght", IF(K79="D+","Weakness", IF(K79="D","Weakness", "Basic"))))) -> Weakness | R79: + | T79: The Commune de Tiko's budget forecasts are not based on projected trends in macroeconomic aggregates. In addition, the Commune is not informed of the amounts of transfers that will be allocated to it before the budget is finalized and approved by the Communal Council. | U79: (PI-14) | V79: 1 | W79: 0 | X79: 0 | Y79: 3 | Z79: =IF($N79>=3.25,"4. Avancé", IF($N79>=2.5,"3. SOUND", IF($N79>=1.75,"2. Basique", IF($N79>=1,"1. Elémentaire", "" )))) -> 1. Elémentaire
A80: PEFALIA | B80: 14.2 | C80: 14.2 | E80: Comp | F80: IV | G80: =VLOOKUP(F80,Profile!B:C,2,FALSE) -> IV. Policy-based fiscal strategy and budgeting | H80: PI-14 | I80: =IFERROR(VLOOKUP(B80,Profile!B:C,2,FALSE),"") -> 14.2 Fiscal impact of policy proposals | K80: A | L80: Oui | M80: 0 | N80: 4 | O80: 4 | P80: =IF(K80="D","1. BELOW BASIC", IF(K80="D*","1. BELOW BASIC", IF(K80="D+","1. BELOW BASIC", IF(K80="C","2. BASIC", IF(K80="C+","2. BASIC", IF(K80="B+","3. SOUND", IF(K80="B","3. SOUND", IF(K80="A","4. HIGH","")))))))) -> 4. HIGH | Q80: Strenght | R80: + | T80: Capital expenditure and recurring costs for investments scheduled for 2021 have not been estimated for inclusion in the budget. | U80: (PI-14) | V80: 1 | W80: 0 | X80: 0 | Y80: 3 | Z80: =IF($N80>=3.25,"4. Avancé", IF($N80>=2.5,"3. SOUND", IF($N80>=1.75,"2. Basique", IF($N80>=1,"1. Elémentaire", "" )))) -> 4. Avancé
A81: PEFALIA | B81: 14.3 | C81: 14.3 | E81: Comp | F81: IV | G81: =VLOOKUP(F81,Profile!B:C,2,FALSE) -> IV. Policy-based fiscal strategy and budgeting | H81: PI-14 | I81: =IFERROR(VLOOKUP(B81,Profile!B:C,2,FALSE),"") -> 14.3 Medium-term expenditure and revenue estimates | K81: D | L81: Oui | M81: 0 | N81: 1 | O81: 1 | P81: 1. BELOW BASIC | Q81: Weakness | R81: + | T81: The commune of Tiko's budget does not have a multi-year perspective. Medium-term expenditure and revenue forecasts have not been drawn up. | U81: (PI-14) | V81: 1 | W81: 0 | X81: 0 | Y81: 3 | Z81: =IF($N81>=3.25,"4. Avancé", IF($N81>=2.5,"3. SOUND", IF($N81>=1.75,"2. Basique", IF($N81>=1,"1. Elémentaire", "" )))) -> 1. Elémentaire
A82: PEFALIA | B82: 14.4 | C82: 14.4 | E82: Comp | F82: IV | G82: =VLOOKUP(F82,Profile!B:C,2,FALSE) -> IV. Policy-based fiscal strategy and budgeting | H82: PI-14 | I82: =IFERROR(VLOOKUP(B82,Profile!B:C,2,FALSE),"") -> 14.4 Consistency of budget with previous year’s estimates | K82: D | L82: Oui | M82: 0 | N82: 1 | O82: 1 | P82: 1. BELOW BASIC | Q82: Weakness | R82: =IFERROR(IF(L82="Oui",IF(N82-M82<0,"-",IF(N82-M82>0,"+"," =")),"N.C"),"") -> + | U82: (PI-14) | V82: 1 | W82: 0 | X82: 0 | Y82: 3 | Z82: =IF($N82>=3.25,"4. Avancé", IF($N82>=2.5,"3. SOUND", IF($N82>=1.75,"2. Basique", IF($N82>=1,"1. Elémentaire", "" )))) -> 1. Elémentaire
A83: PEFALIA | B83: PI-17 | C83: PI_17 | D83: M2 | E83: Indic | F83: IV | G83: =VLOOKUP(F83,Profile!B:C,2,FALSE) -> IV. Policy-based fiscal strategy and budgeting | H83: PI-17 | I83: =IFERROR(VLOOKUP(B83,Profile!B:C,2,FALSE),"") -> PI-17 Budget preparation process | J83: =IF(M83>3.65,"A", IF(M83>=3.25,"B+", IF(M83>2.65,"B", IF(M83>=2.25,"C+", IF(M83>1.75,"C", IF(M83>1.25,"D+", IF(AND(M83<=1.25,M83>0),"D", IF(M83=0,"NA", "" )))))))) -> NA | K83: D+ | L83: =IF(OR(L84="Oui",L85="Oui",L86="Oui"),"Oui","Non") -> Oui | M83: =IFERROR((IF($D83="M1",IF(ROUND(AVERAGEIF(M84:M86,">0"),1)=ROUND(MAX(IF(M84:M86>0,M84:M86)),1),MAX(M84:M86),MAX(IF(M84:M86>0,M84:M86))+0.5),AVERAGEIF(M84:M86,">0"))),0) -> 0 | N83: =IFERROR((IF($D83="M1",IF(ROUND(AVERAGEIF(N84:N86,">0"),1)=ROUND(MIN(IF(N84:N86>0,N84:N86)),1),AVERAGE(N84:N86),MIN(IF(N84:N86>0,N84:N86))+0.5),AVERAGEIF(N84:N86,">0"))),0) -> 1.666666667 | O83: 1.5 | P83: 1. BELOW BASIC | Q83: =IF(K83="A","Force", IF(K83="B+","Force", IF(K83="B","Force", IF(K83="D+","Faiblesse", IF(K83="D","Faiblesse", "Basique"))))) -> Faiblesse | R83: + | U83: (PI-17) | V83: 0 | W83: 1 | X83: 0 | Y83: =Y84 -> 3 | Z83: =IF($N83>=3.25,"4. ADVANCED", IF($N83>=2.5,"3. GOOD", IF($N83>=1.75,"2. Basique", IF($N83>=1,"1. Elémentaire", "" )))) -> 1. Elémentaire
A84: PEFALIA | B84: 17.1 | C84: 17.1 | E84: Comp | F84: IV | G84: =VLOOKUP(F84,Profile!B:C,2,FALSE) -> IV. Policy-based fiscal strategy and budgeting | H84: PI-17 | I84: =IFERROR(VLOOKUP(B84,Profile!B:C,2,FALSE),"") -> 17.1 Budget calendar | K84: D | L84: Oui | M84: =IFERROR(IF(TRIM(CLEAN(J84))="A",4)+IF(TRIM(CLEAN(J84))="B+",3.5)+IF(TRIM(CLEAN(J84))="B",3)+IF(TRIM(CLEAN(J84))="C+",2.5)+IF(TRIM(CLEAN(J84))="C",2)+IF(TRIM(CLEAN(J84))="D+",1.5)+IF(TRIM(CLEAN(J84))="D",1)+IF(TRIM(CLEAN(J84))="D*",1)+IF(TRIM(CLEAN(J84))="NU",0)+IF(TRIM(CLEAN(J84))="",0),"") -> 0 | N84: 1 | O84: 1 | P84: 1. BELOW BASIC | Q84: =IF(K84="A","Strenght", IF(K84="B+","Strenght", IF(K84="B","Strenght", IF(K84="D+","Weakness", IF(K84="D","Weakness", "Basic"))))) -> Weakness | R84: + | T84: A budget timetable has not been drawn up for the 2021 budget. | U84: (PI-17) | V84: 0 | W84: 1 | X84: 0 | Y84: 3 | Z84: =IF($N84>=3.25,"4. Avancé", IF($N84>=2.5,"3. SOUND", IF($N84>=1.75,"2. Basique", IF($N84>=1,"1. Elémentaire", "" )))) -> 1. Elémentaire
A85: PEFALIA | B85: 17.2 | C85: 17.2 | E85: Comp | F85: IV | G85: =VLOOKUP(F85,Profile!B:C,2,FALSE) -> IV. Policy-based fiscal strategy and budgeting | H85: PI-17 | I85: =IFERROR(VLOOKUP(B85,Profile!B:C,2,FALSE),"") -> 17.2 Guidance on budget preparation | K85: B | L85: Oui | M85: 0 | N85: 3 | O85: 3 | P85: 3. SOUND | Q85: Strenght | R85: + | T85: A budget circular setting out the guidelines to be followed in preparing the budget has not been issued and sent to the Commune's budget units as part of the preparation of the 2021 budget. | U85: (PI-17) | V85: 0 | W85: 1 | X85: 0 | Y85: 3 | Z85: =IF($N85>=3.25,"4. Avancé", IF($N85>=2.5,"3. SOUND", IF($N85>=1.75,"2. Basique", IF($N85>=1,"1. Elémentaire", "" )))) -> 3. SOUND
A86: =$I$4 -> PEFALIA | B86: 17.3 | C86: 17.3 | E86: Comp | F86: IV | G86: =VLOOKUP(F86,Profile!B:C,2,FALSE) -> IV. Policy-based fiscal strategy and budgeting | H86: PI-17 | I86: =IFERROR(VLOOKUP(B86,Profile!B:C,2,FALSE),"") -> 17.3 Budget submission to the legislature | K86: D | L86: Oui | M86: 0 | N86: 1 | O86: =IF($K86="D",1, IF($K86="D+",1.5, IF($K86="C",2, IF($K86="C+",2.5, IF($K86="B",3, IF($K86="B+",3.5, IF($K86="A",4, ))))))) -> 1 | P86: 1. BELOW BASIC | Q86: Weakness | R86: + | T86: For two of the last three financial years (2018 and 2019), the Executive of the Commune has sent draft budgets to the Communal Council less than a month before the start of the financial year. | U86: (PI-17) | V86: 0 | W86: 1 | X86: 0 | Y86: 3 | Z86: =IF($N86>=3.25,"4. Avancé", IF($N86>=2.5,"3. SOUND", IF($N86>=1.75,"2. Basique", IF($N86>=1,"1. Elémentaire", "" )))) -> 1. Elémentaire
A87: PEFALIA | B87: PI-18 | C87: PI_18 | D87: M1 | E87: Indic | F87: IV | G87: =VLOOKUP(F87,Profile!B:C,2,FALSE) -> IV. Policy-based fiscal strategy and budgeting | H87: PI-18 | I87: =IFERROR(VLOOKUP(B87,Profile!B:C,2,FALSE),"") -> PI-18 Legislative scrutiny of budgets | J87: =IF(M87>3.65,"A", IF(M87>=3.25,"B+", IF(M87>2.65,"B", IF(M87>=2.25,"C+", IF(M87>1.75,"C", IF(M87>1.25,"D+", IF(AND(M87<=1.25,M87>0),"D", IF(M87=0,"NA", "" )))))))) -> NA | K87: D+ | L87: =IF(OR(L88="Oui",L89="Oui",L90="Oui",L91="Oui"),"Oui","Non") -> Oui | M87: =IFERROR(IF($D87="M1",IF(ROUND(AVERAGEIF(M88:M91,">0"),1)=ROUND(MIN(IF(M88:M91>0,M88:M91)),1),AVERAGE(M88:M91),MIN(IF(M88:M91>0,M88:M91))+0.5),AVERAGEIF(M88:M91,">0")),0) -> 0 | N87: =IFERROR(IF($D87="M1",IF(ROUND(AVERAGEIF(N88:N91,">0"),1)=ROUND(MIN(IF(N88:N91>0,N88:N91)),1),AVERAGE(N88:N91),MIN(IF(N88:N91>0,N88:N91))+0.5),AVERAGEIF(N88:N91,">0")),0) -> 1.5 | O87: 1.5 | P87: 1. BELOW BASIC | Q87: =IF(K87="A","Force", IF(K87="B+","Force", IF(K87="B","Force", IF(K87="D+","Faiblesse", IF(K87="D","Faiblesse", "Basique"))))) -> Faiblesse | R87: + | U87: (PI-18) | V87: 0 | W87: 1 | X87: 0 | Y87: =Y88 -> 4 | Z87: =IF($N87>=3.25,"4. ADVANCED", IF($N87>=2.5,"3. GOOD", IF($N87>=1.75,"2. Basique", IF($N87>=1,"1. Elémentaire", "" )))) -> 1. Elémentaire
A88: PEFALIA | B88: 18.1 | C88: 18.1 | E88: Comp | F88: IV | G88: =VLOOKUP(F88,Profile!B:C,2,FALSE) -> IV. Policy-based fiscal strategy and budgeting | H88: PI-18 | I88: =IFERROR(VLOOKUP(B88,Profile!B:C,2,FALSE),"") -> 18.1 Scope of budget scrutiny | K88: D | L88: Oui | M88: =IFERROR(IF(TRIM(CLEAN(J88))="A",4)+IF(TRIM(CLEAN(J88))="B+",3.5)+IF(TRIM(CLEAN(J88))="B",3)+IF(TRIM(CLEAN(J88))="C+",2.5)+IF(TRIM(CLEAN(J88))="C",2)+IF(TRIM(CLEAN(J88))="D+",1.5)+IF(TRIM(CLEAN(J88))="D",1)+IF(TRIM(CLEAN(J88))="D*",1)+IF(TRIM(CLEAN(J88))="NU",0)+IF(TRIM(CLEAN(J88))="",0),"") -> 0 | N88: 1 | O88: 1 | P88: 1. BELOW BASIC | Q88: =IF(K88="A","Strenght", IF(K88="B+","Strenght", IF(K88="B","Strenght", IF(K88="D+","Weakness", IF(K88="D","Weakness", "Basic"))))) -> Weakness | R88: + | T88: The Municipal Council's examination of the draft budget covers only the detailed revenue and expenditure forecasts. | U88: (PI-18) | V88: 0 | W88: 1 | X88: 0 | Y88: 4 | Z88: =IF($N88>=3.25,"4. Avancé", IF($N88>=2.5,"3. SOUND", IF($N88>=1.75,"2. Basique", IF($N88>=1,"1. Elémentaire", "" )))) -> 1. Elémentaire
A89: PEFALIA | B89: 18.2 | C89: 18.2 | E89: Comp | F89: IV | G89: =VLOOKUP(F89,Profile!B:C,2,FALSE) -> IV. Policy-based fiscal strategy and budgeting | H89: PI-18 | I89: =IFERROR(VLOOKUP(B89,Profile!B:C,2,FALSE),"") -> 18.2 Legislature procedures budget scrutiny | K89: D | L89: Oui | M89: 0 | N89: 1 | O89: 1 | P89: 1. BELOW BASIC | Q89: Weakness | R89: + | T89: The procedures for the examination of draft budgets by the Municipal Council are not formalized in a legislative or regulatory text, or in any other document. The procedures to be followed are not duly adopted by the Municipal Council at the start of the session devoted to examining the draft budget. | U89: (PI-18) | V89: 0 | W89: 1 | X89: 0 | Y89: 4 | Z89: =IF($N89>=3.25,"4. Avancé", IF($N89>=2.5,"3. SOUND", IF($N89>=1.75,"2. Basique", IF($N89>=1,"1. Elémentaire", "" )))) -> 1. Elémentaire
A90: PEFALIA | B90: 18.3 | C90: 18.3 | E90: Comp | F90: IV | G90: =VLOOKUP(F90,Profile!B:C,2,FALSE) -> IV. Policy-based fiscal strategy and budgeting | H90: PI-18 | I90: =IFERROR(VLOOKUP(B90,Profile!B:C,2,FALSE),"") -> 18.3 Timing of budget approval | K90: NA | L90: Oui | M90: 0 | N90: 0 | O90: 0 | Q90: Basic | R90: = | T90: The primitive budgets for the 2018, 2019 and 2020 financial years were examined and voted by the Municipal Council on December 28, 2017, December 21, 2018 and November 27, 2019 respectively, i.e. before the start of the budget years concerned. | U90: (PI-18) | V90: 0 | W90: 1 | X90: 0 | Y90: 4 | Z90: =IF($N90>=3.25,"4. Avancé", IF($N90>=2.5,"3. SOUND", IF($N90>=1.75,"2. Basique", IF($N90>=1,"1. Elémentaire", "" )))) -> 
A91: PEFALIA | B91: 18.4 | C91: 18.4 | E91: Comp | F91: IV | G91: =VLOOKUP(F91,Profile!B:C,2,FALSE) -> IV. Policy-based fiscal strategy and budgeting | H91: PI-18 | I91: =IFERROR(VLOOKUP(B91,Profile!B:C,2,FALSE),"") -> 18.4 Rules for budget adjustment by the executive | K91: A | L91: Oui | M91: 0 | N91: 4 | O91: 4 | P91: 4. HIGH | Q91: Strenght | R91: + | T91: The law on the financial regime of the CTD clearly defines the rules governing the modifications that the Executive of a CTD can make to the budget during the financial year. In 2020, credit transfers were not made by the Mayor Commune. | U91: ="("&H91&")" -> (PI-18) | V91: 0 | W91: 1 | X91: 0 | Y91: 4 | Z91: =IF($N91>=3.25,"4. Avancé", IF($N91>=2.5,"3. SOUND", IF($N91>=1.75,"2. Basique", IF($N91>=1,"1. Elémentaire", "" )))) -> 4. Avancé
A92: PEFALIA | B92: V | C92: V | E92: Pilar | F92: V | G92: =VLOOKUP(F92,Profile!B:C,2,FALSE) -> V. Predictability and control in budget execution | I92: =IFERROR(VLOOKUP(B92,Profile!B:C,2,FALSE),"") -> V. Predictability and control in budget execution | J92: =IF(M92>3.65,"A", IF(M92>=3.25,"B+", IF(M92>2.65,"B", IF(M92>=2.25,"C+", IF(M92>1.75,"C", IF(M92>1.25,"D+", IF(AND(M92<=1.25,M92>0),"D", IF(M92=0,"NA", "" )))))))) -> NA | K92: D | L92: =IF(COUNTIFS(L93:L128,"Oui")=36,"Oui","Non") -> Non | M92: =AVERAGEIFS(M$16:M$153,$E$16:$E$153,"Indic",$F$16:$F$153,$F92) -> 0 | N92: =AVERAGEIFS(N$16:N$153,$E$16:$E$153,"Indic",$F$16:$F$153,$F92) -> 1.229166667 | O92: 1 | P92: 1. BELOW BASIC | R92: N.C | U92: ()
A93: PEFALIA | B93: PI-19 | C93: PI_19 | D93: M2 | E93: Indic | F93: V | G93: =VLOOKUP(F93,Profile!B:C,2,FALSE) -> V. Predictability and control in budget execution | H93: PI-19 | I93: =IFERROR(VLOOKUP(B93,Profile!B:C,2,FALSE),"") -> PI-19 Tax administration | J93: NA | K93: D | L93: =IF(OR(L94="Oui",L95="Oui",L96="Oui",L97="Oui"),"Oui","Non") -> Oui | M93: =IFERROR(IF($D93="M1",IF(ROUND(AVERAGEIF(M94:M97,">0"),1)=ROUND(MAX(IF(M94:M97>0,M94:M97)),1),MAX(M94:M97),MAX(IF(M94:M97>0,M94:M97))+0.5),AVERAGEIF(M94:M97,">0")),0) -> 0 | N93: =IFERROR(IF($D93="M1",IF(ROUND(AVERAGEIF(N94:N97,">0"),1)=ROUND(MIN(IF(N94:N97>0,N94:N97)),1),AVERAGE(N94:N97),MIN(IF(N94:N97>0,N94:N97))+0.5),AVERAGEIF(N94:N97,">0")),0) -> 1 | O93: 1 | P93: 1. BELOW BASIC | Q93: =IF(K93="A","Force", IF(K93="B+","Force", IF(K93="B","Force", IF(K93="D+","Faiblesse", IF(K93="D","Faiblesse", "Basique"))))) -> Faiblesse | R93: + | U93: (PI-19) | V93: 0 | W93: 1 | X93: 1 | Y93: =Y94 -> 4 | Z93: =IF($N93>=3.25,"4. ADVANCED", IF($N93>=2.5,"3. GOOD", IF($N93>=1.75,"2. Basique", IF($N93>=1,"1. Elémentaire", "" )))) -> 1. Elémentaire
A94: PEFALIA | B94: 19.1 | C94: 19.1 | E94: Comp | F94: V | G94: =VLOOKUP(F94,Profile!B:C,2,FALSE) -> V. Predictability and control in budget execution | H94: PI-19 | I94: =IFERROR(VLOOKUP(B94,Profile!B:C,2,FALSE),"") -> 19.1 Rights and obligation for tax measures | K94: D | L94: Oui | M94: =IFERROR(IF(TRIM(CLEAN(J94))="A",4)+IF(TRIM(CLEAN(J94))="B+",3.5)+IF(TRIM(CLEAN(J94))="B",3)+IF(TRIM(CLEAN(J94))="C+",2.5)+IF(TRIM(CLEAN(J94))="C",2)+IF(TRIM(CLEAN(J94))="D+",1.5)+IF(TRIM(CLEAN(J94))="D",1)+IF(TRIM(CLEAN(J94))="D*",1)+IF(TRIM(CLEAN(J94))="NU",0)+IF(TRIM(CLEAN(J94))="",0),"") -> 0 | N94: 1 | O94: 1 | P94: 1. BELOW BASIC | Q94: =IF(K94="A","Strenght", IF(K94="B+","Strenght", IF(K94="B","Strenght", IF(K94="D+","Weakness", IF(K94="D","Weakness", "Basic"))))) -> Weakness | R94: + | T94: The main taxes that feed Tiko's budget (around 96%) are managed and collected by the State, then transferred to the Commune. | U94: (PI-19) | V94: 0 | W94: 1 | X94: 1 | Y94: 4 | Z94: =IF($N94>=3.25,"4. Avancé", IF($N94>=2.5,"3. SOUND", IF($N94>=1.75,"2. Basique", IF($N94>=1,"1. Elémentaire", "" )))) -> 1. Elémentaire
A95: PEFALIA | B95: 19.2 | C95: 19.2 | E95: Comp | F95: V | G95: =VLOOKUP(F95,Profile!B:C,2,FALSE) -> V. Predictability and control in budget execution | H95: PI-19 | I95: =IFERROR(VLOOKUP(B95,Profile!B:C,2,FALSE),"") -> 19.2 Property tax register and valuation | K95: NA | L95: Oui | M95: 0 | N95: 0 | O95: 0 | Q95: Basic | R95: = | T95: The main taxes that feed Tiko's budget (around 96%) are managed and collected by the State, then transferred to the Commune. | U95: (PI-19) | V95: 0 | W95: 1 | X95: 1 | Y95: 4 | Z95: =IF($N95>=3.25,"4. Avancé", IF($N95>=2.5,"3. SOUND", IF($N95>=1.75,"2. Basique", IF($N95>=1,"1. Elémentaire", "" )))) -> 
A96: PEFALIA | B96: 19.3 | C96: 19.3 | E96: Comp | F96: V | G96: =VLOOKUP(F96,Profile!B:C,2,FALSE) -> V. Predictability and control in budget execution | H96: PI-19 | I96: =IFERROR(VLOOKUP(B96,Profile!B:C,2,FALSE),"") -> 19.3 Tax risk management, audit and investigation | K96: NA | L96: Oui | M96: 0 | N96: 0 | O96: 0 | Q96: Basic | R96: = | T96: The main taxes that feed Tiko's budget (around 96%) are managed and collected by the State, then transferred to the Commune. | U96: (PI-19) | V96: 0 | W96: 1 | X96: 1 | Y96: 4 | Z96: =IF($N96>=3.25,"4. Avancé", IF($N96>=2.5,"3. SOUND", IF($N96>=1.75,"2. Basique", IF($N96>=1,"1. Elémentaire", "" )))) -> 
A97: PEFALIA | B97: 19.4 | C97: 19.4 | E97: Comp | F97: V | G97: =VLOOKUP(F97,Profile!B:C,2,FALSE) -> V. Predictability and control in budget execution | H97: PI-19 | I97: =IFERROR(VLOOKUP(B97,Profile!B:C,2,FALSE),"") -> 19.4 Tax arrears monitoring | K97: NA | L97: Oui | M97: 0 | N97: 0 | O97: 0 | Q97: Basic | R97: = | T97: The main taxes that feed Tiko's budget (around 96%) are managed and collected by the State, then transferred to the Commune. | U97: (PI-19) | V97: 0 | W97: 1 | X97: 1 | Y97: 4 | Z97: =IF($N97>=3.25,"4. Avancé", IF($N97>=2.5,"3. SOUND", IF($N97>=1.75,"2. Basique", IF($N97>=1,"1. Elémentaire", "" )))) -> 
A98: PEFALIA | B98: PI-20 | C98: PI_20 | D98: M1 | E98: Indic | F98: V | G98: =VLOOKUP(F98,Profile!B:C,2,FALSE) -> V. Predictability and control in budget execution | H98: PI-20 | I98: =IFERROR(VLOOKUP(B98,Profile!B:C,2,FALSE),"") -> PI-20 Accounting for revenues | J98: =IF(M98>3.65,"A", IF(M98>=3.25,"B+", IF(M98>2.65,"B", IF(M98>=2.25,"C+", IF(M98>1.75,"C", IF(M98>1.25,"D+", IF(AND(M98<=1.25,M98>0),"D", IF(M98=0,"NA", "" )))))))) -> NA | K98: D+ | L98: =IF(OR(L99="Oui",L100="Oui",L101="Oui"),"Oui","Non") -> Oui | M98: =IFERROR((IF($D98="M1",IF(ROUND(AVERAGEIF(M99:M101,">0"),1)=ROUND(MIN(IF(M99:M101>0,M99:M101)),1),AVERAGE(M99:M101),MIN(IF(M99:M101>0,M99:M101))+0.5),AVERAGEIF(M99:M101,">0"))),0) -> 0 | N98: =IFERROR((IF($D98="M1",IF(ROUND(AVERAGEIF(N99:N101,">0"),1)=ROUND(MIN(IF(N99:N101>0,N99:N101)),1),AVERAGE(N99:N101),MIN(IF(N99:N101>0,N99:N101))+0.5),AVERAGEIF(N99:N101,">0"))),0) -> 1.5 | O98: 1.5 | P98: 1. BELOW BASIC | Q98: =IF(K98="A","Force", IF(K98="B+","Force", IF(K98="B","Force", IF(K98="D+","Faiblesse", IF(K98="D","Faiblesse", "Basique"))))) -> Faiblesse | R98: =IFERROR(IF(L98="Oui",IF(N98-M98<0,"-",IF(N98-M98>0,"+"," =")),"N.C"),"") -> + | U98: (PI-20) | V98: 0 | W98: 1 | X98: 1 | Y98: =Y99 -> 3 | Z98: =IF($N98>=3.25,"4. ADVANCED", IF($N98>=2.5,"3. GOOD", IF($N98>=1.75,"2. Basique", IF($N98>=1,"1. Elémentaire", "" )))) -> 1. Elémentaire
A99: PEFALIA | B99: 20.1 | C99: 20.1 | E99: Comp | F99: V | G99: =VLOOKUP(F99,Profile!B:C,2,FALSE) -> V. Predictability and control in budget execution | H99: PI-20 | I99: =IFERROR(VLOOKUP(B99,Profile!B:C,2,FALSE),"") -> 20.1 Information on revenue collections | K99: D | L99: Oui | M99: =IFERROR(IF(TRIM(CLEAN(J99))="A",4)+IF(TRIM(CLEAN(J99))="B+",3.5)+IF(TRIM(CLEAN(J99))="B",3)+IF(TRIM(CLEAN(J99))="C+",2.5)+IF(TRIM(CLEAN(J99))="C",2)+IF(TRIM(CLEAN(J99))="D+",1.5)+IF(TRIM(CLEAN(J99))="D",1)+IF(TRIM(CLEAN(J99))="D*",1)+IF(TRIM(CLEAN(J99))="NU",0)+IF(TRIM(CLEAN(J99))="",0),"") -> 0 | N99: 1 | O99: 1 | P99: 1. BELOW BASIC | Q99: =IF(K99="A","Strenght", IF(K99="B+","Strenght", IF(K99="B","Strenght", IF(K99="D+","Weakness", IF(K99="D","Weakness", "Basic"))))) -> Weakness | R99: + | T99: Each month, the municipal revenue office produces a consolidated statement of all revenues received, broken down according to budgetary nomenclature, but no consolidated report on revenue achieved. | U99: (PI-20) | V99: 0 | W99: 1 | X99: 1 | Y99: 3 | Z99: =IF($N99>=3.25,"4. Avancé", IF($N99>=2.5,"3. SOUND", IF($N99>=1.75,"2. Basique", IF($N99>=1,"1. Elémentaire", "" )))) -> 1. Elémentaire
A100: PEFALIA | B100: 20.2 | C100: 20.2 | E100: Comp | F100: V | G100: =VLOOKUP(F100,Profile!B:C,2,FALSE) -> V. Predictability and control in budget execution | H100: PI-20 | I100: =IFERROR(VLOOKUP(B100,Profile!B:C,2,FALSE),"") -> 20.2 Transfer of revenue collections | K100: NA | L100: Non | M100: 0 | N100: 0 | O100: 0 | Q100: Basic | R100: N.C | T100: Revenues collected by the town clerk and municipal employees are paid into the town hall's coffers on a daily basis. | U100: (PI-20) | V100: 0 | W100: 1 | X100: 1 | Y100: 3 | Z100: =IF($N100>=3.25,"4. Avancé", IF($N100>=2.5,"3. SOUND", IF($N100>=1.75,"2. Basique", IF($N100>=1,"1. Elémentaire", "" )))) -> 
A101: PEFALIA | B101: 20.3 | C101: 20.3 | E101: Comp | F101: V | G101: =VLOOKUP(F101,Profile!B:C,2,FALSE) -> V. Predictability and control in budget execution | H101: PI-20 | I101: =IFERROR(VLOOKUP(B101,Profile!B:C,2,FALSE),"") -> 20.3 Tax account reconciliation | K101: B | L101: Oui | M101: 0 | N101: 3 | O101: 3 | P101: 3. SOUND | Q101: Strenght | R101: + | T101: The Commune relies heavily on revenues from shared taxation. | U101: (PI-20) | V101: 0 | W101: 1 | X101: 1 | Y101: 3 | Z101: =IF($N101>=3.25,"4. Avancé", IF($N101>=2.5,"3. SOUND", IF($N101>=1.75,"2. Basique", IF($N101>=1,"1. Elémentaire", "" )))) -> 3. SOUND
A102: PEFALIA | B102: PI-21 | C102: PI_21 | D102: M2 | E102: Indic | F102: V | G102: =VLOOKUP(F102,Profile!B:C,2,FALSE) -> V. Predictability and control in budget execution | H102: PI-21 | I102: =IFERROR(VLOOKUP(B102,Profile!B:C,2,FALSE),"") -> PI-21 Predictability of in-year resource allocation | J102: =IF(M102>3.65,"A", IF(M102>=3.25,"B+", IF(M102>2.65,"B", IF(M102>=2.25,"C+", IF(M102>1.75,"C", IF(M102>1.25,"D+", IF(AND(M102<=1.25,M102>0),"D", IF(M102=0,"NA", "" )))))))) -> NA | K102: C | L102: =IF(OR(L103="Oui",L104="Oui",L105="Oui",L106="Oui"),"Oui","Non") -> Oui | M102: =IFERROR(IF($D102="M1",IF(ROUND(AVERAGEIF(M103:M106,">0"),1)=ROUND(MAX(IF(M103:M106>0,M103:M106)),1),MAX(M103:M106),MAX(IF(M103:M106>0,M103:M106))+0.5),AVERAGEIF(M103:M106,">0")),0) -> 0 | N102: =IFERROR(IF($D102="M1",IF(ROUND(AVERAGEIF(N103:N106,">0"),1)=ROUND(MIN(IF(N103:N106>0,N103:N106)),1),AVERAGE(N103:N106),MIN(IF(N103:N106>0,N103:N106))+0.5),AVERAGEIF(N103:N106,">0")),0) -> 2 | O102: 2 | P102: 2. BASIC | Q102: =IF(K102="A","Force", IF(K102="B+","Force", IF(K102="B","Force", IF(K102="D+","Faiblesse", IF(K102="D","Faiblesse", "Basique"))))) -> Basique | R102: + | U102: (PI-21) | V102: 1 | W102: 0 | X102: 1 | Y102: =Y103 -> 4 | Z102: =IF($N102>=3.25,"4. ADVANCED", IF($N102>=2.5,"3. GOOD", IF($N102>=1.75,"2. Basique", IF($N102>=1,"1. Elémentaire", "" )))) -> 2. Basique
A103: PEFALIA | B103: 21.1 | C103: 21.1 | E103: Comp | F103: V | G103: =VLOOKUP(F103,Profile!B:C,2,FALSE) -> V. Predictability and control in budget execution | H103: PI-21 | I103: =IFERROR(VLOOKUP(B103,Profile!B:C,2,FALSE),"") -> 21.1 Consolidation of cash balances | K103: NA | L103: Oui | M103: =IFERROR(IF(TRIM(CLEAN(J103))="A",4)+IF(TRIM(CLEAN(J103))="B+",3.5)+IF(TRIM(CLEAN(J103))="B",3)+IF(TRIM(CLEAN(J103))="C+",2.5)+IF(TRIM(CLEAN(J103))="C",2)+IF(TRIM(CLEAN(J103))="D+",1.5)+IF(TRIM(CLEAN(J103))="D",1)+IF(TRIM(CLEAN(J103))="D*",1)+IF(TRIM(CLEAN(J103))="NU",0)+IF(TRIM(CLEAN(J103))="",0),"") -> 0 | N103: 0 | O103: 0 | Q103: =IF(K103="A","Strenght", IF(K103="B+","Strenght", IF(K103="B","Strenght", IF(K103="D+","Weakness", IF(K103="D","Weakness", "Basic"))))) -> Basic | R103: = | T103: Commune de Tiko's cash balances are consolidated either daily (36.57%) or monthly (63.43%). | U103: (PI-21) | V103: 1 | W103: 0 | X103: 1 | Y103: 4 | Z103: =IF($N103>=3.25,"4. Avancé", IF($N103>=2.5,"3. SOUND", IF($N103>=1.75,"2. Basique", IF($N103>=1,"1. Elémentaire", "" )))) -> 
A104: PEFALIA | B104: 21.2 | C104: 21.2 | E104: Comp | F104: V | G104: =VLOOKUP(F104,Profile!B:C,2,FALSE) -> V. Predictability and control in budget execution | H104: PI-21 | I104: =IFERROR(VLOOKUP(B104,Profile!B:C,2,FALSE),"") -> 21.2 Cash forecasting and monitoring | K104: NA | L104: Oui | M104: 0 | N104: 0 | O104: 0 | Q104: Basic | R104: = | T104: The Commune has not yet drawn up cash flow plans. | U104: (PI-21) | V104: 1 | W104: 0 | X104: 1 | Y104: 4 | Z104: =IF($N104>=3.25,"4. Avancé", IF($N104>=2.5,"3. SOUND", IF($N104>=1.75,"2. Basique", IF($N104>=1,"1. Elémentaire", "" )))) -> 
A105: PEFALIA | B105: 21.3 | C105: 21.3 | E105: Comp | F105: V | G105: =VLOOKUP(F105,Profile!B:C,2,FALSE) -> V. Predictability and control in budget execution | H105: PI-21 | I105: =IFERROR(VLOOKUP(B105,Profile!B:C,2,FALSE),"") -> 21.3 Information on commitment ceilings | K105: C | L105: Oui | M105: 0 | N105: 2 | O105: 2 | P105: 2. BASIC | Q105: Basic | R105: + | T105: Periodic commitment ceilings are not set and communicated to departments. | U105: (PI-21) | V105: 1 | W105: 0 | X105: 1 | Y105: 4 | Z105: =IF($N105>=3.25,"4. Avancé", IF($N105>=2.5,"3. SOUND", IF($N105>=1.75,"2. Basique", IF($N105>=1,"1. Elémentaire", "" )))) -> 2. Basique
A106: PEFALIA | B106: 21.4 | C106: 21.4 | E106: Comp | F106: V | G106: =VLOOKUP(F106,Profile!B:C,2,FALSE) -> V. Predictability and control in budget execution | H106: PI-21 | I106: =IFERROR(VLOOKUP(B106,Profile!B:C,2,FALSE),"") -> 21.4 Significance of in-year budget adjustments | K106: C | L106: Oui | M106: 0 | N106: 2 | O106: 2 | P106: 2. BASIC | Q106: Basic | R106: + | T106: In fiscal 2020, the Commune Executive has not made any changes to the initial budget estimates. | U106: (PI-21) | V106: 1 | W106: 0 | X106: 1 | Y106: 4 | Z106: =IF($N106>=3.25,"4. Avancé", IF($N106>=2.5,"3. SOUND", IF($N106>=1.75,"2. Basique", IF($N106>=1,"1. Elémentaire", "" )))) -> 2. Basique
A107: PEFALIA | B107: PI-22 | C107: PI_22 | D107: M1 | E107: Indic | F107: V | G107: =VLOOKUP(F107,Profile!B:C,2,FALSE) -> V. Predictability and control in budget execution | H107: PI-22 | I107: =IFERROR(VLOOKUP(B107,Profile!B:C,2,FALSE),"") -> PI-22 Expenditure arrears | J107: =IF(M107>3.65,"A", IF(M107>=3.25,"B+", IF(M107>2.65,"B", IF(M107>=2.25,"C+", IF(M107>1.75,"C", IF(M107>1.25,"D+", IF(AND(M107<=1.25,M107>0),"D", IF(M107=0,"NA", "" )))))))) -> NA | K107: D | L107: =IF(OR(L108="Oui",L109="Oui"),"Oui","Non") -> Oui | M107: =IFERROR(IF($D107="M1",IF(ROUND(AVERAGEIF(M108:M109,">0"),1)=ROUND(MAX(IF(M108:M109>0,M108:M109)),1),M108,MAX(IF(M108:M109>0,M108:M109))+0.5),AVERAGEIF(M108:M109,">0")),0) -> 0 | N107: =IFERROR(IF($D107="M1",IF(ROUND(AVERAGEIF(N108:N109,">0"),1)=ROUND(MIN(IF(N108:N109>0,N108:N109)),1),N108,MIN(IF(N108:N109>0,N108:N109))+0.5),AVERAGEIF(N108:N109,">0")),0) -> 1 | O107: 1 | P107: 1. BELOW BASIC | Q107: =IF(K107="A","Force", IF(K107="B+","Force", IF(K107="B","Force", IF(K107="D+","Faiblesse", IF(K107="D","Faiblesse", "Basique"))))) -> Faiblesse | R107: + | U107: (PI-22) | V107: 1 | W107: 0 | X107: 0 | Y107: =Y108 -> 2 | Z107: =IF($N107>=3.25,"4. ADVANCED", IF($N107>=2.5,"3. GOOD", IF($N107>=1.75,"2. Basique", IF($N107>=1,"1. Elémentaire", "" )))) -> 1. Elémentaire
A108: PEFALIA | B108: 22.1 | C108: 22.1 | E108: Comp | F108: V | G108: =VLOOKUP(F108,Profile!B:C,2,FALSE) -> V. Predictability and control in budget execution | H108: PI-22 | I108: =IFERROR(VLOOKUP(B108,Profile!B:C,2,FALSE),"") -> 22.1 Stock of expenditure arrears | K108: D* | L108: Oui | M108: =IFERROR(IF(TRIM(CLEAN(J108))="A",4)+IF(TRIM(CLEAN(J108))="B+",3.5)+IF(TRIM(CLEAN(J108))="B",3)+IF(TRIM(CLEAN(J108))="C+",2.5)+IF(TRIM(CLEAN(J108))="C",2)+IF(TRIM(CLEAN(J108))="D+",1.5)+IF(TRIM(CLEAN(J108))="D",1)+IF(TRIM(CLEAN(J108))="D*",1)+IF(TRIM(CLEAN(J108))="NU",0)+IF(TRIM(CLEAN(J108))="",0),"") -> 0 | N108: =IFERROR(IF(TRIM(CLEAN(K108))="A",4)+IF(TRIM(CLEAN(K108))="B+",3.5)+IF(TRIM(CLEAN(K108))="B",3)+IF(TRIM(CLEAN(K108))="C+",2.5)+IF(TRIM(CLEAN(K108))="C",2)+IF(TRIM(CLEAN(K108))="D+",1.5)+IF(TRIM(CLEAN(K108))="D",1)+IF(TRIM(CLEAN(K108))="D*",1)+IF(TRIM(CLEAN(K108))="NU",0)+IF(TRIM(CLEAN(K108))="",0),"") -> 1 | O108: 0 | P108: 1. BELOW BASIC | Q108: =IF(K108="A","Strenght", IF(K108="B+","Strenght", IF(K108="B","Strenght", IF(K108="D+","Weakness", IF(K108="D","Weakness", "Basic"))))) -> Basic | R108: + | T108: The mission was unable to obtain reliable data on the evolution of the stock of expenditure arrears over the period under review. | U108: (PI-22) | V108: 1 | W108: 0 | X108: 0 | Y108: 2 | Z108: =IF($N108>=3.25,"4. Avancé", IF($N108>=2.5,"3. SOUND", IF($N108>=1.75,"2. Basique", IF($N108>=1,"1. Elémentaire", "" )))) -> 1. Elémentaire
A109: PEFALIA | B109: 22.2 | C109: 22.2 | E109: Comp | F109: V | G109: =VLOOKUP(F109,Profile!B:C,2,FALSE) -> V. Predictability and control in budget execution | H109: PI-22 | I109: =IFERROR(VLOOKUP(B109,Profile!B:C,2,FALSE),"") -> 22.2 Expenditure arrears monitoring | K109: NA | L109: Oui | M109: =IFERROR(IF(TRIM(CLEAN(J109))="A",4)+IF(TRIM(CLEAN(J109))="B+",3.5)+IF(TRIM(CLEAN(J109))="B",3)+IF(TRIM(CLEAN(J109))="C+",2.5)+IF(TRIM(CLEAN(J109))="C",2)+IF(TRIM(CLEAN(J109))="D+",1.5)+IF(TRIM(CLEAN(J109))="D",1)+IF(TRIM(CLEAN(J109))="D*",1)+IF(TRIM(CLEAN(J109))="NU",0)+IF(TRIM(CLEAN(J109))="",0),"") -> 0 | N109: =IFERROR(IF(TRIM(CLEAN(K109))="A",4)+IF(TRIM(CLEAN(K109))="B+",3.5)+IF(TRIM(CLEAN(K109))="B",3)+IF(TRIM(CLEAN(K109))="C+",2.5)+IF(TRIM(CLEAN(K109))="C",2)+IF(TRIM(CLEAN(K109))="D+",1.5)+IF(TRIM(CLEAN(K109))="D",1)+IF(TRIM(CLEAN(K109))="D*",1)+IF(TRIM(CLEAN(K109))="NU",0)+IF(TRIM(CLEAN(K109))="",0),"") -> 0 | O109: 0 | Q109: Basic | R109: = | T109: Data on the evolution of the stock of expenditure arrears is not produced each year, nor do the Commune de Tiko's departments produce a report on the stock and composition of arrears at the end of each financial year. | U109: (PI-22) | V109: 1 | W109: 0 | X109: 0 | Y109: 2 | Z109: =IF($N109>=3.25,"4. Avancé", IF($N109>=2.5,"3. SOUND", IF($N109>=1.75,"2. Basique", IF($N109>=1,"1. Elémentaire", "" )))) -> 
A110: PEFALIA | B110: PI-23 | C110: PI_23 | D110: M1 | E110: Indic | F110: V | G110: =VLOOKUP(F110,Profile!B:C,2,FALSE) -> V. Predictability and control in budget execution | H110: PI-23 | I110: =IFERROR(VLOOKUP(B110,Profile!B:C,2,FALSE),"") -> PI-23 Payroll controls | J110: =IF(M110>3.65,"A", IF(M110>=3.25,"B+", IF(M110>2.65,"B", IF(M110>=2.25,"C+", IF(M110>1.75,"C", IF(M110>1.25,"D+", IF(AND(M110<=1.25,M110>0),"D", IF(M110=0,"NA", "" )))))))) -> NA | K110: D | L110: =IF(OR(L111="Oui",L112="Oui",L113="Oui",L114="Oui"),"Oui","Non") -> Oui | M110: =IFERROR(IF($D110="M1",IF(ROUND(AVERAGEIF(M111:M114,">0"),1)=ROUND(MAX(IF(M111:M114>0,M111:M114)),1),MAX(M111:M114),MAX(IF(M111:M114>0,M111:M114))+0.5),AVERAGEIF(M111:M114,">0")),0) -> 0 | N110: =IFERROR(IF($D110="M1",IF(ROUND(AVERAGEIF(N111:N114,">0"),1)=ROUND(MIN(IF(N111:N114>0,N111:N114)),1),AVERAGE(N111:N114),MIN(IF(N111:N114>0,N111:N114))+0.5),AVERAGEIF(N111:N114,">0")),0) -> 0.75 | O110: 1 | P110: 1. BELOW BASIC | Q110: =IF(K110="A","Force", IF(K110="B+","Force", IF(K110="B","Force", IF(K110="D+","Faiblesse", IF(K110="D","Faiblesse", "Basique"))))) -> Faiblesse | R110: + | U110: (PI-23) | V110: 0 | W110: 0 | X110: 1 | Y110: =Y111 -> 4 | Z110: =IF($N110>=3.25,"4. ADVANCED", IF($N110>=2.5,"3. GOOD", IF($N110>=1.75,"2. Basique", IF($N110>=1,"1. Elémentaire", "" )))) -> 
A111: PEFALIA | B111: 23.1 | C111: 23.1 | E111: Comp | F111: V | G111: =VLOOKUP(F111,Profile!B:C,2,FALSE) -> V. Predictability and control in budget execution | H111: PI-23 | I111: =IFERROR(VLOOKUP(B111,Profile!B:C,2,FALSE),"") -> 23.1 Integration of payroll and personnel records | K111: NA | L111: Oui | M111: =IFERROR(IF(TRIM(CLEAN(J111))="A",4)+IF(TRIM(CLEAN(J111))="B+",3.5)+IF(TRIM(CLEAN(J111))="B",3)+IF(TRIM(CLEAN(J111))="C+",2.5)+IF(TRIM(CLEAN(J111))="C",2)+IF(TRIM(CLEAN(J111))="D+",1.5)+IF(TRIM(CLEAN(J111))="D",1)+IF(TRIM(CLEAN(J111))="D*",1)+IF(TRIM(CLEAN(J111))="NU",0)+IF(TRIM(CLEAN(J111))="",0),"") -> 0 | N111: 0 | O111: 0 | Q111: =IF(K111="A","Strenght", IF(K111="B+","Strenght", IF(K111="B","Strenght", IF(K111="D+","Weakness", IF(K111="D","Weakness", "Basic"))))) -> Basic | R111: = | T111: Personnel files and payrolls are neither integrated nor linked. Recruitment, promotion and advancement are not based on duly approved staffing and employment forecasts. However, the availability of funds is checked when recruitment, promotion and other actions are initiated. | U111: (PI-23) | V111: 0 | W111: 0 | X111: 1 | Y111: 4 | Z111: =IF($N111>=3.25,"4. Avancé", IF($N111>=2.5,"3. SOUND", IF($N111>=1.75,"2. Basique", IF($N111>=1,"1. Elémentaire", "" )))) -> 
A112: PEFALIA | B112: 23.2 | C112: 23.2 | E112: Comp | F112: V | G112: =VLOOKUP(F112,Profile!B:C,2,FALSE) -> V. Predictability and control in budget execution | H112: PI-23 | I112: =IFERROR(VLOOKUP(B112,Profile!B:C,2,FALSE),"") -> 23.2 Management of payroll changes | K112: D | L112: Oui | M112: 0 | N112: 1 | O112: 1 | P112: 1. BELOW BASIC | Q112: Weakness | R112: + | T112: The personnel file and payroll statements are updated at the end of the year, incorporating all future forecast changes based on effective dates. | U112: (PI-23) | V112: 0 | W112: 0 | X112: 1 | Y112: 4 | Z112: =IF($N112>=3.25,"4. Avancé", IF($N112>=2.5,"3. SOUND", IF($N112>=1.75,"2. Basique", IF($N112>=1,"1. Elémentaire", "" )))) -> 1. Elémentaire
A113: PEFALIA | B113: 23.3 | C113: 23.3 | E113: Comp | F113: V | G113: =VLOOKUP(F113,Profile!B:C,2,FALSE) -> V. Predictability and control in budget execution | H113: PI-23 | I113: =IFERROR(VLOOKUP(B113,Profile!B:C,2,FALSE),"") -> 23.3 Internal controls of payroll | K113: D | L113: Oui | M113: 0 | N113: 1 | O113: 1 | P113: 1. BELOW BASIC | Q113: Weakness | R113: + | T113: The controls in place are sufficient to ensure the accuracy of payroll data. However, as the system is not computerized, it is not possible to produce an audit trail. | U113: (PI-23) | V113: 0 | W113: 0 | X113: 1 | Y113: 4 | Z113: =IF($N113>=3.25,"4. Avancé", IF($N113>=2.5,"3. SOUND", IF($N113>=1.75,"2. Basique", IF($N113>=1,"1. Elémentaire", "" )))) -> 1. Elémentaire
A114: PEFALIA | B114: 23.4 | C114: 23.4 | E114: Comp | F114: V | G114: =VLOOKUP(F114,Profile!B:C,2,FALSE) -> V. Predictability and control in budget execution | H114: PI-23 | I114: =IFERROR(VLOOKUP(B114,Profile!B:C,2,FALSE),"") -> 23.4 Payroll audits | K114: D | L114: Oui | M114: 0 | N114: 1 | O114: 1 | P114: 1. BELOW BASIC | Q114: Weakness | R114: + | T114: No payroll audits or investigations have been carried out in the last three years. | U114: (PI-23) | V114: 0 | W114: 0 | X114: 1 | Y114: 4 | Z114: =IF($N114>=3.25,"4. Avancé", IF($N114>=2.5,"3. SOUND", IF($N114>=1.75,"2. Basique", IF($N114>=1,"1. Elémentaire", "" )))) -> 1. Elémentaire
A115: PEFALIA | B115: PI-24 | C115: PI_24 | D115: M2 | E115: Indic | F115: V | G115: =VLOOKUP(F115,Profile!B:C,2,FALSE) -> V. Predictability and control in budget execution | H115: PI-24 | I115: =IFERROR(VLOOKUP(B115,Profile!B:C,2,FALSE),"") -> PI-24 Procurement | J115: =IF(M115>3.65,"A", IF(M115>=3.25,"B+", IF(M115>2.65,"B", IF(M115>=2.25,"C+", IF(M115>1.75,"C", IF(M115>1.25,"D+", IF(AND(M115<=1.25,M115>0),"D", IF(M115=0,"NA", "" )))))))) -> NA | K115: D | L115: =IF(OR(L116="Oui",L117="Oui",L118="Oui",L119="Oui"),"Oui","Non") -> Oui | M115: =IFERROR(IF($D115="M1",IF(ROUND(AVERAGEIF(M116:M119,">0"),1)=ROUND(MAX(IF(M116:M119>0,M116:M119)),1),MAX(M116:M119),MAX(IF(M116:M119>0,M116:M119))+0.5),AVERAGEIF(M116:M119,">0")),0) -> 0 | N115: =IFERROR(IF($D115="M1",IF(ROUND(AVERAGEIF(N116:N119,">0"),1)=ROUND(MIN(IF(N116:N119>0,N116:N119)),1),AVERAGE(N116:N119),MIN(IF(N116:N119>0,N116:N119))+0.5),AVERAGEIF(N116:N119,">0")),0) -> 1 | O115: 1 | P115: 1. BELOW BASIC | Q115: =IF(K115="A","Force", IF(K115="B+","Force", IF(K115="B","Force", IF(K115="D+","Faiblesse", IF(K115="D","Faiblesse", "Basique"))))) -> Faiblesse | R115: + | U115: (PI-24) | V115: 0 | W115: 0 | X115: 1 | Y115: =Y116 -> 4 | Z115: =IF($N115>=3.25,"4. ADVANCED", IF($N115>=2.5,"3. GOOD", IF($N115>=1.75,"2. Basique", IF($N115>=1,"1. Elémentaire", "" )))) -> 1. Elémentaire
A116: PEFALIA | B116: 24.1 | C116: 24.1 | E116: Comp | F116: V | G116: =VLOOKUP(F116,Profile!B:C,2,FALSE) -> V. Predictability and control in budget execution | H116: PI-24 | I116: =IFERROR(VLOOKUP(B116,Profile!B:C,2,FALSE),"") -> 24.1 Procurement monitoring | K116: D* | L116: Oui | M116: =IFERROR(IF(TRIM(CLEAN(J116))="A",4)+IF(TRIM(CLEAN(J116))="B+",3.5)+IF(TRIM(CLEAN(J116))="B",3)+IF(TRIM(CLEAN(J116))="C+",2.5)+IF(TRIM(CLEAN(J116))="C",2)+IF(TRIM(CLEAN(J116))="D+",1.5)+IF(TRIM(CLEAN(J116))="D",1)+IF(TRIM(CLEAN(J116))="D*",1)+IF(TRIM(CLEAN(J116))="NU",0)+IF(TRIM(CLEAN(J116))="",0),"") -> 0 | N116: 1 | O116: 0 | P116: 1. BELOW BASIC | Q116: =IF(K116="A","Strenght", IF(K116="B+","Strenght", IF(K116="B","Strenght", IF(K116="D+","Weakness", IF(K116="D","Weakness", "Basic"))))) -> Basic | R116: + | T116: The Commune de Tiko's departments did not provide the mission with the list and data relating to the contracts awarded for the 2020 financial year, to enable it to check the completeness of the files compiled and the accuracy of their content. | U116: (PI-24) | V116: 0 | W116: 0 | X116: 1 | Y116: 4 | Z116: =IF($N116>=3.25,"4. Avancé", IF($N116>=2.5,"3. SOUND", IF($N116>=1.75,"2. Basique", IF($N116>=1,"1. Elémentaire", "" )))) -> 1. Elémentaire
A117: PEFALIA | B117: 24.2 | C117: 24.2 | E117: Comp | F117: V | G117: =VLOOKUP(F117,Profile!B:C,2,FALSE) -> V. Predictability and control in budget execution | H117: PI-24 | I117: =IFERROR(VLOOKUP(B117,Profile!B:C,2,FALSE),"") -> 24.2 Procurement methods | K117: D* | L117: Oui | M117: 0 | N117: 1 | O117: 0 | P117: 1. BELOW BASIC | Q117: Basic | R117: + | T117: The Commune has not provided the mission with the data relating to contracts awarded for the 2020 financial year, which is required for the rating of this component. | U117: (PI-24) | V117: 0 | W117: 0 | X117: 1 | Y117: 4 | Z117: =IF($N117>=3.25,"4. Avancé", IF($N117>=2.5,"3. SOUND", IF($N117>=1.75,"2. Basique", IF($N117>=1,"1. Elémentaire", "" )))) -> 1. Elémentaire
A118: PEFALIA | B118: 24.3 | C118: 24.3 | E118: Comp | F118: V | G118: =VLOOKUP(F118,Profile!B:C,2,FALSE) -> V. Predictability and control in budget execution | H118: PI-24 | I118: =IFERROR(VLOOKUP(B118,Profile!B:C,2,FALSE),"") -> 24.3 Public access to procurement information | K118: D | L118: Oui | M118: 0 | N118: 1 | O118: 1 | P118: 1. BELOW BASIC | Q118: Weakness | R118: + | T118: The public has access to one of the six required items of information. | U118: (PI-24) | V118: 0 | W118: 0 | X118: 1 | Y118: 4 | Z118: =IF($N118>=3.25,"4. Avancé", IF($N118>=2.5,"3. SOUND", IF($N118>=1.75,"2. Basique", IF($N118>=1,"1. Elémentaire", "" )))) -> 1. Elémentaire
A119: PEFALIA | B119: 24.4 | C119: 24.4 | E119: Comp | F119: V | G119: =VLOOKUP(F119,Profile!B:C,2,FALSE) -> V. Predictability and control in budget execution | H119: PI-24 | I119: =IFERROR(VLOOKUP(B119,Profile!B:C,2,FALSE),"") -> 24.4 Procurement complaints management | K119: NA | L119: Oui | M119: 0 | N119: 0 | O119: 0 | Q119: Basic | R119: = | T119: Complaints concerning public procurement are handled by a national body, MINMAP. | U119: (PI-24) | V119: 0 | W119: 0 | X119: 1 | Y119: 4 | Z119: =IF($N119>=3.25,"4. Avancé", IF($N119>=2.5,"3. SOUND", IF($N119>=1.75,"2. Basique", IF($N119>=1,"1. Elémentaire", "" )))) -> 
A120: PEFALIA | B120: PI-25 | C120: PI_25 | D120: M2 | E120: Indic | F120: V | G120: =VLOOKUP(F120,Profile!B:C,2,FALSE) -> V. Predictability and control in budget execution | H120: PI-25 | I120: =IFERROR(VLOOKUP(B120,Profile!B:C,2,FALSE),"") -> PI-25 Internal controls on non-salary expenditure | J120: =IF(M120>3.65,"A", IF(M120>=3.25,"B+", IF(M120>2.65,"B", IF(M120>=2.25,"C+", IF(M120>1.75,"C", IF(M120>1.25,"D+", IF(AND(M120<=1.25,M120>0),"D", IF(M120=0,"NA", "" )))))))) -> NA | K120: C+ | L120: =IF(OR(L121="Oui",L122="Oui",L123="Oui"),"Oui","Non") -> Oui | M120: =IFERROR((IF($D120="M1",IF(ROUND(AVERAGEIF(M121:M123,">0"),1)=ROUND(MAX(IF(M121:M123>0,M121:M123)),1),MAX(M121:M123),MAX(IF(M121:M123>0,M121:M123))+0.5),AVERAGEIF(M121:M123,">0"))),0) -> 0 | N120: =IFERROR((IF($D120="M1",IF(ROUND(AVERAGEIF(N121:N123,">0"),1)=ROUND(MIN(IF(N121:N123>0,N121:N123)),1),AVERAGE(N121:N123),MIN(IF(N121:N123>0,N121:N123))+0.5),AVERAGEIF(N121:N123,">0"))),0) -> 2.333333333 | O120: 2.5 | P120: 2. BASIC | Q120: =IF(K120="A","Force", IF(K120="B+","Force", IF(K120="B","Force", IF(K120="D+","Faiblesse", IF(K120="D","Faiblesse", "Basique"))))) -> Basique | R120: + | U120: (PI-25) | V120: 1 | W120: 0 | X120: 1 | Y120: =Y121 -> 3 | Z120: =IF($N120>=3.25,"4. ADVANCED", IF($N120>=2.5,"3. GOOD", IF($N120>=1.75,"2. Basique", IF($N120>=1,"1. Elémentaire", "" )))) -> 2. Basique
A121: PEFALIA | B121: 25.1 | C121: 25.1 | E121: Comp | F121: V | G121: =VLOOKUP(F121,Profile!B:C,2,FALSE) -> V. Predictability and control in budget execution | H121: PI-25 | I121: =IFERROR(VLOOKUP(B121,Profile!B:C,2,FALSE),"") -> 25.1 Segregation of duties | K121: A | L121: Oui | M121: =IFERROR(IF(TRIM(CLEAN(J121))="A",4)+IF(TRIM(CLEAN(J121))="B+",3.5)+IF(TRIM(CLEAN(J121))="B",3)+IF(TRIM(CLEAN(J121))="C+",2.5)+IF(TRIM(CLEAN(J121))="C",2)+IF(TRIM(CLEAN(J121))="D+",1.5)+IF(TRIM(CLEAN(J121))="D",1)+IF(TRIM(CLEAN(J121))="D*",1)+IF(TRIM(CLEAN(J121))="NU",0)+IF(TRIM(CLEAN(J121))="",0),"") -> 0 | N121: 4 | O121: 4 | P121: 4. HIGH | Q121: =IF(K121="A","Strenght", IF(K121="B+","Strenght", IF(K121="B","Strenght", IF(K121="D+","Weakness", IF(K121="D","Weakness", "Basic"))))) -> Strenght | R121: + | T121: The segregation of duties relating to the execution of the Commune de Tiko's main expenditure operations is relatively well assured, and the responsibilities of the main players clearly defined by the legal framework governing public finance management and by the texts governing the organization and operation of the Commune de Tiko. | U121: (PI-25) | V121: 1 | W121: 0 | X121: 1 | Y121: 3 | Z121: =IF($N121>=3.25,"4. Avancé", IF($N121>=2.5,"3. SOUND", IF($N121>=1.75,"2. Basique", IF($N121>=1,"1. Elémentaire", "" )))) -> 4. Avancé
A122: PEFALIA | B122: 25.2 | C122: 25.2 | E122: Comp | F122: V | G122: =VLOOKUP(F122,Profile!B:C,2,FALSE) -> V. Predictability and control in budget execution | H122: PI-25 | I122: =IFERROR(VLOOKUP(B122,Profile!B:C,2,FALSE),"") -> 25.2 Effectiveness of expenditure commitment controls | K122: C | L122: Oui | M122: 0 | N122: 2 | O122: 2 | P122: 2. BASIC | Q122: Basic | R122: + | T122: Control of non-salary expenditure commitments is based on budget allocations. A mechanism for controlling commitments against cash flow projections is not in place. The commitment control system does not cover all expenses, and is therefore only partially effective. | U122: (PI-25) | V122: 1 | W122: 0 | X122: 1 | Y122: 3 | Z122: =IF($N122>=3.25,"4. Avancé", IF($N122>=2.5,"3. SOUND", IF($N122>=1.75,"2. Basique", IF($N122>=1,"1. Elémentaire", "" )))) -> 2. Basique
A123: PEFALIA | B123: 25.3 | C123: 25.3 | E123: Comp | F123: V | G123: =VLOOKUP(F123,Profile!B:C,2,FALSE) -> V. Predictability and control in budget execution | H123: PI-25 | I123: =IFERROR(VLOOKUP(B123,Profile!B:C,2,FALSE),"") -> 25.3 Compliance with payment controls | K123: D* | L123: Oui | M123: 0 | N123: 1 | O123: 0 | P123: 1. BELOW BASIC | Q123: Basic | R123: + | T123: The data required to assess this component were not provided to the mission. | U123: ="("&H123&")" -> (PI-25) | V123: 1 | W123: 0 | X123: 1 | Y123: 3 | Z123: =IF($N123>=3.25,"4. Avancé", IF($N123>=2.5,"3. SOUND", IF($N123>=1.75,"2. Basique", IF($N123>=1,"1. Elémentaire", "" )))) -> 1. Elémentaire
A124: PEFALIA | B124: PI-26 | C124: PI_26 | D124: M1 | E124: Indic | F124: V | G124: =VLOOKUP(F124,Profile!B:C,2,FALSE) -> V. Predictability and control in budget execution | H124: PI-26 | I124: =IFERROR(VLOOKUP(B124,Profile!B:C,2,FALSE),"") -> PI-26 Internal audit | J124: =IF(M124>3.65,"A", IF(M124>=3.25,"B+", IF(M124>2.65,"B", IF(M124>=2.25,"C+", IF(M124>1.75,"C", IF(M124>1.25,"D+", IF(AND(M124<=1.25,M124>0),"D", IF(M124=0,"NA", "" )))))))) -> NA | K124: D | L124: =IF(OR(L125="Oui",L126="Oui",L127="Oui",L128="Oui"),"Oui","Non") -> Oui | M124: =IFERROR(IF($D124="M1",IF(ROUND(AVERAGEIF(M125:M128,">0"),1)=ROUND(MAX(IF(M125:M128>0,M125:M128)),1),MAX(M125:M128),MAX(IF(M125:M128>0,M125:M128))+0.5),AVERAGEIF(M125:M128,">0")),0) -> 0 | N124: =IFERROR(IF($D124="M1",IF(ROUND(AVERAGEIF(N125:N128,">0"),1)=ROUND(MIN(IF(N125:N128>0,N125:N128)),1),AVERAGE(N125:N128),MIN(IF(N125:N128>0,N125:N128))+0.5),AVERAGEIF(N125:N128,">0")),0) -> 0.25 | O124: 1 | P124: 1. BELOW BASIC | Q124: =IF(K124="A","Force", IF(K124="B+","Force", IF(K124="B","Force", IF(K124="D+","Faiblesse", IF(K124="D","Faiblesse", "Basique"))))) -> Faiblesse | R124: + | U124: (PI-26) | V124: 0 | W124: 0 | X124: 1 | Y124: =Y125 -> 4 | Z124: =IF($N124>=3.25,"4. ADVANCED", IF($N124>=2.5,"3. GOOD", IF($N124>=1.75,"2. Basique", IF($N124>=1,"1. Elémentaire", "" )))) -> 
A125: PEFALIA | B125: 26.1 | C125: 26.1 | E125: Comp | F125: V | G125: =VLOOKUP(F125,Profile!B:C,2,FALSE) -> V. Predictability and control in budget execution | H125: PI-26 | I125: =IFERROR(VLOOKUP(B125,Profile!B:C,2,FALSE),"") -> 26.1 Coverage of the internal audit | K125: D | L125: Oui | M125: =IFERROR(IF(TRIM(CLEAN(J125))="A",4)+IF(TRIM(CLEAN(J125))="B+",3.5)+IF(TRIM(CLEAN(J125))="B",3)+IF(TRIM(CLEAN(J125))="C+",2.5)+IF(TRIM(CLEAN(J125))="C",2)+IF(TRIM(CLEAN(J125))="D+",1.5)+IF(TRIM(CLEAN(J125))="D",1)+IF(TRIM(CLEAN(J125))="D*",1)+IF(TRIM(CLEAN(J125))="NU",0)+IF(TRIM(CLEAN(J125))="",0),"") -> 0 | N125: 1 | O125: 1 | P125: 1. BELOW BASIC | Q125: =IF(K125="A","Strenght", IF(K125="B+","Strenght", IF(K125="B","Strenght", IF(K125="D+","Weakness", IF(K125="D","Weakness", "Basic"))))) -> Weakness | R125: + | T125: Absence of an internal audit function at Commune de Tiko. | U125: (PI-26) | V125: 0 | W125: 0 | X125: 1 | Y125: 4 | Z125: =IF($N125>=3.25,"4. Avancé", IF($N125>=2.5,"3. SOUND", IF($N125>=1.75,"2. Basique", IF($N125>=1,"1. Elémentaire", "" )))) -> 1. Elémentaire
A126: PEFALIA | B126: 26.2 | C126: 26.2 | E126: Comp | F126: V | G126: =VLOOKUP(F126,Profile!B:C,2,FALSE) -> V. Predictability and control in budget execution | H126: PI-26 | I126: =IFERROR(VLOOKUP(B126,Profile!B:C,2,FALSE),"") -> 26.2 Nature of audits and standards applied | K126: NA | L126: Oui | M126: 0 | N126: 0 | O126: 0 | Q126: Basic | R126: = | T126: Absence of an internal audit function at Commune de Tiko. | U126: (PI-26) | V126: 0 | W126: 0 | X126: 1 | Y126: 4 | Z126: =IF($N126>=3.25,"4. Avancé", IF($N126>=2.5,"3. SOUND", IF($N126>=1.75,"2. Basique", IF($N126>=1,"1. Elémentaire", "" )))) -> 
A127: PEFALIA | B127: 26.3 | C127: 26.3 | E127: Comp | F127: V | G127: =VLOOKUP(F127,Profile!B:C,2,FALSE) -> V. Predictability and control in budget execution | H127: PI-26 | I127: =IFERROR(VLOOKUP(B127,Profile!B:C,2,FALSE),"") -> 26.3 Implementation of internal audits and reporting | K127: NA | L127: Oui | M127: 0 | N127: 0 | O127: 0 | Q127: Basic | R127: = | T127: Absence of an internal audit function at Commune de Tiko. | U127: (PI-26) | V127: 0 | W127: 0 | X127: 1 | Y127: 4 | Z127: =IF($N127>=3.25,"4. Avancé", IF($N127>=2.5,"3. SOUND", IF($N127>=1.75,"2. Basique", IF($N127>=1,"1. Elémentaire", "" )))) -> 
A128: PEFALIA | B128: 26.4 | C128: 26.4 | E128: Comp | F128: V | G128: =VLOOKUP(F128,Profile!B:C,2,FALSE) -> V. Predictability and control in budget execution | H128: PI-26 | I128: =IFERROR(VLOOKUP(B128,Profile!B:C,2,FALSE),"") -> 26.4 Response to internal audits | K128: NA | L128: Oui | M128: 0 | N128: 0 | O128: 0 | Q128: Basic | R128: = | T128: Absence of an internal audit function at Commune de Tiko. | U128: (PI-26) | V128: 0 | W128: 0 | X128: 1 | Y128: 4 | Z128: =IF($N128>=3.25,"4. Avancé", IF($N128>=2.5,"3. SOUND", IF($N128>=1.75,"2. Basique", IF($N128>=1,"1. Elémentaire", "" )))) -> 
A129: PEFALIA | B129: VI | C129: VI | E129: Pilar | F129: VI | G129: =VLOOKUP(F129,Profile!B:C,2,FALSE) -> VI. Accounting and reporting | I129: =IFERROR(VLOOKUP(B129,Profile!B:C,2,FALSE),"") -> VI. Accounting and reporting | J129: =IF(M129>3.65,"A", IF(M129>=3.25,"B+", IF(M129>2.65,"B", IF(M129>=2.25,"C+", IF(M129>1.75,"C", IF(M129>1.25,"D+", IF(AND(M129<=1.25,M129>0),"D", IF(M129=0,"NA", "" )))))))) -> NA | K129: D+ | L129: =IF(COUNTIFS(L130:L142,"Oui")=13,"Oui","Non") -> Non | M129: =AVERAGEIFS(M$16:M$153,$E$16:$E$153,"Indic",$F$16:$F$153,$F129) -> 0 | N129: =AVERAGEIFS(N$16:N$153,$E$16:$E$153,"Indic",$F$16:$F$153,$F129) -> 1.555555556 | O129: 1.5 | P129: 1. BELOW BASIC | R129: N.C | U129: ()
A130: PEFALIA | B130: PI-27 | C130: PI_27 | D130: M2 | E130: Indic | F130: VI | G130: =VLOOKUP(F130,Profile!B:C,2,FALSE) -> VI. Accounting and reporting | H130: PI-27 | I130: =IFERROR(VLOOKUP(B130,Profile!B:C,2,FALSE),"") -> PI-27 Financial data integrity | J130: NA | K130: C+ | L130: =IF(OR(L131="Oui",L132="Oui",L133="Oui",L134="Oui"),"Oui","Non") -> Oui | M130: =IFERROR(IF($D130="M1",IF(ROUND(AVERAGEIF(M131:M134,">0"),1)=ROUND(MAX(IF(M131:M134>0,M131:M134)),1),MAX(M131:M134),MAX(IF(M131:M134>0,M131:M134))+0.5),AVERAGEIF(M131:M134,">0")),0) -> 0 | N130: =IFERROR(IF($D130="M1",IF(ROUND(AVERAGEIF(N131:N134,">0"),1)=ROUND(MIN(IF(N131:N134>0,N131:N134)),1),AVERAGE(N131:N134),MIN(IF(N131:N134>0,N131:N134))+0.5),AVERAGEIF(N131:N134,">0")),0) -> 2.333333333 | O130: 2.5 | P130: 2. BASIC | Q130: =IF(K130="A","Force", IF(K130="B+","Force", IF(K130="B","Force", IF(K130="D+","Faiblesse", IF(K130="D","Faiblesse", "Basique"))))) -> Basique | R130: =IFERROR(IF(L130="Oui",IF(N130-M130<0,"-",IF(N130-M130>0,"+"," =")),"N.C"),"") -> + | U130: (PI-27) | V130: 0 | W130: 0 | X130: 1 | Y130: =Y131 -> 4 | Z130: =IF($N130>=3.25,"4. ADVANCED", IF($N130>=2.5,"3. GOOD", IF($N130>=1.75,"2. Basique", IF($N130>=1,"1. Elémentaire", "" )))) -> 2. Basique
A131: PEFALIA | B131: 27.1 | C131: 27.1 | E131: Comp | F131: VI | G131: =VLOOKUP(F131,Profile!B:C,2,FALSE) -> VI. Accounting and reporting | H131: PI-27 | I131: =IFERROR(VLOOKUP(B131,Profile!B:C,2,FALSE),"") -> 27.1 Bank account reconciliation | K131: B | L131: Oui | M131: =IFERROR(IF(TRIM(CLEAN(J131))="A",4)+IF(TRIM(CLEAN(J131))="B+",3.5)+IF(TRIM(CLEAN(J131))="B",3)+IF(TRIM(CLEAN(J131))="C+",2.5)+IF(TRIM(CLEAN(J131))="C",2)+IF(TRIM(CLEAN(J131))="D+",1.5)+IF(TRIM(CLEAN(J131))="D",1)+IF(TRIM(CLEAN(J131))="D*",1)+IF(TRIM(CLEAN(J131))="NU",0)+IF(TRIM(CLEAN(J131))="",0),"") -> 0 | N131: 3 | O131: 3 | P131: 3. SOUND | Q131: =IF(K131="A","Strenght", IF(K131="B+","Strenght", IF(K131="B","Strenght", IF(K131="D+","Weakness", IF(K131="D","Weakness", "Basic"))))) -> Strenght | R131: + | T131: The reconciliation of all bank accounts managed by the Municipal Receiver of the Commune of Tiko is carried out on a monthly basis, at the latest within four weeks of the end of each month. | U131: (PI-27) | V131: 0 | W131: 0 | X131: 1 | Y131: 4 | Z131: =IF($N131>=3.25,"4. Avancé", IF($N131>=2.5,"3. SOUND", IF($N131>=1.75,"2. Basique", IF($N131>=1,"1. Elémentaire", "" )))) -> 3. SOUND
A132: PEFALIA | B132: 27.2 | C132: 27.2 | E132: Comp | F132: VI | G132: =VLOOKUP(F132,Profile!B:C,2,FALSE) -> VI. Accounting and reporting | H132: PI-27 | I132: =IFERROR(VLOOKUP(B132,Profile!B:C,2,FALSE),"") -> 27.2 Suspense accounts | K132: D | L132: Non | M132: 0 | N132: 1 | O132: 1 | P132: 1. BELOW BASIC | Q132: Weakness | R132: N.C | T132: Suspense accounts are reconciled once a year when the Commune de Tiko's administrative account is drawn up, but not all of them have been cleared by the end of the financial year. | U132: (PI-27) | V132: 0 | W132: 0 | X132: 1 | Y132: 4 | Z132: =IF($N132>=3.25,"4. Avancé", IF($N132>=2.5,"3. SOUND", IF($N132>=1.75,"2. Basique", IF($N132>=1,"1. Elémentaire", "" )))) -> 1. Elémentaire
A133: PEFALIA | B133: 27.3 | C133: 27.3 | E133: Comp | F133: VI | G133: =VLOOKUP(F133,Profile!B:C,2,FALSE) -> VI. Accounting and reporting | H133: PI-27 | I133: =IFERROR(VLOOKUP(B133,Profile!B:C,2,FALSE),"") -> 27.3 Advance accounts | K133: NA | L133: Oui | M133: 0 | N133: 0 | O133: 0 | Q133: Basic | R133: = | T133: No prepayments. | U133: (PI-27) | V133: 0 | W133: 0 | X133: 1 | Y133: 4 | Z133: =IF($N133>=3.25,"4. Avancé", IF($N133>=2.5,"3. SOUND", IF($N133>=1.75,"2. Basique", IF($N133>=1,"1. Elémentaire", "" )))) -> 
A134: PEFALIA | B134: 27.4 | C134: 27.4 | E134: Comp | F134: VI | G134: =VLOOKUP(F134,Profile!B:C,2,FALSE) -> VI. Accounting and reporting | H134: PI-27 | I134: =IFERROR(VLOOKUP(B134,Profile!B:C,2,FALSE),"") -> 27.4 Financial data integrity process | K134: B | L134: Oui | M134: 0 | N134: 3 | O134: 3 | P134: 3. SOUND | Q134: Strenght | R134: + | T134: Data access and modification are limited to access rights and user profiles defined in advance jointly by the head of the functional department and the database administrator, and the system allows the production of an audit trail. But there is no structure responsible for verifying the integrity of financial data. | U134: (PI-27) | V134: 0 | W134: 0 | X134: 1 | Y134: 4 | Z134: =IF($N134>=3.25,"4. Avancé", IF($N134>=2.5,"3. SOUND", IF($N134>=1.75,"2. Basique", IF($N134>=1,"1. Elémentaire", "" )))) -> 3. SOUND
A135: PEFALIA | B135: PI-28 | C135: PI_28 | D135: M1 | E135: Indic | F135: VI | G135: =VLOOKUP(F135,Profile!B:C,2,FALSE) -> VI. Accounting and reporting | H135: PI-28 | I135: =IFERROR(VLOOKUP(B135,Profile!B:C,2,FALSE),"") -> PI-28 In-year budget reports | J135: =IF(M135>3.65,"A", IF(M135>=3.25,"B+", IF(M135>2.65,"B", IF(M135>=2.25,"C+", IF(M135>1.75,"C", IF(M135>1.25,"D+", IF(AND(M135<=1.25,M135>0),"D", IF(M135=0,"NA", "" )))))))) -> NA | K135: D | L135: =IF(OR(L136="Oui",L137="Oui",L138="Oui"),"Oui","Non") -> Oui | M135: =IFERROR((IF($D135="M1",IF(ROUND(AVERAGEIF(M136:M138,">0"),1)=ROUND(MIN(IF(M136:M138>0,M136:M138)),1),AVERAGE(M136:M138),MIN(IF(M136:M138>0,M136:M138))+0.5),AVERAGEIF(M136:M138,">0"))),0) -> 0 | N135: =IFERROR((IF($D135="M1",IF(ROUND(AVERAGEIF(N136:N138,">0"),1)=ROUND(MIN(IF(N136:N138>0,N136:N138)),1),AVERAGE(N136:N138),MIN(IF(N136:N138>0,N136:N138))+0.5),AVERAGEIF(N136:N138,">0"))),0) -> 0.3333333333 | O135: 1 | P135: 1. BELOW BASIC | Q135: =IF(K135="A","Force", IF(K135="B+","Force", IF(K135="B","Force", IF(K135="D+","Faiblesse", IF(K135="D","Faiblesse", "Basique"))))) -> Faiblesse | R135: + | U135: (PI-28) | V135: 1 | W135: 1 | X135: 1 | Y135: =Y136 -> 3 | Z135: =IF($N135>=3.25,"4. ADVANCED", IF($N135>=2.5,"3. GOOD", IF($N135>=1.75,"2. Basique", IF($N135>=1,"1. Elémentaire", "" )))) -> 
A136: PEFALIA | B136: 28.1 | C136: 28.1 | E136: Comp | F136: VI | G136: =VLOOKUP(F136,Profile!B:C,2,FALSE) -> VI. Accounting and reporting | H136: PI-28 | I136: =IFERROR(VLOOKUP(B136,Profile!B:C,2,FALSE),"") -> 28.1 Coverage and comparability of reports | K136: D | L136: Oui | M136: =IFERROR(IF(TRIM(CLEAN(J136))="A",4)+IF(TRIM(CLEAN(J136))="B+",3.5)+IF(TRIM(CLEAN(J136))="B",3)+IF(TRIM(CLEAN(J136))="C+",2.5)+IF(TRIM(CLEAN(J136))="C",2)+IF(TRIM(CLEAN(J136))="D+",1.5)+IF(TRIM(CLEAN(J136))="D",1)+IF(TRIM(CLEAN(J136))="D*",1)+IF(TRIM(CLEAN(J136))="NU",0)+IF(TRIM(CLEAN(J136))="",0),"") -> 0 | N136: 1 | O136: 1 | P136: 1. BELOW BASIC | Q136: =IF(K136="A","Strenght", IF(K136="B+","Strenght", IF(K136="B","Strenght", IF(K136="D+","Weakness", IF(K136="D","Weakness", "Basic"))))) -> Weakness | R136: + | T136: No budget execution reports drawn up during the period covered by the evaluation. | U136: (PI-28) | V136: 1 | W136: 1 | X136: 1 | Y136: 3 | Z136: =IF($N136>=3.25,"4. Avancé", IF($N136>=2.5,"3. SOUND", IF($N136>=1.75,"2. Basique", IF($N136>=1,"1. Elémentaire", "" )))) -> 1. Elémentaire
A137: PEFALIA | B137: 28.2 | C137: 28.2 | E137: Comp | F137: VI | G137: =VLOOKUP(F137,Profile!B:C,2,FALSE) -> VI. Accounting and reporting | H137: PI-28 | I137: =IFERROR(VLOOKUP(B137,Profile!B:C,2,FALSE),"") -> 28.2 Timing of in-year reports | K137: NA | L137: Oui | M137: 0 | N137: 0 | O137: 0 | Q137: Basic | R137: = | T137: No budget execution reports drawn up during the period covered by the evaluation. | U137: (PI-28) | V137: 1 | W137: 1 | X137: 1 | Y137: 3 | Z137: =IF($N137>=3.25,"4. Avancé", IF($N137>=2.5,"3. SOUND", IF($N137>=1.75,"2. Basique", IF($N137>=1,"1. Elémentaire", "" )))) -> 
A138: PEFALIA | B138: 28.3 | C138: 28.3 | E138: Comp | F138: VI | G138: =VLOOKUP(F138,Profile!B:C,2,FALSE) -> VI. Accounting and reporting | H138: PI-28 | I138: =IFERROR(VLOOKUP(B138,Profile!B:C,2,FALSE),"") -> 28.3 Accuracy of in-year budget reports | K138: NA | L138: Oui | M138: 0 | N138: 0 | O138: 0 | Q138: Basic | R138: = | T138: No budget execution reports drawn up during the period covered by the evaluation. | U138: (PI-28) | V138: 1 | W138: 1 | X138: 1 | Y138: 3 | Z138: =IF($N138>=3.25,"4. Avancé", IF($N138>=2.5,"3. SOUND", IF($N138>=1.75,"2. Basique", IF($N138>=1,"1. Elémentaire", "" )))) -> 
A139: PEFALIA | B139: PI-29 | C139: PI_29 | D139: M1 | E139: Indic | F139: VI | G139: =VLOOKUP(F139,Profile!B:C,2,FALSE) -> VI. Accounting and reporting | H139: PI-29 | I139: =IFERROR(VLOOKUP(B139,Profile!B:C,2,FALSE),"") -> PI-29 Annual financial reports | J139: =IF(M139>3.65,"A", IF(M139>=3.25,"B+", IF(M139>2.65,"B", IF(M139>=2.25,"C+", IF(M139>1.75,"C", IF(M139>1.25,"D+", IF(AND(M139<=1.25,M139>0),"D", IF(M139=0,"NA", "" )))))))) -> NA | K139: C | L139: =IF(OR(L140="Oui",L141="Oui",L142="Oui"),"Oui","Non") -> Oui | M139: =IFERROR((IF($D139="M1",IF(ROUND(AVERAGEIF(M140:M142,">0"),1)=ROUND(MIN(IF(M140:M142>0,M140:M142)),1),AVERAGE(M140:M142),MIN(IF(M140:M142>0,M140:M142))+0.5),AVERAGEIF(M140:M142,">0"))),0) -> 0 | N139: =IFERROR((IF($D139="M1",IF(ROUND(AVERAGEIF(N140:N142,">0"),1)=ROUND(MIN(IF(N140:N142>0,N140:N142)),1),AVERAGE(N140:N142),MIN(IF(N140:N142>0,N140:N142))+0.5),AVERAGEIF(N140:N142,">0"))),0) -> 2 | O139: 2 | P139: 2. BASIC | Q139: =IF(K139="A","Force", IF(K139="B+","Force", IF(K139="B","Force", IF(K139="D+","Faiblesse", IF(K139="D","Faiblesse", "Basique"))))) -> Basique | R139: + | U139: (PI-29) | V139: 0 | W139: 0 | X139: 1 | Y139: =Y140 -> 3 | Z139: =IF($N139>=3.25,"4. ADVANCED", IF($N139>=2.5,"3. GOOD", IF($N139>=1.75,"2. Basique", IF($N139>=1,"1. Elémentaire", "" )))) -> 2. Basique
A140: PEFALIA | B140: 29.1 | C140: 29.1 | E140: Comp | F140: VI | G140: =VLOOKUP(F140,Profile!B:C,2,FALSE) -> VI. Accounting and reporting | H140: PI-29 | I140: =IFERROR(VLOOKUP(B140,Profile!B:C,2,FALSE),"") -> 29.1 Completeness of annual financial reports | K140: C | L140: Oui | M140: =IFERROR(IF(TRIM(CLEAN(J140))="A",4)+IF(TRIM(CLEAN(J140))="B+",3.5)+IF(TRIM(CLEAN(J140))="B",3)+IF(TRIM(CLEAN(J140))="C+",2.5)+IF(TRIM(CLEAN(J140))="C",2)+IF(TRIM(CLEAN(J140))="D+",1.5)+IF(TRIM(CLEAN(J140))="D",1)+IF(TRIM(CLEAN(J140))="D*",1)+IF(TRIM(CLEAN(J140))="NU",0)+IF(TRIM(CLEAN(J140))="",0),"") -> 0 | N140: 2 | O140: 2 | P140: 2. BASIC | Q140: =IF(K140="A","Strenght", IF(K140="B+","Strenght", IF(K140="B","Strenght", IF(K140="D+","Weakness", IF(K140="D","Weakness", "Basic"))))) -> Basic | R140: + | T140: The administrative and management accounts contain information on expenditure and income. In addition, a trial balance is appended to the management account, providing information on cash account balances. However, the annual financial statements do not include the balance sheet and income statement. | U140: (PI-29) | V140: 0 | W140: 0 | X140: 1 | Y140: 3 | Z140: =IF($N140>=3.25,"4. Avancé", IF($N140>=2.5,"3. SOUND", IF($N140>=1.75,"2. Basique", IF($N140>=1,"1. Elémentaire", "" )))) -> 2. Basique
A141: PEFALIA | B141: 29.2 | C141: 29.2 | E141: Comp | F141: VI | G141: =VLOOKUP(F141,Profile!B:C,2,FALSE) -> VI. Accounting and reporting | H141: PI-29 | I141: =IFERROR(VLOOKUP(B141,Profile!B:C,2,FALSE),"") -> 29.2 Submission of reports for external audit | K141: C | L141: Oui | M141: 0 | N141: 2 | O141: 2 | P141: 2. BASIC | Q141: Basic | R141: + | T141: The last management account for 2020 was filed with the Chambre des Comptes on September 06, 2021, less than nine months after the year-end. | U141: (PI-29) | V141: 0 | W141: 0 | X141: 1 | Y141: 3 | Z141: =IF($N141>=3.25,"4. Avancé", IF($N141>=2.5,"3. SOUND", IF($N141>=1.75,"2. Basique", IF($N141>=1,"1. Elémentaire", "" )))) -> 2. Basique
A142: PEFALIA | B142: 29.3 | C142: 29.3 | E142: Comp | F142: VI | G142: =VLOOKUP(F142,Profile!B:C,2,FALSE) -> VI. Accounting and reporting | H142: PI-29 | I142: =IFERROR(VLOOKUP(B142,Profile!B:C,2,FALSE),"") -> 29.3 Accounting standards | K142: C | L142: Oui | M142: 0 | N142: 2 | O142: 2 | P142: 2. BASIC | Q142: Basic | R142: + | T142: The principles governing the keeping of accounts by CTDs are laid down in laws and regulations, but they are not applied. | U142: (PI-29) | V142: 0 | W142: 0 | X142: 1 | Y142: 3 | Z142: =IF($N142>=3.25,"4. Avancé", IF($N142>=2.5,"3. SOUND", IF($N142>=1.75,"2. Basique", IF($N142>=1,"1. Elémentaire", "" )))) -> 2. Basique
A143: PEFALIA | B143: VII | C143: VII | E143: Pilar | F143: VII | G143: =VLOOKUP(F143,Profile!B:C,2,FALSE) -> VII. External scrutiny and audit | I143: =IFERROR(VLOOKUP(B143,Profile!B:C,2,FALSE),"") -> VII. External scrutiny and audit | J143: =IF(M143>3.65,"A", IF(M143>=3.25,"B+", IF(M143>2.65,"B", IF(M143>=2.25,"C+", IF(M143>1.75,"C", IF(M143>1.25,"D+", IF(AND(M143<=1.25,M143>0),"D", IF(M143=0,"NA", "" )))))))) -> NA | K143: D | L143: =IF(COUNTIFS(L144:L153,"Oui")=10,"Oui","Non") -> Oui | M143: =AVERAGEIFS(M$16:M$153,$E$16:$E$153,"Indic",$F$16:$F$153,$F143) -> 0 | N143: =AVERAGEIFS(N$16:N$153,$E$16:$E$153,"Indic",$F$16:$F$153,$F143) -> 0.625 | O143: 1 | P143: 1. BELOW BASIC | R143: + | U143: ()
A144: PEFALIA | B144: PI-30 | C144: PI_30 | D144: M1 | E144: Indic | F144: VII | G144: =VLOOKUP(F144,Profile!B:C,2,FALSE) -> VII. External scrutiny and audit | H144: PI-30 | I144: =IFERROR(VLOOKUP(B144,Profile!B:C,2,FALSE),"") -> PI-30 External Audit | J144: NA | K144: D | L144: =IF(OR(L145="Oui",L146="Oui",L147="Oui",L148="Oui"),"Oui","Non") -> Oui | M144: =IFERROR(IF($D144="M1",IF(ROUND(AVERAGEIF(M145:M148,">0"),1)=ROUND(MIN(IF(M145:M148>0,M145:M148)),1),AVERAGE(M145:M148),MIN(IF(M145:M148>0,M145:M148))+0.5),AVERAGEIF(M145:M148,">0")),0) -> 0 | N144: =IFERROR(IF($D144="M1",IF(ROUND(AVERAGEIF(N145:N148,">0"),1)=ROUND(MIN(IF(N145:N148>0,N145:N148)),1),AVERAGE(N145:N148),MIN(IF(N145:N148>0,N145:N148))+0.5),AVERAGEIF(N145:N148,">0")),0) -> 0.25 | O144: 1 | P144: =IF(K144="D","1. BELOW BASIC", IF(K144="D*","1. BELOW BASIC", IF(K144="D+","1. BELOW BASIC", IF(K144="C","2. BASIC", IF(K144="C+","2. BASIC", IF(K144="B+","3. SOUND", IF(K144="B","3. SOUND", IF(K144="A","4. HIGH","")))))))) -> 1. BELOW BASIC | Q144: =IF(K144="A","Force", IF(K144="B+","Force", IF(K144="B","Force", IF(K144="D+","Faiblesse", IF(K144="D","Faiblesse", "Basique"))))) -> Faiblesse | R144: + | U144: (PI-30) | V144: 0 | W144: 0 | X144: 1 | Y144: =Y145 -> 4 | Z144: =IF($N144>=3.25,"4. ADVANCED", IF($N144>=2.5,"3. GOOD", IF($N144>=1.75,"2. Basique", IF($N144>=1,"1. Elémentaire", "" )))) -> 
A145: PEFALIA | B145: 30.1 | C145: 30.1 | E145: Comp | F145: VII | G145: =VLOOKUP(F145,Profile!B:C,2,FALSE) -> VII. External scrutiny and audit | H145: PI-30 | I145: =IFERROR(VLOOKUP(B145,Profile!B:C,2,FALSE),"") -> 30.1 Audit Coverage and Standards | K145: D | L145: Oui | M145: =IFERROR(IF(TRIM(CLEAN(J145))="A",4)+IF(TRIM(CLEAN(J145))="B+",3.5)+IF(TRIM(CLEAN(J145))="B",3)+IF(TRIM(CLEAN(J145))="C+",2.5)+IF(TRIM(CLEAN(J145))="C",2)+IF(TRIM(CLEAN(J145))="D+",1.5)+IF(TRIM(CLEAN(J145))="D",1)+IF(TRIM(CLEAN(J145))="D*",1)+IF(TRIM(CLEAN(J145))="NU",0)+IF(TRIM(CLEAN(J145))="",0),"") -> 0 | N145: 1 | O145: 1 | P145: 1. BELOW BASIC | Q145: =IF(K145="A","Strenght", IF(K145="B+","Strenght", IF(K145="B","Strenght", IF(K145="D+","Weakness", IF(K145="D","Weakness", "Basic"))))) -> Weakness | R145: + | T145: At the time of the assessment, the Chambre des Comptes had not completed its examination of any of the Tiko Commune management accounts submitted to it. | U145: (PI-30) | V145: 0 | W145: 0 | X145: 1 | Y145: 4 | Z145: =IF($N145>=3.25,"4. Avancé", IF($N145>=2.5,"3. SOUND", IF($N145>=1.75,"2. Basique", IF($N145>=1,"1. Elémentaire", "" )))) -> 1. Elémentaire
A146: PEFALIA | B146: 30.2 | C146: 30.2 | E146: Comp | F146: VII | G146: =VLOOKUP(F146,Profile!B:C,2,FALSE) -> VII. External scrutiny and audit | H146: PI-30 | I146: =IFERROR(VLOOKUP(B146,Profile!B:C,2,FALSE),"") -> 30.2 Submission of Audit Reports to the Legislature | K146: NA | L146: Oui | M146: 0 | N146: 0 | O146: 0 | Q146: Basic | R146: = | T146: At the time of the assessment, the Chambre des Comptes had not completed its examination of any of the Tiko Commune management accounts submitted to it, and is under no legal obligation to submit its reports to the Municipal Council. | U146: (PI-30) | V146: 0 | W146: 0 | X146: 1 | Y146: 4 | Z146: =IF($N146>=3.25,"4. Avancé", IF($N146>=2.5,"3. SOUND", IF($N146>=1.75,"2. Basique", IF($N146>=1,"1. Elémentaire", "" )))) -> 
A147: PEFALIA | B147: 30.3 | C147: 30.3 | E147: Comp | F147: VII | G147: =VLOOKUP(F147,Profile!B:C,2,FALSE) -> VII. External scrutiny and audit | H147: PI-30 | I147: =IFERROR(VLOOKUP(B147,Profile!B:C,2,FALSE),"") -> 30.3 External Audit Follow-Up | K147: NA | L147: Oui | M147: 0 | N147: 0 | O147: 0 | Q147: Basic | R147: = | T147: At the time of the assessment, the Chambre des Comptes had not completed its examination of any of the Tiko Commune management accounts submitted to it, and so had not issued a report. | U147: (PI-30) | V147: 0 | W147: 0 | X147: 1 | Y147: 4 | Z147: =IF($N147>=3.25,"4. Avancé", IF($N147>=2.5,"3. SOUND", IF($N147>=1.75,"2. Basique", IF($N147>=1,"1. Elémentaire", "" )))) -> 
A148: PEFALIA | B148: 30.4 | C148: 30.4 | E148: Comp | F148: VII | G148: =VLOOKUP(F148,Profile!B:C,2,FALSE) -> VII. External scrutiny and audit | H148: PI-30 | I148: =IFERROR(VLOOKUP(B148,Profile!B:C,2,FALSE),"") -> 30.4 Supreme Audit Institution Independence | K148: NA | L148: Oui | M148: 0 | N148: 0 | O148: 0 | Q148: Basic | R148: = | T148: The PEFA evaluation of the Commune is part of a series of evaluations of 12 CTDs. | U148: (PI-30) | V148: 0 | W148: 0 | X148: 1 | Y148: 4 | Z148: =IF($N148>=3.25,"4. Avancé", IF($N148>=2.5,"3. SOUND", IF($N148>=1.75,"2. Basique", IF($N148>=1,"1. Elémentaire", "" )))) -> 
A149: PEFALIA | B149: PI-31 | C149: PI_31 | D149: M2 | E149: Indic | F149: VII | G149: =VLOOKUP(F149,Profile!B:C,2,FALSE) -> VII. External scrutiny and audit | H149: PI-31 | I149: =IFERROR(VLOOKUP(B149,Profile!B:C,2,FALSE),"") -> PI-31 Legislative Scrutiny of Audit Reports | J149: =IF(M149>3.65,"A", IF(M149>=3.25,"B+", IF(M149>2.65,"B", IF(M149>=2.25,"C+", IF(M149>1.75,"C", IF(M149>1.25,"D+", IF(AND(M149<=1.25,M149>0),"D", IF(M149=0,"NA", "" )))))))) -> NA | K149: D | L149: =IF(OR(L150="Oui",L151="Oui",L152="Oui",L153="Oui"),"Oui","Non") -> Oui | M149: =IFERROR(IF($D149="M1",IF(ROUND(AVERAGEIF(M150:M153,">0"),1)=ROUND(MIN(IF(M150:M153>0,M150:M153)),1),AVERAGE(M150:M153),MIN(IF(M150:M153>0,M150:M153))+0.5),AVERAGEIF(M150:M153,">0")),0) -> 0 | N149: =IFERROR(IF($D149="M1",IF(ROUND(AVERAGEIF(N150:N153,">0"),1)=ROUND(MIN(IF(N150:N153>0,N150:N153)),1),AVERAGE(N150:N153),MIN(IF(N150:N153>0,N150:N153))+0.5),AVERAGEIF(N150:N153,">0")),0) -> 1 | O149: 1 | P149: 1. BELOW BASIC | Q149: =IF(K149="A","Force", IF(K149="B+","Force", IF(K149="B","Force", IF(K149="D+","Faiblesse", IF(K149="D","Faiblesse", "Basique"))))) -> Faiblesse | R149: + | U149: (PI-31) | V149: 0 | W149: 0 | X149: 1 | Y149: =Y150 -> 4 | Z149: =IF($N149>=3.25,"4. ADVANCED", IF($N149>=2.5,"3. GOOD", IF($N149>=1.75,"2. Basique", IF($N149>=1,"1. Elémentaire", "" )))) -> 1. Elémentaire
A150: =$I$4 -> PEFALIA | B150: 31.1 | C150: 31.1 | E150: Comp | F150: VII | G150: =VLOOKUP(F150,Profile!B:C,2,FALSE) -> VII. External scrutiny and audit | H150: PI-31 | I150: =IFERROR(VLOOKUP(B150,Profile!B:C,2,FALSE),"") -> 31.1 Timing of Audit Report Scrutiny | K150: D | L150: Oui | M150: =IFERROR(IF(TRIM(CLEAN(J150))="A",4)+IF(TRIM(CLEAN(J150))="B+",3.5)+IF(TRIM(CLEAN(J150))="B",3)+IF(TRIM(CLEAN(J150))="C+",2.5)+IF(TRIM(CLEAN(J150))="C",2)+IF(TRIM(CLEAN(J150))="D+",1.5)+IF(TRIM(CLEAN(J150))="D",1)+IF(TRIM(CLEAN(J150))="D*",1)+IF(TRIM(CLEAN(J150))="NU",0)+IF(TRIM(CLEAN(J150))="",0),"") -> 0 | N150: 1 | O150: =IF($K150="D",1, IF($K150="D+",1.5, IF($K150="C",2, IF($K150="C+",2.5, IF($K150="B",3, IF($K150="B+",3.5, IF($K150="A",4, ))))))) -> 1 | P150: 1. BELOW BASIC | Q150: =IF(K150="A","Strenght", IF(K150="B+","Strenght", IF(K150="B","Strenght", IF(K150="D+","Weakness", IF(K150="D","Weakness", "Basic"))))) -> Weakness | R150: + | T150: During the period covered by the evaluation, the Communal Council did not carry out an external audit of the annual financial reports submitted to it by the Executive Board. | U150: (PI-31) | V150: 0 | W150: 0 | X150: 1 | Y150: 4 | Z150: =IF($N150>=3.25,"4. Avancé", IF($N150>=2.5,"3. SOUND", IF($N150>=1.75,"2. Basique", IF($N150>=1,"1. Elémentaire", "" )))) -> 1. Elémentaire
A151: =$I$4 -> PEFALIA | B151: 31.2 | C151: 31.2 | E151: Comp | F151: VII | G151: =VLOOKUP(F151,Profile!B:C,2,FALSE) -> VII. External scrutiny and audit | H151: PI-31 | I151: =IFERROR(VLOOKUP(B151,Profile!B:C,2,FALSE),"") -> 31.2 Hearings on Audit Findings | K151: D | L151: Oui | M151: 0 | N151: 1 | O151: =IF($K151="D",1, IF($K151="D+",1.5, IF($K151="C",2, IF($K151="C+",2.5, IF($K151="B",3, IF($K151="B+",3.5, IF($K151="A",4, ))))))) -> 1 | P151: 1. BELOW BASIC | Q151: Weakness | R151: + | T151: 0 | U151: (PI-31) | V151: 0 | W151: 0 | X151: 1 | Y151: 4 | Z151: =IF($N151>=3.25,"4. Avancé", IF($N151>=2.5,"3. SOUND", IF($N151>=1.75,"2. Basique", IF($N151>=1,"1. Elémentaire", "" )))) -> 1. Elémentaire
A152: =$I$4 -> PEFALIA | B152: 31.3 | C152: 31.3 | E152: Comp | F152: VII | G152: =VLOOKUP(F152,Profile!B:C,2,FALSE) -> VII. External scrutiny and audit | H152: PI-31 | I152: =IFERROR(VLOOKUP(B152,Profile!B:C,2,FALSE),"") -> 31.3 Recommendations on Audit by the Legislature | K152: D | L152: Oui | M152: 0 | N152: 1 | O152: =IF($K152="D",1, IF($K152="D+",1.5, IF($K152="C",2, IF($K152="C+",2.5, IF($K152="B",3, IF($K152="B+",3.5, IF($K152="A",4, ))))))) -> 1 | P152: 1. BELOW BASIC | Q152: Weakness | R152: + | T152: 0 | U152: (PI-31) | V152: 0 | W152: 0 | X152: 1 | Y152: 4 | Z152: =IF($N152>=3.25,"4. Avancé", IF($N152>=2.5,"3. SOUND", IF($N152>=1.75,"2. Basique", IF($N152>=1,"1. Elémentaire", "" )))) -> 1. Elémentaire
A153: =$I$4 -> PEFALIA | B153: 31.4 | C153: 31.4 | E153: Comp | F153: VII | G153: =VLOOKUP(F153,Profile!B:C,2,FALSE) -> VII. External scrutiny and audit | H153: PI-31 | I153: =IFERROR(VLOOKUP(B153,Profile!B:C,2,FALSE),"") -> 31.4 Transparency of Legislative Scrutiny of Audit Reports | K153: D | L153: Oui | M153: 0 | N153: 1 | O153: =IF($K153="D",1, IF($K153="D+",1.5, IF($K153="C",2, IF($K153="C+",2.5, IF($K153="B",3, IF($K153="B+",3.5, IF($K153="A",4, ))))))) -> 1 | P153: 1. BELOW BASIC | Q153: Weakness | R153: + | T153: 0 | U153: (PI-31) | V153: 0 | W153: 0 | X153: 1 | Y153: 4 | Z153: =IF($N153>=3.25,"4. Avancé", IF($N153>=2.5,"3. SOUND", IF($N153>=1.75,"2. Basique", IF($N153>=1,"1. Elémentaire", "" )))) -> 1. Elémentaire

Sheet ES-Piliars Indic
X1: Indic | Y1: Indic | Z1: Indic
X2: AD | Y2: AD | Z2: AD
AD4: 4 | AE4: 0 | AF4: A
AD5: 3.5 | AE5: 0 | AF5: B+
AD6: 3 | AE6: 0 | AF6: B+
Z7: xyChart | AA7: Value | AD7: 2.5 | AE7: 0 | AF7: C+
Z8: 1 | AA8: 0 | AD8: 2 | AE8: 0 | AF8: C
Z9: 1.5 | AA9: 0 | AD9: 1.5 | AE9: 0 | AF9: D+
Z10: 2 | AA10: 0 | AD10: 1 | AE10: 0 | AF10: D
Z11: 2.5 | AA11: 0 | AD11: 0.5 | AE11: 0 | AF11: D*
Z12: 3 | AA12: 0 | AD12: 0 | AE12: 0 | AF12: NA
Z13: 3.5 | AA13: 0 | AD13: 0 | AF13: NU
Z14: 4 | AA14: 0 | AB14: A
C84: ID-Pilar | D84: Pilar | E84: ID | F84: 4. Avancé | G84: 3. SOUND | H84: 2. Basique | I84: 1. Elémentaire | J84: Score Num
C85: HLG | D85: =VLOOKUP(C85,Profile!B:C,2,FALSE) -> Higher levels of government | E85: HLG-1 | F85: =IF($J85>3.65,$J85,"") ->  | G85: =IF(AND($J85<3.66,$J85>2.65),$J85,"") ->  | H85: =IF(AND($J85<=2.65,$J85>1.25),$J85,"") -> 1.5 | I85: =IF(AND($J85<=1.25,$J85>=1),$J85,"") ->  | J85: =VLOOKUP(E85,'Input. 2016 fmk'!$B$15:$O$153,14,FALSE) -> 1.5 | S85: =INDEX($AF$4:$AF$12,MATCH(J85,$AD$4:$AD$12,0)) -> D+
C86: HLG | E86: HLG-2 | I86: 1 | J86: =VLOOKUP(E86,'Input. 2016 fmk'!$B$15:$O$153,14,FALSE) -> 1 | S86: =INDEX($AF$4:$AF$12,MATCH(J86,$AD$4:$AD$12,0)) -> D
C87: I | D87: =VLOOKUP(C87,Profile!B:C,2,FALSE) -> I. Budget reliability | E87: PI-1 | F87: 4 | J87: =VLOOKUP(E87,'Input. 2016 fmk'!$B$15:$O$153,14,FALSE) -> 4 | S87: A
C88: I | E88: PI-2 | I88: 1 | J88: =VLOOKUP(E88,'Input. 2016 fmk'!$B$15:$O$153,14,FALSE) -> 1 | S88: D
C89: I | E89: PI-3 | I89: 1 | J89: =VLOOKUP(E89,'Input. 2016 fmk'!$B$15:$O$153,14,FALSE) -> 1 | S89: D
C90: II | D90: =VLOOKUP(C90,Profile!B:C,2,FALSE) -> II. Transparency of public finances | E90: PI-4 | I90: 1 | J90: =VLOOKUP(E90,'Input. 2016 fmk'!$B$15:$O$153,14,FALSE) -> 1 | S90: D
C91: II | E91: PI-5 | I91: 1 | J91: =VLOOKUP(E91,'Input. 2016 fmk'!$B$15:$O$153,14,FALSE) -> 1 | S91: D
C92: II | E92: PI-6 | I92: 1 | J92: =VLOOKUP(E92,'Input. 2016 fmk'!$B$15:$O$153,14,FALSE) -> 1 | S92: D
C93: II | E93: PI-7 | J93: =VLOOKUP(E93,'Input. 2016 fmk'!$B$15:$O$153,14,FALSE) -> 0 | S93: NA
C94: II | E94: PI-8 | H94: 1.5 | J94: =VLOOKUP(E94,'Input. 2016 fmk'!$B$15:$O$153,14,FALSE) -> 1.5 | S94: D+
C95: II | E95: PI-9 | I95: 1 | J95: =VLOOKUP(E95,'Input. 2016 fmk'!$B$15:$O$153,14,FALSE) -> 1 | S95: D
C96: III | D96: =VLOOKUP(C96,Profile!B:C,2,FALSE) -> III. Management of assets and liabilities | E96: PI-10 | I96: 1 | J96: =VLOOKUP(E96,'Input. 2016 fmk'!$B$15:$O$153,14,FALSE) -> 1 | S96: D
C97: III | E97: PI-11 | H97: 2 | J97: =VLOOKUP(E97,'Input. 2016 fmk'!$B$15:$O$153,14,FALSE) -> 2 | S97: C
C98: III | E98: PI-12 | J98: =VLOOKUP(E98,'Input. 2016 fmk'!$B$15:$O$153,14,FALSE) -> 0 | S98: NA
C99: III | E99: PI-13 | G99: 3 | J99: =VLOOKUP(E99,'Input. 2016 fmk'!$B$15:$O$153,14,FALSE) -> 3 | S99: B+
C100: IV | D100: =VLOOKUP(C100,Profile!B:C,2,FALSE) -> IV. Policy-based fiscal strategy and budgeting | E100: PI-14 | H100: 2 | J100: =VLOOKUP(E100,'Input. 2016 fmk'!$B$15:$O$153,14,FALSE) -> 2 | S100: C
C101: IV | E101: PI-17 | H101: 1.5 | J101: =VLOOKUP(E101,'Input. 2016 fmk'!$B$15:$O$153,14,FALSE) -> 1.5 | S101: D+
C102: IV | E102: PI-18 | H102: 1.5 | J102: =VLOOKUP(E102,'Input. 2016 fmk'!$B$15:$O$153,14,FALSE) -> 1.5 | S102: D+
C103: V | D103: =VLOOKUP(C103,Profile!B:C,2,FALSE) -> V. Predictability and control in budget execution | E103: PI-19 | I103: 1 | J103: =VLOOKUP(E103,'Input. 2016 fmk'!$B$15:$O$153,14,FALSE) -> 1 | S103: D
C104: V | E104: PI-20 | H104: 1.5 | J104: =VLOOKUP(E104,'Input. 2016 fmk'!$B$15:$O$153,14,FALSE) -> 1.5 | S104: D+
C105: V | E105: PI-21 | H105: 2 | J105: =VLOOKUP(E105,'Input. 2016 fmk'!$B$15:$O$153,14,FALSE) -> 2 | S105: C
C106: V | E106: PI-22 | I106: 1 | J106: =VLOOKUP(E106,'Input. 2016 fmk'!$B$15:$O$153,14,FALSE) -> 1 | S106: D
C107: V | E107: PI-23 | I107: 1 | J107: =VLOOKUP(E107,'Input. 2016 fmk'!$B$15:$O$153,14,FALSE) -> 1 | S107: D
C108: V | E108: PI-24 | I108: 1 | J108: =VLOOKUP(E108,'Input. 2016 fmk'!$B$15:$O$153,14,FALSE) -> 1 | S108: D
C109: V | E109: PI-25 | H109: 2.5 | J109: =VLOOKUP(E109,'Input. 2016 fmk'!$B$15:$O$153,14,FALSE) -> 2.5 | S109: C+
C110: V | E110: PI-26 | I110: 1 | J110: =VLOOKUP(E110,'Input. 2016 fmk'!$B$15:$O$153,14,FALSE) -> 1 | S110: D
C111: VI | D111: =VLOOKUP(C111,Profile!B:C,2,FALSE) -> VI. Accounting and reporting | E111: PI-27 | H111: 2.5 | J111: =VLOOKUP(E111,'Input. 2016 fmk'!$B$15:$O$153,14,FALSE) -> 2.5 | S111: C+
C112: VI | E112: PI-28 | I112: 1 | J112: =VLOOKUP(E112,'Input. 2016 fmk'!$B$15:$O$153,14,FALSE) -> 1 | S112: D
C113: VI | E113: PI-29 | H113: 2 | J113: =VLOOKUP(E113,'Input. 2016 fmk'!$B$15:$O$153,14,FALSE) -> 2 | S113: C
C114: VII | D114: =VLOOKUP(C114,Profile!B:C,2,FALSE) -> VII. External scrutiny and audit | E114: PI-30 | I114: 1 | J114: =VLOOKUP(E114,'Input. 2016 fmk'!$B$15:$O$153,14,FALSE) -> 1 | S114: D
C115: VII | E115: PI-31 | I115: 1 | J115: =VLOOKUP(E115,'Input. 2016 fmk'!$B$15:$O$153,14,FALSE) -> 1 | L115: =UPPER(D115) ->  | S115: D

Sheet ES-Synth table
D1: ="PEFA "&'Input. 2016 fmk'!I4&" - Year "&'Input. 2016 fmk'!I7 -> PEFA PEFALIA - Year 2021
A3: Method | C3: Indicators /Dimensions | E3: 1 | F3: 2 | G3: 3 | H3: 4
C4: =Profile!$C$132 -> 28.1 Coverage and comparability of reports
A5: M1 | C5: HLG-1 | D5: =VLOOKUP(C5,Profile!B:C,2,FALSE) -> HLG-1 Transfer from higher levels of government | E5: =_xlfn.IFNA(INDEX(Data!$O$10:$O$139, MATCH(1,(E$3=Data!$J$10:$J$139)*($C5=Data!$I$10:$I$139), 0)),"") -> A | F5: =_xlfn.IFNA(INDEX(Data!$O$10:$O$139, MATCH(1,(F$3=Data!$J$10:$J$139)*($C5=Data!$I$10:$I$139), 0)),"") -> D | G5: =_xlfn.IFNA(INDEX(Data!$O$10:$O$139, MATCH(1,(G$3=Data!$J$10:$J$139)*($C5=Data!$I$10:$I$139), 0)),"") -> D | H5: =_xlfn.IFNA(INDEX(Data!$O$10:$O$139, MATCH(1,(H$3=Data!$J$10:$J$139)*($C5=Data!$I$10:$I$139), 0)),"") -> D | I5: =_xlfn.IFNA(INDEX(Data!$O$10:$O$139, MATCH(1,(I$3=Data!$J$10:$J$139)*($C5=Data!$I$10:$I$139), 0)),"") -> D+
A6: M1 | C6: HLG-2 | D6: =VLOOKUP(C6,Profile!B:C,2,FALSE) -> HLG-2 Fiscal rules and monitoring of fiscal position | E6: =_xlfn.IFNA(INDEX(Data!$O$10:$O$139, MATCH(1,(E$3=Data!$J$10:$J$139)*($C6=Data!$I$10:$I$139), 0)),"") -> D | F6: =_xlfn.IFNA(INDEX(Data!$O$10:$O$139, MATCH(1,(F$3=Data!$J$10:$J$139)*($C6=Data!$I$10:$I$139), 0)),"") -> D | G6: =_xlfn.IFNA(INDEX(Data!$O$10:$O$139, MATCH(1,(G$3=Data!$J$10:$J$139)*($C6=Data!$I$10:$I$139), 0)),"") -> D* | H6: =_xlfn.IFNA(INDEX(Data!$O$10:$O$139, MATCH(1,(H$3=Data!$J$10:$J$139)*($C6=Data!$I$10:$I$139), 0)),"") ->  | I6: =_xlfn.IFNA(INDEX(Data!$O$10:$O$139, MATCH(1,(I$3=Data!$J$10:$J$139)*($C6=Data!$I$10:$I$139), 0)),"") -> D
C7: =Profile!$C$133 -> 28.2 Timing of in-year reports
A8: M1 | C8: PI-1 | D8: =VLOOKUP(C8,Profile!B:C,2,FALSE) -> PI-1 Aggregate expenditure outturn | E8: =_xlfn.IFNA(INDEX(Data!$O$10:$O$139, MATCH(1,(E$3=Data!$J$10:$J$139)*($C8=Data!$I$10:$I$139), 0)),"") -> A | F8: =_xlfn.IFNA(INDEX(Data!$O$10:$O$139, MATCH(1,(F$3=Data!$J$10:$J$139)*($C8=Data!$I$10:$I$139), 0)),"") ->  | G8: =_xlfn.IFNA(INDEX(Data!$O$10:$O$139, MATCH(1,(G$3=Data!$J$10:$J$139)*($C8=Data!$I$10:$I$139), 0)),"") ->  | H8: =_xlfn.IFNA(INDEX(Data!$O$10:$O$139, MATCH(1,(H$3=Data!$J$10:$J$139)*($C8=Data!$I$10:$I$139), 0)),"") ->  | I8: =_xlfn.IFNA(INDEX(Data!$O$10:$O$139, MATCH(1,(I$3=Data!$J$10:$J$139)*($C8=Data!$I$10:$I$139), 0)),"") -> A
A9: M1 | C9: PI-2 | D9: =VLOOKUP(C9,Profile!B:C,2,FALSE) -> PI-2 Expenditure composition outturn | E9: =_xlfn.IFNA(INDEX(Data!$O$10:$O$139, MATCH(1,(E$3=Data!$J$10:$J$139)*($C9=Data!$I$10:$I$139), 0)),"") -> D | F9: =_xlfn.IFNA(INDEX(Data!$O$10:$O$139, MATCH(1,(F$3=Data!$J$10:$J$139)*($C9=Data!$I$10:$I$139), 0)),"") -> D | G9: =_xlfn.IFNA(INDEX(Data!$O$10:$O$139, MATCH(1,(G$3=Data!$J$10:$J$139)*($C9=Data!$I$10:$I$139), 0)),"") -> D | H9: =_xlfn.IFNA(INDEX(Data!$O$10:$O$139, MATCH(1,(H$3=Data!$J$10:$J$139)*($C9=Data!$I$10:$I$139), 0)),"") ->  | I9: =_xlfn.IFNA(INDEX(Data!$O$10:$O$139, MATCH(1,(I$3=Data!$J$10:$J$139)*($C9=Data!$I$10:$I$139), 0)),"") -> D
A10: M1 | C10: PI-3 | D10: =VLOOKUP(C10,Profile!B:C,2,FALSE) -> PI-3 Revenue outturn | E10: =_xlfn.IFNA(INDEX(Data!$O$10:$O$139, MATCH(1,(E$3=Data!$J$10:$J$139)*($C10=Data!$I$10:$I$139), 0)),"") -> D | F10: =_xlfn.IFNA(INDEX(Data!$O$10:$O$139, MATCH(1,(F$3=Data!$J$10:$J$139)*($C10=Data!$I$10:$I$139), 0)),"") -> NA | G10: =_xlfn.IFNA(INDEX(Data!$O$10:$O$139, MATCH(1,(G$3=Data!$J$10:$J$139)*($C10=Data!$I$10:$I$139), 0)),"") ->  | H10: =_xlfn.IFNA(INDEX(Data!$O$10:$O$139, MATCH(1,(H$3=Data!$J$10:$J$139)*($C10=Data!$I$10:$I$139), 0)),"") ->  | I10: =_xlfn.IFNA(INDEX(Data!$O$10:$O$139, MATCH(1,(I$3=Data!$J$10:$J$139)*($C10=Data!$I$10:$I$139), 0)),"") -> D
C11: =Profile!$C$134 -> 28.3 Accuracy of in-year budget reports
A12: M1 | C12: PI-4 | D12: =VLOOKUP(C12,Profile!B:C,2,FALSE) -> PI-4 Budget classification | E12: =_xlfn.IFNA(INDEX(Data!$O$10:$O$139, MATCH(1,(E$3=Data!$J$10:$J$139)*($C12=Data!$I$10:$I$139), 0)),"") -> D | F12: =_xlfn.IFNA(INDEX(Data!$O$10:$O$139, MATCH(1,(F$3=Data!$J$10:$J$139)*($C12=Data!$I$10:$I$139), 0)),"") ->  | G12: =_xlfn.IFNA(INDEX(Data!$O$10:$O$139, MATCH(1,(G$3=Data!$J$10:$J$139)*($C12=Data!$I$10:$I$139), 0)),"") ->  | H12: =_xlfn.IFNA(INDEX(Data!$O$10:$O$139, MATCH(1,(H$3=Data!$J$10:$J$139)*($C12=Data!$I$10:$I$139), 0)),"") ->  | I12: =_xlfn.IFNA(INDEX(Data!$O$10:$O$139, MATCH(1,(I$3=Data!$J$10:$J$139)*($C12=Data!$I$10:$I$139), 0)),"") -> D
A13: M1 | C13: PI-5 | D13: =VLOOKUP(C13,Profile!B:C,2,FALSE) -> PI-5 Budget documentation | E13: =_xlfn.IFNA(INDEX(Data!$O$10:$O$139, MATCH(1,(E$3=Data!$J$10:$J$139)*($C13=Data!$I$10:$I$139), 0)),"") -> D | F13: =_xlfn.IFNA(INDEX(Data!$O$10:$O$139, MATCH(1,(F$3=Data!$J$10:$J$139)*($C13=Data!$I$10:$I$139), 0)),"") ->  | G13: =_xlfn.IFNA(INDEX(Data!$O$10:$O$139, MATCH(1,(G$3=Data!$J$10:$J$139)*($C13=Data!$I$10:$I$139), 0)),"") ->  | H13: =_xlfn.IFNA(INDEX(Data!$O$10:$O$139, MATCH(1,(H$3=Data!$J$10:$J$139)*($C13=Data!$I$10:$I$139), 0)),"") ->  | I13: =_xlfn.IFNA(INDEX(Data!$O$10:$O$139, MATCH(1,(I$3=Data!$J$10:$J$139)*($C13=Data!$I$10:$I$139), 0)),"") -> D
A14: M2 | C14: PI-6 | D14: =VLOOKUP(C14,Profile!B:C,2,FALSE) -> PI-6 Central government operations outside the budget | E14: =_xlfn.IFNA(INDEX(Data!$O$10:$O$139, MATCH(1,(E$3=Data!$J$10:$J$139)*($C14=Data!$I$10:$I$139), 0)),"") -> D* | F14: =_xlfn.IFNA(INDEX(Data!$O$10:$O$139, MATCH(1,(F$3=Data!$J$10:$J$139)*($C14=Data!$I$10:$I$139), 0)),"") -> D* | G14: =_xlfn.IFNA(INDEX(Data!$O$10:$O$139, MATCH(1,(G$3=Data!$J$10:$J$139)*($C14=Data!$I$10:$I$139), 0)),"") -> D | H14: =_xlfn.IFNA(INDEX(Data!$O$10:$O$139, MATCH(1,(H$3=Data!$J$10:$J$139)*($C14=Data!$I$10:$I$139), 0)),"") ->  | I14: =_xlfn.IFNA(INDEX(Data!$O$10:$O$139, MATCH(1,(I$3=Data!$J$10:$J$139)*($C14=Data!$I$10:$I$139), 0)),"") -> D
A15: M2 | C15: PI-7 | D15: =VLOOKUP(C15,Profile!B:C,2,FALSE) -> PI-7 Transfers to sub-national government | E15: =_xlfn.IFNA(INDEX(Data!$O$10:$O$139, MATCH(1,(E$3=Data!$J$10:$J$139)*($C15=Data!$I$10:$I$139), 0)),"") -> NA | F15: =_xlfn.IFNA(INDEX(Data!$O$10:$O$139, MATCH(1,(F$3=Data!$J$10:$J$139)*($C15=Data!$I$10:$I$139), 0)),"") -> NA | G15: =_xlfn.IFNA(INDEX(Data!$O$10:$O$139, MATCH(1,(G$3=Data!$J$10:$J$139)*($C15=Data!$I$10:$I$139), 0)),"") ->  | H15: =_xlfn.IFNA(INDEX(Data!$O$10:$O$139, MATCH(1,(H$3=Data!$J$10:$J$139)*($C15=Data!$I$10:$I$139), 0)),"") ->  | I15: =_xlfn.IFNA(INDEX(Data!$O$10:$O$139, MATCH(1,(I$3=Data!$J$10:$J$139)*($C15=Data!$I$10:$I$139), 0)),"") -> NA
A16: M2 | C16: PI-8 | D16: =VLOOKUP(C16,Profile!B:C,2,FALSE) -> PI-8 Performance information for service delivery | E16: =_xlfn.IFNA(INDEX(Data!$O$10:$O$139, MATCH(1,(E$3=Data!$J$10:$J$139)*($C16=Data!$I$10:$I$139), 0)),"") -> D | F16: =_xlfn.IFNA(INDEX(Data!$O$10:$O$139, MATCH(1,(F$3=Data!$J$10:$J$139)*($C16=Data!$I$10:$I$139), 0)),"") -> C | G16: =_xlfn.IFNA(INDEX(Data!$O$10:$O$139, MATCH(1,(G$3=Data!$J$10:$J$139)*($C16=Data!$I$10:$I$139), 0)),"") -> D | H16: =_xlfn.IFNA(INDEX(Data!$O$10:$O$139, MATCH(1,(H$3=Data!$J$10:$J$139)*($C16=Data!$I$10:$I$139), 0)),"") -> C | I16: =_xlfn.IFNA(INDEX(Data!$O$10:$O$139, MATCH(1,(I$3=Data!$J$10:$J$139)*($C16=Data!$I$10:$I$139), 0)),"") -> D+
A17: M1 | C17: PI-9 | D17: =VLOOKUP(C17,Profile!B:C,2,FALSE) -> PI-9 Public access to fiscal information | E17: =_xlfn.IFNA(INDEX(Data!$O$10:$O$139, MATCH(1,(E$3=Data!$J$10:$J$139)*($C17=Data!$I$10:$I$139), 0)),"") -> D | F17: =_xlfn.IFNA(INDEX(Data!$O$10:$O$139, MATCH(1,(F$3=Data!$J$10:$J$139)*($C17=Data!$I$10:$I$139), 0)),"") ->  | G17: =_xlfn.IFNA(INDEX(Data!$O$10:$O$139, MATCH(1,(G$3=Data!$J$10:$J$139)*($C17=Data!$I$10:$I$139), 0)),"") ->  | H17: =_xlfn.IFNA(INDEX(Data!$O$10:$O$139, MATCH(1,(H$3=Data!$J$10:$J$139)*($C17=Data!$I$10:$I$139), 0)),"") ->  | I17: =_xlfn.IFNA(INDEX(Data!$O$10:$O$139, MATCH(1,(I$3=Data!$J$10:$J$139)*($C17=Data!$I$10:$I$139), 0)),"") -> D
C18: =Profile!$C$135 -> PI-29 Annual financial reports
A19: M2 | C19: PI-10 | D19: =VLOOKUP(C19,Profile!B:C,2,FALSE) -> PI-10 Fiscal risk reporting | E19: =_xlfn.IFNA(INDEX(Data!$O$10:$O$139, MATCH(1,(E$3=Data!$J$10:$J$139)*($C19=Data!$I$10:$I$139), 0)),"") -> D | F19: =_xlfn.IFNA(INDEX(Data!$O$10:$O$139, MATCH(1,(F$3=Data!$J$10:$J$139)*($C19=Data!$I$10:$I$139), 0)),"") -> D | G19: =_xlfn.IFNA(INDEX(Data!$O$10:$O$139, MATCH(1,(G$3=Data!$J$10:$J$139)*($C19=Data!$I$10:$I$139), 0)),"") -> D | H19: =_xlfn.IFNA(INDEX(Data!$O$10:$O$139, MATCH(1,(H$3=Data!$J$10:$J$139)*($C19=Data!$I$10:$I$139), 0)),"") ->  | I19: =_xlfn.IFNA(INDEX(Data!$O$10:$O$139, MATCH(1,(I$3=Data!$J$10:$J$139)*($C19=Data!$I$10:$I$139), 0)),"") -> D
A20: M2 | C20: PI-11 | D20: =VLOOKUP(C20,Profile!B:C,2,FALSE) -> PI-11 Public investment management | E20: =_xlfn.IFNA(INDEX(Data!$O$10:$O$139, MATCH(1,(E$3=Data!$J$10:$J$139)*($C20=Data!$I$10:$I$139), 0)),"") -> D | F20: =_xlfn.IFNA(INDEX(Data!$O$10:$O$139, MATCH(1,(F$3=Data!$J$10:$J$139)*($C20=Data!$I$10:$I$139), 0)),"") -> C | G20: =_xlfn.IFNA(INDEX(Data!$O$10:$O$139, MATCH(1,(G$3=Data!$J$10:$J$139)*($C20=Data!$I$10:$I$139), 0)),"") -> D | H20: =_xlfn.IFNA(INDEX(Data!$O$10:$O$139, MATCH(1,(H$3=Data!$J$10:$J$139)*($C20=Data!$I$10:$I$139), 0)),"") -> A | I20: =_xlfn.IFNA(INDEX(Data!$O$10:$O$139, MATCH(1,(I$3=Data!$J$10:$J$139)*($C20=Data!$I$10:$I$139), 0)),"") -> C
A21: M2 | C21: PI-12 | D21: =VLOOKUP(C21,Profile!B:C,2,FALSE) -> PI-12 Public asset management | E21: =_xlfn.IFNA(INDEX(Data!$O$10:$O$139, MATCH(1,(E$3=Data!$J$10:$J$139)*($C21=Data!$I$10:$I$139), 0)),"") -> NA | F21: =_xlfn.IFNA(INDEX(Data!$O$10:$O$139, MATCH(1,(F$3=Data!$J$10:$J$139)*($C21=Data!$I$10:$I$139), 0)),"") -> NA | G21: =_xlfn.IFNA(INDEX(Data!$O$10:$O$139, MATCH(1,(G$3=Data!$J$10:$J$139)*($C21=Data!$I$10:$I$139), 0)),"") -> NA | H21: =_xlfn.IFNA(INDEX(Data!$O$10:$O$139, MATCH(1,(H$3=Data!$J$10:$J$139)*($C21=Data!$I$10:$I$139), 0)),"") ->  | I21: =_xlfn.IFNA(INDEX(Data!$O$10:$O$139, MATCH(1,(I$3=Data!$J$10:$J$139)*($C21=Data!$I$10:$I$139), 0)),"") -> NA
A22: M2 | C22: PI-13 | D22: =VLOOKUP(C22,Profile!B:C,2,FALSE) -> PI-13 Debt management | E22: =_xlfn.IFNA(INDEX(Data!$O$10:$O$139, MATCH(1,(E$3=Data!$J$10:$J$139)*($C22=Data!$I$10:$I$139), 0)),"") -> C | F22: =_xlfn.IFNA(INDEX(Data!$O$10:$O$139, MATCH(1,(F$3=Data!$J$10:$J$139)*($C22=Data!$I$10:$I$139), 0)),"") -> A | G22: =_xlfn.IFNA(INDEX(Data!$O$10:$O$139, MATCH(1,(G$3=Data!$J$10:$J$139)*($C22=Data!$I$10:$I$139), 0)),"") -> NA | H22: =_xlfn.IFNA(INDEX(Data!$O$10:$O$139, MATCH(1,(H$3=Data!$J$10:$J$139)*($C22=Data!$I$10:$I$139), 0)),"") ->  | I22: =_xlfn.IFNA(INDEX(Data!$O$10:$O$139, MATCH(1,(I$3=Data!$J$10:$J$139)*($C22=Data!$I$10:$I$139), 0)),"") -> B
C23: =Profile!$C$136 -> 29.1 Completeness of annual financial reports
A24: M2 | C24: PI-14 | D24: =VLOOKUP(C24,Profile!B:C,2,FALSE) -> PI-14 Medium-term budget strategy | E24: =_xlfn.IFNA(INDEX(Data!$O$10:$O$139, MATCH(1,(E$3=Data!$J$10:$J$139)*($C24=Data!$I$10:$I$139), 0)),"") -> D | F24: =_xlfn.IFNA(INDEX(Data!$O$10:$O$139, MATCH(1,(F$3=Data!$J$10:$J$139)*($C24=Data!$I$10:$I$139), 0)),"") -> A | G24: =_xlfn.IFNA(INDEX(Data!$O$10:$O$139, MATCH(1,(G$3=Data!$J$10:$J$139)*($C24=Data!$I$10:$I$139), 0)),"") -> D | H24: =_xlfn.IFNA(INDEX(Data!$O$10:$O$139, MATCH(1,(H$3=Data!$J$10:$J$139)*($C24=Data!$I$10:$I$139), 0)),"") -> D | I24: =_xlfn.IFNA(INDEX(Data!$O$10:$O$139, MATCH(1,(I$3=Data!$J$10:$J$139)*($C24=Data!$I$10:$I$139), 0)),"") -> C
A25: M2 | C25: PI-17 | D25: =VLOOKUP(C25,Profile!B:C,2,FALSE) -> PI-17 Budget preparation process | E25: =_xlfn.IFNA(INDEX(Data!$O$10:$O$139, MATCH(1,(E$3=Data!$J$10:$J$139)*($C25=Data!$I$10:$I$139), 0)),"") -> D | F25: =_xlfn.IFNA(INDEX(Data!$O$10:$O$139, MATCH(1,(F$3=Data!$J$10:$J$139)*($C25=Data!$I$10:$I$139), 0)),"") -> B | G25: =_xlfn.IFNA(INDEX(Data!$O$10:$O$139, MATCH(1,(G$3=Data!$J$10:$J$139)*($C25=Data!$I$10:$I$139), 0)),"") -> D | H25: =_xlfn.IFNA(INDEX(Data!$O$10:$O$139, MATCH(1,(H$3=Data!$J$10:$J$139)*($C25=Data!$I$10:$I$139), 0)),"") ->  | I25: =_xlfn.IFNA(INDEX(Data!$O$10:$O$139, MATCH(1,(I$3=Data!$J$10:$J$139)*($C25=Data!$I$10:$I$139), 0)),"") -> D+
A26: M2 | C26: PI-18 | D26: =VLOOKUP(C26,Profile!B:C,2,FALSE) -> PI-18 Legislative scrutiny of budgets | E26: =_xlfn.IFNA(INDEX(Data!$O$10:$O$139, MATCH(1,(E$3=Data!$J$10:$J$139)*($C26=Data!$I$10:$I$139), 0)),"") -> D | F26: =_xlfn.IFNA(INDEX(Data!$O$10:$O$139, MATCH(1,(F$3=Data!$J$10:$J$139)*($C26=Data!$I$10:$I$139), 0)),"") -> D | G26: =_xlfn.IFNA(INDEX(Data!$O$10:$O$139, MATCH(1,(G$3=Data!$J$10:$J$139)*($C26=Data!$I$10:$I$139), 0)),"") -> NA | H26: =_xlfn.IFNA(INDEX(Data!$O$10:$O$139, MATCH(1,(H$3=Data!$J$10:$J$139)*($C26=Data!$I$10:$I$139), 0)),"") -> A | I26: =_xlfn.IFNA(INDEX(Data!$O$10:$O$139, MATCH(1,(I$3=Data!$J$10:$J$139)*($C26=Data!$I$10:$I$139), 0)),"") -> D+
C27: =Profile!$C$137 -> 29.2 Submission of reports for external audit
A28: M2 | C28: PI-19 | D28: =VLOOKUP(C28,Profile!B:C,2,FALSE) -> PI-19 Tax administration | E28: =_xlfn.IFNA(INDEX(Data!$O$10:$O$139, MATCH(1,(E$3=Data!$J$10:$J$139)*($C28=Data!$I$10:$I$139), 0)),"") -> D | F28: =_xlfn.IFNA(INDEX(Data!$O$10:$O$139, MATCH(1,(F$3=Data!$J$10:$J$139)*($C28=Data!$I$10:$I$139), 0)),"") -> NA | G28: =_xlfn.IFNA(INDEX(Data!$O$10:$O$139, MATCH(1,(G$3=Data!$J$10:$J$139)*($C28=Data!$I$10:$I$139), 0)),"") -> NA | H28: =_xlfn.IFNA(INDEX(Data!$O$10:$O$139, MATCH(1,(H$3=Data!$J$10:$J$139)*($C28=Data!$I$10:$I$139), 0)),"") -> NA | I28: =_xlfn.IFNA(INDEX(Data!$O$10:$O$139, MATCH(1,(I$3=Data!$J$10:$J$139)*($C28=Data!$I$10:$I$139), 0)),"") -> D
A29: M1 | C29: PI-20 | D29: =VLOOKUP(C29,Profile!B:C,2,FALSE) -> PI-20 Accounting for revenues | E29: =_xlfn.IFNA(INDEX(Data!$O$10:$O$139, MATCH(1,(E$3=Data!$J$10:$J$139)*($C29=Data!$I$10:$I$139), 0)),"") -> D | F29: =_xlfn.IFNA(INDEX(Data!$O$10:$O$139, MATCH(1,(F$3=Data!$J$10:$J$139)*($C29=Data!$I$10:$I$139), 0)),"") -> NA | G29: =_xlfn.IFNA(INDEX(Data!$O$10:$O$139, MATCH(1,(G$3=Data!$J$10:$J$139)*($C29=Data!$I$10:$I$139), 0)),"") -> B | H29: =_xlfn.IFNA(INDEX(Data!$O$10:$O$139, MATCH(1,(H$3=Data!$J$10:$J$139)*($C29=Data!$I$10:$I$139), 0)),"") ->  | I29: =_xlfn.IFNA(INDEX(Data!$O$10:$O$139, MATCH(1,(I$3=Data!$J$10:$J$139)*($C29=Data!$I$10:$I$139), 0)),"") -> D+
A30: M2 | C30: PI-21 | D30: =VLOOKUP(C30,Profile!B:C,2,FALSE) -> PI-21 Predictability of in-year resource allocation | E30: =_xlfn.IFNA(INDEX(Data!$O$10:$O$139, MATCH(1,(E$3=Data!$J$10:$J$139)*($C30=Data!$I$10:$I$139), 0)),"") -> NA | F30: =_xlfn.IFNA(INDEX(Data!$O$10:$O$139, MATCH(1,(F$3=Data!$J$10:$J$139)*($C30=Data!$I$10:$I$139), 0)),"") -> NA | G30: =_xlfn.IFNA(INDEX(Data!$O$10:$O$139, MATCH(1,(G$3=Data!$J$10:$J$139)*($C30=Data!$I$10:$I$139), 0)),"") -> C | H30: =_xlfn.IFNA(INDEX(Data!$O$10:$O$139, MATCH(1,(H$3=Data!$J$10:$J$139)*($C30=Data!$I$10:$I$139), 0)),"") -> C | I30: =_xlfn.IFNA(INDEX(Data!$O$10:$O$139, MATCH(1,(I$3=Data!$J$10:$J$139)*($C30=Data!$I$10:$I$139), 0)),"") -> C
A31: M1 | C31: PI-22 | D31: =VLOOKUP(C31,Profile!B:C,2,FALSE) -> PI-22 Expenditure arrears | E31: =_xlfn.IFNA(INDEX(Data!$O$10:$O$139, MATCH(1,(E$3=Data!$J$10:$J$139)*($C31=Data!$I$10:$I$139), 0)),"") -> D* | F31: =_xlfn.IFNA(INDEX(Data!$O$10:$O$139, MATCH(1,(F$3=Data!$J$10:$J$139)*($C31=Data!$I$10:$I$139), 0)),"") -> NA | G31: =_xlfn.IFNA(INDEX(Data!$O$10:$O$139, MATCH(1,(G$3=Data!$J$10:$J$139)*($C31=Data!$I$10:$I$139), 0)),"") ->  | H31: =_xlfn.IFNA(INDEX(Data!$O$10:$O$139, MATCH(1,(H$3=Data!$J$10:$J$139)*($C31=Data!$I$10:$I$139), 0)),"") ->  | I31: =_xlfn.IFNA(INDEX(Data!$O$10:$O$139, MATCH(1,(I$3=Data!$J$10:$J$139)*($C31=Data!$I$10:$I$139), 0)),"") -> D
A32: M1 | C32: PI-23 | D32: =VLOOKUP(C32,Profile!B:C,2,FALSE) -> PI-23 Payroll controls | E32: =_xlfn.IFNA(INDEX(Data!$O$10:$O$139, MATCH(1,(E$3=Data!$J$10:$J$139)*($C32=Data!$I$10:$I$139), 0)),"") -> NA | F32: =_xlfn.IFNA(INDEX(Data!$O$10:$O$139, MATCH(1,(F$3=Data!$J$10:$J$139)*($C32=Data!$I$10:$I$139), 0)),"") -> D | G32: =_xlfn.IFNA(INDEX(Data!$O$10:$O$139, MATCH(1,(G$3=Data!$J$10:$J$139)*($C32=Data!$I$10:$I$139), 0)),"") -> D | H32: =_xlfn.IFNA(INDEX(Data!$O$10:$O$139, MATCH(1,(H$3=Data!$J$10:$J$139)*($C32=Data!$I$10:$I$139), 0)),"") -> D | I32: =_xlfn.IFNA(INDEX(Data!$O$10:$O$139, MATCH(1,(I$3=Data!$J$10:$J$139)*($C32=Data!$I$10:$I$139), 0)),"") -> D
A33: M2 | C33: PI-24 | D33: =VLOOKUP(C33,Profile!B:C,2,FALSE) -> PI-24 Procurement | E33: =_xlfn.IFNA(INDEX(Data!$O$10:$O$139, MATCH(1,(E$3=Data!$J$10:$J$139)*($C33=Data!$I$10:$I$139), 0)),"") -> D* | F33: =_xlfn.IFNA(INDEX(Data!$O$10:$O$139, MATCH(1,(F$3=Data!$J$10:$J$139)*($C33=Data!$I$10:$I$139), 0)),"") -> D* | G33: =_xlfn.IFNA(INDEX(Data!$O$10:$O$139, MATCH(1,(G$3=Data!$J$10:$J$139)*($C33=Data!$I$10:$I$139), 0)),"") -> D | H33: =_xlfn.IFNA(INDEX(Data!$O$10:$O$139, MATCH(1,(H$3=Data!$J$10:$J$139)*($C33=Data!$I$10:$I$139), 0)),"") -> NA | I33: =_xlfn.IFNA(INDEX(Data!$O$10:$O$139, MATCH(1,(I$3=Data!$J$10:$J$139)*($C33=Data!$I$10:$I$139), 0)),"") -> D
A34: M2 | C34: PI-25 | D34: =VLOOKUP(C34,Profile!B:C,2,FALSE) -> PI-25 Internal controls on non-salary expenditure | E34: =_xlfn.IFNA(INDEX(Data!$O$10:$O$139, MATCH(1,(E$3=Data!$J$10:$J$139)*($C34=Data!$I$10:$I$139), 0)),"") -> A | F34: =_xlfn.IFNA(INDEX(Data!$O$10:$O$139, MATCH(1,(F$3=Data!$J$10:$J$139)*($C34=Data!$I$10:$I$139), 0)),"") -> C | G34: =_xlfn.IFNA(INDEX(Data!$O$10:$O$139, MATCH(1,(G$3=Data!$J$10:$J$139)*($C34=Data!$I$10:$I$139), 0)),"") -> D* | H34: =_xlfn.IFNA(INDEX(Data!$O$10:$O$139, MATCH(1,(H$3=Data!$J$10:$J$139)*($C34=Data!$I$10:$I$139), 0)),"") ->  | I34: =_xlfn.IFNA(INDEX(Data!$O$10:$O$139, MATCH(1,(I$3=Data!$J$10:$J$139)*($C34=Data!$I$10:$I$139), 0)),"") -> C+
A35: M1 | C35: PI-26 | D35: =VLOOKUP(C35,Profile!B:C,2,FALSE) -> PI-26 Internal audit | E35: =_xlfn.IFNA(INDEX(Data!$O$10:$O$139, MATCH(1,(E$3=Data!$J$10:$J$139)*($C35=Data!$I$10:$I$139), 0)),"") -> D | F35: =_xlfn.IFNA(INDEX(Data!$O$10:$O$139, MATCH(1,(F$3=Data!$J$10:$J$139)*($C35=Data!$I$10:$I$139), 0)),"") -> NA | G35: =_xlfn.IFNA(INDEX(Data!$O$10:$O$139, MATCH(1,(G$3=Data!$J$10:$J$139)*($C35=Data!$I$10:$I$139), 0)),"") -> NA | H35: =_xlfn.IFNA(INDEX(Data!$O$10:$O$139, MATCH(1,(H$3=Data!$J$10:$J$139)*($C35=Data!$I$10:$I$139), 0)),"") -> NA | I35: =_xlfn.IFNA(INDEX(Data!$O$10:$O$139, MATCH(1,(I$3=Data!$J$10:$J$139)*($C35=Data!$I$10:$I$139), 0)),"") -> D
C36: =Profile!$C$138 -> 29.3 Accounting standards
A37: M2 | C37: PI-27 | D37: =VLOOKUP(C37,Profile!B:C,2,FALSE) -> PI-27 Financial data integrity | E37: =_xlfn.IFNA(INDEX(Data!$O$10:$O$139, MATCH(1,(E$3=Data!$J$10:$J$139)*($C37=Data!$I$10:$I$139), 0)),"") -> B | F37: =_xlfn.IFNA(INDEX(Data!$O$10:$O$139, MATCH(1,(F$3=Data!$J$10:$J$139)*($C37=Data!$I$10:$I$139), 0)),"") -> D | G37: =_xlfn.IFNA(INDEX(Data!$O$10:$O$139, MATCH(1,(G$3=Data!$J$10:$J$139)*($C37=Data!$I$10:$I$139), 0)),"") -> NA | H37: =_xlfn.IFNA(INDEX(Data!$O$10:$O$139, MATCH(1,(H$3=Data!$J$10:$J$139)*($C37=Data!$I$10:$I$139), 0)),"") -> B | I37: =_xlfn.IFNA(INDEX(Data!$O$10:$O$139, MATCH(1,(I$3=Data!$J$10:$J$139)*($C37=Data!$I$10:$I$139), 0)),"") -> C+
A38: M1 | C38: PI-28 | D38: =VLOOKUP(C38,Profile!B:C,2,FALSE) -> PI-28 In-year budget reports | E38: =_xlfn.IFNA(INDEX(Data!$O$10:$O$139, MATCH(1,(E$3=Data!$J$10:$J$139)*($C38=Data!$I$10:$I$139), 0)),"") -> D | F38: =_xlfn.IFNA(INDEX(Data!$O$10:$O$139, MATCH(1,(F$3=Data!$J$10:$J$139)*($C38=Data!$I$10:$I$139), 0)),"") -> NA | G38: =_xlfn.IFNA(INDEX(Data!$O$10:$O$139, MATCH(1,(G$3=Data!$J$10:$J$139)*($C38=Data!$I$10:$I$139), 0)),"") -> NA | H38: =_xlfn.IFNA(INDEX(Data!$O$10:$O$139, MATCH(1,(H$3=Data!$J$10:$J$139)*($C38=Data!$I$10:$I$139), 0)),"") ->  | I38: =_xlfn.IFNA(INDEX(Data!$O$10:$O$139, MATCH(1,(I$3=Data!$J$10:$J$139)*($C38=Data!$I$10:$I$139), 0)),"") -> D
A39: M1 | C39: PI-29 | D39: =VLOOKUP(C39,Profile!B:C,2,FALSE) -> PI-29 Annual financial reports | E39: =_xlfn.IFNA(INDEX(Data!$O$10:$O$139, MATCH(1,(E$3=Data!$J$10:$J$139)*($C39=Data!$I$10:$I$139), 0)),"") -> C | F39: =_xlfn.IFNA(INDEX(Data!$O$10:$O$139, MATCH(1,(F$3=Data!$J$10:$J$139)*($C39=Data!$I$10:$I$139), 0)),"") -> C | G39: =_xlfn.IFNA(INDEX(Data!$O$10:$O$139, MATCH(1,(G$3=Data!$J$10:$J$139)*($C39=Data!$I$10:$I$139), 0)),"") -> C | H39: =_xlfn.IFNA(INDEX(Data!$O$10:$O$139, MATCH(1,(H$3=Data!$J$10:$J$139)*($C39=Data!$I$10:$I$139), 0)),"") ->  | I39: =_xlfn.IFNA(INDEX(Data!$O$10:$O$139, MATCH(1,(I$3=Data!$J$10:$J$139)*($C39=Data!$I$10:$I$139), 0)),"") -> C
C40: =Profile!$C$139 -> PI-30 External Audit
A41: M1 | C41: PI-30 | D41: =VLOOKUP(C41,Profile!B:C,2,FALSE) -> PI-30 External Audit | E41: =_xlfn.IFNA(INDEX(Data!$O$10:$O$139, MATCH(1,(E$3=Data!$J$10:$J$139)*($C41=Data!$I$10:$I$139), 0)),"") -> D | F41: =_xlfn.IFNA(INDEX(Data!$O$10:$O$139, MATCH(1,(F$3=Data!$J$10:$J$139)*($C41=Data!$I$10:$I$139), 0)),"") -> NA | G41: =_xlfn.IFNA(INDEX(Data!$O$10:$O$139, MATCH(1,(G$3=Data!$J$10:$J$139)*($C41=Data!$I$10:$I$139), 0)),"") -> NA | H41: =_xlfn.IFNA(INDEX(Data!$O$10:$O$139, MATCH(1,(H$3=Data!$J$10:$J$139)*($C41=Data!$I$10:$I$139), 0)),"") -> NA | I41: =_xlfn.IFNA(INDEX(Data!$O$10:$O$139, MATCH(1,(I$3=Data!$J$10:$J$139)*($C41=Data!$I$10:$I$139), 0)),"") -> D
A42: M2 | C42: PI-31 | D42: =VLOOKUP(C42,Profile!B:C,2,FALSE) -> PI-31 Legislative Scrutiny of Audit Reports | E42: =_xlfn.IFNA(INDEX(Data!$O$10:$O$139, MATCH(1,(E$3=Data!$J$10:$J$139)*($C42=Data!$I$10:$I$139), 0)),"") -> D | F42: =_xlfn.IFNA(INDEX(Data!$O$10:$O$139, MATCH(1,(F$3=Data!$J$10:$J$139)*($C42=Data!$I$10:$I$139), 0)),"") -> D | G42: =_xlfn.IFNA(INDEX(Data!$O$10:$O$139, MATCH(1,(G$3=Data!$J$10:$J$139)*($C42=Data!$I$10:$I$139), 0)),"") -> D | H42: =_xlfn.IFNA(INDEX(Data!$O$10:$O$139, MATCH(1,(H$3=Data!$J$10:$J$139)*($C42=Data!$I$10:$I$139), 0)),"") -> D | I42: =_xlfn.IFNA(INDEX(Data!$O$10:$O$139, MATCH(1,(I$3=Data!$J$10:$J$139)*($C42=Data!$I$10:$I$139), 0)),"") -> D

Sheet ES-Scores - 2016 Fmk
H2: =Profile!F265 -> PEFA scores by indicators
B3: Ind | C3: ="PEFA "&'Input. 2016 fmk'!$K$15 -> PEFA 2021
B4: A | C4: =COUNTIFS('Input. 2016 fmk'!$E$16:$E$153,"Indic",'Input. 2016 fmk'!$K$16:$K$153,"A") -> 1
B5: B+ | C5: =COUNTIFS('Input. 2016 fmk'!$E$16:$E$153,"Indic",'Input. 2016 fmk'!$K$16:$K$153,"B+") -> 0
B6: B | C6: =COUNTIFS('Input. 2016 fmk'!$E$16:$E$153,"Indic",'Input. 2016 fmk'!$K$16:$K$153,"B") -> 1
B7: C+ | C7: =COUNTIFS('Input. 2016 fmk'!$E$16:$E$153,"Indic",'Input. 2016 fmk'!$K$16:$K$153,"C+") -> 2
B8: C | C8: =COUNTIFS('Input. 2016 fmk'!$E$16:$E$153,"Indic",'Input. 2016 fmk'!$K$16:$K$153,"C") -> 4
B9: D+ | C9: =COUNTIFS('Input. 2016 fmk'!$E$16:$E$153,"Indic",'Input. 2016 fmk'!$K$16:$K$153,"D+") -> 6
B10: D | C10: =COUNTIFS('Input. 2016 fmk'!$E$16:$E$153,"Indic",'Input. 2016 fmk'!$K$16:$K$153,"D") -> 16
B11: NU | C11: =COUNTIFS('Input. 2016 fmk'!$E$16:$E$153,"Indic",'Input. 2016 fmk'!$K$16:$K$153,"NU") -> 0
B12: NA | C12: =COUNTIFS('Input. 2016 fmk'!$E$16:$E$153,"Indic",'Input. 2016 fmk'!$K$16:$K$153,"NA") -> 2
B13: Total | C13: =SUM(B4:C12) -> 32
H20: =Profile!F266 -> PEFA scores by dimension
B21: Comp | C21: ="PEFA "&'Input. 2016 fmk'!$K$15 -> PEFA 2021
B22: A | C22: =COUNTIFS('Input. 2016 fmk'!$E$16:$E$153,"Comp",'Input. 2016 fmk'!$K$16:$K$153,"A") -> 7
B23: B | C23: =COUNTIFS('Input. 2016 fmk'!$E$16:$E$153,"Comp",'Input. 2016 fmk'!$K$16:$K$153,"B") -> 4
B24: C | C24: =COUNTIFS('Input. 2016 fmk'!$E$16:$E$153,"Comp",'Input. 2016 fmk'!$K$16:$K$153,"C") -> 11
B25: D | C25: =COUNTIFS('Input. 2016 fmk'!$E$16:$E$153,"Comp",'Input. 2016 fmk'!$K$16:$K$153,"D") -> 43
B26: D* | C26: =COUNTIFS('Input. 2016 fmk'!$E$16:$E$153,"Comp",'Input. 2016 fmk'!$K$16:$K$153,"D~*") -> 7
B27: NU | C27: =COUNTIFS('Input. 2016 fmk'!$E$16:$E$153,"Comp",'Input. 2016 fmk'!$K$16:$K$153,"NU") -> 0
B28: NA | C28: =COUNTIFS('Input. 2016 fmk'!$E$16:$E$153,"Comp",'Input. 2016 fmk'!$K$16:$K$153,"NA") -> 26
B29: Total | C29: =SUM(B22:C28) -> 98

Sheet ES-Scores & Evol (hidden)
B3: Ind | C3: ="PEFA "&'Input. 2016 fmk'!$I$9 -> PEFA 2016 | D3: ="PEFA "&'Input. 2016 fmk'!$K$15 -> PEFA 2021
B4: A | C4: =COUNTIFS('Input. 2016 fmk'!$E$16:$E$153,"Indic",'Input. 2016 fmk'!$J$16:$J$153,"A") -> 0 | D4: =COUNTIFS('Input. 2016 fmk'!$E$16:$E$153,"Indic",'Input. 2016 fmk'!$K$16:$K$153,"A") -> 1
B5: B+ | C5: =COUNTIFS('Input. 2016 fmk'!$E$16:$E$153,"Indic",'Input. 2016 fmk'!$J$16:$J$153,"B+") -> 0 | D5: =COUNTIFS('Input. 2016 fmk'!$E$16:$E$153,"Indic",'Input. 2016 fmk'!$K$16:$K$153,"B+") -> 0
B6: B | C6: =COUNTIFS('Input. 2016 fmk'!$E$16:$E$153,"Indic",'Input. 2016 fmk'!$J$16:$J$153,"B") -> 0 | D6: =COUNTIFS('Input. 2016 fmk'!$E$16:$E$153,"Indic",'Input. 2016 fmk'!$K$16:$K$153,"B") -> 1
B7: C+ | C7: =COUNTIFS('Input. 2016 fmk'!$E$16:$E$153,"Indic",'Input. 2016 fmk'!$J$16:$J$153,"C+") -> 0 | D7: =COUNTIFS('Input. 2016 fmk'!$E$16:$E$153,"Indic",'Input. 2016 fmk'!$K$16:$K$153,"C+") -> 2
B8: C | C8: =COUNTIFS('Input. 2016 fmk'!$E$16:$E$153,"Indic",'Input. 2016 fmk'!$J$16:$J$153,"C") -> 0 | D8: =COUNTIFS('Input. 2016 fmk'!$E$16:$E$153,"Indic",'Input. 2016 fmk'!$K$16:$K$153,"C") -> 4
B9: D+ | C9: =COUNTIFS('Input. 2016 fmk'!$E$16:$E$153,"Indic",'Input. 2016 fmk'!$J$16:$J$153,"D+") -> 0 | D9: =COUNTIFS('Input. 2016 fmk'!$E$16:$E$153,"Indic",'Input. 2016 fmk'!$K$16:$K$153,"D+") -> 6
B10: D | C10: =COUNTIFS('Input. 2016 fmk'!$E$16:$E$153,"Indic",'Input. 2016 fmk'!$J$16:$J$153,"D") -> 0 | D10: =COUNTIFS('Input. 2016 fmk'!$E$16:$E$153,"Indic",'Input. 2016 fmk'!$K$16:$K$153,"D") -> 16
B11: NU | C11: =COUNTIFS('Input. 2016 fmk'!$E$16:$E$153,"Indic",'Input. 2016 fmk'!$J$16:$J$153,"NU") -> 0 | D11: =COUNTIFS('Input. 2016 fmk'!$E$16:$E$153,"Indic",'Input. 2016 fmk'!$K$16:$K$153,"NU") -> 0
B12: NA | C12: =IFERROR(COUNTIFS('Input. 2016 fmk'!$E$16:$E$153,"Indic",'Input. 2016 fmk'!$J$16:$J$153,"NA"),"") -> 32 | D12: =COUNTIFS('Input. 2016 fmk'!$E$16:$E$153,"Indic",'Input. 2016 fmk'!$K$16:$K$153,"NA") -> 2
B13: Total | C13: =SUM(B4:C12) -> 32 | D13: =SUM(D4:D12) -> 32
B21: Ind | C21: ="PEFA "&'Input. 2016 fmk'!$I$9 -> PEFA 2016 | D21: ="PEFA "&'Input. 2016 fmk'!$K$15 -> PEFA 2021
B22: A | C22: =COUNTIFS('Input. 2016 fmk'!$E$16:$E$153,"Comp",'Input. 2016 fmk'!$J$16:$J$153,"A") -> 0 | D22: =COUNTIFS('Input. 2016 fmk'!$E$16:$E$153,"Comp",'Input. 2016 fmk'!$K$16:$K$153,"A") -> 7
B23: B | C23: =COUNTIFS('Input. 2016 fmk'!$E$16:$E$153,"Comp",'Input. 2016 fmk'!$J$16:$J$153,"B") -> 0 | D23: =COUNTIFS('Input. 2016 fmk'!$E$16:$E$153,"Comp",'Input. 2016 fmk'!$K$16:$K$153,"B") -> 4
B24: C | C24: =COUNTIFS('Input. 2016 fmk'!$E$16:$E$153,"Comp",'Input. 2016 fmk'!$J$16:$J$153,"C") -> 0 | D24: =COUNTIFS('Input. 2016 fmk'!$E$16:$E$153,"Comp",'Input. 2016 fmk'!$K$16:$K$153,"C") -> 11
B25: D | C25: =COUNTIFS('Input. 2016 fmk'!$E$16:$E$153,"Comp",'Input. 2016 fmk'!$J$16:$J$153,"D") -> 0 | D25: =COUNTIFS('Input. 2016 fmk'!$E$16:$E$153,"Comp",'Input. 2016 fmk'!$K$16:$K$153,"D") -> 43
B26: D* | C26: =COUNTIFS('Input. 2016 fmk'!$E$16:$E$153,"Comp",'Input. 2016 fmk'!$J$16:$J$153,"D~*") -> 0 | D26: =COUNTIFS('Input. 2016 fmk'!$E$16:$E$153,"Comp",'Input. 2016 fmk'!$K$16:$K$153,"D~*") -> 7
B27: NU | C27: =COUNTIFS('Input. 2016 fmk'!$E$16:$E$153,"Comp",'Input. 2016 fmk'!$J$16:$J$153,"NU") -> 0 | D27: =COUNTIFS('Input. 2016 fmk'!$E$16:$E$153,"Comp",'Input. 2016 fmk'!$K$16:$K$153,"NU") -> 0
B28: NA | C28: =COUNTIFS('Input. 2016 fmk'!$E$16:$E$153,"Comp",'Input. 2016 fmk'!$J$16:$J$153,"NA") -> 0 | D28: =COUNTIFS('Input. 2016 fmk'!$E$16:$E$153,"Comp",'Input. 2016 fmk'!$K$16:$K$153,"NA") -> 26
B29: Total | C29: =SUM(B22:C28) -> 0 | D29: =SUM(D22:D28) -> 98
B37: Ind | C37: Evol
B38: - | C38: =COUNTIFS('Input. 2016 fmk'!$E$16:$E$153,"Indic",'Input. 2016 fmk'!$R$16:$R$153,"-") -> 0
B39: + | C39: =COUNTIFS('Input. 2016 fmk'!$E$16:$E$153,"Indic",'Input. 2016 fmk'!$R$16:$R$153,"+") -> 29
B40: = | C40: =COUNTIFS('Input. 2016 fmk'!$E$16:$E$153,"Indic",'Input. 2016 fmk'!$R$16:$R$153," =") -> 1
B41: N.C | C41: =COUNTIFS('Input. 2016 fmk'!$E$16:$E$153,"Indic",'Input. 2016 fmk'!$R$16:$R$153,"N.C") -> 2
B42: Total | C42: =SUM(B38:C41) -> 32
B52: ID-Comp | C52: Evol
B53: - | C53: =COUNTIFS('Input. 2016 fmk'!$E$16:$E$153,"Comp",'Input. 2016 fmk'!$R$16:$R$153,"-") -> 0
B54: + | C54: =COUNTIFS('Input. 2016 fmk'!$E$16:$E$153,"Comp",'Input. 2016 fmk'!$R$16:$R$153,"+") -> 71
B55: = | C55: =COUNTIFS('Input. 2016 fmk'!$E$16:$E$153,"Comp",'Input. 2016 fmk'!$R$16:$R$153," =") -> 25
B56: N.C | C56: =COUNTIFS('Input. 2016 fmk'!$E$16:$E$153,"Comp",'Input. 2016 fmk'!$R$16:$R$153,"N.C") -> 2
B57: Total | C57: =SUM(B53:C56) -> 98

Sheet S-4.1 Pilars
X1: Indic | Y1: Indic | Z1: Indic
B2: =" PEFA "&'Input. 2016 fmk'!$I$4&"- Year "&'Input. 2016 fmk'!$I$7 -> PEFA PEFALIA- Year 2021 | X2: AD | Y2: AD | Z2: AD
G3: =Profile!F275 -> Scores by pillar
AD4: 4 | AE4: 0 | AF4: A
AD5: 3.5 | AE5: 0 | AF5: B+
AD6: 3 | AE6: 0 | AF6: B+
Z7: xyChart | AA7: Value | AD7: 2.5 | AE7: 0 | AF7: C+
Z8: 1 | AA8: 0 | AD8: 2 | AE8: 0 | AF8: C
Z9: 1.5 | AA9: 0 | AD9: 1.5 | AE9: 0 | AF9: D+
Z10: 2 | AA10: 0 | AD10: 1 | AE10: 0 | AF10: D
Z11: 2.5 | AA11: 0 | AD11: 0.5 | AE11: 0 | AF11: D*
Z12: 3 | AA12: 0 | AD12: 0 | AE12: 0 | AF12: NA
Z13: 3.5 | AA13: 0 | AD13: 0 | AF13: NU
Z14: 4 | AA14: 0 | AB14: A
B34: ID | C34: Pilar | D34: 4. Avancé | E34: 3. SOUND | F34: 2. Basique | G34: 1. Elémentaire | H34: Score
B35: HLG | C35: =VLOOKUP(B35,Profile!B:C,2,FALSE) -> Higher levels of government | D35: =IF($H35>3.65,$H35,"") ->  | E35: =IF(AND($H35<3.66,$H35>2.65),$H35,"") ->  | F35: =IF(AND($H35<=2.65,$H35>1.25),$H35,"") -> 1.5 | G35: =IF(AND($H35<=1.25,$H35>=1),$H35,"") ->  | H35: =VLOOKUP(B35,'Input. 2016 fmk'!$C$15:$O$153,13,FALSE) -> 1.5 | S35: =INDEX($AF$4:$AF$12,MATCH(H35,$AD$4:$AD$12,0)) -> D+
B36: I | C36: =VLOOKUP(B36,Profile!B:C,2,FALSE) -> I. Budget reliability | D36: =IF($H36>3.65,$H36,"") ->  | F36: 1.5 | H36: =VLOOKUP(B36,'Input. 2016 fmk'!$C$15:$O$153,13,FALSE) -> 1.5 | S36: =INDEX($AF$4:$AF$12,MATCH(H36,$AD$4:$AD$12,0)) -> D+
B37: II | C37: =VLOOKUP(B37,Profile!B:C,2,FALSE) -> II. Transparency of public finances | D37: =IF($H37>3.65,H37,"") ->  | G37: 1 | H37: =VLOOKUP(B37,'Input. 2016 fmk'!$C$15:$O$153,13,FALSE) -> 1 | S37: D
B38: III | C38: =VLOOKUP(B38,Profile!B:C,2,FALSE) -> III. Management of assets and liabilities | F38: 1.5 | H38: =VLOOKUP(B38,'Input. 2016 fmk'!$C$15:$O$153,13,FALSE) -> 1.5 | S38: D+
B39: IV | C39: =VLOOKUP(B39,Profile!B:C,2,FALSE) -> IV. Policy-based fiscal strategy and budgeting | F39: 1.5 | H39: =VLOOKUP(B39,'Input. 2016 fmk'!$C$15:$O$153,13,FALSE) -> 1.5 | S39: D+
B40: V | C40: =VLOOKUP(B40,Profile!B:C,2,FALSE) -> V. Predictability and control in budget execution | G40: 1 | H40: =VLOOKUP(B40,'Input. 2016 fmk'!$C$15:$O$153,13,FALSE) -> 1 | S40: D
B41: VI | C41: =VLOOKUP(B41,Profile!B:C,2,FALSE) -> VI. Accounting and reporting | F41: 1.5 | H41: =VLOOKUP(B41,'Input. 2016 fmk'!$C$15:$O$153,13,FALSE) -> 1.5 | S41: D+
B42: VII | C42: =VLOOKUP(B42,Profile!B:C,2,FALSE) -> VII. External scrutiny and audit | G42: 1 | H42: =VLOOKUP(B42,'Input. 2016 fmk'!$C$15:$O$153,13,FALSE) -> 1 | S42: D

Sheet S-4.3 (Indicators)
B48: Score | C48: PI | D48: Label | E48: ADVANCED | F48: GOOD | G48: Basique | H48: Elémentaire | I48: Score
B49: =I49 -> 0 | C49: PI-7 | D49: =INDEX('Input. 2016 fmk'!$B$16:$R$153,MATCH(C49,'Input. 2016 fmk'!$B$16:$B$153,0),8) -> PI-7 Transfers to sub-national government | E49: =IF($I49>3.65,$I49,"") ->  | F49: =IF(AND($I49<3.66,$I49>2.65),$I49,"") ->  | G49: =IF(AND($I49<=2.65,$I49>1.25),$I49,"") ->  | H49: =IF(AND($I49<=1.25,$I49>=1),$I49,"") ->  | I49: =INDEX('Input. 2016 fmk'!$B$16:$R$153,MATCH(C49,'Input. 2016 fmk'!$B$16:$B$153,0),14) -> 0
B50: 1 | C50: PI-19 | D50: =INDEX('Input. 2016 fmk'!$B$16:$R$153,MATCH(C50,'Input. 2016 fmk'!$B$16:$B$153,0),8) -> PI-19 Tax administration | H50: 1 | I50: =INDEX('Input. 2016 fmk'!$B$16:$R$153,MATCH(C50,'Input. 2016 fmk'!$B$16:$B$153,0),14) -> 1
B51: 1 | C51: PI-10 | D51: =INDEX('Input. 2016 fmk'!$B$16:$R$153,MATCH(C51,'Input. 2016 fmk'!$B$16:$B$153,0),8) -> PI-10 Fiscal risk reporting | H51: 1 | I51: =INDEX('Input. 2016 fmk'!$B$16:$R$153,MATCH(C51,'Input. 2016 fmk'!$B$16:$B$153,0),14) -> 1
B52: =I52 -> 0 | C52: PI-12 | D52: =INDEX('Input. 2016 fmk'!$B$16:$R$153,MATCH(C52,'Input. 2016 fmk'!$B$16:$B$153,0),8) -> PI-12 Public asset management | E52: =IF($I52>3.65,$I52,"") ->  | F52: =IF(AND($I52<3.66,$I52>2.65),$I52,"") ->  | G52: =IF(AND($I52<=2.65,$I52>1.25),$I52,"") ->  | H52: =IF(AND($I52<=1.25,$I52>=1),$I52,"") ->  | I52: =INDEX('Input. 2016 fmk'!$B$16:$R$153,MATCH(C52,'Input. 2016 fmk'!$B$16:$B$153,0),14) -> 0
B53: =I53 -> 1 | C53: PI-31 | D53: =INDEX('Input. 2016 fmk'!$B$16:$R$153,MATCH(C53,'Input. 2016 fmk'!$B$16:$B$153,0),8) -> PI-31 Legislative Scrutiny of Audit Reports | E53: =IF($I53>3.65,$I53,"") ->  | F53: =IF(AND($I53<3.66,$I53>2.65),$I53,"") ->  | G53: =IF(AND($I53<=2.65,$I53>1.25),$I53,"") ->  | H53: =IF(AND($I53<=1.25,$I53>=1),$I53,"") -> 1 | I53: =INDEX('Input. 2016 fmk'!$B$16:$R$153,MATCH(C53,'Input. 2016 fmk'!$B$16:$B$153,0),14) -> 1
B54: =I54 -> 1 | C54: PI-3 | D54: =INDEX('Input. 2016 fmk'!$B$16:$R$153,MATCH(C54,'Input. 2016 fmk'!$B$16:$B$153,0),8) -> PI-3 Revenue outturn | E54: =IF($I54>3.65,$I54,"") ->  | F54: =IF(AND($I54<3.66,$I54>2.65),$I54,"") ->  | G54: =IF(AND($I54<=2.65,$I54>1.25),$I54,"") ->  | H54: =IF(AND($I54<=1.25,$I54>=1),$I54,"") -> 1 | I54: =INDEX('Input. 2016 fmk'!$B$16:$R$153,MATCH(C54,'Input. 2016 fmk'!$B$16:$B$153,0),14) -> 1
B55: =I55 -> 1 | C55: PI-26 | D55: =INDEX('Input. 2016 fmk'!$B$16:$R$153,MATCH(C55,'Input. 2016 fmk'!$B$16:$B$153,0),8) -> PI-26 Internal audit | E55: =IF($I55>3.65,$I55,"") ->  | F55: =IF(AND($I55<3.66,$I55>2.65),$I55,"") ->  | G55: =IF(AND($I55<=2.65,$I55>1.25),$I55,"") ->  | H55: =IF(AND($I55<=1.25,$I55>=1),$I55,"") -> 1 | I55: =INDEX('Input. 2016 fmk'!$B$16:$R$153,MATCH(C55,'Input. 2016 fmk'!$B$16:$B$153,0),14) -> 1
B56: =I56 -> 1 | C56: PI-30 | D56: =INDEX('Input. 2016 fmk'!$B$16:$R$153,MATCH(C56,'Input. 2016 fmk'!$B$16:$B$153,0),8) -> PI-30 External Audit | E56: =IF($I56>3.65,$I56,"") ->  | F56: =IF(AND($I56<3.66,$I56>2.65),$I56,"") ->  | G56: =IF(AND($I56<=2.65,$I56>1.25),$I56,"") ->  | H56: =IF(AND($I56<=1.25,$I56>=1),$I56,"") -> 1 | I56: =INDEX('Input. 2016 fmk'!$B$16:$R$153,MATCH(C56,'Input. 2016 fmk'!$B$16:$B$153,0),14) -> 1
B57: =I57 -> 1 | C57: PI-28 | D57: =INDEX('Input. 2016 fmk'!$B$16:$R$153,MATCH(C57,'Input. 2016 fmk'!$B$16:$B$153,0),8) -> PI-28 In-year budget reports | E57: =IF($I57>3.65,$I57,"") ->  | F57: =IF(AND($I57<3.66,$I57>2.65),$I57,"") ->  | G57: =IF(AND($I57<=2.65,$I57>1.25),$I57,"") ->  | H57: =IF(AND($I57<=1.25,$I57>=1),$I57,"") -> 1 | I57: =INDEX('Input. 2016 fmk'!$B$16:$R$153,MATCH(C57,'Input. 2016 fmk'!$B$16:$B$153,0),14) -> 1
B58: =I58 -> 1 | C58: PI-4 | D58: =INDEX('Input. 2016 fmk'!$B$16:$R$153,MATCH(C58,'Input. 2016 fmk'!$B$16:$B$153,0),8) -> PI-4 Budget classification | E58: =IF($I58>3.65,$I58,"") ->  | F58: =IF(AND($I58<3.66,$I58>2.65),$I58,"") ->  | G58: =IF(AND($I58<=2.65,$I58>1.25),$I58,"") ->  | H58: =IF(AND($I58<=1.25,$I58>=1),$I58,"") -> 1 | I58: =INDEX('Input. 2016 fmk'!$B$16:$R$153,MATCH(C58,'Input. 2016 fmk'!$B$16:$B$153,0),14) -> 1
B59: =I59 -> 1 | C59: PI-9 | D59: =INDEX('Input. 2016 fmk'!$B$16:$R$153,MATCH(C59,'Input. 2016 fmk'!$B$16:$B$153,0),8) -> PI-9 Public access to fiscal information | E59: =IF($I59>3.65,$I59,"") ->  | F59: =IF(AND($I59<3.66,$I59>2.65),$I59,"") ->  | G59: =IF(AND($I59<=2.65,$I59>1.25),$I59,"") ->  | H59: =IF(AND($I59<=1.25,$I59>=1),$I59,"") -> 1 | I59: =INDEX('Input. 2016 fmk'!$B$16:$R$153,MATCH(C59,'Input. 2016 fmk'!$B$16:$B$153,0),14) -> 1
B60: =I60 -> 1 | C60: PI-6 | D60: =INDEX('Input. 2016 fmk'!$B$16:$R$153,MATCH(C60,'Input. 2016 fmk'!$B$16:$B$153,0),8) -> PI-6 Central government operations outside the budget | E60: =IF($I60>3.65,$I60,"") ->  | F60: =IF(AND($I60<3.66,$I60>2.65),$I60,"") ->  | G60: =IF(AND($I60<=2.65,$I60>1.25),$I60,"") ->  | H60: =IF(AND($I60<=1.25,$I60>=1),$I60,"") -> 1 | I60: =INDEX('Input. 2016 fmk'!$B$16:$R$153,MATCH(C60,'Input. 2016 fmk'!$B$16:$B$153,0),14) -> 1
B61: =I61 -> 1 | C61: PI-5 | D61: =INDEX('Input. 2016 fmk'!$B$16:$R$153,MATCH(C61,'Input. 2016 fmk'!$B$16:$B$153,0),8) -> PI-5 Budget documentation | E61: =IF($I61>3.65,$I61,"") ->  | F61: =IF(AND($I61<3.66,$I61>2.65),$I61,"") ->  | G61: =IF(AND($I61<=2.65,$I61>1.25),$I61,"") ->  | H61: =IF(AND($I61<=1.25,$I61>=1),$I61,"") -> 1 | I61: =INDEX('Input. 2016 fmk'!$B$16:$R$153,MATCH(C61,'Input. 2016 fmk'!$B$16:$B$153,0),14) -> 1
B62: =I62 -> 1 | C62: PI-24 | D62: =INDEX('Input. 2016 fmk'!$B$16:$R$153,MATCH(C62,'Input. 2016 fmk'!$B$16:$B$153,0),8) -> PI-24 Procurement | E62: =IF($I62>3.65,$I62,"") ->  | F62: =IF(AND($I62<3.66,$I62>2.65),$I62,"") ->  | G62: =IF(AND($I62<=2.65,$I62>1.25),$I62,"") ->  | H62: =IF(AND($I62<=1.25,$I62>=1),$I62,"") -> 1 | I62: =INDEX('Input. 2016 fmk'!$B$16:$R$153,MATCH(C62,'Input. 2016 fmk'!$B$16:$B$153,0),14) -> 1
B63: =I63 -> 1 | C63: PI-22 | D63: =INDEX('Input. 2016 fmk'!$B$16:$R$153,MATCH(C63,'Input. 2016 fmk'!$B$16:$B$153,0),8) -> PI-22 Expenditure arrears | E63: =IF($I63>3.65,$I63,"") ->  | F63: =IF(AND($I63<3.66,$I63>2.65),$I63,"") ->  | G63: =IF(AND($I63<=2.65,$I63>1.25),$I63,"") ->  | H63: =IF(AND($I63<=1.25,$I63>=1),$I63,"") -> 1 | I63: =INDEX('Input. 2016 fmk'!$B$16:$R$153,MATCH(C63,'Input. 2016 fmk'!$B$16:$B$153,0),14) -> 1
B64: =I64 -> 1 | C64: PI-23 | D64: =INDEX('Input. 2016 fmk'!$B$16:$R$153,MATCH(C64,'Input. 2016 fmk'!$B$16:$B$153,0),8) -> PI-23 Payroll controls | E64: =IF($I64>3.65,$I64,"") ->  | F64: =IF(AND($I64<3.66,$I64>2.65),$I64,"") ->  | G64: =IF(AND($I64<=2.65,$I64>1.25),$I64,"") ->  | H64: =IF(AND($I64<=1.25,$I64>=1),$I64,"") -> 1 | I64: =INDEX('Input. 2016 fmk'!$B$16:$R$153,MATCH(C64,'Input. 2016 fmk'!$B$16:$B$153,0),14) -> 1
B65: =I65 -> 1 | C65: PI-2 | D65: =INDEX('Input. 2016 fmk'!$B$16:$R$153,MATCH(C65,'Input. 2016 fmk'!$B$16:$B$153,0),8) -> PI-2 Expenditure composition outturn | E65: =IF($I65>3.65,$I65,"") ->  | F65: =IF(AND($I65<3.66,$I65>2.65),$I65,"") ->  | G65: =IF(AND($I65<=2.65,$I65>1.25),$I65,"") ->  | H65: =IF(AND($I65<=1.25,$I65>=1),$I65,"") -> 1 | I65: =INDEX('Input. 2016 fmk'!$B$16:$R$153,MATCH(C65,'Input. 2016 fmk'!$B$16:$B$153,0),14) -> 1
B66: =I66 -> 1.5 | C66: PI-8 | D66: =INDEX('Input. 2016 fmk'!$B$16:$R$153,MATCH(C66,'Input. 2016 fmk'!$B$16:$B$153,0),8) -> PI-8 Performance information for service delivery | E66: =IF($I66>3.65,$I66,"") ->  | F66: =IF(AND($I66<3.66,$I66>2.65),$I66,"") ->  | G66: =IF(AND($I66<=2.65,$I66>1.25),$I66,"") -> 1.5 | H66: =IF(AND($I66<=1.25,$I66>=1),$I66,"") ->  | I66: =INDEX('Input. 2016 fmk'!$B$16:$R$153,MATCH(C66,'Input. 2016 fmk'!$B$16:$B$153,0),14) -> 1.5
B67: =I67 -> 1.5 | C67: PI-17 | D67: =INDEX('Input. 2016 fmk'!$B$16:$R$153,MATCH(C67,'Input. 2016 fmk'!$B$16:$B$153,0),8) -> PI-17 Budget preparation process | E67: =IF($I67>3.65,$I67,"") ->  | F67: =IF(AND($I67<3.66,$I67>2.65),$I67,"") ->  | G67: =IF(AND($I67<=2.65,$I67>1.25),$I67,"") -> 1.5 | H67: =IF(AND($I67<=1.25,$I67>=1),$I67,"") ->  | I67: =INDEX('Input. 2016 fmk'!$B$16:$R$153,MATCH(C67,'Input. 2016 fmk'!$B$16:$B$153,0),14) -> 1.5
B68: =I68 -> 1.5 | C68: PI-18 | D68: =INDEX('Input. 2016 fmk'!$B$16:$R$153,MATCH(C68,'Input. 2016 fmk'!$B$16:$B$153,0),8) -> PI-18 Legislative scrutiny of budgets | E68: =IF($I68>3.65,$I68,"") ->  | F68: =IF(AND($I68<3.66,$I68>2.65),$I68,"") ->  | G68: =IF(AND($I68<=2.65,$I68>1.25),$I68,"") -> 1.5 | H68: =IF(AND($I68<=1.25,$I68>=1),$I68,"") ->  | I68: =INDEX('Input. 2016 fmk'!$B$16:$R$153,MATCH(C68,'Input. 2016 fmk'!$B$16:$B$153,0),14) -> 1.5
B69: =I69 -> 1.5 | C69: PI-20 | D69: =INDEX('Input. 2016 fmk'!$B$16:$R$153,MATCH(C69,'Input. 2016 fmk'!$B$16:$B$153,0),8) -> PI-20 Accounting for revenues | E69: =IF($I69>3.65,$I69,"") ->  | F69: =IF(AND($I69<3.66,$I69>2.65),$I69,"") ->  | G69: =IF(AND($I69<=2.65,$I69>1.25),$I69,"") -> 1.5 | H69: =IF(AND($I69<=1.25,$I69>=1),$I69,"") ->  | I69: =INDEX('Input. 2016 fmk'!$B$16:$R$153,MATCH(C69,'Input. 2016 fmk'!$B$16:$B$153,0),14) -> 1.5
B70: =I70 -> 2 | C70: PI-14 | D70: =INDEX('Input. 2016 fmk'!$B$16:$R$153,MATCH(C70,'Input. 2016 fmk'!$B$16:$B$153,0),8) -> PI-14 Medium-term budget strategy | E70: =IF($I70>3.65,$I70,"") ->  | F70: =IF(AND($I70<3.66,$I70>2.65),$I70,"") ->  | G70: =IF(AND($I70<=2.65,$I70>1.25),$I70,"") -> 2 | H70: =IF(AND($I70<=1.25,$I70>=1),$I70,"") ->  | I70: =INDEX('Input. 2016 fmk'!$B$16:$R$153,MATCH(C70,'Input. 2016 fmk'!$B$16:$B$153,0),14) -> 2
B71: =I71 -> 2 | C71: PI-11 | D71: =INDEX('Input. 2016 fmk'!$B$16:$R$153,MATCH(C71,'Input. 2016 fmk'!$B$16:$B$153,0),8) -> PI-11 Public investment management | E71: =IF($I71>3.65,$I71,"") ->  | F71: =IF(AND($I71<3.66,$I71>2.65),$I71,"") ->  | G71: =IF(AND($I71<=2.65,$I71>1.25),$I71,"") -> 2 | H71: =IF(AND($I71<=1.25,$I71>=1),$I71,"") ->  | I71: =INDEX('Input. 2016 fmk'!$B$16:$R$153,MATCH(C71,'Input. 2016 fmk'!$B$16:$B$153,0),14) -> 2
B72: =I72 -> 2 | C72: PI-29 | D72: =INDEX('Input. 2016 fmk'!$B$16:$R$153,MATCH(C72,'Input. 2016 fmk'!$B$16:$B$153,0),8) -> PI-29 Annual financial reports | E72: =IF($I72>3.65,$I72,"") ->  | F72: =IF(AND($I72<3.66,$I72>2.65),$I72,"") ->  | G72: =IF(AND($I72<=2.65,$I72>1.25),$I72,"") -> 2 | H72: =IF(AND($I72<=1.25,$I72>=1),$I72,"") ->  | I72: =INDEX('Input. 2016 fmk'!$B$16:$R$153,MATCH(C72,'Input. 2016 fmk'!$B$16:$B$153,0),14) -> 2
B73: =I73 -> 2 | C73: PI-21 | D73: =INDEX('Input. 2016 fmk'!$B$16:$R$153,MATCH(C73,'Input. 2016 fmk'!$B$16:$B$153,0),8) -> PI-21 Predictability of in-year resource allocation | E73: =IF($I73>3.65,$I73,"") ->  | F73: =IF(AND($I73<3.66,$I73>2.65),$I73,"") ->  | G73: =IF(AND($I73<=2.65,$I73>1.25),$I73,"") -> 2 | H73: =IF(AND($I73<=1.25,$I73>=1),$I73,"") ->  | I73: =INDEX('Input. 2016 fmk'!$B$16:$R$153,MATCH(C73,'Input. 2016 fmk'!$B$16:$B$153,0),14) -> 2
B74: =I74 -> 2.5 | C74: PI-27 | D74: =INDEX('Input. 2016 fmk'!$B$16:$R$153,MATCH(C74,'Input. 2016 fmk'!$B$16:$B$153,0),8) -> PI-27 Financial data integrity | E74: =IF($I74>3.65,$I74,"") ->  | F74: =IF(AND($I74<3.66,$I74>2.65),$I74,"") ->  | G74: =IF(AND($I74<=2.65,$I74>1.25),$I74,"") -> 2.5 | H74: =IF(AND($I74<=1.25,$I74>=1),$I74,"") ->  | I74: =INDEX('Input. 2016 fmk'!$B$16:$R$153,MATCH(C74,'Input. 2016 fmk'!$B$16:$B$153,0),14) -> 2.5
B75: =I75 -> 2.5 | C75: PI-25 | D75: =INDEX('Input. 2016 fmk'!$B$16:$R$153,MATCH(C75,'Input. 2016 fmk'!$B$16:$B$153,0),8) -> PI-25 Internal controls on non-salary expenditure | E75: =IF($I75>3.65,$I75,"") ->  | F75: =IF(AND($I75<3.66,$I75>2.65),$I75,"") ->  | G75: =IF(AND($I75<=2.65,$I75>1.25),$I75,"") -> 2.5 | H75: =IF(AND($I75<=1.25,$I75>=1),$I75,"") ->  | I75: =INDEX('Input. 2016 fmk'!$B$16:$R$153,MATCH(C75,'Input. 2016 fmk'!$B$16:$B$153,0),14) -> 2.5
B76: =I76 -> 3 | C76: PI-13 | D76: =INDEX('Input. 2016 fmk'!$B$16:$R$153,MATCH(C76,'Input. 2016 fmk'!$B$16:$B$153,0),8) -> PI-13 Debt management | E76: =IF($I76>3.65,$I76,"") ->  | F76: =IF(AND($I76<3.66,$I76>2.65),$I76,"") -> 3 | G76: =IF(AND($I76<=2.65,$I76>1.25),$I76,"") ->  | H76: =IF(AND($I76<=1.25,$I76>=1),$I76,"") ->  | I76: =INDEX('Input. 2016 fmk'!$B$16:$R$153,MATCH(C76,'Input. 2016 fmk'!$B$16:$B$153,0),14) -> 3
B77: =I77 -> 4 | C77: PI-1 | D77: =INDEX('Input. 2016 fmk'!$B$16:$R$153,MATCH(C77,'Input. 2016 fmk'!$B$16:$B$153,0),8) -> PI-1 Aggregate expenditure outturn | E77: =IF($I77>3.65,$I77,"") -> 4 | F77: =IF(AND($I77<3.66,$I77>2.65),$I77,"") ->  | G77: =IF(AND($I77<=2.65,$I77>1.25),$I77,"") ->  | H77: =IF(AND($I77<=1.25,$I77>=1),$I77,"") ->  | I77: =INDEX('Input. 2016 fmk'!$B$16:$R$153,MATCH(C77,'Input. 2016 fmk'!$B$16:$B$153,0),14) -> 4

Sheet S-4.3 (Out. 2016)
C32: Label | D32: =Profile!$F$279 -> 4. Very good | E32: =Profile!$F$278 -> 3. Good | F32: =Profile!$F$277 -> 2. Basic | G32: =Profile!$F$276 -> 1. Low | H32: Score | K32: Label | L32: =Profile!$F$279 -> 4. Very good | M32: =Profile!$F$278 -> 3. Good | N32: =Profile!$F$277 -> 2. Basic | O32: =Profile!$F$276 -> 1. Low | P32: Score | S32: Label | T32: =Profile!$F$279 -> 4. Very good | U32: =Profile!$F$278 -> 3. Good | V32: =Profile!$F$277 -> 2. Basic | W32: =Profile!$F$276 -> 1. Low | X32: Score
A33: PI-28 | C33: =VLOOKUP(A33,Profile!$B:$C,2,FALSE) -> PI-28 In-year budget reports | D33: =IF($H33>3.65,$H33,"") ->  | E33: =IF(AND($H33<3.66,$H33>2.65),$H33,"") ->  | F33: =IF(AND($H33<=2.65,$H33>1.25),$H33,"") ->  | G33: =IF(AND($H33<=1.25,$H33>=1),$H33,"") -> 1 | H33: =INDEX('Input. 2016 fmk'!$B$16:$R$153,MATCH(A33,'Input. 2016 fmk'!$B$16:$B$153,0),14) -> 1 | I33: PI-28 | K33: =VLOOKUP(I33,Profile!$B:$C,2,FALSE) -> PI-28 In-year budget reports | L33: =IF($P33>3.65,$P33,"") ->  | M33: =IF(AND($P33<3.66,$P33>2.65),$P33,"") ->  | N33: =IF(AND($P33<=2.65,$P33>1.25),$P33,"") ->  | O33: =IF(AND($P33<=1.25,$P33>=1),$P33,"") -> 1 | P33: =INDEX('Input. 2016 fmk'!$B$16:$R$153,MATCH(I33,'Input. 2016 fmk'!$B$16:$B$153,0),14) -> 1 | R33: PI-31 | S33: =VLOOKUP(R33,Profile!$B:$C,2,FALSE) -> PI-31 Legislative Scrutiny of Audit Reports | T33: =IF($X33>3.65,$X33,"") ->  | U33: =IF(AND($X33<3.66,$X33>2.65),$X33,"") ->  | V33: =IF(AND($X33<=2.65,$X33>1.25),$X33,"") ->  | W33: =IF(AND($X33<=1.25,$X33>=1),$X33,"") -> 1 | X33: =INDEX('Input. 2016 fmk'!$B$16:$R$153,MATCH(R33,'Input. 2016 fmk'!$B$16:$B$153,0),14) -> 1
A34: PI-25 | C34: =VLOOKUP(A34,Profile!B:C,2,FALSE) -> PI-25 Internal controls on non-salary expenditure | F34: 2.5 | H34: =INDEX('Input. 2016 fmk'!$B$16:$R$153,MATCH(A34,'Input. 2016 fmk'!$B$16:$B$153,0),14) -> 2.5 | I34: PI-20 | K34: 20. Accounting for revenue | L34: =IF($P34>3.65,$P34,"") ->  | M34: =IF(AND($P34<3.66,$P34>2.65),$P34,"") ->  | N34: =IF(AND($P34<=2.65,$P34>1.25),$P34,"") -> 1.5 | O34: =IF(AND($P34<=1.25,$P34>=1),$P34,"") ->  | P34: =INDEX('Input. 2016 fmk'!$B$16:$R$153,MATCH(I34,'Input. 2016 fmk'!$B$16:$B$153,0),14) -> 1.5 | R34: PI-30 | S34: =VLOOKUP(R34,Profile!$B:$C,2,FALSE) -> PI-30 External Audit | W34: 1 | X34: =INDEX('Input. 2016 fmk'!$B$16:$R$153,MATCH(R34,'Input. 2016 fmk'!$B$16:$B$153,0),14) -> 1
A35: PI-22 | C35: =VLOOKUP(A35,Profile!B:C,2,FALSE) -> PI-22 Expenditure arrears | G35: 1 | H35: =INDEX('Input. 2016 fmk'!$B$16:$R$153,MATCH(A35,'Input. 2016 fmk'!$B$16:$B$153,0),14) -> 1 | I35: PI-19 | K35: 19. Revenue administration | O35: 1 | P35: =INDEX('Input. 2016 fmk'!$B$16:$R$153,MATCH(I35,'Input. 2016 fmk'!$B$16:$B$153,0),14) -> 1 | R35: PI-29 | S35: =VLOOKUP(R35,Profile!$B:$C,2,FALSE) -> PI-29 Annual financial reports | V35: 2 | X35: =INDEX('Input. 2016 fmk'!$B$16:$R$153,MATCH(R35,'Input. 2016 fmk'!$B$16:$B$153,0),14) -> 2
A36: PI-21 | C36: =VLOOKUP(A36,Profile!B:C,2,FALSE) -> PI-21 Predictability of in-year resource allocation | F36: 2 | H36: =INDEX('Input. 2016 fmk'!$B$16:$R$153,MATCH(A36,'Input. 2016 fmk'!$B$16:$B$153,0),14) -> 2 | I36: PI-18 | K36: 18. Legislative scrutiny of budgets | N36: 1.5 | P36: =INDEX('Input. 2016 fmk'!$B$16:$R$153,MATCH(I36,'Input. 2016 fmk'!$B$16:$B$153,0),14) -> 1.5 | R36: PI-28 | S36: =VLOOKUP(R36,Profile!$B:$C,2,FALSE) -> PI-28 In-year budget reports | W36: 1 | X36: =INDEX('Input. 2016 fmk'!$B$16:$R$153,MATCH(R36,'Input. 2016 fmk'!$B$16:$B$153,0),14) -> 1
A37: PI-14 | C37: =VLOOKUP(A37,Profile!B:C,2,FALSE) -> PI-14 Medium-term budget strategy | F37: 2 | H37: =INDEX('Input. 2016 fmk'!$B$16:$R$153,MATCH(A37,'Input. 2016 fmk'!$B$16:$B$153,0),14) -> 2 | I37: PI-17 | K37: 17. Budget preparation process | N37: 1.5 | P37: =INDEX('Input. 2016 fmk'!$B$16:$R$153,MATCH(I37,'Input. 2016 fmk'!$B$16:$B$153,0),14) -> 1.5 | R37: PI-27 | S37: =VLOOKUP(R37,Profile!$B:$C,2,FALSE) -> PI-27 Financial data integrity | V37: 2.5 | X37: =INDEX('Input. 2016 fmk'!$B$16:$R$153,MATCH(R37,'Input. 2016 fmk'!$B$16:$B$153,0),14) -> 2.5
A38: PI-13 | C38: =VLOOKUP(A38,Profile!B:C,2,FALSE) -> PI-13 Debt management | E38: 3 | H38: =INDEX('Input. 2016 fmk'!$B$16:$R$153,MATCH(A38,'Input. 2016 fmk'!$B$16:$B$153,0),14) -> 3 | I38: PI-16 | K38: 11. Public investment management | N38: 2 | P38: =INDEX('Input. 2016 fmk'!$B$16:$R$153,MATCH(I40,'Input. 2016 fmk'!$B$16:$B$153,0),14) -> 2 | R38: PI-26 | S38: =VLOOKUP(R38,Profile!$B:$C,2,FALSE) -> PI-26 Internal audit | W38: 1 | X38: =INDEX('Input. 2016 fmk'!$B$16:$R$153,MATCH(R38,'Input. 2016 fmk'!$B$16:$B$153,0),14) -> 1
A39: PI-12 | C39: =VLOOKUP(A39,Profile!B:C,2,FALSE) -> PI-12 Public asset management | H39: =INDEX('Input. 2016 fmk'!$B$16:$R$153,MATCH(A39,'Input. 2016 fmk'!$B$16:$B$153,0),14) -> 0 | I39: PI-15 | K39: 6. Central government operations outside financial reports | O39: 1 | P39: =INDEX('Input. 2016 fmk'!$B$16:$R$153,MATCH(I41,'Input. 2016 fmk'!$B$16:$B$153,0),14) -> 1 | R39: PI-25 | S39: =VLOOKUP(R39,Profile!$B:$C,2,FALSE) -> PI-25 Internal controls on non-salary expenditure | V39: 2.5 | X39: =INDEX('Input. 2016 fmk'!$B$16:$R$153,MATCH(R39,'Input. 2016 fmk'!$B$16:$B$153,0),14) -> 2.5
A40: PI-11 | C40: =VLOOKUP(A40,Profile!B:C,2,FALSE) -> PI-11 Public investment management | F40: 2 | H40: =INDEX('Input. 2016 fmk'!$B$16:$R$153,MATCH(A40,'Input. 2016 fmk'!$B$16:$B$153,0),14) -> 2 | I40: PI-11 | K40: 7. Transfers to subnational governments | P40: =INDEX('Input. 2016 fmk'!$B$16:$R$153,MATCH(I42,'Input. 2016 fmk'!$B$16:$B$153,0),14) -> 0 | R40: PI-24 | S40: =VLOOKUP(R40,Profile!$B:$C,2,FALSE) -> PI-24 Procurement | W40: 1 | X40: =INDEX('Input. 2016 fmk'!$B$16:$R$153,MATCH(R40,'Input. 2016 fmk'!$B$16:$B$153,0),14) -> 1
A41: PI-10 | C41: =VLOOKUP(A41,Profile!B:C,2,FALSE) -> PI-10 Fiscal risk reporting | G41: 1 | H41: =INDEX('Input. 2016 fmk'!$B$16:$R$153,MATCH(A41,'Input. 2016 fmk'!$B$16:$B$153,0),14) -> 1 | I41: PI-6 | K41: 5. Budget documentation | O41: 1 | P41: =INDEX('Input. 2016 fmk'!$B$16:$R$153,MATCH(I43,'Input. 2016 fmk'!$B$16:$B$153,0),14) -> 1 | R41: PI-23 | S41: =VLOOKUP(R41,Profile!$B:$C,2,FALSE) -> PI-23 Payroll controls | W41: 1 | X41: =INDEX('Input. 2016 fmk'!$B$16:$R$153,MATCH(R41,'Input. 2016 fmk'!$B$16:$B$153,0),14) -> 1
A42: PI-6 | C42: =VLOOKUP(A42,Profile!B:C,2,FALSE) -> PI-6 Central government operations outside the budget | G42: 1 | H42: =INDEX('Input. 2016 fmk'!$B$16:$R$153,MATCH(A42,'Input. 2016 fmk'!$B$16:$B$153,0),14) -> 1 | I42: PI-7 | K42: 4. Budget classification | O42: 1 | P42: =INDEX('Input. 2016 fmk'!$B$16:$R$153,MATCH(I44,'Input. 2016 fmk'!$B$16:$B$153,0),14) -> 1 | R42: PI-21 | S42: =VLOOKUP(R42,Profile!$B:$C,2,FALSE) -> PI-21 Predictability of in-year resource allocation | V42: 2 | X42: =INDEX('Input. 2016 fmk'!$B$16:$R$153,MATCH(R42,'Input. 2016 fmk'!$B$16:$B$153,0),14) -> 2
A43: PI-3 | C43: =VLOOKUP(A43,Profile!B:C,2,FALSE) -> PI-3 Revenue outturn | G43: 1 | H43: =INDEX('Input. 2016 fmk'!$B$16:$R$153,MATCH(A43,'Input. 2016 fmk'!$B$16:$B$153,0),14) -> 1 | I43: PI-5 | K43: 2. Expenditure composition outturn | O43: 1 | P43: =INDEX('Input. 2016 fmk'!$B$16:$R$153,MATCH(I45,'Input. 2016 fmk'!$B$16:$B$153,0),14) -> 1 | R43: PI-20 | S43: =VLOOKUP(R43,Profile!$B:$C,2,FALSE) -> PI-20 Accounting for revenues | V43: 1.5 | X43: =INDEX('Input. 2016 fmk'!$B$16:$R$153,MATCH(R43,'Input. 2016 fmk'!$B$16:$B$153,0),14) -> 1.5
A44: PI-1 | C44: =VLOOKUP(A44,Profile!B:C,2,FALSE) -> PI-1 Aggregate expenditure outturn | D44: 4 | H44: =INDEX('Input. 2016 fmk'!$B$16:$R$153,MATCH(A44,'Input. 2016 fmk'!$B$16:$B$153,0),14) -> 4 | I44: PI-4 | R44: PI-19 | S44: =VLOOKUP(R44,Profile!$B:$C,2,FALSE) -> PI-19 Tax administration | W44: 1 | X44: =INDEX('Input. 2016 fmk'!$B$16:$R$153,MATCH(R44,'Input. 2016 fmk'!$B$16:$B$153,0),14) -> 1
C45: Grand Total | D45: 3.5 | E45: 3 | F45: 2.4 | G45: 1.2 | H45: 2.178571429 | I45: PI-2 | R45: PI-9 | S45: =VLOOKUP(R45,Profile!$B:$C,2,FALSE) -> PI-9 Public access to fiscal information | W45: 1 | X45: =INDEX('Input. 2016 fmk'!$B$16:$R$153,MATCH(R45,'Input. 2016 fmk'!$B$16:$B$153,0),14) -> 1
R46: PI-8 | S46: =VLOOKUP(R46,Profile!$B:$C,2,FALSE) -> PI-8 Performance information for service delivery | V46: 1.5 | X46: =INDEX('Input. 2016 fmk'!$B$16:$R$153,MATCH(R46,'Input. 2016 fmk'!$B$16:$B$153,0),14) -> 1.5
R47: PI-7 | S47: =VLOOKUP(R47,Profile!$B:$C,2,FALSE) -> PI-7 Transfers to sub-national government | X47: =INDEX('Input. 2016 fmk'!$B$16:$R$153,MATCH(R47,'Input. 2016 fmk'!$B$16:$B$153,0),14) -> 0
R48: PI-2 | S48: =VLOOKUP(R48,Profile!$B:$C,2,FALSE) -> PI-2 Expenditure composition outturn | W48: 1 | X48: =INDEX('Input. 2016 fmk'!$B$16:$R$153,MATCH(R48,'Input. 2016 fmk'!$B$16:$B$153,0),14) -> 1
C86: Fmk | D86: 2016 | L86: Fmk | M86: 2016 | T86: Fmk | U86: 2016
C87: Year | D87: 2021 | L87: Year | M87: 2021 | T87: Year | U87: 2021
C88: Out. 1 | D88: 1 | L88: Out. 2 | M88: 1 | T88: Out. 3 | U88: 1
C90: Average of Score Num | D90: Performance | L90: Average of Score Num | M90: Performance | T90: Average of Score Num | U90: Performance
C91: Label | D91: ADVANCED | E91: GOOD | F91: Basique | G91: Elémentaire | H91: Grand Total | L91: Label | M91: ADVANCED | N91: GOOD | O91: Basique | P91: Elémentaire | T91: Label | U91: ADVANCED | V91: Basique | W91: Elémentaire
C92: 28. In_year budget reports | F92: 2.5 | H92: 2.5 | L92: 28. In_year budget reports | O92: 2.5 | T92: 31. Legislative scrutiny of audit reports | V92: 2
C93: 25. Internal controls on nonsalary expenditure | F93: 2.5 | H93: 2.5 | L93: 20. Accounting for revenue | O93: 2.5 | T93: 30. External audit | W93: 1.5
C94: 22. Expenditure arrears | G94: 1 | H94: 1 | L94: 19. Revenue administration | O94: 2.5 | T94: 29. Annual financial reports | W94: 1
C95: 21. Predictability of in_year resource allocation | F95: 2.5 | H95: 2.5 | L95: 18. Legislative scrutiny of budgets | M95: 3.5 | T95: 28. In_year budget reports | V95: 2.5
C96: 16. Medium term perspective in expenditure budgeting | F96: 2.5 | H96: 2.5 | L96: 17. Budget preparation process | N96: 3 | T96: 27. Financial data integrity | U96: 3.5
C97: 15. Fiscal strategy | E97: 3 | H97: 3 | L97: 16. Medium term perspective in expenditure budgeting | O97: 2.5 | T97: 26. Internal audit | W97: 1
C98: 14. Macroeconomic and fiscal forecasting | E98: 3 | H98: 3 | L98: 15. Fiscal strategy | N98: 3 | T98: 25. Internal controls on nonsalary expenditure | V98: 2.5
C99: 13. Debt management | D99: 3.5 | H99: 3.5 | L99: 11. Public investment management | N99: 3 | T99: 24. Procurement management | U99: 3.5
C100: 12. Public asset management | G100: 1.5 | H100: 1.5 | L100: 6. Central government operations outside financial reports | O100: 2 | T100: 23. Payroll controls | W100: 1.5
C101: 11. Public investment management | E101: 3 | H101: 3 | L101: 7. Transfers to subnational governments | P101: 1.5 | T101: 21. Predictability of in_year resource allocation | V101: 2.5
C102: 10. Fiscal risk reporting | G102: 1.5 | H102: 1.5 | L102: 5. Budget documentation | M102: 4 | T102: 20. Accounting for revenue | V102: 2.5
C103: 6. Central government operations outside financial reports | F103: 2 | H103: 2 | L103: 4. Budget classification | O103: 2 | T103: 19. Revenue administration | V103: 2.5
C104: 3. Revenue outturn | G104: 1 | H104: 1 | L104: 2. Expenditure composition outturn | P104: 1.5 | T104: 16. Medium term perspective in expenditure budgeting | V104: 2.5
C105: 1. Aggregate expenditure outturn | G105: 1 | H105: 1 | L105: Grand Total | M105: 3.75 | N105: 3 | O105: 2.333333333 | P105: 1.5 | T105: 9. Public access to fiscal information | W105: 1
C106: Grand Total | D106: 3.5 | E106: 3 | F106: 2.4 | G106: 1.2 | H106: 2.178571429 | T106: 8. Performance information for service delivery | V106: 2
T107: 7. Transfers to subnational governments | W107: 1.5
T108: 2. Expenditure composition outturn | W108: 1.5
T109: Grand Total | U109: 3.5 | V109: 2.375 | W109: 1.285714286

Sheet S-4.3 (Table)
C1: ="PEFA "&'Input. 2016 fmk'!I4&" - "&Profile!F285 -> PEFA PEFALIA - Cross-tabulation of PEFA indicators and budget results
C4: Pillar | D4: Indicator | E4: =Profile!$F$253 -> 1. Overall Budget Discipline | F4: =Profile!$F$254 -> 2. Strategic allocation of resources | G4: =Profile!$F$255 -> 3. Effective service delivery
C5: =Profile!$C$3 -> I. Budget reliability | D5: =Profile!H9 -> PI-1 Aggregate expenditure outturn | E5: =IF(Data!$D$19="Current",IF(Data!$B$19=2016,IF(VLOOKUP($D5,Data!$N$19:$U$276,6,FALSE)=1,VLOOKUP($D5,Data!$N$19:$U$276,4,FALSE),""),""),"") -> ADVANCED | F5: =IF(Data!$D$19="Current",IF(Data!$B$19=2016,IF(VLOOKUP($D5,Data!$N$19:$U$276,7,FALSE)=1,VLOOKUP($D5,Data!$N$19:$U$276,4,FALSE),""),""),"") ->  | G5: =IF(Data!$D$19="Current",IF(Data!$B$19=2016,IF(VLOOKUP($D5,Data!$N$19:$U$276,8,FALSE)=1,VLOOKUP($D5,Data!$N$19:$U$276,4,FALSE),""),""),"") -> 
D6: =Profile!H10 -> PI-2 Expenditure composition outturn | E6: =IF(Data!$D$19="Current",IF(Data!$B$19=2016,IF(VLOOKUP($D6,Data!$N$19:$U$276,6,FALSE)=1,VLOOKUP($D6,Data!$N$19:$U$276,4,FALSE),""),""),"") ->  | F6: =IF(Data!$D$19="Current",IF(Data!$B$19=2016,IF(VLOOKUP($D6,Data!$N$19:$U$276,7,FALSE)=1,VLOOKUP($D6,Data!$N$19:$U$276,4,FALSE),""),""),"") -> BELOW BASIC | G6: =IF(Data!$D$19="Current",IF(Data!$B$19=2016,IF(VLOOKUP($D6,Data!$N$19:$U$276,8,FALSE)=1,VLOOKUP($D6,Data!$N$19:$U$276,4,FALSE),""),""),"") -> BELOW BASIC
D7: =Profile!H11 -> PI-3 Revenue outturn | E7: =IF(Data!$D$19="Current",IF(Data!$B$19=2016,IF(VLOOKUP($D7,Data!$N$19:$U$276,6,FALSE)=1,VLOOKUP($D7,Data!$N$19:$U$276,4,FALSE),""),""),"") -> BELOW BASIC | F7: =IF(Data!$D$19="Current",IF(Data!$B$19=2016,IF(VLOOKUP($D7,Data!$N$19:$U$276,7,FALSE)=1,VLOOKUP($D7,Data!$N$19:$U$276,4,FALSE),""),""),"") ->  | G7: =IF(Data!$D$19="Current",IF(Data!$B$19=2016,IF(VLOOKUP($D7,Data!$N$19:$U$276,8,FALSE)=1,VLOOKUP($D7,Data!$N$19:$U$276,4,FALSE),""),""),"") -> 
C8: =Profile!$C$4 -> II. Transparency of public finances | D8: =Profile!H12 -> PI-4 Budget classification | E8: =IF(Data!$D$19="Current",IF(Data!$B$19=2016,IF(VLOOKUP($D8,Data!$N$19:$U$276,6,FALSE)=1,VLOOKUP($D8,Data!$N$19:$U$276,4,FALSE),""),""),"") ->  | F8: =IF(Data!$D$19="Current",IF(Data!$B$19=2016,IF(VLOOKUP($D8,Data!$N$19:$U$276,7,FALSE)=1,VLOOKUP($D8,Data!$N$19:$U$276,4,FALSE),""),""),"") -> BELOW BASIC | G8: =IF(Data!$D$19="Current",IF(Data!$B$19=2016,IF(VLOOKUP($D8,Data!$N$19:$U$276,8,FALSE)=1,VLOOKUP($D8,Data!$N$19:$U$276,4,FALSE),""),""),"") -> 
D9: =Profile!H13 -> PI-5 Budget documentation | E9: =IF(Data!$D$19="Current",IF(Data!$B$19=2016,IF(VLOOKUP($D9,Data!$N$19:$U$276,6,FALSE)=1,VLOOKUP($D9,Data!$N$19:$U$276,4,FALSE),""),""),"") ->  | F9: =IF(Data!$D$19="Current",IF(Data!$B$19=2016,IF(VLOOKUP($D9,Data!$N$19:$U$276,7,FALSE)=1,VLOOKUP($D9,Data!$N$19:$U$276,4,FALSE),""),""),"") -> BELOW BASIC | G9: =IF(Data!$D$19="Current",IF(Data!$B$19=2016,IF(VLOOKUP($D9,Data!$N$19:$U$276,8,FALSE)=1,VLOOKUP($D9,Data!$N$19:$U$276,4,FALSE),""),""),"") -> 
D10: =Profile!H14 -> PI-6 Central government operations outside the budget | E10: =IF(Data!$D$19="Current",IF(Data!$B$19=2016,IF(VLOOKUP($D10,Data!$N$19:$U$276,6,FALSE)=1,VLOOKUP($D10,Data!$N$19:$U$276,4,FALSE),""),""),"") -> BELOW BASIC | F10: =IF(Data!$D$19="Current",IF(Data!$B$19=2016,IF(VLOOKUP($D10,Data!$N$19:$U$276,7,FALSE)=1,VLOOKUP($D10,Data!$N$19:$U$276,4,FALSE),""),""),"") -> BELOW BASIC | G10: =IF(Data!$D$19="Current",IF(Data!$B$19=2016,IF(VLOOKUP($D10,Data!$N$19:$U$276,8,FALSE)=1,VLOOKUP($D10,Data!$N$19:$U$276,4,FALSE),""),""),"") -> 
D11: =Profile!H15 -> PI-7 Transfers to sub-national government | E11: =IF(Data!$D$19="Current",IF(Data!$B$19=2016,IF(VLOOKUP($D11,Data!$N$19:$U$276,6,FALSE)=1,VLOOKUP($D11,Data!$N$19:$U$276,4,FALSE),""),""),"") ->  | F11: =IF(Data!$D$19="Current",IF(Data!$B$19=2016,IF(VLOOKUP($D11,Data!$N$19:$U$276,7,FALSE)=1,VLOOKUP($D11,Data!$N$19:$U$276,4,FALSE),""),""),"") ->  | G11: =IF(Data!$D$19="Current",IF(Data!$B$19=2016,IF(VLOOKUP($D11,Data!$N$19:$U$276,8,FALSE)=1,VLOOKUP($D11,Data!$N$19:$U$276,4,FALSE),""),""),"") -> 
D12: =Profile!H16 -> PI-8 Performance information for service delivery | E12: =IF(Data!$D$19="Current",IF(Data!$B$19=2016,IF(VLOOKUP($D12,Data!$N$19:$U$276,6,FALSE)=1,VLOOKUP($D12,Data!$N$19:$U$276,4,FALSE),""),""),"") ->  | F12: =IF(Data!$D$19="Current",IF(Data!$B$19=2016,IF(VLOOKUP($D12,Data!$N$19:$U$276,7,FALSE)=1,VLOOKUP($D12,Data!$N$19:$U$276,4,FALSE),""),""),"") ->  | G12: =IF(Data!$D$19="Current",IF(Data!$B$19=2016,IF(VLOOKUP($D12,Data!$N$19:$U$276,8,FALSE)=1,VLOOKUP($D12,Data!$N$19:$U$276,4,FALSE),""),""),"") -> BELOW BASIC
D13: =Profile!H17 -> PI-9 Public access to fiscal information | E13: =IF(Data!$D$19="Current",IF(Data!$B$19=2016,IF(VLOOKUP($D13,Data!$N$19:$U$276,6,FALSE)=1,VLOOKUP($D13,Data!$N$19:$U$276,4,FALSE),""),""),"") ->  | F13: =IF(Data!$D$19="Current",IF(Data!$B$19=2016,IF(VLOOKUP($D13,Data!$N$19:$U$276,7,FALSE)=1,VLOOKUP($D13,Data!$N$19:$U$276,4,FALSE),""),""),"") ->  | G13: =IF(Data!$D$19="Current",IF(Data!$B$19=2016,IF(VLOOKUP($D13,Data!$N$19:$U$276,8,FALSE)=1,VLOOKUP($D13,Data!$N$19:$U$276,4,FALSE),""),""),"") -> BELOW BASIC
C14: =Profile!$C$5 -> III. Management of assets and liabilities | D14: =Profile!H18 -> PI-9bis Public consultation | E14: =IF(Data!$D$19="Current",IF(Data!$B$19=2016,IF(VLOOKUP($D14,Data!$N$19:$U$276,6,FALSE)=1,VLOOKUP($D14,Data!$N$19:$U$276,4,FALSE),""),""),"") ->  | F14: =IF(Data!$D$19="Current",IF(Data!$B$19=2016,IF(VLOOKUP($D14,Data!$N$19:$U$276,7,FALSE)=1,VLOOKUP($D14,Data!$N$19:$U$276,4,FALSE),""),""),"") ->  | G14: =IF(Data!$D$19="Current",IF(Data!$B$19=2016,IF(VLOOKUP($D14,Data!$N$19:$U$276,8,FALSE)=1,VLOOKUP($D14,Data!$N$19:$U$276,4,FALSE),""),""),"") -> 
D15: =Profile!H19 -> PI-10 Fiscal risk reporting | E15: =IF(Data!$D$19="Current",IF(Data!$B$19=2016,IF(VLOOKUP($D15,Data!$N$19:$U$276,6,FALSE)=1,VLOOKUP($D15,Data!$N$19:$U$276,4,FALSE),""),""),"") -> BELOW BASIC | F15: =IF(Data!$D$19="Current",IF(Data!$B$19=2016,IF(VLOOKUP($D15,Data!$N$19:$U$276,7,FALSE)=1,VLOOKUP($D15,Data!$N$19:$U$276,4,FALSE),""),""),"") ->  | G15: =IF(Data!$D$19="Current",IF(Data!$B$19=2016,IF(VLOOKUP($D15,Data!$N$19:$U$276,8,FALSE)=1,VLOOKUP($D15,Data!$N$19:$U$276,4,FALSE),""),""),"") -> 
D16: =Profile!H20 -> PI-11 Public investment management | E16: =IF(Data!$D$19="Current",IF(Data!$B$19=2016,IF(VLOOKUP($D16,Data!$N$19:$U$276,6,FALSE)=1,VLOOKUP($D16,Data!$N$19:$U$276,4,FALSE),""),""),"") -> BASIC | F16: =IF(Data!$D$19="Current",IF(Data!$B$19=2016,IF(VLOOKUP($D16,Data!$N$19:$U$276,7,FALSE)=1,VLOOKUP($D16,Data!$N$19:$U$276,4,FALSE),""),""),"") -> BASIC | G16: =IF(Data!$D$19="Current",IF(Data!$B$19=2016,IF(VLOOKUP($D16,Data!$N$19:$U$276,8,FALSE)=1,VLOOKUP($D16,Data!$N$19:$U$276,4,FALSE),""),""),"") -> 
D17: =Profile!H21 -> PI-12 Public asset management | E17: =IF(Data!$D$19="Current",IF(Data!$B$19=2016,IF(VLOOKUP($D17,Data!$N$19:$U$276,6,FALSE)=1,VLOOKUP($D17,Data!$N$19:$U$276,4,FALSE),""),""),"") ->  | F17: =IF(Data!$D$19="Current",IF(Data!$B$19=2016,IF(VLOOKUP($D17,Data!$N$19:$U$276,7,FALSE)=1,VLOOKUP($D17,Data!$N$19:$U$276,4,FALSE),""),""),"") ->  | G17: =IF(Data!$D$19="Current",IF(Data!$B$19=2016,IF(VLOOKUP($D17,Data!$N$19:$U$276,8,FALSE)=1,VLOOKUP($D17,Data!$N$19:$U$276,4,FALSE),""),""),"") -> 
C18: =Profile!$C$6 -> IV. Policy-based fiscal strategy and budgeting | D18: =Profile!H22 -> PI-13 Debt management | E18: =IF(Data!$D$19="Current",IF(Data!$B$19=2016,IF(VLOOKUP($D18,Data!$N$19:$U$276,6,FALSE)=1,VLOOKUP($D18,Data!$N$19:$U$276,4,FALSE),""),""),"") -> GOOD | F18: =IF(Data!$D$19="Current",IF(Data!$B$19=2016,IF(VLOOKUP($D18,Data!$N$19:$U$276,7,FALSE)=1,VLOOKUP($D18,Data!$N$19:$U$276,4,FALSE),""),""),"") ->  | G18: =IF(Data!$D$19="Current",IF(Data!$B$19=2016,IF(VLOOKUP($D18,Data!$N$19:$U$276,8,FALSE)=1,VLOOKUP($D18,Data!$N$19:$U$276,4,FALSE),""),""),"") -> 
D19: =Profile!H23 -> PI-14 Medium-term budget strategy | E19: =IF(Data!$D$19="Current",IF(Data!$B$19=2016,IF(VLOOKUP($D19,Data!$N$19:$U$276,6,FALSE)=1,VLOOKUP($D19,Data!$N$19:$U$276,4,FALSE),""),""),"") -> BASIC | F19: =IF(Data!$D$19="Current",IF(Data!$B$19=2016,IF(VLOOKUP($D19,Data!$N$19:$U$276,7,FALSE)=1,VLOOKUP($D19,Data!$N$19:$U$276,4,FALSE),""),""),"") ->  | G19: =IF(Data!$D$19="Current",IF(Data!$B$19=2016,IF(VLOOKUP($D19,Data!$N$19:$U$276,8,FALSE)=1,VLOOKUP($D19,Data!$N$19:$U$276,4,FALSE),""),""),"") -> 
C20: =Profile!$C$7 -> V. Predictability and control in budget execution | D20: =Profile!H26 -> PI-17 Budget preparation process | E20: =IF(Data!$D$19="Current",IF(Data!$B$19=2016,IF(VLOOKUP($D20,Data!$N$19:$U$276,6,FALSE)=1,VLOOKUP($D20,Data!$N$19:$U$276,4,FALSE),""),""),"") ->  | F20: =IF(Data!$D$19="Current",IF(Data!$B$19=2016,IF(VLOOKUP($D20,Data!$N$19:$U$276,7,FALSE)=1,VLOOKUP($D20,Data!$N$19:$U$276,4,FALSE),""),""),"") -> BELOW BASIC | G20: =IF(Data!$D$19="Current",IF(Data!$B$19=2016,IF(VLOOKUP($D20,Data!$N$19:$U$276,8,FALSE)=1,VLOOKUP($D20,Data!$N$19:$U$276,4,FALSE),""),""),"") -> 
D21: =Profile!H27 -> PI-18 Legislative scrutiny of budgets | E21: =IF(Data!$D$19="Current",IF(Data!$B$19=2016,IF(VLOOKUP($D21,Data!$N$19:$U$276,6,FALSE)=1,VLOOKUP($D21,Data!$N$19:$U$276,4,FALSE),""),""),"") ->  | F21: =IF(Data!$D$19="Current",IF(Data!$B$19=2016,IF(VLOOKUP($D21,Data!$N$19:$U$276,7,FALSE)=1,VLOOKUP($D21,Data!$N$19:$U$276,4,FALSE),""),""),"") -> BELOW BASIC | G21: =IF(Data!$D$19="Current",IF(Data!$B$19=2016,IF(VLOOKUP($D21,Data!$N$19:$U$276,8,FALSE)=1,VLOOKUP($D21,Data!$N$19:$U$276,4,FALSE),""),""),"") -> 
D22: =Profile!H28 -> PI-19 Tax administration | E22: =IF(Data!$D$19="Current",IF(Data!$B$19=2016,IF(VLOOKUP($D22,Data!$N$19:$U$276,6,FALSE)=1,VLOOKUP($D22,Data!$N$19:$U$276,4,FALSE),""),""),"") ->  | F22: =IF(Data!$D$19="Current",IF(Data!$B$19=2016,IF(VLOOKUP($D22,Data!$N$19:$U$276,7,FALSE)=1,VLOOKUP($D22,Data!$N$19:$U$276,4,FALSE),""),""),"") -> BELOW BASIC | G22: =IF(Data!$D$19="Current",IF(Data!$B$19=2016,IF(VLOOKUP($D22,Data!$N$19:$U$276,8,FALSE)=1,VLOOKUP($D22,Data!$N$19:$U$276,4,FALSE),""),""),"") -> BELOW BASIC
D23: =Profile!H29 -> PI-20 Accounting for revenues | E23: =IF(Data!$D$19="Current",IF(Data!$B$19=2016,IF(VLOOKUP($D23,Data!$N$19:$U$276,6,FALSE)=1,VLOOKUP($D23,Data!$N$19:$U$276,4,FALSE),""),""),"") ->  | F23: =IF(Data!$D$19="Current",IF(Data!$B$19=2016,IF(VLOOKUP($D23,Data!$N$19:$U$276,7,FALSE)=1,VLOOKUP($D23,Data!$N$19:$U$276,4,FALSE),""),""),"") -> BELOW BASIC | G23: =IF(Data!$D$19="Current",IF(Data!$B$19=2016,IF(VLOOKUP($D23,Data!$N$19:$U$276,8,FALSE)=1,VLOOKUP($D23,Data!$N$19:$U$276,4,FALSE),""),""),"") -> BELOW BASIC
D24: =Profile!H30 -> PI-21 Predictability of in-year resource allocation | E24: =IF(Data!$D$19="Current",IF(Data!$B$19=2016,IF(VLOOKUP($D24,Data!$N$19:$U$276,6,FALSE)=1,VLOOKUP($D24,Data!$N$19:$U$276,4,FALSE),""),""),"") -> BASIC | F24: =IF(Data!$D$19="Current",IF(Data!$B$19=2016,IF(VLOOKUP($D24,Data!$N$19:$U$276,7,FALSE)=1,VLOOKUP($D24,Data!$N$19:$U$276,4,FALSE),""),""),"") ->  | G24: =IF(Data!$D$19="Current",IF(Data!$B$19=2016,IF(VLOOKUP($D24,Data!$N$19:$U$276,8,FALSE)=1,VLOOKUP($D24,Data!$N$19:$U$276,4,FALSE),""),""),"") -> BASIC
D25: =Profile!H31 -> PI-22 Expenditure arrears | E25: =IF(Data!$D$19="Current",IF(Data!$B$19=2016,IF(VLOOKUP($D25,Data!$N$19:$U$276,6,FALSE)=1,VLOOKUP($D25,Data!$N$19:$U$276,4,FALSE),""),""),"") -> BELOW BASIC | F25: =IF(Data!$D$19="Current",IF(Data!$B$19=2016,IF(VLOOKUP($D25,Data!$N$19:$U$276,7,FALSE)=1,VLOOKUP($D25,Data!$N$19:$U$276,4,FALSE),""),""),"") ->  | G25: =IF(Data!$D$19="Current",IF(Data!$B$19=2016,IF(VLOOKUP($D25,Data!$N$19:$U$276,8,FALSE)=1,VLOOKUP($D25,Data!$N$19:$U$276,4,FALSE),""),""),"") -> 
D26: =Profile!H32 -> PI-23 Payroll controls | E26: =IF(Data!$D$19="Current",IF(Data!$B$19=2016,IF(VLOOKUP($D26,Data!$N$19:$U$276,6,FALSE)=1,VLOOKUP($D26,Data!$N$19:$U$276,4,FALSE),""),""),"") ->  | F26: =IF(Data!$D$19="Current",IF(Data!$B$19=2016,IF(VLOOKUP($D26,Data!$N$19:$U$276,7,FALSE)=1,VLOOKUP($D26,Data!$N$19:$U$276,4,FALSE),""),""),"") ->  | G26: =IF(Data!$D$19="Current",IF(Data!$B$19=2016,IF(VLOOKUP($D26,Data!$N$19:$U$276,8,FALSE)=1,VLOOKUP($D26,Data!$N$19:$U$276,4,FALSE),""),""),"") -> BELOW BASIC
C27: =Profile!$C$8 -> VI. Accounting and reporting | D27: =Profile!H33 -> PI-24 Procurement | E27: =IF(Data!$D$19="Current",IF(Data!$B$19=2016,IF(VLOOKUP($D27,Data!$N$19:$U$276,6,FALSE)=1,VLOOKUP($D27,Data!$N$19:$U$276,4,FALSE),""),""),"") ->  | F27: =IF(Data!$D$19="Current",IF(Data!$B$19=2016,IF(VLOOKUP($D27,Data!$N$19:$U$276,7,FALSE)=1,VLOOKUP($D27,Data!$N$19:$U$276,4,FALSE),""),""),"") ->  | G27: =IF(Data!$D$19="Current",IF(Data!$B$19=2016,IF(VLOOKUP($D27,Data!$N$19:$U$276,8,FALSE)=1,VLOOKUP($D27,Data!$N$19:$U$276,4,FALSE),""),""),"") -> BELOW BASIC
D28: =Profile!H34 -> PI-25 Internal controls on non-salary expenditure | E28: =IF(Data!$D$19="Current",IF(Data!$B$19=2016,IF(VLOOKUP($D28,Data!$N$19:$U$276,6,FALSE)=1,VLOOKUP($D28,Data!$N$19:$U$276,4,FALSE),""),""),"") -> BASIC | F28: =IF(Data!$D$19="Current",IF(Data!$B$19=2016,IF(VLOOKUP($D28,Data!$N$19:$U$276,7,FALSE)=1,VLOOKUP($D28,Data!$N$19:$U$276,4,FALSE),""),""),"") ->  | G28: =IF(Data!$D$19="Current",IF(Data!$B$19=2016,IF(VLOOKUP($D28,Data!$N$19:$U$276,8,FALSE)=1,VLOOKUP($D28,Data!$N$19:$U$276,4,FALSE),""),""),"") -> BASIC
D29: =Profile!H35 -> PI-26 Internal audit | E29: =IF(Data!$D$19="Current",IF(Data!$B$19=2016,IF(VLOOKUP($D29,Data!$N$19:$U$276,6,FALSE)=1,VLOOKUP($D29,Data!$N$19:$U$276,4,FALSE),""),""),"") ->  | F29: =IF(Data!$D$19="Current",IF(Data!$B$19=2016,IF(VLOOKUP($D29,Data!$N$19:$U$276,7,FALSE)=1,VLOOKUP($D29,Data!$N$19:$U$276,4,FALSE),""),""),"") ->  | G29: =IF(Data!$D$19="Current",IF(Data!$B$19=2016,IF(VLOOKUP($D29,Data!$N$19:$U$276,8,FALSE)=1,VLOOKUP($D29,Data!$N$19:$U$276,4,FALSE),""),""),"") -> BELOW BASIC
C30: =Profile!$C$9 -> VII. External scrutiny and audit | D30: =Profile!H36 -> PI-27 Financial data integrity | E30: =IF(Data!$D$19="Current",IF(Data!$B$19=2016,IF(VLOOKUP($D30,Data!$N$19:$U$276,6,FALSE)=1,VLOOKUP($D30,Data!$N$19:$U$276,4,FALSE),""),""),"") ->  | F30: =IF(Data!$D$19="Current",IF(Data!$B$19=2016,IF(VLOOKUP($D30,Data!$N$19:$U$276,7,FALSE)=1,VLOOKUP($D30,Data!$N$19:$U$276,4,FALSE),""),""),"") ->  | G30: =IF(Data!$D$19="Current",IF(Data!$B$19=2016,IF(VLOOKUP($D30,Data!$N$19:$U$276,8,FALSE)=1,VLOOKUP($D30,Data!$N$19:$U$276,4,FALSE),""),""),"") -> BASIC
D31: =Profile!H37 -> PI-28 In-year budget reports | E31: =IF(Data!$D$19="Current",IF(Data!$B$19=2016,IF(VLOOKUP($D31,Data!$N$19:$U$276,6,FALSE)=1,VLOOKUP($D31,Data!$N$19:$U$276,4,FALSE),""),""),"") -> BELOW BASIC | F31: =IF(Data!$D$19="Current",IF(Data!$B$19=2016,IF(VLOOKUP($D31,Data!$N$19:$U$276,7,FALSE)=1,VLOOKUP($D31,Data!$N$19:$U$276,4,FALSE),""),""),"") -> BELOW BASIC | G31: =IF(Data!$D$19="Current",IF(Data!$B$19=2016,IF(VLOOKUP($D31,Data!$N$19:$U$276,8,FALSE)=1,VLOOKUP($D31,Data!$N$19:$U$276,4,FALSE),""),""),"") -> BELOW BASIC

Sheet colors (hidden)
A1: 1 | B1: ELEMENTAIRE | C1: Sec!Pefa2018 | E1: Sheets with Charts with numeric data labels data | G1: Sheets with tables
A2: 2 | B2: BASIQUE | E2: S-4.3 (Out. 2016) | G2: Sheet Name | H2: Numeric Data Labels? | I2: Start row | J2: Start Column | K2: Column used to find last row
A3: 3 | B3: 3. Suffisant | E3: S-4.3 (Indicators) | G3: S-4.3 (Table) | H3: N | I3: 4 | J3: 5 | K3: 4
A4: 4 | B4: Avancé | E4: S-4.1 Pilars | G4: ES-Synth table | H4: N | I4: 4 | J4: 6 | K4: 4
E5: ES-Indic
E6: ES-Piliars Indic
F22: Column1

Sheet MetaData (hidden)
A1: Years | C1: Score 2011 FMK | D1: Score 2016 FMK | E1: Comp
A2: 2000 | C2: A | D2: A | E2: Yes
A3: 2001 | C3: B | D3: B | E3: No
A4: 2002 | C4: C | D4: C
A5: 2003 | C5: D | D5: D
A6: 2004 | C6: NU | D6: D*
A7: 2005 | C7: NA | D7: NU
A8: 2006 | C8: NR | D8: NA
A9: 2007
A10: 2008
A11: 2009
A12: 2010
A13: 2011
A14: 2012
A15: 2013
A16: 2014
A17: 2015
A18: 2016
A19: 2017
A20: 2018
A21: 2019
A22: 2020
A23: 2021
A24: 2022
A25: 2023
A26: 2024
A27: 2025
A28: 2026
A29: 2027
A30: 2028
A31: 2029
A32: 2030
A33: 2031
A34: 2032
A35: 2033
A36: 2034
A37: NA

Sheet Profile (hidden)
A1: ID | B1: IDC | C1: Dimension | F1: ID | G1: IDC | H1: Dimension
A2: HLG | B2: HLG | C2: Higher levels of government | F2: I | G2: I | H2: I. Budget reliability
A3: I | B3: I | C3: I. Budget reliability | F3: II | G3: II | H3: II. Transparency of public finances
A4: II | B4: II | C4: II. Transparency of public finances | F4: III | G4: III | H4: III. Management of assets and liabilities
A5: III | B5: III | C5: III. Management of assets and liabilities | F5: IV | G5: IV | H5: IV. Policy-based fiscal strategy and budgeting
A6: IV | B6: IV | C6: IV. Policy-based fiscal strategy and budgeting | F6: V | G6: V | H6: V. Predictability and control in budget execution
A7: V | B7: V | C7: V. Predictability and control in budget execution | F7: VI | G7: VI | H7: VI. Accounting and reporting
A8: VI | B8: VI | C8: VI. Accounting and reporting | F8: VII | G8: VII | H8: VII. External scrutiny and audit
A9: VII | B9: VII | C9: VII. External scrutiny and audit | F9: PI-1 | G9: PI-1 | H9: PI-1 Aggregate expenditure outturn
A10: HLG-1 | B10: HLG-1 | C10: HLG-1 Transfer from higher levels of government | F10: PI-2 | G10: PI-2 | H10: PI-2 Expenditure composition outturn
A11: HLG-1.1 | B11: HLG-1.1 | C11: HLG-1.1 Outturn of transfers from higher levels of government | F11: PI-3 | G11: PI-3 | H11: PI-3 Revenue outturn
A12: HLG-1.2 | B12: HLG-1.2 | C12: HLG-1.2 Transfers composition outturn | F12: PI-4 | G12: PI-4 | H12: PI-4 Budget classification
A13: HLG-1.3 | B13: HLG-1.3 | C13: HLG-1.3 Timeliness of transfers from higher levels of government | F13: PI-5 | G13: PI-5 | H13: PI-5 Budget documentation
A14: HLG-1.4 | B14: HLG-1.4 | C14: HLG-1.4 Predictability of transfers | F14: PI-6 | G14: PI-6 | H14: PI-6 Central government operations outside the budget
A15: HLG-2 | B15: HLG-2 | C15: HLG-2 Fiscal rules and monitoring of fiscal position | F15: PI-7 | G15: PI-7 | H15: PI-7 Transfers to sub-national government
A16: HLG-2.1 | B16: HLG-2.1 | C16: HLG-2.1 Fiscal rules for sub-national governments | F16: PI-8 | G16: PI-8 | H16: PI-8 Performance information for service delivery
A17: HLG-2.2 | B17: HLG-2.2 | C17: HLG-2.2 Debt rules for sub-national governments | F17: PI-9 | G17: PI-9 | H17: PI-9 Public access to fiscal information
A18: HLG-2.3 | B18: HLG-2.3 | C18: HLG-2.3 Monitoring of sub-national governments | F18: PI-9bis | G18: PI-9bis | H18: PI-9bis Public consultation
A19: PI-1 | B19: PI-1 | C19: PI-1 Aggregate expenditure outturn | F19: PI-10 | G19: PI-10 | H19: PI-10 Fiscal risk reporting
A20: PI-1.1 | B20: 1.1 | C20: 1.1 Aggregate expenditure outturn | F20: PI-11 | G20: PI-11 | H20: PI-11 Public investment management
A21: PI-2 | B21: PI-2 | C21: PI-2 Expenditure composition outturn | F21: PI-12 | G21: PI-12 | H21: PI-12 Public asset management
A22: 2.1 | B22: 2.1 | C22: 2.1 Expenditure composition by function | F22: PI-13 | G22: PI-13 | H22: PI-13 Debt management
A23: 2.2 | B23: 2.2 | C23: 2.2 Expenditure composition by economic type | F23: PI-14 | G23: PI-14 | H23: PI-14 Medium-term budget strategy
A24: 2.3 | B24: 2.3 | C24: 2.3 Expenditure from contingency | F24: PI-15 | G24: PI-15 | H24: 15. Fiscal strategy
A25: PI-3 | B25: PI-3 | C25: PI-3 Revenue outturn | F25: PI-16 | G25: PI-16 | H25: 16. Medium-term perspective in expenditure budgeting
A26: 3.1 | B26: 3.1 | C26: 3.1 Aggregate revenue outturn | F26: PI-17 | G26: PI-17 | H26: PI-17 Budget preparation process
A27: 3.2 | B27: 3.2 | C27: 3.2 Revenue composition variance | F27: PI-18 | G27: PI-18 | H27: PI-18 Legislative scrutiny of budgets
A28: PI-4 | B28: PI-4 | C28: PI-4 Budget classification | F28: PI-19 | G28: PI-19 | H28: PI-19 Tax administration
A29: PI-4.1 | B29: 4.1 | C29: 4.1 Budget classification | F29: PI-20 | G29: PI-20 | H29: PI-20 Accounting for revenues
A30: PI-5 | B30: PI-5 | C30: PI-5 Budget documentation | F30: PI-21 | G30: PI-21 | H30: PI-21 Predictability of in-year resource allocation
A31: PI-5.1 | B31: 5.1 | C31: 5.1 Budget documentation | F31: PI-22 | G31: PI-22 | H31: PI-22 Expenditure arrears
A32: PI-6 | B32: PI-6 | C32: PI-6 Central government operations outside the budget | F32: PI-23 | G32: PI-23 | H32: PI-23 Payroll controls
A33: 6.1 | B33: 6.1 | C33: 6.1 Expenditure outside financial reports | F33: PI-24 | G33: PI-24 | H33: PI-24 Procurement
A34: 6.2 | B34: 6.2 | C34: 6.2 Revenue outside financial reports | F34: PI-25 | G34: PI-25 | H34: PI-25 Internal controls on non-salary expenditure
A35: 6.3 | B35: 6.3 | C35: 6.3 Financial reports of extra- budgetary units | F35: PI-26 | G35: PI-26 | H35: PI-26 Internal audit
A36: PI-7 | B36: PI-7 | C36: PI-7 Transfers to sub-national government | F36: PI-27 | G36: PI-27 | H36: PI-27 Financial data integrity
A37: 7.1 | B37: 7.1 | C37: 7.1 System for allocating transfers | F37: PI-28 | G37: PI-28 | H37: PI-28 In-year budget reports
A38: 7.2 | B38: 7.2 | C38: 7.2 Timeliness of information on transfers | F38: PI-29 | G38: PI-29 | H38: PI-29 Annual financial reports
A39: PI-8 | B39: PI-8 | C39: PI-8 Performance information for service delivery | F39: PI-30 | G39: PI-30 | H39: PI-30 External Audit
A40: 8.1 | B40: 8.1 | C40: 8.1 Performance plans for service delivery | F40: PI-31 | G40: PI-31 | H40: PI-31 Legislative Scrutiny of Audit Reports
A41: 8.2 | B41: 8.2 | C41: 8.2 Performance achieved for service delivery
A42: 8.3 | B42: 8.3 | C42: 8.3 Resources received by service delivery units
A43: 8.4 | B43: 8.4 | C43: 8.4 Performance evaluation for service delivery | F43: PI-4.1 | G43: 4.1 | H43: 4.1 Budget classification
A44: PI-9 | B44: PI-9 | C44: PI-9 Public access to fiscal information | F44: PI-1.1 | G44: 1.1 | H44: 1.1 Aggregate expenditure outturn
A45: PI-9.1 | B45: 9.1 | C45: 9.1 Public access to fiscal information | F45: PI-9.1 | G45: 9.1 | H45: 9.1 Public access to fiscal information
A46: PI-9bis | B46: PI-9bis | C46: PI-9bis Public consultation | F46: HLG-2.3 | G46: HLG-2.3 | H46: HLG-2.3 Monitoring of sub-national governments
A47: 9bis.1 | B47: 9bis.1 | C47: 9bis.1 Public consultation in budget preparation | F47: HLG-2.2 | G47: HLG-2.2 | H47: HLG-2.2 Debt rules for sub-national governments
A48: 9bis.2 | B48: 9bis.2 | C48: 9bis.2 Public consultation in the design of service delivery programs | F48: HLG-2.1 | G48: HLG-2.1 | H48: HLG-2.1 Fiscal rules for sub-national governments
A49: 9bis.3 | B49: 9bis.3 | C49: 9bis.3 Public consultation in investment planning | F49: HLG-2 | G49: HLG-2 | H49: HLG-2 Fiscal rules and monitoring of fiscal position
A50: PI-10 | B50: PI-10 | C50: PI-10 Fiscal risk reporting | F50: HLG-1.4 | G50: HLG-1.4 | H50: HLG-1.4 Predictability of transfers
A51: 10.1 | B51: 10.1 | C51: 10.1 Monitoring of public corporations | F51: HLG-1.3 | G51: HLG-1.3 | H51: HLG-1.3 Timeliness of transfers from higher levels of government
A52: 10.2 | B52: 10.2 | C52: 10.2 Monitoring of sub-national governments | F52: HLG-1.2 | G52: HLG-1.2 | H52: HLG-1.2 Transfers composition outturn
A53: 10.3 | B53: 10.3 | C53: 10.3 Contingent liabilities and other fiscal risks | F53: HLG-1.1 | G53: HLG-1.1 | H53: HLG-1.1 Outturn of transfers from higher levels of government
A54: PI-11 | B54: PI-11 | C54: PI-11 Public investment management | F54: HLG-1 | G54: HLG-1 | H54: HLG-1 Transfer from higher levels of government
A55: 11.1 | B55: 11.1 | C55: 11.1 Economic analysis of investment proposals | F55: HLG | G55: HLG | H55: Higher levels of government
A56: 11.2 | B56: 11.2 | C56: 11.2 Investment project selection | F56: PI-5.1 | G56: 5.1 | H56: 5.1 Budget documentation
A57: 11.3 | B57: 11.3 | C57: 11.3 Investment project costing | F57: 9bis.3 | G57: 9bis.3 | H57: 9bis.3 Public consultation in investment planning
A58: 11.4 | B58: 11.4 | C58: 11.4 Investment project monitoring | F58: 9bis.2 | G58: 9bis.2 | H58: 9bis.2 Public consultation in the design of service delivery programs
A59: PI-12 | B59: PI-12 | C59: PI-12 Public asset management | F59: 9bis.1 | G59: 9bis.1 | H59: 9bis.1 Public consultation in budget preparation
A60: 12.1 | B60: 12.1 | C60: 12.1 Financial asset monitoring | F60: 31.4 | G60: 31.4 | H60: 31.4 Transparency of Legislative Scrutiny of Audit Reports
A61: 12.2 | B61: 12.2 | C61: 12.2 Non-financial asset monitoring | F61: 31.3 | G61: 31.3 | H61: 31.3 Recommendations on Audit by the Legislature
A62: 12.3 | B62: 12.3 | C62: 12.3 Transparency of asset disposal | F62: 31.2 | G62: 31.2 | H62: 31.2 Hearings on Audit Findings
A63: PI-13 | B63: PI-13 | C63: PI-13 Debt management | F63: 31.1 | G63: 31.1 | H63: 31.1 Timing of Audit Report Scrutiny
A64: 13.1 | B64: 13.1 | C64: 13.1 Recording and reporting of debts and guarantees | F64: 30.4 | G64: 30.4 | H64: 30.4 Supreme Audit Institution Independence
A65: 13.2 | B65: 13.2 | C65: 13.2 Approval of debts and guarantees | F65: 30.3 | G65: 30.3 | H65: 30.3 External Audit Follow-Up
A66: 13.3 | B66: 13.3 | C66: 13.3 Debt management strategy | F66: 30.2 | G66: 30.2 | H66: 30.2 Submission of Audit Reports to the Legislature
A67: PI-14 | B67: PI-14 | C67: PI-14 Medium-term budget strategy | F67: 30.1 | G67: 30.1 | H67: 30.1 Audit Coverage and Standards
A68: 14.1 | B68: 14.1 | C68: 14.1 Underlying forecasts for medium- term budget | F68: 29.3 | G68: 29.3 | H68: 29.3 Accounting standards
A69: 14.2 | B69: 14.2 | C69: 14.2 Fiscal impact of policy proposals | F69: 29.2 | G69: 29.2 | H69: 29.2 Submission of reports for external audit
A70: 14.3 | B70: 14.3 | C70: 14.3 Medium-term expenditure and revenue estimates | F70: 29.1 | G70: 29.1 | H70: 29.1 Completeness of annual financial reports
A71: 14.4 | B71: 14.4 | C71: 14.4 Consistency of budget with previous year’s estimates | F71: 28.3 | G71: 28.3 | H71: 28.3 Accuracy of in-year budget reports
A72: PI-15 | B72: PI-15 | C72: 15. Fiscal strategy | F72: 28.2 | G72: 28.2 | H72: 28.2 Timing of in-year reports
A73: 15.1 | B73: 15.1 | C73: 15.1 Fiscal impact of policy proposals | F73: 28.1 | G73: 28.1 | H73: 28.1 Coverage and comparability of reports
A74: 15.2 | B74: 15.2 | C74: 15.2 Fiscal strategy adoption | F74: 27.4 | G74: 27.4 | H74: 27.4 Financial data integrity process
A75: 15.3 | B75: 15.3 | C75: 15.3 Reporting on fiscal outcomes | F75: 27.3 | G75: 27.3 | H75: 27.3 Advance accounts
A76: 16.1 | B76: 16.1 | C76: 16.1 Medium-term expenditure estimates | F76: 27.2 | G76: 27.2 | H76: 27.2 Suspense accounts
A77: 16.2 | B77: 16.2 | C77: 16.2 Medium-term expenditure ceilings | F77: 27.1 | G77: 27.1 | H77: 27.1 Bank account reconciliation
A78: 16.3 | B78: 16.3 | C78: 16.3 Alignment of strategic plans and medium-term budgets | F78: 26.4 | G78: 26.4 | H78: 26.4 Response to internal audits
A79: 16.4 | B79: 16.4 | C79: 16.4 Consistency of budgets with previous year’s estimates | F79: 26.3 | G79: 26.3 | H79: 26.3 Implementation of internal audits and reporting
A80: PI-16 | B80: PI-16 | C80: 16. Medium-term perspective in expenditure budgeting | F80: 26.2 | G80: 26.2 | H80: 26.2 Nature of audits and standards applied
A81: PI-17 | B81: PI-17 | C81: PI-17 Budget preparation process | F81: 26.1 | G81: 26.1 | H81: 26.1 Coverage of the internal audit
A82: 17.1 | B82: 17.1 | C82: 17.1 Budget calendar | F82: 25.3 | G82: 25.3 | H82: 25.3 Compliance with payment controls
A83: 17.2 | B83: 17.2 | C83: 17.2 Guidance on budget preparation | F83: 25.2 | G83: 25.2 | H83: 25.2 Effectiveness of expenditure commitment controls
A84: 17.3 | B84: 17.3 | C84: 17.3 Budget submission to the legislature | F84: 25.1 | G84: 25.1 | H84: 25.1 Segregation of duties
A85: PI-18 | B85: PI-18 | C85: PI-18 Legislative scrutiny of budgets | F85: 24.4 | G85: 24.4 | H85: 24.4 Procurement complaints management
A86: 18.1 | B86: 18.1 | C86: 18.1 Scope of budget scrutiny | F86: 24.3 | G86: 24.3 | H86: 24.3 Public access to procurement information
A87: 18.2 | B87: 18.2 | C87: 18.2 Legislature procedures budget scrutiny | F87: 24.2 | G87: 24.2 | H87: 24.2 Procurement methods
A88: 18.3 | B88: 18.3 | C88: 18.3 Timing of budget approval | F88: 24.1 | G88: 24.1 | H88: 24.1 Procurement monitoring
A89: 18.4 | B89: 18.4 | C89: 18.4 Rules for budget adjustment by the executive | F89: 23.4 | G89: 23.4 | H89: 23.4 Payroll audits
A90: PI-19 | B90: PI-19 | C90: PI-19 Tax administration | F90: 23.3 | G90: 23.3 | H90: 23.3 Internal controls of payroll
A91: 19.1 | B91: 19.1 | C91: 19.1 Rights and obligation for tax measures | F91: 23.2 | G91: 23.2 | H91: 23.2 Management of payroll changes
A92: 19.2 | B92: 19.2 | C92: 19.2 Property tax register and valuation | F92: 23.1 | G92: 23.1 | H92: 23.1 Integration of payroll and personnel records
A93: 19.3 | B93: 19.3 | C93: 19.3 Tax risk management, audit and investigation | F93: 22.2 | G93: 22.2 | H93: 22.2 Expenditure arrears monitoring
A94: 19.4 | B94: 19.4 | C94: 19.4 Tax arrears monitoring | F94: 22.1 | G94: 22.1 | H94: 22.1 Stock of expenditure arrears
A95: PI-20 | B95: PI-20 | C95: PI-20 Accounting for revenues | F95: 21.4 | G95: 21.4 | H95: 21.4 Significance of in-year budget adjustments
A96: 20.1 | B96: 20.1 | C96: 20.1 Information on revenue collections | F96: 21.3 | G96: 21.3 | H96: 21.3 Information on commitment ceilings
A97: 20.2 | B97: 20.2 | C97: 20.2 Transfer of revenue collections | F97: 21.2 | G97: 21.2 | H97: 21.2 Cash forecasting and monitoring
A98: 20.3 | B98: 20.3 | C98: 20.3 Tax account reconciliation | F98: 21.1 | G98: 21.1 | H98: 21.1 Consolidation of cash balances
A99: PI-21 | B99: PI-21 | C99: PI-21 Predictability of in-year resource allocation | F99: 20.3 | G99: 20.3 | H99: 20.3 Tax account reconciliation
A100: 21.1 | B100: 21.1 | C100: 21.1 Consolidation of cash balances | F100: 20.2 | G100: 20.2 | H100: 20.2 Transfer of revenue collections
A101: 21.2 | B101: 21.2 | C101: 21.2 Cash forecasting and monitoring | F101: 20.1 | G101: 20.1 | H101: 20.1 Information on revenue collections
A102: 21.3 | B102: 21.3 | C102: 21.3 Information on commitment ceilings | F102: 19.4 | G102: 19.4 | H102: 19.4 Tax arrears monitoring
A103: 21.4 | B103: 21.4 | C103: 21.4 Significance of in-year budget adjustments | F103: 19.3 | G103: 19.3 | H103: 19.3 Tax risk management, audit and investigation
A104: PI-22 | B104: PI-22 | C104: PI-22 Expenditure arrears | F104: 19.2 | G104: 19.2 | H104: 19.2 Property tax register and valuation
A105: 22.1 | B105: 22.1 | C105: 22.1 Stock of expenditure arrears | F105: 19.1 | G105: 19.1 | H105: 19.1 Rights and obligation for tax measures
A106: 22.2 | B106: 22.2 | C106: 22.2 Expenditure arrears monitoring | F106: 18.4 | G106: 18.4 | H106: 18.4 Rules for budget adjustment by the executive
A107: PI-23 | B107: PI-23 | C107: PI-23 Payroll controls | F107: 18.3 | G107: 18.3 | H107: 18.3 Timing of budget approval
A108: 23.1 | B108: 23.1 | C108: 23.1 Integration of payroll and personnel records | F108: 18.2 | G108: 18.2 | H108: 18.2 Legislature procedures budget scrutiny
A109: 23.2 | B109: 23.2 | C109: 23.2 Management of payroll changes | F109: 18.1 | G109: 18.1 | H109: 18.1 Scope of budget scrutiny
A110: 23.3 | B110: 23.3 | C110: 23.3 Internal controls of payroll | F110: 17.3 | G110: 17.3 | H110: 17.3 Budget submission to the legislature
A111: 23.4 | B111: 23.4 | C111: 23.4 Payroll audits | F111: 17.2 | G111: 17.2 | H111: 17.2 Guidance on budget preparation
A112: PI-24 | B112: PI-24 | C112: PI-24 Procurement | F112: 17.1 | G112: 17.1 | H112: 17.1 Budget calendar
A113: 24.1 | B113: 24.1 | C113: 24.1 Procurement monitoring | F113: 16.4 | G113: 16.4 | H113: 16.4 Consistency of budgets with previous year’s estimates
A114: 24.2 | B114: 24.2 | C114: 24.2 Procurement methods | F114: 16.3 | G114: 16.3 | H114: 16.3 Alignment of strategic plans and medium-term budgets
A115: 24.3 | B115: 24.3 | C115: 24.3 Public access to procurement information | F115: 16.2 | G115: 16.2 | H115: 16.2 Medium-term expenditure ceilings
A116: 24.4 | B116: 24.4 | C116: 24.4 Procurement complaints management | F116: 16.1 | G116: 16.1 | H116: 16.1 Medium-term expenditure estimates
A117: PI-25 | B117: PI-25 | C117: PI-25 Internal controls on non-salary expenditure | F117: 15.3 | G117: 15.3 | H117: 15.3 Reporting on fiscal outcomes
A118: 25.1 | B118: 25.1 | C118: 25.1 Segregation of duties | F118: 15.2 | G118: 15.2 | H118: 15.2 Fiscal strategy adoption
A119: 25.2 | B119: 25.2 | C119: 25.2 Effectiveness of expenditure commitment controls | F119: 15.1 | G119: 15.1 | H119: 15.1 Fiscal impact of policy proposals
A120: 25.3 | B120: 25.3 | C120: 25.3 Compliance with payment controls | F120: 14.4 | G120: 14.4 | H120: 14.4 Consistency of budget with previous year’s estimates
A121: PI-26 | B121: PI-26 | C121: PI-26 Internal audit | F121: 14.3 | G121: 14.3 | H121: 14.3 Medium-term expenditure and revenue estimates
A122: 26.1 | B122: 26.1 | C122: 26.1 Coverage of the internal audit | F122: 14.2 | G122: 14.2 | H122: 14.2 Fiscal impact of policy proposals
A123: 26.2 | B123: 26.2 | C123: 26.2 Nature of audits and standards applied | F123: 14.1 | G123: 14.1 | H123: 14.1 Underlying forecasts for medium- term budget
A124: 26.3 | B124: 26.3 | C124: 26.3 Implementation of internal audits and reporting | F124: 13.3 | G124: 13.3 | H124: 13.3 Debt management strategy
A125: 26.4 | B125: 26.4 | C125: 26.4 Response to internal audits | F125: 13.2 | G125: 13.2 | H125: 13.2 Approval of debts and guarantees
A126: PI-27 | B126: PI-27 | C126: PI-27 Financial data integrity | F126: 13.1 | G126: 13.1 | H126: 13.1 Recording and reporting of debts and guarantees
A127: 27.1 | B127: 27.1 | C127: 27.1 Bank account reconciliation | F127: 12.3 | G127: 12.3 | H127: 12.3 Transparency of asset disposal
A128: 27.2 | B128: 27.2 | C128: 27.2 Suspense accounts | F128: 12.2 | G128: 12.2 | H128: 12.2 Non-financial asset monitoring
A129: 27.3 | B129: 27.3 | C129: 27.3 Advance accounts | F129: 12.1 | G129: 12.1 | H129: 12.1 Financial asset monitoring
A130: 27.4 | B130: 27.4 | C130: 27.4 Financial data integrity process | F130: 11.4 | G130: 11.4 | H130: 11.4 Investment project monitoring
A131: PI-28 | B131: PI-28 | C131: PI-28 In-year budget reports | F131: 11.3 | G131: 11.3 | H131: 11.3 Investment project costing
A132: 28.1 | B132: 28.1 | C132: 28.1 Coverage and comparability of reports | F132: 11.2 | G132: 11.2 | H132: 11.2 Investment project selection
A133: 28.2 | B133: 28.2 | C133: 28.2 Timing of in-year reports | F133: 11.1 | G133: 11.1 | H133: 11.1 Economic analysis of investment proposals
A134: 28.3 | B134: 28.3 | C134: 28.3 Accuracy of in-year budget reports | F134: 10.3 | G134: 10.3 | H134: 10.3 Contingent liabilities and other fiscal risks
A135: PI-29 | B135: PI-29 | C135: PI-29 Annual financial reports | F135: 10.2 | G135: 10.2 | H135: 10.2 Monitoring of sub-national governments
A136: 29.1 | B136: 29.1 | C136: 29.1 Completeness of annual financial reports | F136: 10.1 | G136: 10.1 | H136: 10.1 Monitoring of public corporations
A137: 29.2 | B137: 29.2 | C137: 29.2 Submission of reports for external audit | F137: 8.4 | G137: 8.4 | H137: 8.4 Performance evaluation for service delivery
A138: 29.3 | B138: 29.3 | C138: 29.3 Accounting standards | F138: 8.3 | G138: 8.3 | H138: 8.3 Resources received by service delivery units
A139: PI-30 | B139: PI-30 | C139: PI-30 External Audit | F139: 8.2 | G139: 8.2 | H139: 8.2 Performance achieved for service delivery
A140: 30.1 | B140: 30.1 | C140: 30.1 Audit Coverage and Standards | F140: 8.1 | G140: 8.1 | H140: 8.1 Performance plans for service delivery
A141: 30.2 | B141: 30.2 | C141: 30.2 Submission of Audit Reports to the Legislature | F141: 7.2 | G141: 7.2 | H141: 7.2 Timeliness of information on transfers
A142: 30.3 | B142: 30.3 | C142: 30.3 External Audit Follow-Up | F142: 7.1 | G142: 7.1 | H142: 7.1 System for allocating transfers
A143: 30.4 | B143: 30.4 | C143: 30.4 Supreme Audit Institution Independence | F143: 6.3 | G143: 6.3 | H143: 6.3 Financial reports of extra- budgetary units
A144: PI-31 | B144: PI-31 | C144: PI-31 Legislative Scrutiny of Audit Reports | F144: 6.2 | G144: 6.2 | H144: 6.2 Revenue outside financial reports
A145: 31.1 | B145: 31.1 | C145: 31.1 Timing of Audit Report Scrutiny | F145: 6.1 | G145: 6.1 | H145: 6.1 Expenditure outside financial reports
A146: 31.2 | B146: 31.2 | C146: 31.2 Hearings on Audit Findings | F146: 3.2 | G146: 3.2 | H146: 3.2 Revenue composition variance
A147: 31.3 | B147: 31.3 | C147: 31.3 Recommendations on Audit by the Legislature | F147: 3.1 | G147: 3.1 | H147: 3.1 Aggregate revenue outturn
A148: 31.4 | B148: 31.4 | C148: 31.4 Transparency of Legislative Scrutiny of Audit Reports | F148: 2.3 | G148: 2.3 | H148: 2.3 Expenditure from contingency
F149: 2.2 | G149: 2.2 | H149: 2.2 Expenditure composition by economic type
F150: 2.1 | G150: 2.1 | H150: 2.1 Expenditure composition by function
A151: Years | C151: Score 2011 FMK | D151: Score 2016 FMK | E151: Comp
A152: 2000 | C152: A | D152: A | E152: Yes
A153: 2001 | C153: B | D153: B | E153: No
A154: 2002 | C154: C | D154: C
A155: 2003 | C155: D | D155: D
A156: 2004 | C156: NU | D156: D*
A157: 2005 | C157: NA | D157: NU
A158: 2006 | C158: NR | D158: NA
A159: 2007
A160: 2008
A161: 2009
A162: 2010
A163: 2011
A164: 2012
A165: 2013
A166: 2014
A167: 2015
A168: 2016
A169: 2017
A170: 2018
A171: 2019
A172: 2020
A173: 2021
A174: 2022
A175: 2023
A176: 2024
A177: 2025
A178: 2026
A179: 2027
A180: 2028
A181: 2029
A182: 2030
A183: 2031
A184: 2032
A185: 2033
A186: 2034
A187: NA
F249: Names
F250: Pillar
F251: Indicator
F252: Dimensions
F253: 1. Overall Budget Discipline
F254: 2. Strategic allocation of resources
F255: 3. Effective service delivery
F256: Team Leader
F257: Country
F258: Overall Rating
F259: Current assessment
F260: Previous assessment
F261: Score by pillar / indicator
... 59 more rows

Sheet Data (hidden)
A1: Country | B1: Fmk | C1: Year | D1: Period | E1: Type | F1: ID | G1: IDC | H1: ID_Ind_Num | I1: ID-Ind | J1: ID_Comp | K1: Method | L1: ID_Pilar | M1: Pilar | N1: Label | O1: Score | P1: Score Num | Q1: Performance | R1: S-W | S1: Out. 1 | T1: Out. 2 | U1: Out. 3 | V1: AVG Num | W1: Min Num | X1: Min NumC | Y1: Score PEFA | Z1: Justification | AA1: Evol
A2: ='Input. 2016 fmk'!$I$4 -> PEFALIA | B2: 2016 | C2: ='Input. 2016 fmk'!$I$7 -> 2021 | D2: Current | E2: Pillar | F2: HLG | G2: HLG | K2: M2 | L2: HLG | M2: =N2 -> Higher levels of government | N2: =VLOOKUP(F2,Profile!B:C,2,FALSE) -> Higher levels of government | O2: =IF($B2=2016,IF($D2="Current",VLOOKUP($G2,'Input. 2016 fmk'!$C$15:$T$153,9,FALSE),VLOOKUP($G2,'Input. 2016 fmk'!$C$15:$T$153,8,FALSE)),IF($D2="Current",VLOOKUP($G2,'Input. 2016 fmk'!$C$27:$T$155,9,FALSE),VLOOKUP($G2,'Input. 2016 fmk'!$C$27:$T$155,8,FALSE))) -> D+ | P2: =IFERROR(IF(O2="A",4, IF(O2="B+",3.5, IF(O2="B",3, IF(O2="C+",2.5, IF(O2="C",2, IF(O2="D+",1.5, IF(O2="D",1, IF(O2="D*",1, 0)))))))),"") -> 1.5 | Q2: =IF(P2>=3.25,"ADVANCED", IF(P2>2.5,"GOOD", IF(P2>1.75,"BASIC", IF(P2>=1,"BELOW BASIC", "" )))) -> BELOW BASIC | R2: =IF($P2>=2.5,"Strenght","Weakness") -> Weakness | S2: =IFERROR(VLOOKUP($F2,'Input. 2016 fmk'!H6:X144,12,FALSE),"") ->  | T2: =IFERROR(VLOOKUP($F2,'Input. 2016 fmk'!$H$27:$W$153,13,FALSE),"") ->  | U2: =IFERROR(VLOOKUP($F2,'Input. 2016 fmk'!$H$27:$X$153,14,FALSE),"") ->  | V2: =IFERROR(AVERAGEIFS($P$19:$P$276,$B$19:$B$276,$B2,$H$19:$H$276,$H2,$C$19:$C$276,$C2,$E$19:$E$276,"Comp",$P$19:$P$276,">0"),0) -> 0 | W2: =MIN(IF($P$19:$P$276>0,IF($B$19:$B$276=$B2,IF($C$19:$C$276=$C2,IF($I$19:$I$276=$I2,$P$19:$P$276))))) -> 0 | X2: =IF($V2=$W2,$V2,$W2+0.5) -> 0 | Y2: =(IF($K2="M1",$X2,$V2)) -> 0 | Z2: =IF($B2=2016,IF($D2="Current",VLOOKUP($G2,'Input. 2016 fmk'!$C$15:$U$153,14,FALSE),VLOOKUP($G2,'Input. 2016 fmk'!$C$15:$U$153,16,FALSE)),IF($D2="Current",VLOOKUP($G2,'Input. 2016 fmk'!$C$27:$T$155,14,FALSE),"")) -> 1. BELOW BASIC | AA2: =IF($B2=2016,VLOOKUP($G2,'Input. 2016 fmk'!$C$15:$T$153,13,FALSE),VLOOKUP($G2,'Input. 2016 fmk'!$C$27:$T$155,13,FALSE)) -> 1.5
A3: ='Input. 2016 fmk'!$I$4 -> PEFALIA | B3: 2016 | C3: ='Input. 2016 fmk'!$I$7 -> 2021 | D3: Current | E3: Pillar | F3: I | G3: I | K3: M2 | L3: I | M3: =N3 -> I. Budget reliability | N3: =VLOOKUP(F3,Profile!B:C,2,FALSE) -> I. Budget reliability | O3: =IF($B3=2016,IF($D3="Current",VLOOKUP($G3,'Input. 2016 fmk'!$C$15:$T$153,9,FALSE),VLOOKUP($G3,'Input. 2016 fmk'!$C$15:$T$153,8,FALSE)),IF($D3="Current",VLOOKUP($G3,'Input. 2016 fmk'!$C$27:$T$155,9,FALSE),VLOOKUP($G3,'Input. 2016 fmk'!$C$27:$T$155,8,FALSE))) -> D+ | P3: =IFERROR(IF(O3="A",4, IF(O3="B+",3.5, IF(O3="B",3, IF(O3="C+",2.5, IF(O3="C",2, IF(O3="D+",1.5, IF(O3="D",1, IF(O3="D*",1, 0)))))))),"") -> 1.5 | Q3: BELOW BASIC | R3: Weakness | S3: =IFERROR(VLOOKUP($F3,'Input. 2016 fmk'!H7:X145,12,FALSE),"") ->  | T3: =IFERROR(VLOOKUP($F3,'Input. 2016 fmk'!$H$27:$W$153,13,FALSE),"") ->  | U3: =IFERROR(VLOOKUP($F3,'Input. 2016 fmk'!$H$27:$X$153,14,FALSE),"") ->  | V3: 0 | W3: =MIN(IF($P$19:$P$276>0,IF($B$19:$B$276=$B3,IF($C$19:$C$276=$C3,IF($I$19:$I$276=$I3,$P$19:$P$276))))) -> 0 | X3: 0 | Y3: 0 | Z3: =IF($B3=2016,IF($D3="Current",VLOOKUP($G3,'Input. 2016 fmk'!$C$15:$U$153,14,FALSE),VLOOKUP($G3,'Input. 2016 fmk'!$C$15:$U$153,16,FALSE)),IF($D3="Current",VLOOKUP($G3,'Input. 2016 fmk'!$C$27:$T$155,14,FALSE),"")) -> 1. BELOW BASIC | AA3: =IF($B3=2016,VLOOKUP($G3,'Input. 2016 fmk'!$C$15:$T$153,13,FALSE),VLOOKUP($G3,'Input. 2016 fmk'!$C$27:$T$155,13,FALSE)) -> 1.5
A4: ='Input. 2016 fmk'!$I$4 -> PEFALIA | B4: 2016 | C4: ='Input. 2016 fmk'!$I$7 -> 2021 | D4: Current | E4: Pillar | F4: II | G4: II | K4: M2 | L4: II | M4: II. Transparency of public finances | N4: =VLOOKUP(F4,Profile!B:C,2,FALSE) -> II. Transparency of public finances | O4: =IF($B4=2016,IF($D4="Current",VLOOKUP($G4,'Input. 2016 fmk'!$C$15:$T$153,9,FALSE),VLOOKUP($G4,'Input. 2016 fmk'!$C$15:$T$153,8,FALSE)),IF($D4="Current",VLOOKUP($G4,'Input. 2016 fmk'!$C$27:$T$155,9,FALSE),VLOOKUP($G4,'Input. 2016 fmk'!$C$27:$T$155,8,FALSE))) -> D | P4: =IFERROR(IF(O4="A",4, IF(O4="B+",3.5, IF(O4="B",3, IF(O4="C+",2.5, IF(O4="C",2, IF(O4="D+",1.5, IF(O4="D",1, IF(O4="D*",1, 0)))))))),"") -> 1 | Q4: BELOW BASIC | R4: Weakness | S4: =IFERROR(VLOOKUP($F4,'Input. 2016 fmk'!H8:X146,12,FALSE),"") ->  | T4: =IFERROR(VLOOKUP($F4,'Input. 2016 fmk'!$H$27:$W$153,13,FALSE),"") ->  | U4: =IFERROR(VLOOKUP($F4,'Input. 2016 fmk'!$H$27:$X$153,14,FALSE),"") ->  | V4: 0 | W4: =MIN(IF($P$19:$P$276>0,IF($B$19:$B$276=$B4,IF($C$19:$C$276=$C4,IF($I$19:$I$276=$I4,$P$19:$P$276))))) -> 0 | X4: 0 | Y4: 0 | Z4: =IF($B4=2016,IF($D4="Current",VLOOKUP($G4,'Input. 2016 fmk'!$C$15:$U$153,14,FALSE),VLOOKUP($G4,'Input. 2016 fmk'!$C$15:$U$153,16,FALSE)),IF($D4="Current",VLOOKUP($G4,'Input. 2016 fmk'!$C$27:$T$155,14,FALSE),"")) -> 1. BELOW BASIC | AA4: =IF($B4=2016,VLOOKUP($G4,'Input. 2016 fmk'!$C$15:$T$153,13,FALSE),VLOOKUP($G4,'Input. 2016 fmk'!$C$27:$T$155,13,FALSE)) -> 1
A5: ='Input. 2016 fmk'!$I$4 -> PEFALIA | B5: 2016 | C5: ='Input. 2016 fmk'!$I$7 -> 2021 | D5: Current | E5: Pillar | F5: III | G5: III | K5: M2 | L5: III | M5: III. Management of assets and liabilities | N5: =VLOOKUP(F5,Profile!B:C,2,FALSE) -> III. Management of assets and liabilities | O5: =IF($B5=2016,IF($D5="Current",VLOOKUP($G5,'Input. 2016 fmk'!$C$15:$T$153,9,FALSE),VLOOKUP($G5,'Input. 2016 fmk'!$C$15:$T$153,8,FALSE)),IF($D5="Current",VLOOKUP($G5,'Input. 2016 fmk'!$C$27:$T$155,9,FALSE),VLOOKUP($G5,'Input. 2016 fmk'!$C$27:$T$155,8,FALSE))) -> D+ | P5: 1.5 | Q5: BELOW BASIC | R5: Weakness | S5: =IFERROR(VLOOKUP($F5,'Input. 2016 fmk'!H9:X147,12,FALSE),"") ->  | T5: =IFERROR(VLOOKUP($F5,'Input. 2016 fmk'!$H$27:$W$153,13,FALSE),"") ->  | U5: =IFERROR(VLOOKUP($F5,'Input. 2016 fmk'!$H$27:$X$153,14,FALSE),"") ->  | V5: 0 | W5: =MIN(IF($P$19:$P$276>0,IF($B$19:$B$276=$B5,IF($C$19:$C$276=$C5,IF($I$19:$I$276=$I5,$P$19:$P$276))))) -> 0 | X5: 0 | Y5: 0 | Z5: =IF($B5=2016,IF($D5="Current",VLOOKUP($G5,'Input. 2016 fmk'!$C$15:$U$153,14,FALSE),VLOOKUP($G5,'Input. 2016 fmk'!$C$15:$U$153,16,FALSE)),IF($D5="Current",VLOOKUP($G5,'Input. 2016 fmk'!$C$27:$T$155,14,FALSE),"")) -> 1. BELOW BASIC | AA5: =IF($B5=2016,VLOOKUP($G5,'Input. 2016 fmk'!$C$15:$T$153,13,FALSE),VLOOKUP($G5,'Input. 2016 fmk'!$C$27:$T$155,13,FALSE)) -> 1.5
A6: ='Input. 2016 fmk'!$I$4 -> PEFALIA | B6: 2016 | C6: ='Input. 2016 fmk'!$I$7 -> 2021 | D6: Current | E6: Pillar | F6: IV | G6: IV | K6: M2 | L6: IV | M6: IV. Policy-based fiscal strategy and budgeting | N6: =VLOOKUP(F6,Profile!B:C,2,FALSE) -> IV. Policy-based fiscal strategy and budgeting | O6: =IF($B6=2016,IF($D6="Current",VLOOKUP($G6,'Input. 2016 fmk'!$C$15:$T$153,9,FALSE),VLOOKUP($G6,'Input. 2016 fmk'!$C$15:$T$153,8,FALSE)),IF($D6="Current",VLOOKUP($G6,'Input. 2016 fmk'!$C$27:$T$155,9,FALSE),VLOOKUP($G6,'Input. 2016 fmk'!$C$27:$T$155,8,FALSE))) -> D+ | P6: 1.5 | Q6: BELOW BASIC | R6: Weakness | S6: =IFERROR(VLOOKUP($F6,'Input. 2016 fmk'!H10:X148,12,FALSE),"") ->  | T6: =IFERROR(VLOOKUP($F6,'Input. 2016 fmk'!$H$27:$W$153,13,FALSE),"") ->  | U6: =IFERROR(VLOOKUP($F6,'Input. 2016 fmk'!$H$27:$X$153,14,FALSE),"") ->  | V6: 0 | W6: =MIN(IF($P$19:$P$276>0,IF($B$19:$B$276=$B6,IF($C$19:$C$276=$C6,IF($I$19:$I$276=$I6,$P$19:$P$276))))) -> 0 | X6: 0 | Y6: 0 | Z6: =IF($B6=2016,IF($D6="Current",VLOOKUP($G6,'Input. 2016 fmk'!$C$15:$U$153,14,FALSE),VLOOKUP($G6,'Input. 2016 fmk'!$C$15:$U$153,16,FALSE)),IF($D6="Current",VLOOKUP($G6,'Input. 2016 fmk'!$C$27:$T$155,14,FALSE),"")) -> 1. BELOW BASIC | AA6: =IF($B6=2016,VLOOKUP($G6,'Input. 2016 fmk'!$C$15:$T$153,13,FALSE),VLOOKUP($G6,'Input. 2016 fmk'!$C$27:$T$155,13,FALSE)) -> 1.5
A7: ='Input. 2016 fmk'!$I$4 -> PEFALIA | B7: 2016 | C7: ='Input. 2016 fmk'!$I$7 -> 2021 | D7: Current | E7: Pillar | F7: V | G7: V | K7: M2 | L7: V | M7: V. Predictability and control in budget execution | N7: =VLOOKUP(F7,Profile!B:C,2,FALSE) -> V. Predictability and control in budget execution | O7: =IF($B7=2016,IF($D7="Current",VLOOKUP($G7,'Input. 2016 fmk'!$C$15:$T$153,9,FALSE),VLOOKUP($G7,'Input. 2016 fmk'!$C$15:$T$153,8,FALSE)),IF($D7="Current",VLOOKUP($G7,'Input. 2016 fmk'!$C$27:$T$155,9,FALSE),VLOOKUP($G7,'Input. 2016 fmk'!$C$27:$T$155,8,FALSE))) -> D | P7: 1 | Q7: BELOW BASIC | R7: Weakness | S7: =IFERROR(VLOOKUP($F7,'Input. 2016 fmk'!H11:X149,12,FALSE),"") ->  | T7: =IFERROR(VLOOKUP($F7,'Input. 2016 fmk'!$H$27:$W$153,13,FALSE),"") ->  | U7: =IFERROR(VLOOKUP($F7,'Input. 2016 fmk'!$H$27:$X$153,14,FALSE),"") ->  | V7: 0 | W7: =MIN(IF($P$19:$P$276>0,IF($B$19:$B$276=$B7,IF($C$19:$C$276=$C7,IF($I$19:$I$276=$I7,$P$19:$P$276))))) -> 0 | X7: 0 | Y7: 0 | Z7: =IF($B7=2016,IF($D7="Current",VLOOKUP($G7,'Input. 2016 fmk'!$C$15:$U$153,14,FALSE),VLOOKUP($G7,'Input. 2016 fmk'!$C$15:$U$153,16,FALSE)),IF($D7="Current",VLOOKUP($G7,'Input. 2016 fmk'!$C$27:$T$155,14,FALSE),"")) -> 1. BELOW BASIC | AA7: =IF($B7=2016,VLOOKUP($G7,'Input. 2016 fmk'!$C$15:$T$153,13,FALSE),VLOOKUP($G7,'Input. 2016 fmk'!$C$27:$T$155,13,FALSE)) -> 1
A8: ='Input. 2016 fmk'!$I$4 -> PEFALIA | B8: 2016 | C8: ='Input. 2016 fmk'!$I$7 -> 2021 | D8: Current | E8: Pillar | F8: VI | G8: VI | K8: M2 | L8: VI | M8: VI. Accounting and reporting | N8: =VLOOKUP(F8,Profile!B:C,2,FALSE) -> VI. Accounting and reporting | O8: =IF($B8=2016,IF($D8="Current",VLOOKUP($G8,'Input. 2016 fmk'!$C$15:$T$153,9,FALSE),VLOOKUP($G8,'Input. 2016 fmk'!$C$15:$T$153,8,FALSE)),IF($D8="Current",VLOOKUP($G8,'Input. 2016 fmk'!$C$27:$T$155,9,FALSE),VLOOKUP($G8,'Input. 2016 fmk'!$C$27:$T$155,8,FALSE))) -> D+ | P8: 1.5 | Q8: BELOW BASIC | R8: Weakness | S8: =IFERROR(VLOOKUP($F8,'Input. 2016 fmk'!H12:X150,12,FALSE),"") ->  | T8: =IFERROR(VLOOKUP($F8,'Input. 2016 fmk'!$H$27:$W$153,13,FALSE),"") ->  | U8: =IFERROR(VLOOKUP($F8,'Input. 2016 fmk'!$H$27:$X$153,14,FALSE),"") ->  | V8: 0 | W8: =MIN(IF($P$19:$P$276>0,IF($B$19:$B$276=$B8,IF($C$19:$C$276=$C8,IF($I$19:$I$276=$I8,$P$19:$P$276))))) -> 0 | X8: 0 | Y8: 0 | Z8: =IF($B8=2016,IF($D8="Current",VLOOKUP($G8,'Input. 2016 fmk'!$C$15:$U$153,14,FALSE),VLOOKUP($G8,'Input. 2016 fmk'!$C$15:$U$153,16,FALSE)),IF($D8="Current",VLOOKUP($G8,'Input. 2016 fmk'!$C$27:$T$155,14,FALSE),"")) -> 1. BELOW BASIC | AA8: =IF($B8=2016,VLOOKUP($G8,'Input. 2016 fmk'!$C$15:$T$153,13,FALSE),VLOOKUP($G8,'Input. 2016 fmk'!$C$27:$T$155,13,FALSE)) -> 1.5
A9: ='Input. 2016 fmk'!$I$4 -> PEFALIA | B9: 2016 | C9: ='Input. 2016 fmk'!$I$7 -> 2021 | D9: Current | E9: Pillar | F9: VII | G9: VII | K9: M2 | L9: VII | M9: VII. External scrutiny and audit | N9: =VLOOKUP(F9,Profile!B:C,2,FALSE) -> VII. External scrutiny and audit | O9: =IF($B9=2016,IF($D9="Current",VLOOKUP($G9,'Input. 2016 fmk'!$C$15:$T$153,9,FALSE),VLOOKUP($G9,'Input. 2016 fmk'!$C$15:$T$153,8,FALSE)),IF($D9="Current",VLOOKUP($G9,'Input. 2016 fmk'!$C$27:$T$155,9,FALSE),VLOOKUP($G9,'Input. 2016 fmk'!$C$27:$T$155,8,FALSE))) -> D | P9: 1 | Q9: BELOW BASIC | R9: Weakness | S9: =IFERROR(VLOOKUP($F9,'Input. 2016 fmk'!H13:X151,12,FALSE),"") ->  | T9: =IFERROR(VLOOKUP($F9,'Input. 2016 fmk'!$H$27:$W$153,13,FALSE),"") ->  | U9: =IFERROR(VLOOKUP($F9,'Input. 2016 fmk'!$H$27:$X$153,14,FALSE),"") ->  | V9: 0 | W9: =MIN(IF($P$19:$P$276>0,IF($B$19:$B$276=$B9,IF($C$19:$C$276=$C9,IF($I$19:$I$276=$I9,$P$19:$P$276))))) -> 0 | X9: 0 | Y9: 0 | Z9: =IF($B9=2016,IF($D9="Current",VLOOKUP($G9,'Input. 2016 fmk'!$C$15:$U$153,14,FALSE),VLOOKUP($G9,'Input. 2016 fmk'!$C$15:$U$153,16,FALSE)),IF($D9="Current",VLOOKUP($G9,'Input. 2016 fmk'!$C$27:$T$155,14,FALSE),"")) -> 1. BELOW BASIC | AA9: =IF($B9=2016,VLOOKUP($G9,'Input. 2016 fmk'!$C$15:$T$153,13,FALSE),VLOOKUP($G9,'Input. 2016 fmk'!$C$27:$T$155,13,FALSE)) -> 1
A10: ='Input. 2016 fmk'!$I$4 -> PEFALIA | B10: 2016 | C10: ='Input. 2016 fmk'!$I$7 -> 2021 | D10: Current | E10: Indic | F10: HLG-1 | G10: HLG-1 | H10: 8 | I10: HLG-1 | K10: M2 | L10: HLG | M10: HLG-1 Transfer from higher levels of government | N10: =VLOOKUP(F10,Profile!B:C,2,FALSE) -> HLG-1 Transfer from higher levels of government | O10: =IF($B10=2016,IF($D10="Current",VLOOKUP($G10,'Input. 2016 fmk'!$C$15:$T$153,9,FALSE),VLOOKUP($G10,'Input. 2016 fmk'!$C$15:$T$153,8,FALSE)),IF($D10="Current",VLOOKUP($G10,'Input. 2016 fmk'!$C$27:$T$155,9,FALSE),VLOOKUP($G10,'Input. 2016 fmk'!$C$27:$T$155,8,FALSE))) -> D+ | P10: =IFERROR(IF(O10="A",4, IF(O10="B+",3.5, IF(O10="B",3, IF(O10="C+",2.5, IF(O10="C",2, IF(O10="D+",1.5, IF(O10="D",1, IF(O10="D*",1, 0)))))))),"") -> 1.5 | Q10: BELOW BASIC | R10: Weakness | S10: =IFERROR(VLOOKUP($F10,'Input. 2016 fmk'!H20:X148,15,FALSE),"") ->  | T10: =IFERROR(VLOOKUP($F10,'Input. 2016 fmk'!$H$27:$W$153,16,FALSE),"") ->  | U10: =IFERROR(VLOOKUP($F10,'Input. 2016 fmk'!$H$27:$X$153,17,FALSE),"") ->  | V10: 1.5 | W10: =MIN(IF($P$19:$P$276>0,IF($B$19:$B$276=$B10,IF($C$19:$C$276=$C10,IF($I$19:$I$276=$I10,$P$19:$P$276))))) -> 0 | X10: 0.5 | Y10: 1.5 | Z10: =IF($B10=2016,IF($D10="Current",VLOOKUP($G10,'Input. 2016 fmk'!$C$15:$U$153,14,FALSE),VLOOKUP($G10,'Input. 2016 fmk'!$C$15:$U$153,16,FALSE)),IF($D10="Current",VLOOKUP($G10,'Input. 2016 fmk'!$C$27:$T$155,14,FALSE),"")) -> 1. BELOW BASIC | AA10: =IF($B10=2016,VLOOKUP($G10,'Input. 2016 fmk'!$C$15:$T$153,13,FALSE),VLOOKUP($G10,'Input. 2016 fmk'!$C$27:$T$155,13,FALSE)) -> 1.5
A11: ='Input. 2016 fmk'!$I$4 -> PEFALIA | B11: 2016 | C11: ='Input. 2016 fmk'!$I$7 -> 2021 | D11: Current | E11: Comp | F11: HLG-1.1 | G11: HLG-1.1 | H11: 8 | I11: HLG-1 | J11: 1 | K11: M2 | L11: HLG | M11: HLG-1.1 Outturn of transfers from higher levels of government | N11: =VLOOKUP(F11,Profile!B:C,2,FALSE) -> HLG-1.1 Outturn of transfers from higher levels of government | O11: =IF($B11=2016,IF($D11="Current",VLOOKUP($G11,'Input. 2016 fmk'!$C$15:$T$153,9,FALSE),VLOOKUP($G11,'Input. 2016 fmk'!$C$15:$T$153,8,FALSE)),IF($D11="Current",VLOOKUP($G11,'Input. 2016 fmk'!$C$27:$T$155,9,FALSE),VLOOKUP($G11,'Input. 2016 fmk'!$C$27:$T$155,8,FALSE))) -> A | P11: 4 | Q11: ADVANCED | R11: Strenght | S11: =IFERROR(VLOOKUP($F11,'Input. 2016 fmk'!H21:X149,15,FALSE),"") ->  | T11: =IFERROR(VLOOKUP($F11,'Input. 2016 fmk'!$H$27:$W$153,16,FALSE),"") ->  | U11: =IFERROR(VLOOKUP($F11,'Input. 2016 fmk'!$H$27:$X$153,17,FALSE),"") ->  | V11: 1.5 | W11: =MIN(IF($P$19:$P$276>0,IF($B$19:$B$276=$B11,IF($C$19:$C$276=$C11,IF($I$19:$I$276=$I11,$P$19:$P$276))))) -> 0 | X11: 0.5 | Y11: 1.5 | Z11: =IF($B11=2016,IF($D11="Current",VLOOKUP($G11,'Input. 2016 fmk'!$C$15:$U$153,14,FALSE),VLOOKUP($G11,'Input. 2016 fmk'!$C$15:$U$153,16,FALSE)),IF($D11="Current",VLOOKUP($G11,'Input. 2016 fmk'!$C$27:$T$155,14,FALSE),"")) -> 4. HIGH | AA11: =IF($B11=2016,VLOOKUP($G11,'Input. 2016 fmk'!$C$15:$T$153,13,FALSE),VLOOKUP($G11,'Input. 2016 fmk'!$C$27:$T$155,13,FALSE)) -> 4
A12: ='Input. 2016 fmk'!$I$4 -> PEFALIA | B12: 2016 | C12: ='Input. 2016 fmk'!$I$7 -> 2021 | D12: Current | E12: Comp | F12: HLG-1.2 | G12: HLG-1.2 | H12: 8 | I12: HLG-1 | J12: 2 | K12: M2 | L12: HLG | M12: HLG-1.2 Transfers composition outturn | N12: =VLOOKUP(F12,Profile!B:C,2,FALSE) -> HLG-1.2 Transfers composition outturn | O12: =IF($B12=2016,IF($D12="Current",VLOOKUP($G12,'Input. 2016 fmk'!$C$15:$T$153,9,FALSE),VLOOKUP($G12,'Input. 2016 fmk'!$C$15:$T$153,8,FALSE)),IF($D12="Current",VLOOKUP($G12,'Input. 2016 fmk'!$C$27:$T$155,9,FALSE),VLOOKUP($G12,'Input. 2016 fmk'!$C$27:$T$155,8,FALSE))) -> D | P12: 1 | Q12: BELOW BASIC | R12: Weakness | S12: =IFERROR(VLOOKUP($F12,'Input. 2016 fmk'!H22:X150,15,FALSE),"") ->  | T12: =IFERROR(VLOOKUP($F12,'Input. 2016 fmk'!$H$27:$W$153,16,FALSE),"") ->  | U12: =IFERROR(VLOOKUP($F12,'Input. 2016 fmk'!$H$27:$X$153,17,FALSE),"") ->  | V12: 1.5 | W12: =MIN(IF($P$19:$P$276>0,IF($B$19:$B$276=$B12,IF($C$19:$C$276=$C12,IF($I$19:$I$276=$I12,$P$19:$P$276))))) -> 0 | X12: 0.5 | Y12: 1.5 | Z12: =IF($B12=2016,IF($D12="Current",VLOOKUP($G12,'Input. 2016 fmk'!$C$15:$U$153,14,FALSE),VLOOKUP($G12,'Input. 2016 fmk'!$C$15:$U$153,16,FALSE)),IF($D12="Current",VLOOKUP($G12,'Input. 2016 fmk'!$C$27:$T$155,14,FALSE),"")) -> 1. BELOW BASIC | AA12: =IF($B12=2016,VLOOKUP($G12,'Input. 2016 fmk'!$C$15:$T$153,13,FALSE),VLOOKUP($G12,'Input. 2016 fmk'!$C$27:$T$155,13,FALSE)) -> 1
A13: ='Input. 2016 fmk'!$I$4 -> PEFALIA | B13: 2016 | C13: ='Input. 2016 fmk'!$I$7 -> 2021 | D13: Current | E13: Comp | F13: HLG-1.3 | G13: HLG-1.3 | H13: 8 | I13: HLG-1 | J13: 3 | K13: M2 | L13: HLG | M13: HLG-1.3 Timeliness of transfers from higher levels of government | N13: =VLOOKUP(F13,Profile!B:C,2,FALSE) -> HLG-1.3 Timeliness of transfers from higher levels of government | O13: =IF($B13=2016,IF($D13="Current",VLOOKUP($G13,'Input. 2016 fmk'!$C$15:$T$153,9,FALSE),VLOOKUP($G13,'Input. 2016 fmk'!$C$15:$T$153,8,FALSE)),IF($D13="Current",VLOOKUP($G13,'Input. 2016 fmk'!$C$27:$T$155,9,FALSE),VLOOKUP($G13,'Input. 2016 fmk'!$C$27:$T$155,8,FALSE))) -> D | P13: 1 | Q13: BELOW BASIC | R13: Weakness | S13: =IFERROR(VLOOKUP($F13,'Input. 2016 fmk'!H23:X151,15,FALSE),"") ->  | T13: =IFERROR(VLOOKUP($F13,'Input. 2016 fmk'!$H$27:$W$153,16,FALSE),"") ->  | U13: =IFERROR(VLOOKUP($F13,'Input. 2016 fmk'!$H$27:$X$153,17,FALSE),"") ->  | V13: 1.5 | W13: =MIN(IF($P$19:$P$276>0,IF($B$19:$B$276=$B13,IF($C$19:$C$276=$C13,IF($I$19:$I$276=$I13,$P$19:$P$276))))) -> 0 | X13: 0.5 | Y13: 1.5 | Z13: =IF($B13=2016,IF($D13="Current",VLOOKUP($G13,'Input. 2016 fmk'!$C$15:$U$153,14,FALSE),VLOOKUP($G13,'Input. 2016 fmk'!$C$15:$U$153,16,FALSE)),IF($D13="Current",VLOOKUP($G13,'Input. 2016 fmk'!$C$27:$T$155,14,FALSE),"")) -> 1. BELOW BASIC | AA13: =IF($B13=2016,VLOOKUP($G13,'Input. 2016 fmk'!$C$15:$T$153,13,FALSE),VLOOKUP($G13,'Input. 2016 fmk'!$C$27:$T$155,13,FALSE)) -> 1
A14: ='Input. 2016 fmk'!$I$4 -> PEFALIA | B14: 2016 | C14: ='Input. 2016 fmk'!$I$7 -> 2021 | D14: Current | E14: Comp | F14: HLG-1.4 | G14: HLG-1.4 | H14: 8 | I14: HLG-1 | J14: 4 | K14: M2 | L14: HLG | M14: HLG-1.4 Predictability of transfers | N14: =VLOOKUP(F14,Profile!B:C,2,FALSE) -> HLG-1.4 Predictability of transfers | O14: =IF($B14=2016,IF($D14="Current",VLOOKUP($G14,'Input. 2016 fmk'!$C$15:$T$153,9,FALSE),VLOOKUP($G14,'Input. 2016 fmk'!$C$15:$T$153,8,FALSE)),IF($D14="Current",VLOOKUP($G14,'Input. 2016 fmk'!$C$27:$T$155,9,FALSE),VLOOKUP($G14,'Input. 2016 fmk'!$C$27:$T$155,8,FALSE))) -> D | P14: 1 | Q14: BELOW BASIC | R14: Weakness | S14: =IFERROR(VLOOKUP($F14,'Input. 2016 fmk'!H24:X152,15,FALSE),"") ->  | T14: =IFERROR(VLOOKUP($F14,'Input. 2016 fmk'!$H$27:$W$153,16,FALSE),"") ->  | U14: =IFERROR(VLOOKUP($F14,'Input. 2016 fmk'!$H$27:$X$153,17,FALSE),"") ->  | V14: 1.5 | W14: =MIN(IF($P$19:$P$276>0,IF($B$19:$B$276=$B14,IF($C$19:$C$276=$C14,IF($I$19:$I$276=$I14,$P$19:$P$276))))) -> 0 | X14: 0.5 | Y14: 1.5 | Z14: =IF($B14=2016,IF($D14="Current",VLOOKUP($G14,'Input. 2016 fmk'!$C$15:$U$153,14,FALSE),VLOOKUP($G14,'Input. 2016 fmk'!$C$15:$U$153,16,FALSE)),IF($D14="Current",VLOOKUP($G14,'Input. 2016 fmk'!$C$27:$T$155,14,FALSE),"")) -> 1. BELOW BASIC | AA14: =IF($B14=2016,VLOOKUP($G14,'Input. 2016 fmk'!$C$15:$T$153,13,FALSE),VLOOKUP($G14,'Input. 2016 fmk'!$C$27:$T$155,13,FALSE)) -> 1
A15: ='Input. 2016 fmk'!$I$4 -> PEFALIA | B15: 2016 | C15: ='Input. 2016 fmk'!$I$7 -> 2021 | D15: Current | E15: Indic | F15: HLG-2 | G15: HLG-2 | H15: 2 | I15: HLG-2 | K15: M1 | L15: HLG | M15: HLG-2 Fiscal rules and monitoring of fiscal position | N15: =VLOOKUP(F15,Profile!B:C,2,FALSE) -> HLG-2 Fiscal rules and monitoring of fiscal position | O15: =IF($B15=2016,IF($D15="Current",VLOOKUP($G15,'Input. 2016 fmk'!$C$15:$T$153,9,FALSE),VLOOKUP($G15,'Input. 2016 fmk'!$C$15:$T$153,8,FALSE)),IF($D15="Current",VLOOKUP($G15,'Input. 2016 fmk'!$C$27:$T$155,9,FALSE),VLOOKUP($G15,'Input. 2016 fmk'!$C$27:$T$155,8,FALSE))) -> D | P15: 1 | Q15: BELOW BASIC | R15: Weakness | S15: =IFERROR(VLOOKUP($F15,'Input. 2016 fmk'!H21:X149,15,FALSE),"") ->  | T15: =IFERROR(VLOOKUP($F15,'Input. 2016 fmk'!$H$27:$W$153,16,FALSE),"") ->  | U15: =IFERROR(VLOOKUP($F15,'Input. 2016 fmk'!$H$27:$X$153,17,FALSE),"") ->  | V15: 1 | W15: =MIN(IF($P$19:$P$276>0,IF($B$19:$B$276=$B15,IF($C$19:$C$276=$C15,IF($I$19:$I$276=$I15,$P$19:$P$276))))) -> 0 | X15: 0.5 | Y15: 0.5 | Z15: =IF($B15=2016,IF($D15="Current",VLOOKUP($G15,'Input. 2016 fmk'!$C$15:$U$153,14,FALSE),VLOOKUP($G15,'Input. 2016 fmk'!$C$15:$U$153,16,FALSE)),IF($D15="Current",VLOOKUP($G15,'Input. 2016 fmk'!$C$27:$T$155,14,FALSE),"")) -> 1. BELOW BASIC | AA15: =IF($B15=2016,VLOOKUP($G15,'Input. 2016 fmk'!$C$15:$T$153,13,FALSE),VLOOKUP($G15,'Input. 2016 fmk'!$C$27:$T$155,13,FALSE)) -> 1
A16: ='Input. 2016 fmk'!$I$4 -> PEFALIA | B16: 2016 | C16: ='Input. 2016 fmk'!$I$7 -> 2021 | D16: Current | E16: Comp | F16: HLG-2.1 | G16: HLG-2.1 | H16: 2 | I16: HLG-2 | J16: 1 | K16: M1 | L16: HLG | M16: HLG-2.1 Fiscal rules for sub-national governments | N16: =VLOOKUP(F16,Profile!B:C,2,FALSE) -> HLG-2.1 Fiscal rules for sub-national governments | O16: =IF($B16=2016,IF($D16="Current",VLOOKUP($G16,'Input. 2016 fmk'!$C$15:$T$153,9,FALSE),VLOOKUP($G16,'Input. 2016 fmk'!$C$15:$T$153,8,FALSE)),IF($D16="Current",VLOOKUP($G16,'Input. 2016 fmk'!$C$27:$T$155,9,FALSE),VLOOKUP($G16,'Input. 2016 fmk'!$C$27:$T$155,8,FALSE))) -> D | P16: 1 | Q16: BELOW BASIC | R16: Weakness | S16: =IFERROR(VLOOKUP($F16,'Input. 2016 fmk'!H22:X150,15,FALSE),"") ->  | T16: =IFERROR(VLOOKUP($F16,'Input. 2016 fmk'!$H$27:$W$153,16,FALSE),"") ->  | U16: =IFERROR(VLOOKUP($F16,'Input. 2016 fmk'!$H$27:$X$153,17,FALSE),"") ->  | V16: 1 | W16: =MIN(IF($P$19:$P$276>0,IF($B$19:$B$276=$B16,IF($C$19:$C$276=$C16,IF($I$19:$I$276=$I16,$P$19:$P$276))))) -> 0 | X16: 0.5 | Y16: 0.5 | Z16: =IF($B16=2016,IF($D16="Current",VLOOKUP($G16,'Input. 2016 fmk'!$C$15:$U$153,14,FALSE),VLOOKUP($G16,'Input. 2016 fmk'!$C$15:$U$153,16,FALSE)),IF($D16="Current",VLOOKUP($G16,'Input. 2016 fmk'!$C$27:$T$155,14,FALSE),"")) -> 1. BELOW BASIC | AA16: =IF($B16=2016,VLOOKUP($G16,'Input. 2016 fmk'!$C$15:$T$153,13,FALSE),VLOOKUP($G16,'Input. 2016 fmk'!$C$27:$T$155,13,FALSE)) -> 1
A17: ='Input. 2016 fmk'!$I$4 -> PEFALIA | B17: 2016 | C17: ='Input. 2016 fmk'!$I$7 -> 2021 | D17: Current | E17: Comp | F17: HLG-2.2 | G17: HLG-2.2 | H17: 2 | I17: HLG-2 | J17: 2 | K17: M1 | L17: HLG | M17: HLG-2.2 Debt rules for sub-national governments | N17: =VLOOKUP(F17,Profile!B:C,2,FALSE) -> HLG-2.2 Debt rules for sub-national governments | O17: =IF($B17=2016,IF($D17="Current",VLOOKUP($G17,'Input. 2016 fmk'!$C$15:$T$153,9,FALSE),VLOOKUP($G17,'Input. 2016 fmk'!$C$15:$T$153,8,FALSE)),IF($D17="Current",VLOOKUP($G17,'Input. 2016 fmk'!$C$27:$T$155,9,FALSE),VLOOKUP($G17,'Input. 2016 fmk'!$C$27:$T$155,8,FALSE))) -> D | P17: 1 | Q17: BELOW BASIC | R17: Weakness | S17: =IFERROR(VLOOKUP($F17,'Input. 2016 fmk'!H23:X151,15,FALSE),"") ->  | T17: =IFERROR(VLOOKUP($F17,'Input. 2016 fmk'!$H$27:$W$153,16,FALSE),"") ->  | U17: =IFERROR(VLOOKUP($F17,'Input. 2016 fmk'!$H$27:$X$153,17,FALSE),"") ->  | V17: 1 | W17: =MIN(IF($P$19:$P$276>0,IF($B$19:$B$276=$B17,IF($C$19:$C$276=$C17,IF($I$19:$I$276=$I17,$P$19:$P$276))))) -> 0 | X17: 0.5 | Y17: 0.5 | Z17: =IF($B17=2016,IF($D17="Current",VLOOKUP($G17,'Input. 2016 fmk'!$C$15:$U$153,14,FALSE),VLOOKUP($G17,'Input. 2016 fmk'!$C$15:$U$153,16,FALSE)),IF($D17="Current",VLOOKUP($G17,'Input. 2016 fmk'!$C$27:$T$155,14,FALSE),"")) -> 1. BELOW BASIC | AA17: =IF($B17=2016,VLOOKUP($G17,'Input. 2016 fmk'!$C$15:$T$153,13,FALSE),VLOOKUP($G17,'Input. 2016 fmk'!$C$27:$T$155,13,FALSE)) -> 1
A18: ='Input. 2016 fmk'!$I$4 -> PEFALIA | B18: 2016 | C18: ='Input. 2016 fmk'!$I$7 -> 2021 | D18: Current | E18: Comp | F18: HLG-2.3 | G18: HLG-2.3 | H18: 2 | I18: HLG-2 | J18: 3 | K18: M1 | L18: HLG | M18: HLG-2.3 Monitoring of sub-national governments | N18: =VLOOKUP(F18,Profile!B:C,2,FALSE) -> HLG-2.3 Monitoring of sub-national governments | O18: =IF($B18=2016,IF($D18="Current",VLOOKUP($G18,'Input. 2016 fmk'!$C$15:$T$153,9,FALSE),VLOOKUP($G18,'Input. 2016 fmk'!$C$15:$T$153,8,FALSE)),IF($D18="Current",VLOOKUP($G18,'Input. 2016 fmk'!$C$27:$T$155,9,FALSE),VLOOKUP($G18,'Input. 2016 fmk'!$C$27:$T$155,8,FALSE))) -> D* | P18: 1 | Q18: BELOW BASIC | R18: Weakness | S18: =IFERROR(VLOOKUP($F18,'Input. 2016 fmk'!H24:X152,15,FALSE),"") ->  | T18: =IFERROR(VLOOKUP($F18,'Input. 2016 fmk'!$H$27:$W$153,16,FALSE),"") ->  | U18: =IFERROR(VLOOKUP($F18,'Input. 2016 fmk'!$H$27:$X$153,17,FALSE),"") ->  | V18: 1 | W18: =MIN(IF($P$19:$P$276>0,IF($B$19:$B$276=$B18,IF($C$19:$C$276=$C18,IF($I$19:$I$276=$I18,$P$19:$P$276))))) -> 0 | X18: 0.5 | Y18: 0.5 | Z18: =IF($B18=2016,IF($D18="Current",VLOOKUP($G18,'Input. 2016 fmk'!$C$15:$U$153,14,FALSE),VLOOKUP($G18,'Input. 2016 fmk'!$C$15:$U$153,16,FALSE)),IF($D18="Current",VLOOKUP($G18,'Input. 2016 fmk'!$C$27:$T$155,14,FALSE),"")) -> 1. BELOW BASIC | AA18: =IF($B18=2016,VLOOKUP($G18,'Input. 2016 fmk'!$C$15:$T$153,13,FALSE),VLOOKUP($G18,'Input. 2016 fmk'!$C$27:$T$155,13,FALSE)) -> 0
A19: ='Input. 2016 fmk'!$I$4 -> PEFALIA | B19: 2016 | C19: ='Input. 2016 fmk'!$I$7 -> 2021 | D19: Current | E19: Indic | F19: PI-1 | G19: PI_1 | H19: 1 | I19: PI-1 | K19: M1 | L19: I | M19: PI-1 Aggregate expenditure outturn | N19: =VLOOKUP(F19,Profile!B:C,2,FALSE) -> PI-1 Aggregate expenditure outturn | O19: =IF($B19=2016,IF($D19="Current",VLOOKUP($G19,'Input. 2016 fmk'!$C$15:$T$153,9,FALSE),VLOOKUP($G19,'Input. 2016 fmk'!$C$15:$T$153,8,FALSE)),IF($D19="Current",VLOOKUP($G19,'Input. 2016 fmk'!$C$27:$T$155,9,FALSE),VLOOKUP($G19,'Input. 2016 fmk'!$C$27:$T$155,8,FALSE))) -> A | P19: 4 | Q19: ADVANCED | R19: Strenght | S19: =IFERROR(VLOOKUP($F19,'Input. 2016 fmk'!H15:X153,15,FALSE),"") -> 1 | T19: =IFERROR(VLOOKUP($F19,'Input. 2016 fmk'!$H$27:$W$153,16,FALSE),"") -> 0 | U19: =IFERROR(VLOOKUP($F19,'Input. 2016 fmk'!$H$27:$X$153,17,FALSE),"") -> 0 | V19: 4 | W19: =MIN(IF($P$19:$P$276>0,IF($B$19:$B$276=$B19,IF($C$19:$C$276=$C19,IF($I$19:$I$276=$I19,$P$19:$P$276))))) -> 4 | X19: 4 | Y19: 4 | Z19: =IF($B19=2016,IF($D19="Current",VLOOKUP($G19,'Input. 2016 fmk'!$C$15:$U$153,14,FALSE),VLOOKUP($G19,'Input. 2016 fmk'!$C$15:$U$153,16,FALSE)),IF($D19="Current",VLOOKUP($G19,'Input. 2016 fmk'!$C$27:$T$155,14,FALSE),"")) -> 4. HIGH | AA19: =IF($B19=2016,VLOOKUP($G19,'Input. 2016 fmk'!$C$15:$T$153,13,FALSE),VLOOKUP($G19,'Input. 2016 fmk'!$C$27:$T$155,13,FALSE)) -> 4
A20: ='Input. 2016 fmk'!$I$4 -> PEFALIA | B20: 2016 | C20: ='Input. 2016 fmk'!$I$7 -> 2021 | D20: Current | E20: Comp | F20: 1.1 | G20: 1.1 | H20: 1 | I20: PI-1 | J20: 1 | K20: M1 | L20: I | M20: 1.1 Aggregate expenditure outturn | N20: =VLOOKUP(F20,Profile!B:C,2,FALSE) -> 1.1 Aggregate expenditure outturn | O20: =IF($B20=2016,IF($D20="Current",VLOOKUP($G20,'Input. 2016 fmk'!$C$15:$T$153,9,FALSE),VLOOKUP($G20,'Input. 2016 fmk'!$C$15:$T$153,8,FALSE)),IF($D20="Current",VLOOKUP($G20,'Input. 2016 fmk'!$C$27:$T$155,9,FALSE),VLOOKUP($G20,'Input. 2016 fmk'!$C$27:$T$155,8,FALSE))) -> A | P20: 4 | Q20: ADVANCED | R20: Strenght | S20: =IFERROR(VLOOKUP($F20,'Input. 2016 fmk'!H26:X154,15,FALSE),"") ->  | T20: =IFERROR(VLOOKUP($F20,'Input. 2016 fmk'!$H$27:$W$153,16,FALSE),"") ->  | U20: =IFERROR(VLOOKUP($F20,'Input. 2016 fmk'!$H$27:$X$153,17,FALSE),"") ->  | V20: 4 | W20: =MIN(IF($P$19:$P$276>0,IF($B$19:$B$276=$B20,IF($C$19:$C$276=$C20,IF($I$19:$I$276=$I20,$P$19:$P$276))))) -> 4 | X20: 4 | Y20: 4 | Z20: =IF($B20=2016,IF($D20="Current",VLOOKUP($G20,'Input. 2016 fmk'!$C$15:$U$153,14,FALSE),VLOOKUP($G20,'Input. 2016 fmk'!$C$15:$U$153,16,FALSE)),IF($D20="Current",VLOOKUP($G20,'Input. 2016 fmk'!$C$27:$T$155,14,FALSE),"")) -> 4. HIGH | AA20: =IF($B20=2016,VLOOKUP($G20,'Input. 2016 fmk'!$C$15:$T$153,13,FALSE),VLOOKUP($G20,'Input. 2016 fmk'!$C$27:$T$155,13,FALSE)) -> 4
A21: ='Input. 2016 fmk'!$I$4 -> PEFALIA | B21: 2016 | C21: ='Input. 2016 fmk'!$I$7 -> 2021 | D21: Current | E21: Indic | F21: PI-2 | G21: PI_2 | H21: 2 | I21: PI-2 | K21: M1 | L21: I | M21: PI-2 Expenditure composition outturn | N21: =VLOOKUP(F21,Profile!B:C,2,FALSE) -> PI-2 Expenditure composition outturn | O21: =IF($B21=2016,IF($D21="Current",VLOOKUP($G21,'Input. 2016 fmk'!$C$15:$T$153,9,FALSE),VLOOKUP($G21,'Input. 2016 fmk'!$C$15:$T$153,8,FALSE)),IF($D21="Current",VLOOKUP($G21,'Input. 2016 fmk'!$C$27:$T$155,9,FALSE),VLOOKUP($G21,'Input. 2016 fmk'!$C$27:$T$155,8,FALSE))) -> D | P21: 1 | Q21: BELOW BASIC | R21: Weakness | S21: =IFERROR(VLOOKUP($F21,'Input. 2016 fmk'!H27:X155,15,FALSE),"") -> 0 | T21: =IFERROR(VLOOKUP($F21,'Input. 2016 fmk'!$H$27:$W$153,16,FALSE),"") -> 1 | U21: =IFERROR(VLOOKUP($F21,'Input. 2016 fmk'!$H$27:$X$153,17,FALSE),"") -> 1 | V21: 1 | W21: =MIN(IF($P$19:$P$276>0,IF($B$19:$B$276=$B21,IF($C$19:$C$276=$C21,IF($I$19:$I$276=$I21,$P$19:$P$276))))) -> 1 | X21: 1 | Y21: 1 | Z21: =IF($B21=2016,IF($D21="Current",VLOOKUP($G21,'Input. 2016 fmk'!$C$15:$U$153,14,FALSE),VLOOKUP($G21,'Input. 2016 fmk'!$C$15:$U$153,16,FALSE)),IF($D21="Current",VLOOKUP($G21,'Input. 2016 fmk'!$C$27:$T$155,14,FALSE),"")) -> 1. BELOW BASIC | AA21: =IF($B21=2016,VLOOKUP($G21,'Input. 2016 fmk'!$C$15:$T$153,13,FALSE),VLOOKUP($G21,'Input. 2016 fmk'!$C$27:$T$155,13,FALSE)) -> 1
A22: ='Input. 2016 fmk'!$I$4 -> PEFALIA | B22: 2016 | C22: ='Input. 2016 fmk'!$I$7 -> 2021 | D22: Current | E22: Comp | F22: 2.1 | G22: 2.1 | H22: 2 | I22: PI-2 | J22: 1 | K22: M1 | L22: I | M22: 2.1 Expenditure composition by function | N22: =VLOOKUP(F22,Profile!B:C,2,FALSE) -> 2.1 Expenditure composition by function | O22: =IF($B22=2016,IF($D22="Current",VLOOKUP($G22,'Input. 2016 fmk'!$C$15:$T$153,9,FALSE),VLOOKUP($G22,'Input. 2016 fmk'!$C$15:$T$153,8,FALSE)),IF($D22="Current",VLOOKUP($G22,'Input. 2016 fmk'!$C$27:$T$155,9,FALSE),VLOOKUP($G22,'Input. 2016 fmk'!$C$27:$T$155,8,FALSE))) -> D | P22: 1 | Q22: BELOW BASIC | R22: Weakness | S22: =IFERROR(VLOOKUP($F22,'Input. 2016 fmk'!H28:X156,15,FALSE),"") ->  | T22: =IFERROR(VLOOKUP($F22,'Input. 2016 fmk'!$H$27:$W$153,16,FALSE),"") ->  | U22: =IFERROR(VLOOKUP($F22,'Input. 2016 fmk'!$H$27:$X$153,17,FALSE),"") ->  | V22: 1 | W22: =MIN(IF($P$19:$P$276>0,IF($B$19:$B$276=$B22,IF($C$19:$C$276=$C22,IF($I$19:$I$276=$I22,$P$19:$P$276))))) -> 1 | X22: 1 | Y22: 1 | Z22: =IF($B22=2016,IF($D22="Current",VLOOKUP($G22,'Input. 2016 fmk'!$C$15:$U$153,14,FALSE),VLOOKUP($G22,'Input. 2016 fmk'!$C$15:$U$153,16,FALSE)),IF($D22="Current",VLOOKUP($G22,'Input. 2016 fmk'!$C$27:$T$155,14,FALSE),"")) -> 1. BELOW BASIC | AA22: =IF($B22=2016,VLOOKUP($G22,'Input. 2016 fmk'!$C$15:$T$153,13,FALSE),VLOOKUP($G22,'Input. 2016 fmk'!$C$27:$T$155,13,FALSE)) -> 1
A23: ='Input. 2016 fmk'!$I$4 -> PEFALIA | B23: 2016 | C23: ='Input. 2016 fmk'!$I$7 -> 2021 | D23: Current | E23: Comp | F23: 2.2 | G23: 2.2 | H23: 2 | I23: PI-2 | J23: 2 | K23: M1 | L23: I | M23: 2.2 Expenditure composition by economic type | N23: =VLOOKUP(F23,Profile!B:C,2,FALSE) -> 2.2 Expenditure composition by economic type | O23: =IF($B23=2016,IF($D23="Current",VLOOKUP($G23,'Input. 2016 fmk'!$C$15:$T$153,9,FALSE),VLOOKUP($G23,'Input. 2016 fmk'!$C$15:$T$153,8,FALSE)),IF($D23="Current",VLOOKUP($G23,'Input. 2016 fmk'!$C$27:$T$155,9,FALSE),VLOOKUP($G23,'Input. 2016 fmk'!$C$27:$T$155,8,FALSE))) -> D | P23: 1 | Q23: BELOW BASIC | R23: Weakness | S23: =IFERROR(VLOOKUP($F23,'Input. 2016 fmk'!H29:X157,15,FALSE),"") ->  | T23: =IFERROR(VLOOKUP($F23,'Input. 2016 fmk'!$H$27:$W$153,16,FALSE),"") ->  | U23: =IFERROR(VLOOKUP($F23,'Input. 2016 fmk'!$H$27:$X$153,17,FALSE),"") ->  | V23: 1 | W23: =MIN(IF($P$19:$P$276>0,IF($B$19:$B$276=$B23,IF($C$19:$C$276=$C23,IF($I$19:$I$276=$I23,$P$19:$P$276))))) -> 1 | X23: 1 | Y23: 1 | Z23: =IF($B23=2016,IF($D23="Current",VLOOKUP($G23,'Input. 2016 fmk'!$C$15:$U$153,14,FALSE),VLOOKUP($G23,'Input. 2016 fmk'!$C$15:$U$153,16,FALSE)),IF($D23="Current",VLOOKUP($G23,'Input. 2016 fmk'!$C$27:$T$155,14,FALSE),"")) -> 1. BELOW BASIC | AA23: =IF($B23=2016,VLOOKUP($G23,'Input. 2016 fmk'!$C$15:$T$153,13,FALSE),VLOOKUP($G23,'Input. 2016 fmk'!$C$27:$T$155,13,FALSE)) -> 1
A24: ='Input. 2016 fmk'!$I$4 -> PEFALIA | B24: 2016 | C24: ='Input. 2016 fmk'!$I$7 -> 2021 | D24: Current | E24: Comp | F24: 2.3 | G24: 2.3 | H24: 2 | I24: PI-2 | J24: 3 | K24: M1 | L24: I | M24: 2.3 Expenditure from contingency | N24: =VLOOKUP(F24,Profile!B:C,2,FALSE) -> 2.3 Expenditure from contingency | O24: =IF($B24=2016,IF($D24="Current",VLOOKUP($G24,'Input. 2016 fmk'!$C$15:$T$153,9,FALSE),VLOOKUP($G24,'Input. 2016 fmk'!$C$15:$T$153,8,FALSE)),IF($D24="Current",VLOOKUP($G24,'Input. 2016 fmk'!$C$27:$T$155,9,FALSE),VLOOKUP($G24,'Input. 2016 fmk'!$C$27:$T$155,8,FALSE))) -> D | P24: 1 | Q24: BELOW BASIC | R24: Weakness | S24: =IFERROR(VLOOKUP($F24,'Input. 2016 fmk'!H30:X158,15,FALSE),"") ->  | T24: =IFERROR(VLOOKUP($F24,'Input. 2016 fmk'!$H$27:$W$153,16,FALSE),"") ->  | U24: =IFERROR(VLOOKUP($F24,'Input. 2016 fmk'!$H$27:$X$153,17,FALSE),"") ->  | V24: 1 | W24: =MIN(IF($P$19:$P$276>0,IF($B$19:$B$276=$B24,IF($C$19:$C$276=$C24,IF($I$19:$I$276=$I24,$P$19:$P$276))))) -> 1 | X24: 1 | Y24: 1 | Z24: =IF($B24=2016,IF($D24="Current",VLOOKUP($G24,'Input. 2016 fmk'!$C$15:$U$153,14,FALSE),VLOOKUP($G24,'Input. 2016 fmk'!$C$15:$U$153,16,FALSE)),IF($D24="Current",VLOOKUP($G24,'Input. 2016 fmk'!$C$27:$T$155,14,FALSE),"")) -> 1. BELOW BASIC | AA24: =IF($B24=2016,VLOOKUP($G24,'Input. 2016 fmk'!$C$15:$T$153,13,FALSE),VLOOKUP($G24,'Input. 2016 fmk'!$C$27:$T$155,13,FALSE)) -> 1
A25: ='Input. 2016 fmk'!$I$4 -> PEFALIA | B25: 2016 | C25: ='Input. 2016 fmk'!$I$7 -> 2021 | D25: Current | E25: Indic | F25: PI-3 | G25: PI_3 | H25: 3 | I25: PI-3 | K25: M2 | L25: I | M25: PI-3 Revenue outturn | N25: =VLOOKUP(F25,Profile!B:C,2,FALSE) -> PI-3 Revenue outturn | O25: =IF($B25=2016,IF($D25="Current",VLOOKUP($G25,'Input. 2016 fmk'!$C$15:$T$153,9,FALSE),VLOOKUP($G25,'Input. 2016 fmk'!$C$15:$T$153,8,FALSE)),IF($D25="Current",VLOOKUP($G25,'Input. 2016 fmk'!$C$27:$T$155,9,FALSE),VLOOKUP($G25,'Input. 2016 fmk'!$C$27:$T$155,8,FALSE))) -> D | P25: 1 | Q25: BELOW BASIC | R25: Weakness | S25: =IFERROR(VLOOKUP($F25,'Input. 2016 fmk'!H31:X159,15,FALSE),"") -> 1 | T25: =IFERROR(VLOOKUP($F25,'Input. 2016 fmk'!$H$27:$W$153,16,FALSE),"") -> 0 | U25: =IFERROR(VLOOKUP($F25,'Input. 2016 fmk'!$H$27:$X$153,17,FALSE),"") -> 0 | V25: 1 | W25: =MIN(IF($P$19:$P$276>0,IF($B$19:$B$276=$B25,IF($C$19:$C$276=$C25,IF($I$19:$I$276=$I25,$P$19:$P$276))))) -> 1 | X25: 1 | Y25: 1 | Z25: =IF($B25=2016,IF($D25="Current",VLOOKUP($G25,'Input. 2016 fmk'!$C$15:$U$153,14,FALSE),VLOOKUP($G25,'Input. 2016 fmk'!$C$15:$U$153,16,FALSE)),IF($D25="Current",VLOOKUP($G25,'Input. 2016 fmk'!$C$27:$T$155,14,FALSE),"")) -> 1. BELOW BASIC | AA25: =IF($B25=2016,VLOOKUP($G25,'Input. 2016 fmk'!$C$15:$T$153,13,FALSE),VLOOKUP($G25,'Input. 2016 fmk'!$C$27:$T$155,13,FALSE)) -> 1
A26: ='Input. 2016 fmk'!$I$4 -> PEFALIA | B26: 2016 | C26: ='Input. 2016 fmk'!$I$7 -> 2021 | D26: Current | E26: Comp | F26: 3.1 | G26: 3.1 | H26: 3 | I26: PI-3 | J26: 1 | K26: M2 | L26: I | M26: 3.1 Aggregate revenue outturn | N26: =VLOOKUP(F26,Profile!B:C,2,FALSE) -> 3.1 Aggregate revenue outturn | O26: =IF($B26=2016,IF($D26="Current",VLOOKUP($G26,'Input. 2016 fmk'!$C$15:$T$153,9,FALSE),VLOOKUP($G26,'Input. 2016 fmk'!$C$15:$T$153,8,FALSE)),IF($D26="Current",VLOOKUP($G26,'Input. 2016 fmk'!$C$27:$T$155,9,FALSE),VLOOKUP($G26,'Input. 2016 fmk'!$C$27:$T$155,8,FALSE))) -> D | P26: 1 | Q26: BELOW BASIC | R26: Weakness | S26: =IFERROR(VLOOKUP($F26,'Input. 2016 fmk'!H32:X160,15,FALSE),"") ->  | T26: =IFERROR(VLOOKUP($F26,'Input. 2016 fmk'!$H$27:$W$153,16,FALSE),"") ->  | U26: =IFERROR(VLOOKUP($F26,'Input. 2016 fmk'!$H$27:$X$153,17,FALSE),"") ->  | V26: 1 | W26: =MIN(IF($P$19:$P$276>0,IF($B$19:$B$276=$B26,IF($C$19:$C$276=$C26,IF($I$19:$I$276=$I26,$P$19:$P$276))))) -> 1 | X26: 1 | Y26: 1 | Z26: =IF($B26=2016,IF($D26="Current",VLOOKUP($G26,'Input. 2016 fmk'!$C$15:$U$153,14,FALSE),VLOOKUP($G26,'Input. 2016 fmk'!$C$15:$U$153,16,FALSE)),IF($D26="Current",VLOOKUP($G26,'Input. 2016 fmk'!$C$27:$T$155,14,FALSE),"")) -> 1. BELOW BASIC | AA26: =IF($B26=2016,VLOOKUP($G26,'Input. 2016 fmk'!$C$15:$T$153,13,FALSE),VLOOKUP($G26,'Input. 2016 fmk'!$C$27:$T$155,13,FALSE)) -> 1
A27: ='Input. 2016 fmk'!$I$4 -> PEFALIA | B27: 2016 | C27: ='Input. 2016 fmk'!$I$7 -> 2021 | D27: Current | E27: Comp | F27: 3.2 | G27: 3.2 | H27: 3 | I27: PI-3 | J27: 2 | K27: M2 | L27: I | M27: 3.2 Revenue composition variance | N27: =VLOOKUP(F27,Profile!B:C,2,FALSE) -> 3.2 Revenue composition variance | O27: =IF($B27=2016,IF($D27="Current",VLOOKUP($G27,'Input. 2016 fmk'!$C$15:$T$153,9,FALSE),VLOOKUP($G27,'Input. 2016 fmk'!$C$15:$T$153,8,FALSE)),IF($D27="Current",VLOOKUP($G27,'Input. 2016 fmk'!$C$27:$T$155,9,FALSE),VLOOKUP($G27,'Input. 2016 fmk'!$C$27:$T$155,8,FALSE))) -> NA | P27: 0 | R27: Weakness | S27: =IFERROR(VLOOKUP($F27,'Input. 2016 fmk'!H33:X161,15,FALSE),"") ->  | T27: =IFERROR(VLOOKUP($F27,'Input. 2016 fmk'!$H$27:$W$153,16,FALSE),"") ->  | U27: =IFERROR(VLOOKUP($F27,'Input. 2016 fmk'!$H$27:$X$153,17,FALSE),"") ->  | V27: 1 | W27: =MIN(IF($P$19:$P$276>0,IF($B$19:$B$276=$B27,IF($C$19:$C$276=$C27,IF($I$19:$I$276=$I27,$P$19:$P$276))))) -> 1 | X27: 1 | Y27: 1 | Z27: =IF($B27=2016,IF($D27="Current",VLOOKUP($G27,'Input. 2016 fmk'!$C$15:$U$153,14,FALSE),VLOOKUP($G27,'Input. 2016 fmk'!$C$15:$U$153,16,FALSE)),IF($D27="Current",VLOOKUP($G27,'Input. 2016 fmk'!$C$27:$T$155,14,FALSE),"")) ->  | AA27: =IF($B27=2016,VLOOKUP($G27,'Input. 2016 fmk'!$C$15:$T$153,13,FALSE),VLOOKUP($G27,'Input. 2016 fmk'!$C$27:$T$155,13,FALSE)) -> 0
A28: ='Input. 2016 fmk'!$I$4 -> PEFALIA | B28: 2016 | C28: ='Input. 2016 fmk'!$I$7 -> 2021 | D28: Current | E28: Indic | F28: PI-4 | G28: PI_4 | H28: 4 | I28: PI-4 | K28: M1 | L28: II | M28: PI-4 Budget classification | N28: =VLOOKUP(F28,Profile!B:C,2,FALSE) -> PI-4 Budget classification | O28: =IF($B28=2016,IF($D28="Current",VLOOKUP($G28,'Input. 2016 fmk'!$C$15:$T$153,9,FALSE),VLOOKUP($G28,'Input. 2016 fmk'!$C$15:$T$153,8,FALSE)),IF($D28="Current",VLOOKUP($G28,'Input. 2016 fmk'!$C$27:$T$155,9,FALSE),VLOOKUP($G28,'Input. 2016 fmk'!$C$27:$T$155,8,FALSE))) -> D | P28: 1 | Q28: BELOW BASIC | R28: Weakness | S28: =IFERROR(VLOOKUP($F28,'Input. 2016 fmk'!H34:X162,15,FALSE),"") -> 0 | T28: =IFERROR(VLOOKUP($F28,'Input. 2016 fmk'!$H$27:$W$153,16,FALSE),"") -> 1 | U28: =IFERROR(VLOOKUP($F28,'Input. 2016 fmk'!$H$27:$X$153,17,FALSE),"") -> 0 | V28: 1 | W28: =MIN(IF($P$19:$P$276>0,IF($B$19:$B$276=$B28,IF($C$19:$C$276=$C28,IF($I$19:$I$276=$I28,$P$19:$P$276))))) -> 1 | X28: 1 | Y28: 1 | Z28: =IF($B28=2016,IF($D28="Current",VLOOKUP($G28,'Input. 2016 fmk'!$C$15:$U$153,14,FALSE),VLOOKUP($G28,'Input. 2016 fmk'!$C$15:$U$153,16,FALSE)),IF($D28="Current",VLOOKUP($G28,'Input. 2016 fmk'!$C$27:$T$155,14,FALSE),"")) -> 1. BELOW BASIC | AA28: =IF($B28=2016,VLOOKUP($G28,'Input. 2016 fmk'!$C$15:$T$153,13,FALSE),VLOOKUP($G28,'Input. 2016 fmk'!$C$27:$T$155,13,FALSE)) -> 1
A29: ='Input. 2016 fmk'!$I$4 -> PEFALIA | B29: 2016 | C29: ='Input. 2016 fmk'!$I$7 -> 2021 | D29: Current | E29: Comp | F29: 4.1 | G29: 4.1 | H29: 4 | I29: PI-4 | J29: 1 | K29: M1 | L29: II | M29: 4.1 Budget classification | N29: =VLOOKUP(F29,Profile!B:C,2,FALSE) -> 4.1 Budget classification | O29: =IF($B29=2016,IF($D29="Current",VLOOKUP($G29,'Input. 2016 fmk'!$C$15:$T$153,9,FALSE),VLOOKUP($G29,'Input. 2016 fmk'!$C$15:$T$153,8,FALSE)),IF($D29="Current",VLOOKUP($G29,'Input. 2016 fmk'!$C$27:$T$155,9,FALSE),VLOOKUP($G29,'Input. 2016 fmk'!$C$27:$T$155,8,FALSE))) -> D | P29: 1 | Q29: BELOW BASIC | R29: Weakness | S29: =IFERROR(VLOOKUP($F29,'Input. 2016 fmk'!H35:X163,15,FALSE),"") ->  | T29: =IFERROR(VLOOKUP($F29,'Input. 2016 fmk'!$H$27:$W$153,16,FALSE),"") ->  | U29: =IFERROR(VLOOKUP($F29,'Input. 2016 fmk'!$H$27:$X$153,17,FALSE),"") ->  | V29: 1 | W29: =MIN(IF($P$19:$P$276>0,IF($B$19:$B$276=$B29,IF($C$19:$C$276=$C29,IF($I$19:$I$276=$I29,$P$19:$P$276))))) -> 1 | X29: 1 | Y29: 1 | Z29: =IF($B29=2016,IF($D29="Current",VLOOKUP($G29,'Input. 2016 fmk'!$C$15:$U$153,14,FALSE),VLOOKUP($G29,'Input. 2016 fmk'!$C$15:$U$153,16,FALSE)),IF($D29="Current",VLOOKUP($G29,'Input. 2016 fmk'!$C$27:$T$155,14,FALSE),"")) -> 1. BELOW BASIC | AA29: =IF($B29=2016,VLOOKUP($G29,'Input. 2016 fmk'!$C$15:$T$153,13,FALSE),VLOOKUP($G29,'Input. 2016 fmk'!$C$27:$T$155,13,FALSE)) -> 1
A30: ='Input. 2016 fmk'!$I$4 -> PEFALIA | B30: 2016 | C30: ='Input. 2016 fmk'!$I$7 -> 2021 | D30: Current | E30: Indic | F30: PI-5 | G30: PI_5 | H30: 5 | I30: PI-5 | K30: M1 | L30: II | M30: PI-5 Budget documentation | N30: =VLOOKUP(F30,Profile!B:C,2,FALSE) -> PI-5 Budget documentation | O30: =IF($B30=2016,IF($D30="Current",VLOOKUP($G30,'Input. 2016 fmk'!$C$15:$T$153,9,FALSE),VLOOKUP($G30,'Input. 2016 fmk'!$C$15:$T$153,8,FALSE)),IF($D30="Current",VLOOKUP($G30,'Input. 2016 fmk'!$C$27:$T$155,9,FALSE),VLOOKUP($G30,'Input. 2016 fmk'!$C$27:$T$155,8,FALSE))) -> D | P30: 1 | Q30: BELOW BASIC | R30: Weakness | S30: =IFERROR(VLOOKUP($F30,'Input. 2016 fmk'!H36:X164,15,FALSE),"") -> 0 | T30: =IFERROR(VLOOKUP($F30,'Input. 2016 fmk'!$H$27:$W$153,16,FALSE),"") -> 1 | U30: =IFERROR(VLOOKUP($F30,'Input. 2016 fmk'!$H$27:$X$153,17,FALSE),"") -> 0 | V30: 1 | W30: =MIN(IF($P$19:$P$276>0,IF($B$19:$B$276=$B30,IF($C$19:$C$276=$C30,IF($I$19:$I$276=$I30,$P$19:$P$276))))) -> 1 | X30: 1 | Y30: 1 | Z30: =IF($B30=2016,IF($D30="Current",VLOOKUP($G30,'Input. 2016 fmk'!$C$15:$U$153,14,FALSE),VLOOKUP($G30,'Input. 2016 fmk'!$C$15:$U$153,16,FALSE)),IF($D30="Current",VLOOKUP($G30,'Input. 2016 fmk'!$C$27:$T$155,14,FALSE),"")) -> 1. BELOW BASIC | AA30: =IF($B30=2016,VLOOKUP($G30,'Input. 2016 fmk'!$C$15:$T$153,13,FALSE),VLOOKUP($G30,'Input. 2016 fmk'!$C$27:$T$155,13,FALSE)) -> 1
A31: ='Input. 2016 fmk'!$I$4 -> PEFALIA | B31: 2016 | C31: ='Input. 2016 fmk'!$I$7 -> 2021 | D31: Current | E31: Comp | F31: 5.1 | G31: 5.1 | H31: 5 | I31: PI-5 | J31: 1 | K31: M1 | L31: II | M31: 5.1 Budget documentation | N31: =VLOOKUP(F31,Profile!B:C,2,FALSE) -> 5.1 Budget documentation | O31: =IF($B31=2016,IF($D31="Current",VLOOKUP($G31,'Input. 2016 fmk'!$C$15:$T$153,9,FALSE),VLOOKUP($G31,'Input. 2016 fmk'!$C$15:$T$153,8,FALSE)),IF($D31="Current",VLOOKUP($G31,'Input. 2016 fmk'!$C$27:$T$155,9,FALSE),VLOOKUP($G31,'Input. 2016 fmk'!$C$27:$T$155,8,FALSE))) -> D | P31: 1 | Q31: BELOW BASIC | R31: Weakness | S31: =IFERROR(VLOOKUP($F31,'Input. 2016 fmk'!H37:X165,15,FALSE),"") ->  | T31: =IFERROR(VLOOKUP($F31,'Input. 2016 fmk'!$H$27:$W$153,16,FALSE),"") ->  | U31: =IFERROR(VLOOKUP($F31,'Input. 2016 fmk'!$H$27:$X$153,17,FALSE),"") ->  | V31: 1 | W31: =MIN(IF($P$19:$P$276>0,IF($B$19:$B$276=$B31,IF($C$19:$C$276=$C31,IF($I$19:$I$276=$I31,$P$19:$P$276))))) -> 1 | X31: 1 | Y31: 1 | Z31: =IF($B31=2016,IF($D31="Current",VLOOKUP($G31,'Input. 2016 fmk'!$C$15:$U$153,14,FALSE),VLOOKUP($G31,'Input. 2016 fmk'!$C$15:$U$153,16,FALSE)),IF($D31="Current",VLOOKUP($G31,'Input. 2016 fmk'!$C$27:$T$155,14,FALSE),"")) -> 1. BELOW BASIC | AA31: =IF($B31=2016,VLOOKUP($G31,'Input. 2016 fmk'!$C$15:$T$153,13,FALSE),VLOOKUP($G31,'Input. 2016 fmk'!$C$27:$T$155,13,FALSE)) -> 1
A32: ='Input. 2016 fmk'!$I$4 -> PEFALIA | B32: 2016 | C32: ='Input. 2016 fmk'!$I$7 -> 2021 | D32: Current | E32: Indic | F32: PI-6 | G32: PI_6 | H32: 6 | I32: PI-6 | K32: M2 | L32: II | M32: PI-6 Central government operations outside the budget | N32: =VLOOKUP(F32,Profile!B:C,2,FALSE) -> PI-6 Central government operations outside the budget | O32: =IF($B32=2016,IF($D32="Current",VLOOKUP($G32,'Input. 2016 fmk'!$C$15:$T$153,9,FALSE),VLOOKUP($G32,'Input. 2016 fmk'!$C$15:$T$153,8,FALSE)),IF($D32="Current",VLOOKUP($G32,'Input. 2016 fmk'!$C$27:$T$155,9,FALSE),VLOOKUP($G32,'Input. 2016 fmk'!$C$27:$T$155,8,FALSE))) -> D | P32: 1 | Q32: BELOW BASIC | R32: Weakness | S32: =IFERROR(VLOOKUP($F32,'Input. 2016 fmk'!H38:X166,15,FALSE),"") -> 1 | T32: =IFERROR(VLOOKUP($F32,'Input. 2016 fmk'!$H$27:$W$153,16,FALSE),"") -> 1 | U32: =IFERROR(VLOOKUP($F32,'Input. 2016 fmk'!$H$27:$X$153,17,FALSE),"") -> 0 | V32: 1 | W32: =MIN(IF($P$19:$P$276>0,IF($B$19:$B$276=$B32,IF($C$19:$C$276=$C32,IF($I$19:$I$276=$I32,$P$19:$P$276))))) -> 1 | X32: 1 | Y32: 1 | Z32: =IF($B32=2016,IF($D32="Current",VLOOKUP($G32,'Input. 2016 fmk'!$C$15:$U$153,14,FALSE),VLOOKUP($G32,'Input. 2016 fmk'!$C$15:$U$153,16,FALSE)),IF($D32="Current",VLOOKUP($G32,'Input. 2016 fmk'!$C$27:$T$155,14,FALSE),"")) -> 1. BELOW BASIC | AA32: =IF($B32=2016,VLOOKUP($G32,'Input. 2016 fmk'!$C$15:$T$153,13,FALSE),VLOOKUP($G32,'Input. 2016 fmk'!$C$27:$T$155,13,FALSE)) -> 1
A33: ='Input. 2016 fmk'!$I$4 -> PEFALIA | B33: 2016 | C33: ='Input. 2016 fmk'!$I$7 -> 2021 | D33: Current | E33: Comp | F33: 6.1 | G33: 6.1 | H33: 6 | I33: PI-6 | J33: 1 | K33: M2 | L33: II | M33: 6.1 Expenditure outside financial reports | N33: =VLOOKUP(F33,Profile!B:C,2,FALSE) -> 6.1 Expenditure outside financial reports | O33: =IF($B33=2016,IF($D33="Current",VLOOKUP($G33,'Input. 2016 fmk'!$C$15:$T$153,9,FALSE),VLOOKUP($G33,'Input. 2016 fmk'!$C$15:$T$153,8,FALSE)),IF($D33="Current",VLOOKUP($G33,'Input. 2016 fmk'!$C$27:$T$155,9,FALSE),VLOOKUP($G33,'Input. 2016 fmk'!$C$27:$T$155,8,FALSE))) -> D* | P33: 1 | Q33: BELOW BASIC | R33: Weakness | S33: =IFERROR(VLOOKUP($F33,'Input. 2016 fmk'!H39:X167,15,FALSE),"") ->  | T33: =IFERROR(VLOOKUP($F33,'Input. 2016 fmk'!$H$27:$W$153,16,FALSE),"") ->  | U33: =IFERROR(VLOOKUP($F33,'Input. 2016 fmk'!$H$27:$X$153,17,FALSE),"") ->  | V33: 1 | W33: =MIN(IF($P$19:$P$276>0,IF($B$19:$B$276=$B33,IF($C$19:$C$276=$C33,IF($I$19:$I$276=$I33,$P$19:$P$276))))) -> 1 | X33: 1 | Y33: 1 | Z33: =IF($B33=2016,IF($D33="Current",VLOOKUP($G33,'Input. 2016 fmk'!$C$15:$U$153,14,FALSE),VLOOKUP($G33,'Input. 2016 fmk'!$C$15:$U$153,16,FALSE)),IF($D33="Current",VLOOKUP($G33,'Input. 2016 fmk'!$C$27:$T$155,14,FALSE),"")) -> 1. BELOW BASIC | AA33: =IF($B33=2016,VLOOKUP($G33,'Input. 2016 fmk'!$C$15:$T$153,13,FALSE),VLOOKUP($G33,'Input. 2016 fmk'!$C$27:$T$155,13,FALSE)) -> 0
A34: ='Input. 2016 fmk'!$I$4 -> PEFALIA | B34: 2016 | C34: ='Input. 2016 fmk'!$I$7 -> 2021 | D34: Current | E34: Comp | F34: 6.2 | G34: 6.2 | H34: 6 | I34: PI-6 | J34: 2 | K34: M2 | L34: II | M34: 6.2 Revenue outside financial reports | N34: =VLOOKUP(F34,Profile!B:C,2,FALSE) -> 6.2 Revenue outside financial reports | O34: =IF($B34=2016,IF($D34="Current",VLOOKUP($G34,'Input. 2016 fmk'!$C$15:$T$153,9,FALSE),VLOOKUP($G34,'Input. 2016 fmk'!$C$15:$T$153,8,FALSE)),IF($D34="Current",VLOOKUP($G34,'Input. 2016 fmk'!$C$27:$T$155,9,FALSE),VLOOKUP($G34,'Input. 2016 fmk'!$C$27:$T$155,8,FALSE))) -> D* | P34: 1 | Q34: BELOW BASIC | R34: Weakness | S34: =IFERROR(VLOOKUP($F34,'Input. 2016 fmk'!H40:X168,15,FALSE),"") ->  | T34: =IFERROR(VLOOKUP($F34,'Input. 2016 fmk'!$H$27:$W$153,16,FALSE),"") ->  | U34: =IFERROR(VLOOKUP($F34,'Input. 2016 fmk'!$H$27:$X$153,17,FALSE),"") ->  | V34: 1 | W34: =MIN(IF($P$19:$P$276>0,IF($B$19:$B$276=$B34,IF($C$19:$C$276=$C34,IF($I$19:$I$276=$I34,$P$19:$P$276))))) -> 1 | X34: 1 | Y34: 1 | Z34: =IF($B34=2016,IF($D34="Current",VLOOKUP($G34,'Input. 2016 fmk'!$C$15:$U$153,14,FALSE),VLOOKUP($G34,'Input. 2016 fmk'!$C$15:$U$153,16,FALSE)),IF($D34="Current",VLOOKUP($G34,'Input. 2016 fmk'!$C$27:$T$155,14,FALSE),"")) -> 1. BELOW BASIC | AA34: =IF($B34=2016,VLOOKUP($G34,'Input. 2016 fmk'!$C$15:$T$153,13,FALSE),VLOOKUP($G34,'Input. 2016 fmk'!$C$27:$T$155,13,FALSE)) -> 0
A35: ='Input. 2016 fmk'!$I$4 -> PEFALIA | B35: 2016 | C35: ='Input. 2016 fmk'!$I$7 -> 2021 | D35: Current | E35: Comp | F35: 6.3 | G35: 6.3 | H35: 6 | I35: PI-6 | J35: 3 | K35: M2 | L35: II | M35: 6.3 Financial reports of extra- budgetary units | N35: =VLOOKUP(F35,Profile!B:C,2,FALSE) -> 6.3 Financial reports of extra- budgetary units | O35: =IF($B35=2016,IF($D35="Current",VLOOKUP($G35,'Input. 2016 fmk'!$C$15:$T$153,9,FALSE),VLOOKUP($G35,'Input. 2016 fmk'!$C$15:$T$153,8,FALSE)),IF($D35="Current",VLOOKUP($G35,'Input. 2016 fmk'!$C$27:$T$155,9,FALSE),VLOOKUP($G35,'Input. 2016 fmk'!$C$27:$T$155,8,FALSE))) -> D | P35: 1 | Q35: BELOW BASIC | R35: Weakness | S35: =IFERROR(VLOOKUP($F35,'Input. 2016 fmk'!H41:X169,15,FALSE),"") ->  | T35: =IFERROR(VLOOKUP($F35,'Input. 2016 fmk'!$H$27:$W$153,16,FALSE),"") ->  | U35: =IFERROR(VLOOKUP($F35,'Input. 2016 fmk'!$H$27:$X$153,17,FALSE),"") ->  | V35: 1 | W35: =MIN(IF($P$19:$P$276>0,IF($B$19:$B$276=$B35,IF($C$19:$C$276=$C35,IF($I$19:$I$276=$I35,$P$19:$P$276))))) -> 1 | X35: 1 | Y35: 1 | Z35: =IF($B35=2016,IF($D35="Current",VLOOKUP($G35,'Input. 2016 fmk'!$C$15:$U$153,14,FALSE),VLOOKUP($G35,'Input. 2016 fmk'!$C$15:$U$153,16,FALSE)),IF($D35="Current",VLOOKUP($G35,'Input. 2016 fmk'!$C$27:$T$155,14,FALSE),"")) -> 1. BELOW BASIC | AA35: =IF($B35=2016,VLOOKUP($G35,'Input. 2016 fmk'!$C$15:$T$153,13,FALSE),VLOOKUP($G35,'Input. 2016 fmk'!$C$27:$T$155,13,FALSE)) -> 1
A36: ='Input. 2016 fmk'!$I$4 -> PEFALIA | B36: 2016 | C36: ='Input. 2016 fmk'!$I$7 -> 2021 | D36: Current | E36: Indic | F36: PI-7 | G36: PI_7 | H36: 7 | I36: PI-7 | K36: M2 | L36: II | M36: PI-7 Transfers to sub-national government | N36: =VLOOKUP(F36,Profile!B:C,2,FALSE) -> PI-7 Transfers to sub-national government | O36: =IF($B36=2016,IF($D36="Current",VLOOKUP($G36,'Input. 2016 fmk'!$C$15:$T$153,9,FALSE),VLOOKUP($G36,'Input. 2016 fmk'!$C$15:$T$153,8,FALSE)),IF($D36="Current",VLOOKUP($G36,'Input. 2016 fmk'!$C$27:$T$155,9,FALSE),VLOOKUP($G36,'Input. 2016 fmk'!$C$27:$T$155,8,FALSE))) -> NA | P36: 0 | R36: Weakness | S36: =IFERROR(VLOOKUP($F36,'Input. 2016 fmk'!H42:X170,15,FALSE),"") -> 0 | T36: =IFERROR(VLOOKUP($F36,'Input. 2016 fmk'!$H$27:$W$153,16,FALSE),"") -> 1 | U36: =IFERROR(VLOOKUP($F36,'Input. 2016 fmk'!$H$27:$X$153,17,FALSE),"") -> 1 | V36: 0 | W36: =MIN(IF($P$19:$P$276>0,IF($B$19:$B$276=$B36,IF($C$19:$C$276=$C36,IF($I$19:$I$276=$I36,$P$19:$P$276))))) -> 0 | X36: 0 | Y36: 0 | Z36: =IF($B36=2016,IF($D36="Current",VLOOKUP($G36,'Input. 2016 fmk'!$C$15:$U$153,14,FALSE),VLOOKUP($G36,'Input. 2016 fmk'!$C$15:$U$153,16,FALSE)),IF($D36="Current",VLOOKUP($G36,'Input. 2016 fmk'!$C$27:$T$155,14,FALSE),"")) ->  | AA36: =IF($B36=2016,VLOOKUP($G36,'Input. 2016 fmk'!$C$15:$T$153,13,FALSE),VLOOKUP($G36,'Input. 2016 fmk'!$C$27:$T$155,13,FALSE)) -> 0
A37: ='Input. 2016 fmk'!$I$4 -> PEFALIA | B37: 2016 | C37: ='Input. 2016 fmk'!$I$7 -> 2021 | D37: Current | E37: Comp | F37: 7.1 | G37: 7.1 | H37: 7 | I37: PI-7 | J37: 1 | K37: M2 | L37: II | M37: 7.1 System for allocating transfers | N37: =VLOOKUP(F37,Profile!B:C,2,FALSE) -> 7.1 System for allocating transfers | O37: =IF($B37=2016,IF($D37="Current",VLOOKUP($G37,'Input. 2016 fmk'!$C$15:$T$153,9,FALSE),VLOOKUP($G37,'Input. 2016 fmk'!$C$15:$T$153,8,FALSE)),IF($D37="Current",VLOOKUP($G37,'Input. 2016 fmk'!$C$27:$T$155,9,FALSE),VLOOKUP($G37,'Input. 2016 fmk'!$C$27:$T$155,8,FALSE))) -> NA | P37: 0 | R37: Weakness | S37: =IFERROR(VLOOKUP($F37,'Input. 2016 fmk'!H43:X171,15,FALSE),"") ->  | T37: =IFERROR(VLOOKUP($F37,'Input. 2016 fmk'!$H$27:$W$153,16,FALSE),"") ->  | U37: =IFERROR(VLOOKUP($F37,'Input. 2016 fmk'!$H$27:$X$153,17,FALSE),"") ->  | V37: 0 | W37: =MIN(IF($P$19:$P$276>0,IF($B$19:$B$276=$B37,IF($C$19:$C$276=$C37,IF($I$19:$I$276=$I37,$P$19:$P$276))))) -> 0 | X37: 0 | Y37: 0 | Z37: =IF($B37=2016,IF($D37="Current",VLOOKUP($G37,'Input. 2016 fmk'!$C$15:$U$153,14,FALSE),VLOOKUP($G37,'Input. 2016 fmk'!$C$15:$U$153,16,FALSE)),IF($D37="Current",VLOOKUP($G37,'Input. 2016 fmk'!$C$27:$T$155,14,FALSE),"")) ->  | AA37: =IF($B37=2016,VLOOKUP($G37,'Input. 2016 fmk'!$C$15:$T$153,13,FALSE),VLOOKUP($G37,'Input. 2016 fmk'!$C$27:$T$155,13,FALSE)) -> 0
A38: ='Input. 2016 fmk'!$I$4 -> PEFALIA | B38: 2016 | C38: ='Input. 2016 fmk'!$I$7 -> 2021 | D38: Current | E38: Comp | F38: 7.2 | G38: 7.2 | H38: 7 | I38: PI-7 | J38: 2 | K38: M2 | L38: II | M38: 7.2 Timeliness of information on transfers | N38: =VLOOKUP(F38,Profile!B:C,2,FALSE) -> 7.2 Timeliness of information on transfers | O38: =IF($B38=2016,IF($D38="Current",VLOOKUP($G38,'Input. 2016 fmk'!$C$15:$T$153,9,FALSE),VLOOKUP($G38,'Input. 2016 fmk'!$C$15:$T$153,8,FALSE)),IF($D38="Current",VLOOKUP($G38,'Input. 2016 fmk'!$C$27:$T$155,9,FALSE),VLOOKUP($G38,'Input. 2016 fmk'!$C$27:$T$155,8,FALSE))) -> NA | P38: 0 | R38: Weakness | S38: =IFERROR(VLOOKUP($F38,'Input. 2016 fmk'!H44:X172,15,FALSE),"") ->  | T38: =IFERROR(VLOOKUP($F38,'Input. 2016 fmk'!$H$27:$W$153,16,FALSE),"") ->  | U38: =IFERROR(VLOOKUP($F38,'Input. 2016 fmk'!$H$27:$X$153,17,FALSE),"") ->  | V38: 0 | W38: =MIN(IF($P$19:$P$276>0,IF($B$19:$B$276=$B38,IF($C$19:$C$276=$C38,IF($I$19:$I$276=$I38,$P$19:$P$276))))) -> 0 | X38: 0 | Y38: 0 | Z38: =IF($B38=2016,IF($D38="Current",VLOOKUP($G38,'Input. 2016 fmk'!$C$15:$U$153,14,FALSE),VLOOKUP($G38,'Input. 2016 fmk'!$C$15:$U$153,16,FALSE)),IF($D38="Current",VLOOKUP($G38,'Input. 2016 fmk'!$C$27:$T$155,14,FALSE),"")) ->  | AA38: =IF($B38=2016,VLOOKUP($G38,'Input. 2016 fmk'!$C$15:$T$153,13,FALSE),VLOOKUP($G38,'Input. 2016 fmk'!$C$27:$T$155,13,FALSE)) -> 0
A39: ='Input. 2016 fmk'!$I$4 -> PEFALIA | B39: 2016 | C39: ='Input. 2016 fmk'!$I$7 -> 2021 | D39: Current | E39: Indic | F39: PI-8 | G39: PI_8 | H39: 8 | I39: PI-8 | K39: M2 | L39: II | M39: PI-8 Performance information for service delivery | N39: =VLOOKUP(F39,Profile!B:C,2,FALSE) -> PI-8 Performance information for service delivery | O39: =IF($B39=2016,IF($D39="Current",VLOOKUP($G39,'Input. 2016 fmk'!$C$15:$T$153,9,FALSE),VLOOKUP($G39,'Input. 2016 fmk'!$C$15:$T$153,8,FALSE)),IF($D39="Current",VLOOKUP($G39,'Input. 2016 fmk'!$C$27:$T$155,9,FALSE),VLOOKUP($G39,'Input. 2016 fmk'!$C$27:$T$155,8,FALSE))) -> D+ | P39: 1.5 | Q39: BELOW BASIC | R39: Weakness | S39: =IFERROR(VLOOKUP($F39,'Input. 2016 fmk'!H45:X173,15,FALSE),"") -> 0 | T39: =IFERROR(VLOOKUP($F39,'Input. 2016 fmk'!$H$27:$W$153,16,FALSE),"") -> 0 | U39: =IFERROR(VLOOKUP($F39,'Input. 2016 fmk'!$H$27:$X$153,17,FALSE),"") -> 1 | V39: 1.5 | W39: =MIN(IF($P$19:$P$276>0,IF($B$19:$B$276=$B39,IF($C$19:$C$276=$C39,IF($I$19:$I$276=$I39,$P$19:$P$276))))) -> 1 | X39: 1.5 | Y39: 1.5 | Z39: =IF($B39=2016,IF($D39="Current",VLOOKUP($G39,'Input. 2016 fmk'!$C$15:$U$153,14,FALSE),VLOOKUP($G39,'Input. 2016 fmk'!$C$15:$U$153,16,FALSE)),IF($D39="Current",VLOOKUP($G39,'Input. 2016 fmk'!$C$27:$T$155,14,FALSE),"")) -> 1. BELOW BASIC | AA39: =IF($B39=2016,VLOOKUP($G39,'Input. 2016 fmk'!$C$15:$T$153,13,FALSE),VLOOKUP($G39,'Input. 2016 fmk'!$C$27:$T$155,13,FALSE)) -> 1.5
A40: ='Input. 2016 fmk'!$I$4 -> PEFALIA | B40: 2016 | C40: ='Input. 2016 fmk'!$I$7 -> 2021 | D40: Current | E40: Comp | F40: 8.1 | G40: 8.1 | H40: 8 | I40: PI-8 | J40: 1 | K40: M2 | L40: II | M40: 8.1 Performance plans for service delivery | N40: =VLOOKUP(F40,Profile!B:C,2,FALSE) -> 8.1 Performance plans for service delivery | O40: =IF($B40=2016,IF($D40="Current",VLOOKUP($G40,'Input. 2016 fmk'!$C$15:$T$153,9,FALSE),VLOOKUP($G40,'Input. 2016 fmk'!$C$15:$T$153,8,FALSE)),IF($D40="Current",VLOOKUP($G40,'Input. 2016 fmk'!$C$27:$T$155,9,FALSE),VLOOKUP($G40,'Input. 2016 fmk'!$C$27:$T$155,8,FALSE))) -> D | P40: 1 | Q40: BELOW BASIC | R40: Weakness | S40: =IFERROR(VLOOKUP($F40,'Input. 2016 fmk'!H46:X174,15,FALSE),"") ->  | T40: =IFERROR(VLOOKUP($F40,'Input. 2016 fmk'!$H$27:$W$153,16,FALSE),"") ->  | U40: =IFERROR(VLOOKUP($F40,'Input. 2016 fmk'!$H$27:$X$153,17,FALSE),"") ->  | V40: 1.5 | W40: =MIN(IF($P$19:$P$276>0,IF($B$19:$B$276=$B40,IF($C$19:$C$276=$C40,IF($I$19:$I$276=$I40,$P$19:$P$276))))) -> 1 | X40: 1.5 | Y40: 1.5 | Z40: =IF($B40=2016,IF($D40="Current",VLOOKUP($G40,'Input. 2016 fmk'!$C$15:$U$153,14,FALSE),VLOOKUP($G40,'Input. 2016 fmk'!$C$15:$U$153,16,FALSE)),IF($D40="Current",VLOOKUP($G40,'Input. 2016 fmk'!$C$27:$T$155,14,FALSE),"")) -> 1. BELOW BASIC | AA40: =IF($B40=2016,VLOOKUP($G40,'Input. 2016 fmk'!$C$15:$T$153,13,FALSE),VLOOKUP($G40,'Input. 2016 fmk'!$C$27:$T$155,13,FALSE)) -> 1
A41: ='Input. 2016 fmk'!$I$4 -> PEFALIA | B41: 2016 | C41: ='Input. 2016 fmk'!$I$7 -> 2021 | D41: Current | E41: Comp | F41: 8.2 | G41: 8.2 | H41: 8 | I41: PI-8 | J41: 2 | K41: M2 | L41: II | M41: 8.2 Performance achieved for service delivery | N41: =VLOOKUP(F41,Profile!B:C,2,FALSE) -> 8.2 Performance achieved for service delivery | O41: =IF($B41=2016,IF($D41="Current",VLOOKUP($G41,'Input. 2016 fmk'!$C$15:$T$153,9,FALSE),VLOOKUP($G41,'Input. 2016 fmk'!$C$15:$T$153,8,FALSE)),IF($D41="Current",VLOOKUP($G41,'Input. 2016 fmk'!$C$27:$T$155,9,FALSE),VLOOKUP($G41,'Input. 2016 fmk'!$C$27:$T$155,8,FALSE))) -> C | P41: 2 | Q41: BASIC | R41: Weakness | S41: =IFERROR(VLOOKUP($F41,'Input. 2016 fmk'!H47:X175,15,FALSE),"") ->  | T41: =IFERROR(VLOOKUP($F41,'Input. 2016 fmk'!$H$27:$W$153,16,FALSE),"") ->  | U41: =IFERROR(VLOOKUP($F41,'Input. 2016 fmk'!$H$27:$X$153,17,FALSE),"") ->  | V41: 1.5 | W41: =MIN(IF($P$19:$P$276>0,IF($B$19:$B$276=$B41,IF($C$19:$C$276=$C41,IF($I$19:$I$276=$I41,$P$19:$P$276))))) -> 1 | X41: 1.5 | Y41: 1.5 | Z41: =IF($B41=2016,IF($D41="Current",VLOOKUP($G41,'Input. 2016 fmk'!$C$15:$U$153,14,FALSE),VLOOKUP($G41,'Input. 2016 fmk'!$C$15:$U$153,16,FALSE)),IF($D41="Current",VLOOKUP($G41,'Input. 2016 fmk'!$C$27:$T$155,14,FALSE),"")) -> 2. BASIC | AA41: =IF($B41=2016,VLOOKUP($G41,'Input. 2016 fmk'!$C$15:$T$153,13,FALSE),VLOOKUP($G41,'Input. 2016 fmk'!$C$27:$T$155,13,FALSE)) -> 2
A42: ='Input. 2016 fmk'!$I$4 -> PEFALIA | B42: 2016 | C42: ='Input. 2016 fmk'!$I$7 -> 2021 | D42: Current | E42: Comp | F42: 8.3 | G42: 8.3 | H42: 8 | I42: PI-8 | J42: 3 | K42: M2 | L42: II | M42: 8.3 Resources received by service delivery units | N42: =VLOOKUP(F42,Profile!B:C,2,FALSE) -> 8.3 Resources received by service delivery units | O42: =IF($B42=2016,IF($D42="Current",VLOOKUP($G42,'Input. 2016 fmk'!$C$15:$T$153,9,FALSE),VLOOKUP($G42,'Input. 2016 fmk'!$C$15:$T$153,8,FALSE)),IF($D42="Current",VLOOKUP($G42,'Input. 2016 fmk'!$C$27:$T$155,9,FALSE),VLOOKUP($G42,'Input. 2016 fmk'!$C$27:$T$155,8,FALSE))) -> D | P42: 1 | Q42: BELOW BASIC | R42: Weakness | S42: =IFERROR(VLOOKUP($F42,'Input. 2016 fmk'!H48:X176,15,FALSE),"") ->  | T42: =IFERROR(VLOOKUP($F42,'Input. 2016 fmk'!$H$27:$W$153,16,FALSE),"") ->  | U42: =IFERROR(VLOOKUP($F42,'Input. 2016 fmk'!$H$27:$X$153,17,FALSE),"") ->  | V42: 1.5 | W42: =MIN(IF($P$19:$P$276>0,IF($B$19:$B$276=$B42,IF($C$19:$C$276=$C42,IF($I$19:$I$276=$I42,$P$19:$P$276))))) -> 1 | X42: 1.5 | Y42: 1.5 | Z42: =IF($B42=2016,IF($D42="Current",VLOOKUP($G42,'Input. 2016 fmk'!$C$15:$U$153,14,FALSE),VLOOKUP($G42,'Input. 2016 fmk'!$C$15:$U$153,16,FALSE)),IF($D42="Current",VLOOKUP($G42,'Input. 2016 fmk'!$C$27:$T$155,14,FALSE),"")) -> 1. BELOW BASIC | AA42: =IF($B42=2016,VLOOKUP($G42,'Input. 2016 fmk'!$C$15:$T$153,13,FALSE),VLOOKUP($G42,'Input. 2016 fmk'!$C$27:$T$155,13,FALSE)) -> 1
A43: ='Input. 2016 fmk'!$I$4 -> PEFALIA | B43: 2016 | C43: ='Input. 2016 fmk'!$I$7 -> 2021 | D43: Current | E43: Comp | F43: 8.4 | G43: 8.4 | H43: 8 | I43: PI-8 | J43: 4 | K43: M2 | L43: II | M43: 8.4 Performance evaluation for service delivery | N43: =VLOOKUP(F43,Profile!B:C,2,FALSE) -> 8.4 Performance evaluation for service delivery | O43: =IF($B43=2016,IF($D43="Current",VLOOKUP($G43,'Input. 2016 fmk'!$C$15:$T$153,9,FALSE),VLOOKUP($G43,'Input. 2016 fmk'!$C$15:$T$153,8,FALSE)),IF($D43="Current",VLOOKUP($G43,'Input. 2016 fmk'!$C$27:$T$155,9,FALSE),VLOOKUP($G43,'Input. 2016 fmk'!$C$27:$T$155,8,FALSE))) -> C | P43: 2 | Q43: BASIC | R43: Weakness | S43: =IFERROR(VLOOKUP($F43,'Input. 2016 fmk'!H49:X177,15,FALSE),"") ->  | T43: =IFERROR(VLOOKUP($F43,'Input. 2016 fmk'!$H$27:$W$153,16,FALSE),"") ->  | U43: =IFERROR(VLOOKUP($F43,'Input. 2016 fmk'!$H$27:$X$153,17,FALSE),"") ->  | V43: 1.5 | W43: =MIN(IF($P$19:$P$276>0,IF($B$19:$B$276=$B43,IF($C$19:$C$276=$C43,IF($I$19:$I$276=$I43,$P$19:$P$276))))) -> 1 | X43: 1.5 | Y43: 1.5 | Z43: =IF($B43=2016,IF($D43="Current",VLOOKUP($G43,'Input. 2016 fmk'!$C$15:$U$153,14,FALSE),VLOOKUP($G43,'Input. 2016 fmk'!$C$15:$U$153,16,FALSE)),IF($D43="Current",VLOOKUP($G43,'Input. 2016 fmk'!$C$27:$T$155,14,FALSE),"")) -> 2. BASIC | AA43: =IF($B43=2016,VLOOKUP($G43,'Input. 2016 fmk'!$C$15:$T$153,13,FALSE),VLOOKUP($G43,'Input. 2016 fmk'!$C$27:$T$155,13,FALSE)) -> 2
A44: ='Input. 2016 fmk'!$I$4 -> PEFALIA | B44: 2016 | C44: ='Input. 2016 fmk'!$I$7 -> 2021 | D44: Current | E44: Indic | F44: PI-9 | G44: PI_9 | H44: 9 | I44: PI-9 | K44: M1 | L44: II | M44: PI-9 Public access to fiscal information | N44: =VLOOKUP(F44,Profile!B:C,2,FALSE) -> PI-9 Public access to fiscal information | O44: =IF($B44=2016,IF($D44="Current",VLOOKUP($G44,'Input. 2016 fmk'!$C$15:$T$153,9,FALSE),VLOOKUP($G44,'Input. 2016 fmk'!$C$15:$T$153,8,FALSE)),IF($D44="Current",VLOOKUP($G44,'Input. 2016 fmk'!$C$27:$T$155,9,FALSE),VLOOKUP($G44,'Input. 2016 fmk'!$C$27:$T$155,8,FALSE))) -> D | P44: 1 | Q44: BELOW BASIC | R44: Weakness | S44: =IFERROR(VLOOKUP($F44,'Input. 2016 fmk'!H50:X178,15,FALSE),"") -> 0 | T44: =IFERROR(VLOOKUP($F44,'Input. 2016 fmk'!$H$27:$W$153,16,FALSE),"") -> 0 | U44: =IFERROR(VLOOKUP($F44,'Input. 2016 fmk'!$H$27:$X$153,17,FALSE),"") -> 1 | V44: 1 | W44: =MIN(IF($P$19:$P$276>0,IF($B$19:$B$276=$B44,IF($C$19:$C$276=$C44,IF($I$19:$I$276=$I44,$P$19:$P$276))))) -> 1 | X44: 1 | Y44: 1 | Z44: =IF($B44=2016,IF($D44="Current",VLOOKUP($G44,'Input. 2016 fmk'!$C$15:$U$153,14,FALSE),VLOOKUP($G44,'Input. 2016 fmk'!$C$15:$U$153,16,FALSE)),IF($D44="Current",VLOOKUP($G44,'Input. 2016 fmk'!$C$27:$T$155,14,FALSE),"")) -> 1. BELOW BASIC | AA44: =IF($B44=2016,VLOOKUP($G44,'Input. 2016 fmk'!$C$15:$T$153,13,FALSE),VLOOKUP($G44,'Input. 2016 fmk'!$C$27:$T$155,13,FALSE)) -> 1
A45: ='Input. 2016 fmk'!$I$4 -> PEFALIA | B45: 2016 | C45: ='Input. 2016 fmk'!$I$7 -> 2021 | D45: Current | E45: Comp | F45: 9.1 | G45: 9.1 | H45: 9 | I45: PI-9 | J45: 1 | K45: M1 | L45: II | M45: 9.1 Public access to fiscal information | N45: =VLOOKUP(F45,Profile!B:C,2,FALSE) -> 9.1 Public access to fiscal information | O45: =IF($B45=2016,IF($D45="Current",VLOOKUP($G45,'Input. 2016 fmk'!$C$15:$T$153,9,FALSE),VLOOKUP($G45,'Input. 2016 fmk'!$C$15:$T$153,8,FALSE)),IF($D45="Current",VLOOKUP($G45,'Input. 2016 fmk'!$C$27:$T$155,9,FALSE),VLOOKUP($G45,'Input. 2016 fmk'!$C$27:$T$155,8,FALSE))) -> D | P45: 1 | Q45: BELOW BASIC | R45: Weakness | S45: =IFERROR(VLOOKUP($F45,'Input. 2016 fmk'!H51:X179,15,FALSE),"") ->  | T45: =IFERROR(VLOOKUP($F45,'Input. 2016 fmk'!$H$27:$W$153,16,FALSE),"") ->  | U45: =IFERROR(VLOOKUP($F45,'Input. 2016 fmk'!$H$27:$X$153,17,FALSE),"") ->  | V45: 1 | W45: =MIN(IF($P$19:$P$276>0,IF($B$19:$B$276=$B45,IF($C$19:$C$276=$C45,IF($I$19:$I$276=$I45,$P$19:$P$276))))) -> 1 | X45: 1 | Y45: 1 | Z45: =IF($B45=2016,IF($D45="Current",VLOOKUP($G45,'Input. 2016 fmk'!$C$15:$U$153,14,FALSE),VLOOKUP($G45,'Input. 2016 fmk'!$C$15:$U$153,16,FALSE)),IF($D45="Current",VLOOKUP($G45,'Input. 2016 fmk'!$C$27:$T$155,14,FALSE),"")) -> 1. BELOW BASIC | AA45: =IF($B45=2016,VLOOKUP($G45,'Input. 2016 fmk'!$C$15:$T$153,13,FALSE),VLOOKUP($G45,'Input. 2016 fmk'!$C$27:$T$155,13,FALSE)) -> 1
A46: ='Input. 2016 fmk'!$I$4 -> PEFALIA | B46: 2016 | C46: ='Input. 2016 fmk'!$I$7 -> 2021 | D46: Current | E46: Indic | F46: PI-9bis | G46: PI-9bis | H46: 9bis | I46: PI-9bis | K46: M2 | L46: III | M46: PI-9bis Public consultation | N46: =VLOOKUP(F46,Profile!B:C,2,FALSE) -> PI-9bis Public consultation | O46: =IF($B46=2016,IF($D46="Current",VLOOKUP($G46,'Input. 2016 fmk'!$C$15:$T$153,9,FALSE),VLOOKUP($G46,'Input. 2016 fmk'!$C$15:$T$153,8,FALSE)),IF($D46="Current",VLOOKUP($G46,'Input. 2016 fmk'!$C$27:$T$155,9,FALSE),VLOOKUP($G46,'Input. 2016 fmk'!$C$27:$T$155,8,FALSE))) -> D+ | P46: =IFERROR(IF(O46="A",4, IF(O46="B+",3.5, IF(O46="B",3, IF(O46="C+",2.5, IF(O46="C",2, IF(O46="D+",1.5, IF(O46="D",1, IF(O46="D*",1, 0)))))))),"") -> 1.5 | Q46: BELOW BASIC | R46: Weakness | S46: =IFERROR(VLOOKUP($F46,'Input. 2016 fmk'!H48:X176,15,FALSE),"") ->  | T46: =IFERROR(VLOOKUP($F46,'Input. 2016 fmk'!$H$27:$W$153,16,FALSE),"") ->  | U46: =IFERROR(VLOOKUP($F46,'Input. 2016 fmk'!$H$27:$X$153,17,FALSE),"") ->  | V46: 1.333333333 | W46: =MIN(IF($P$19:$P$276>0,IF($B$19:$B$276=$B46,IF($C$19:$C$276=$C46,IF($I$19:$I$276=$I46,$P$19:$P$276))))) -> 1 | X46: 1.5 | Y46: 1.333333333 | Z46: =IF($B46=2016,IF($D46="Current",VLOOKUP($G46,'Input. 2016 fmk'!$C$15:$U$153,14,FALSE),VLOOKUP($G46,'Input. 2016 fmk'!$C$15:$U$153,16,FALSE)),IF($D46="Current",VLOOKUP($G46,'Input. 2016 fmk'!$C$27:$T$155,14,FALSE),"")) -> 1. BELOW BASIC | AA46: =IF($B46=2016,VLOOKUP($G46,'Input. 2016 fmk'!$C$15:$T$153,13,FALSE),VLOOKUP($G46,'Input. 2016 fmk'!$C$27:$T$155,13,FALSE)) -> 1.5
A47: ='Input. 2016 fmk'!$I$4 -> PEFALIA | B47: 2016 | C47: ='Input. 2016 fmk'!$I$7 -> 2021 | D47: Current | E47: Comp | F47: 9bis.1 | G47: 9bis.1 | H47: 9bis | I47: PI-9bis | J47: 1 | K47: M2 | L47: III | M47: 9bis.1 Public consultation in budget preparation | N47: =VLOOKUP(F47,Profile!B:C,2,FALSE) -> 9bis.1 Public consultation in budget preparation | O47: =IF($B47=2016,IF($D47="Current",VLOOKUP($G47,'Input. 2016 fmk'!$C$15:$T$153,9,FALSE),VLOOKUP($G47,'Input. 2016 fmk'!$C$15:$T$153,8,FALSE)),IF($D47="Current",VLOOKUP($G47,'Input. 2016 fmk'!$C$27:$T$155,9,FALSE),VLOOKUP($G47,'Input. 2016 fmk'!$C$27:$T$155,8,FALSE))) -> D | P47: =IFERROR(IF(O47="A",4, IF(O47="B+",3.5, IF(O47="B",3, IF(O47="C+",2.5, IF(O47="C",2, IF(O47="D+",1.5, IF(O47="D",1, IF(O47="D*",1, 0)))))))),"") -> 1 | Q47: BELOW BASIC | R47: Weakness | S47: =IFERROR(VLOOKUP($F47,'Input. 2016 fmk'!H49:X177,15,FALSE),"") ->  | T47: =IFERROR(VLOOKUP($F47,'Input. 2016 fmk'!$H$27:$W$153,16,FALSE),"") ->  | U47: =IFERROR(VLOOKUP($F47,'Input. 2016 fmk'!$H$27:$X$153,17,FALSE),"") ->  | V47: 1.333333333 | W47: =MIN(IF($P$19:$P$276>0,IF($B$19:$B$276=$B47,IF($C$19:$C$276=$C47,IF($I$19:$I$276=$I47,$P$19:$P$276))))) -> 1 | X47: 1.5 | Y47: 1.333333333 | Z47: =IF($B47=2016,IF($D47="Current",VLOOKUP($G47,'Input. 2016 fmk'!$C$15:$U$153,14,FALSE),VLOOKUP($G47,'Input. 2016 fmk'!$C$15:$U$153,16,FALSE)),IF($D47="Current",VLOOKUP($G47,'Input. 2016 fmk'!$C$27:$T$155,14,FALSE),"")) -> 1. BELOW BASIC | AA47: =IF($B47=2016,VLOOKUP($G47,'Input. 2016 fmk'!$C$15:$T$153,13,FALSE),VLOOKUP($G47,'Input. 2016 fmk'!$C$27:$T$155,13,FALSE)) -> 1
A48: ='Input. 2016 fmk'!$I$4 -> PEFALIA | B48: 2016 | C48: ='Input. 2016 fmk'!$I$7 -> 2021 | D48: Current | E48: Comp | F48: 9bis.2 | G48: 9bis.2 | H48: 9bis | I48: PI-9bis | J48: 2 | K48: M2 | L48: III | M48: 9bis.2 Public consultation in the design of service delivery programs | N48: =VLOOKUP(F48,Profile!B:C,2,FALSE) -> 9bis.2 Public consultation in the design of service delivery programs | O48: =IF($B48=2016,IF($D48="Current",VLOOKUP($G48,'Input. 2016 fmk'!$C$15:$T$153,9,FALSE),VLOOKUP($G48,'Input. 2016 fmk'!$C$15:$T$153,8,FALSE)),IF($D48="Current",VLOOKUP($G48,'Input. 2016 fmk'!$C$27:$T$155,9,FALSE),VLOOKUP($G48,'Input. 2016 fmk'!$C$27:$T$155,8,FALSE))) -> C | P48: =IFERROR(IF(O48="A",4, IF(O48="B+",3.5, IF(O48="B",3, IF(O48="C+",2.5, IF(O48="C",2, IF(O48="D+",1.5, IF(O48="D",1, IF(O48="D*",1, 0)))))))),"") -> 2 | Q48: BASIC | R48: Weakness | S48: =IFERROR(VLOOKUP($F48,'Input. 2016 fmk'!H50:X178,15,FALSE),"") ->  | T48: =IFERROR(VLOOKUP($F48,'Input. 2016 fmk'!$H$27:$W$153,16,FALSE),"") ->  | U48: =IFERROR(VLOOKUP($F48,'Input. 2016 fmk'!$H$27:$X$153,17,FALSE),"") ->  | V48: 1.333333333 | W48: =MIN(IF($P$19:$P$276>0,IF($B$19:$B$276=$B48,IF($C$19:$C$276=$C48,IF($I$19:$I$276=$I48,$P$19:$P$276))))) -> 1 | X48: 1.5 | Y48: 1.333333333 | Z48: =IF($B48=2016,IF($D48="Current",VLOOKUP($G48,'Input. 2016 fmk'!$C$15:$U$153,14,FALSE),VLOOKUP($G48,'Input. 2016 fmk'!$C$15:$U$153,16,FALSE)),IF($D48="Current",VLOOKUP($G48,'Input. 2016 fmk'!$C$27:$T$155,14,FALSE),"")) -> 2. BASIC | AA48: =IF($B48=2016,VLOOKUP($G48,'Input. 2016 fmk'!$C$15:$T$153,13,FALSE),VLOOKUP($G48,'Input. 2016 fmk'!$C$27:$T$155,13,FALSE)) -> 2
A49: ='Input. 2016 fmk'!$I$4 -> PEFALIA | B49: 2016 | C49: ='Input. 2016 fmk'!$I$7 -> 2021 | D49: Current | E49: Comp | F49: 9bis.3 | G49: 9bis.3 | H49: 9bis | I49: PI-9bis | J49: 3 | K49: M2 | L49: III | M49: 9bis.3 Public consultation in investment planning | N49: =VLOOKUP(F49,Profile!B:C,2,FALSE) -> 9bis.3 Public consultation in investment planning | O49: =IF($B49=2016,IF($D49="Current",VLOOKUP($G49,'Input. 2016 fmk'!$C$15:$T$153,9,FALSE),VLOOKUP($G49,'Input. 2016 fmk'!$C$15:$T$153,8,FALSE)),IF($D49="Current",VLOOKUP($G49,'Input. 2016 fmk'!$C$27:$T$155,9,FALSE),VLOOKUP($G49,'Input. 2016 fmk'!$C$27:$T$155,8,FALSE))) -> D | P49: =IFERROR(IF(O49="A",4, IF(O49="B+",3.5, IF(O49="B",3, IF(O49="C+",2.5, IF(O49="C",2, IF(O49="D+",1.5, IF(O49="D",1, IF(O49="D*",1, 0)))))))),"") -> 1 | Q49: BELOW BASIC | R49: Weakness | S49: =IFERROR(VLOOKUP($F49,'Input. 2016 fmk'!H55:X179,15,FALSE),"") ->  | T49: =IFERROR(VLOOKUP($F49,'Input. 2016 fmk'!$H$27:$W$153,16,FALSE),"") ->  | U49: =IFERROR(VLOOKUP($F49,'Input. 2016 fmk'!$H$27:$X$153,17,FALSE),"") ->  | V49: 1.333333333 | W49: =MIN(IF($P$19:$P$276>0,IF($B$19:$B$276=$B49,IF($C$19:$C$276=$C49,IF($I$19:$I$276=$I49,$P$19:$P$276))))) -> 1 | X49: 1.5 | Y49: 1.333333333 | Z49: =IF($B49=2016,IF($D49="Current",VLOOKUP($G49,'Input. 2016 fmk'!$C$15:$U$153,14,FALSE),VLOOKUP($G49,'Input. 2016 fmk'!$C$15:$U$153,16,FALSE)),IF($D49="Current",VLOOKUP($G49,'Input. 2016 fmk'!$C$27:$T$155,14,FALSE),"")) -> 1. BELOW BASIC | AA49: =IF($B49=2016,VLOOKUP($G49,'Input. 2016 fmk'!$C$15:$T$153,13,FALSE),VLOOKUP($G49,'Input. 2016 fmk'!$C$27:$T$155,13,FALSE)) -> 1
